Workbook

Sheet Entry (hidden)
A2: Cell : | B2: z305 | I2: Display Values
A4: District Name | B4: Values | I4: =B2 -> z305 | J4: p370 | K4: s402 | L4: u402
F5: =IFERROR(INDIRECT(CONCATENATE($A5,"!",B$2)),"") -> 
A6: Dmr | B6: 50 | F6: =IF(LEN(B6)>0,IF(INDIRECT(CONCATENATE($A6,"!",B$2))=B6,"ü","û"),"") -> û | H6: Dmr | I6: =IFERROR(INDIRECT(CONCATENATE($H6,"!",I$4)),"") -> 27.552 | J6: 0 | K6: 5152.85176 | L6: 1310.42175 | M6: =J6+K6-L6 -> 3842.43001
A7: Kip | B7: 46 | F7: =IF(LEN(B7)>0,IF(INDIRECT(CONCATENATE($A7,"!",B$2))=B7,"ü","û"),"") -> û | H7: Kip | I7: 13.776 | J7: 0 | K7: 2560.359026 | L7: 454.975 | M7: =J7+K7-L7 -> 2105.384026
A8: Koh | B8: 50 | F8: û | H8: Koh | I8: 27.552 | J8: 0 | K8: 3130.981854 | L8: 469.37828 | M8: 2661.603574
A9: Lng | B9: 37 | F9: û | H9: Lng | I9: 9.184 | J9: 0 | K9: 1302.927441 | L9: 434.1606124 | M9: 868.7668286
A10: Mkg | B10: 50 | F10: û | H10: Mkg | I10: 27.552 | J10: 0 | K10: 2586.63641 | L10: 481.8834556 | M10: 2104.752954
A11: Mon | B11: 46 | F11: û | H11: Mon | I11: 36.736 | J11: 0 | K11: 5234.863589 | L11: 847.64994 | M11: 4387.213649
A12: Prn | B12: 40 | F12: û | H12: Prn | I12: 18.368 | J12: 0 | K12: 2175.000581 | L12: 376.8268 | M12: 1798.173781
A13: Phk | B13: 50 | F13: û | H13: Phk | I13: 27.552 | J13: 0 | K13: 2685.769786 | L13: 822.7647 | M13: 1863.005086
A14: Tsg | B14: 50 | F14: û | H14: Tsg | I14: 34.44 | J14: 0 | K14: 4021.550879 | L14: 884.877 | M14: 3136.673879
A15: Wk | B15: 46 | F15: û | H15: Wk | I15: 32.144 | J15: 0 | K15: 2231.312748 | L15: 380.8987536 | M15: 1850.413994
A16: Zun | B16: 50 | F16: û | H16: Zun | I16: 32.144 | J16: 0 | K16: 3696.600926 | L16: 614.3317186 | M16: 3082.269208
I22: =IFERROR(INDIRECT(CONCATENATE($H22,"!",I$4)),"") -> 
I38: =IFERROR(INDIRECT(CONCATENATE($H38,"!",I$4)),"") -> 
B43: =SUM(B6:B42) -> 515
B44: =402924-84 -> 402840
D288: Academic Support through Block Resource Centre/ BRC
U400: =SUM(U395:U399) -> 0
U401: =SUM(U394,U400) -> 0
U402: =SUM(U193,U217,U320,U339,U354,U387,U401) -> 0

Sheet % (hidden)
A2: S. No. | B2: Name of the district | C2: Approval 2015-16 | D2: Expenditure 2015-16 | E2: Fresh Outlay 2016-17 | F2: Spill over 2016-17 | G2: Total | H2: CW Fresh | I2: % on total outlay | J2: % of CW | K2: Mgt.cost 3.5% | L2: % on total outlay | M2: % | N2: LEP-2% | O2: % on total outlay | P2: % | Q2: CM-0.5% | R2: % on total outlay | S2: % | T2: Total Mgt. | U2: % | Z2: Fresh Outlay 2016-17 | AA2: Expdr.
A4: 1 | B4: Dimapur | C4: =Dmr!$D$515 -> 4998.29725 | D4: =Dmr!$F$515 -> 2043.046 | E4: 5366.207011 | F4: =Dmr!#REF! ->  | G4: =E4+F4 ->  | H4: =Dmr!#REF! ->  | I4: =H4/G4*100 ->  | J4: =H4/E4*100 ->  | K4: =Dmr!#REF! ->  | L4: =K4/G4*100 ->  | M4: =K4/E4*100 ->  | N4: =Dmr!#REF! ->  | O4: =N4/G4*100 ->  | P4: =N4/E4*100 ->  | Q4: =Dmr!#REF! ->  | R4: =Q4/G4*100 ->  | S4: =Q4/E4*100 ->  | T4: =K4+N4+Q4 ->  | U4: =T4/G4*100 ->  | W4: 5230.89215 | X4: =W4-E4 -> -135.3148611 | Z4: 5366.207011 | AA4: 2617.5765
A5: 2 | B5: Kiphire | C5: =Kip!$D$515 -> 2231.992354 | D5: =Kip!$F$515 -> 794.55 | E5: 2443.257048 | F5: =Kip!#REF! ->  | G5: =E5+F5 ->  | H5: =Kip!#REF! ->  | I5: =H5/G5*100 ->  | J5: =H5/E5*100 ->  | K5: =Kip!#REF! ->  | L5: =K5/G5*100 ->  | M5: =K5/E5*100 ->  | N5: =Kip!#REF! ->  | P5: =N5/E5*100 ->  | Q5: =Kip!#REF! ->  | R5: =Q5/G5*100 ->  | S5: =Q5/E5*100 ->  | T5: =K5+N5+Q5 ->  | U5: =T5/G5*100 ->  | W5: 2476.164509 | X5: =W5-E5 -> 32.90746129 | Z5: 2443.257048 | AA5: 1093.0515
A6: 3 | B6: Kohima | C6: =Koh!$D$515 -> 2119.67741 | D6: =Koh!$F$515 -> 891.632 | E6: 2156.940983 | F6: =Koh!#REF! ->  | H6: =Koh!#REF! ->  | K6: =Koh!#REF! ->  | N6: =Koh!#REF! ->  | Q6: =Koh!#REF! ->  | W6: 3231.158855 | X6: 1074.217872 | Z6: 2156.940983 | AA6: 1132.6265
A7: 4 | B7: Longleng | C7: =Lng!$D$515 -> 1292.073832 | D7: =Lng!$F$515 -> 402.634 | E7: 1505.383988 | F7: =Lng!#REF! ->  | H7: =Lng!#REF! ->  | K7: =Lng!#REF! ->  | N7: =Lng!#REF! ->  | Q7: =Lng!#REF! ->  | W7: 1626.919827 | X7: 121.5358397 | Z7: 1505.383988 | AA7: 760.101
A8: 5 | B8: Mokokchung | C8: =Mkg!$D$515 -> 2248.921616 | D8: =Mkg!$F$515 -> 909.686 | E8: 2060.492227 | F8: =Mkg!#REF! ->  | H8: =Mkg!#REF! ->  | K8: =Mkg!#REF! ->  | N8: =Mkg!#REF! ->  | Q8: =Mkg!#REF! ->  | W8: 2842.649136 | X8: 782.1569088 | Z8: 2060.492227 | AA8: 1057.8255
A9: 6 | B9: Mon | C9: =Mon!$D$515 -> 3206.389081 | D9: =Mon!$F$515 -> 1154.634 | E9: 3515.759584 | F9: =Mon!#REF! ->  | H9: =Mon!#REF! ->  | K9: =Mon!#REF! ->  | N9: =Mon!#REF! ->  | Q9: =Mon!#REF! ->  | W9: 5275.789056 | X9: 1760.029471 | Z9: 3515.759584 | AA9: 1871.103
A10: 7 | B10: Peren | C10: =Prn!$D$515 -> 1892.26054 | D10: =Prn!$F$515 -> 927.572 | E10: 1944.930804 | F10: =Prn!#REF! ->  | H10: =Prn!#REF! ->  | K10: =Prn!#REF! ->  | N10: =Prn!#REF! ->  | Q10: =Prn!#REF! ->  | T10: =K10+N10+Q10 ->  | W10: 2596.17884 | X10: 651.2480355 | Z10: 1944.930804 | AA10: 1157.12
A11: 8 | B11: Phek | C11: =Phk!$D$515 -> 2588.31576 | D11: =Phk!$F$515 -> 933.218 | E11: 2435.62947 | F11: =Phk!#REF! ->  | H11: =Phk!#REF! ->  | K11: =Phk!#REF! ->  | N11: =Phk!#REF! ->  | Q11: =Phk!#REF! ->  | W11: 3189.338765 | X11: 753.7092953 | Z11: 2435.62947 | AA11: 930.463
A12: 9 | B12: Tuensang | C12: =Tsg!$D$515 -> 3659.32153 | D12: =Tsg!$F$515 -> 1324.948 | E12: 4098.650226 | F12: =Tsg!#REF! ->  | H12: =Tsg!#REF! ->  | K12: =Tsg!#REF! ->  | N12: =Tsg!#REF! ->  | Q12: =Tsg!#REF! ->  | W12: 4283.284215 | X12: 184.6339886 | Z12: 4098.650226 | AA12: 1991.1745
A13: 10 | B13: Wokha | C13: =Wk!$D$515 -> 2208.325023 | D13: =Wk!$F$515 -> 1042.382 | E13: 2224.762596 | F13: =Wk!#REF! ->  | H13: =Wk!#REF! ->  | K13: =Wk!#REF! ->  | N13: =Wk!#REF! ->  | Q13: =Wk!#REF! ->  | W13: 2510.884528 | X13: 286.1219313 | Z13: 2224.762596 | AA13: 1278.4185
A14: 11 | B14: Zunheboto | C14: =Zun!$D$515 -> 3246.408379 | D14: =Zun!$F$515 -> 1640.456 | E14: 3328.871676 | F14: =Zun!#REF! ->  | H14: =Zun!#REF! ->  | K14: =Zun!#REF! ->  | N14: =Zun!#REF! ->  | Q14: =Zun!#REF! ->  | W14: 4134.716414 | X14: 805.8447372 | Z14: 3328.871676 | AA14: 1847.1305
B15: State Intervention | C15: =Nagaland!D401 -> 386.86 | D15: =Nagaland!F401 -> 152.66 | E15: =Nagaland!D401 -> 386.86 | K15: =Nagaland!#REF! ->  | T15: =K15 ->  | X15: =W15-E15 -> -386.86 | Z15: =Nagaland!Z401 -> 429.3599 | AA15: =Nagaland!F401 -> 152.66
B16: TOTAL | C16: =SUM(C4:C15) -> 30078.84277 | D16: 12217.418 | E16: =SUM(E4:E15) -> 31467.74561 | G16: =SUM(G4:G15) ->  | J16: 2272 | K16: =SUM(K4:K15) ->  | M16: =K16/E16*100 ->  | N16: =SUM(N4:N15) ->  | P16: =N16/E16*100 ->  | Q16: =SUM(Q4:Q15) ->  | S16: =Q16/E16*100 ->  | T16: =SUM(T4:T15) ->  | U16: =T16/(E16+T15)*100 ->  | W16: =SUM(W4:W15) -> 37397.97629 | Z16: =SUM(Z4:Z15) -> 31510.24551 | AA16: =SUM(AA4:AA15) -> 15889.2505
C18: =Nagaland!D515 -> 30078.84277 | D18: =Nagaland!F515 -> 12217.418 | E18: =Nagaland!S515 -> 36167.655 | F18: =Nagaland!#REF! ->  | G18: =Nagaland!#REF! ->  | H18: =Nagaland!#REF! ->  | K18: =Nagaland!#REF!+Nagaland!#REF! ->  | L18: =K18/G16*100 ->  | N18: =Nagaland!#REF! ->  | Q18: =Nagaland!#REF! ->  | T18: =Nagaland!#REF!+Nagaland!#REF!+Nagaland!#REF! ->  | V18: =SUM(V6:V17) -> 0 | W18: =Nagaland!S515 -> 36167.655 | Z18: =Nagaland!#REF! -> 
C19: =C18-C16 -> 0 | D19: =D18-D16 -> 0 | E19: =E18-E16 -> 4699.909385 | F19: =F18-F16 ->  | K19: =K18-K16 ->  | N19: =N18-N16 ->  | Q19: =Q18-Q16 ->  | W19: =W18-W16 -> -1230.321295 | Z19: =Z18-Z16 -> 
K21: 121.56
K22: =K21-K15 -> 

Sheet Exe.Sum-2016-17 (hidden)
A1: S.No. | B1: Activity | C1: Year 2015-16 | I1: Outlay Proposed for 2016-17 | O1: Outlay Recommended for 2016-17 | U1: Remarks
C2: Outlay approved by PAB (including spillover) | E2: Achievement | I2: Spill Over | J2: Fresh | M2: Total | O2: Spill Over | P2: Fresh | S2: Total
C3: Phy. | D3: Fin | E3: Phy. | F3: Fin. | G3: Phy. (%) | H3: Fin. (%) | I3: Fin. | J3: Unit Cost | K3: Phy. | L3: Fin. | M3: Phy. | N3: Fin. | O3: Fin. | P3: Unit Cost | Q3: Phy. | R3: Fin. | S3: Phy. | T3: Fin.
A4: I | B4: ACCESS | C4: =Nagaland!C4 -> 0 | D4: =Nagaland!D4 -> 0 | E4: =Nagaland!E4 -> 0 | F4: =Nagaland!F4 -> 0 | G4: =Nagaland!G4 -> 0 | H4: =Nagaland!H4 -> 0 | I4: =Nagaland!L4 -> 0 | J4: =Nagaland!O4 -> 0 | K4: =Nagaland!P4 -> 0 | L4: =Nagaland!Q4 -> 0 | M4: =Nagaland!R4 -> 0 | N4: =Nagaland!S4 -> 0 | O4: =Nagaland!U4 -> 0 | P4: =Nagaland!X4 -> 0 | Q4: =Nagaland!Y4 -> 0 | R4: =Nagaland!Z4 -> 0 | S4: =Nagaland!AA4 -> 0 | T4: =Nagaland!AB4 -> 0 | U4: =Nagaland!AC4 -> 0
B5: SSA | C5: =Nagaland!C5 -> 0 | D5: =Nagaland!D5 -> 0 | E5: =Nagaland!E5 -> 0 | F5: =Nagaland!F5 -> 0 | G5: =Nagaland!G5 -> 0 | H5: =Nagaland!H5 -> 0 | I5: =Nagaland!L5 -> 0 | J5: =Nagaland!O5 -> 0 | K5: =Nagaland!P5 -> 0 | L5: =Nagaland!Q5 -> 0 | M5: =Nagaland!R5 -> 0 | N5: =Nagaland!S5 -> 0 | O5: =Nagaland!U5 -> 0 | P5: =Nagaland!X5 -> 0 | Q5: =Nagaland!Y5 -> 0 | R5: =Nagaland!Z5 -> 0 | S5: =Nagaland!AA5 -> 0 | T5: =Nagaland!AB5 -> 0 | U5: =Nagaland!AC5 -> 0
A6: 1 | B6: Opening of New Schools | C6: =Nagaland!C6 -> 0 | D6: =Nagaland!D6 -> 0 | E6: =Nagaland!E6 -> 0 | F6: =Nagaland!F6 -> 0 | G6: =Nagaland!G6 -> 0 | H6: =Nagaland!H6 -> 0 | I6: =Nagaland!L6 -> 0 | J6: =Nagaland!O6 -> 0 | K6: =Nagaland!P6 -> 0 | L6: =Nagaland!Q6 -> 0 | M6: =Nagaland!R6 -> 0 | N6: =Nagaland!S6 -> 0 | O6: =Nagaland!U6 -> 0 | P6: =Nagaland!X6 -> 0 | Q6: =Nagaland!Y6 -> 0 | R6: =Nagaland!Z6 -> 0 | S6: =Nagaland!AA6 -> 0 | T6: =Nagaland!AB6 -> 0 | U6: =Nagaland!AC6 -> 0
A7: 1.01 | B7: New Primary School | C7: =Nagaland!C7 -> 0 | D7: =Nagaland!D7 -> 0 | E7: =Nagaland!E7 -> 0 | F7: =Nagaland!F7 -> 0 | G7: =Nagaland!G7 -> 0 | H7: =Nagaland!H7 -> 0 | I7: =Nagaland!L7 -> 0 | J7: =Nagaland!O7 -> 0 | K7: =Nagaland!P7 -> 0 | L7: =Nagaland!Q7 -> 0 | M7: =Nagaland!R7 -> 0 | N7: =Nagaland!S7 -> 0 | O7: =Nagaland!U7 -> 0 | P7: =Nagaland!X7 -> 0 | Q7: =Nagaland!Y7 -> 0 | R7: =Nagaland!Z7 -> 0 | S7: =Nagaland!AA7 -> 0 | T7: =Nagaland!AB7 -> 0 | U7: =Nagaland!AC7 -> 0
A8: 1.02 | B8: Upgradation of PS to UPS | C8: =Nagaland!C8 -> 0 | D8: =Nagaland!D8 -> 0 | E8: =Nagaland!E8 -> 0 | F8: =Nagaland!F8 -> 0 | G8: =Nagaland!G8 -> 0 | H8: =Nagaland!H8 -> 0 | I8: =Nagaland!L8 -> 0 | J8: =Nagaland!O8 -> 0 | K8: =Nagaland!P8 -> 0 | L8: =Nagaland!Q8 -> 0 | M8: =Nagaland!R8 -> 0 | N8: =Nagaland!S8 -> 0 | O8: =Nagaland!U8 -> 0 | P8: =Nagaland!X8 -> 0 | Q8: =Nagaland!Y8 -> 0 | R8: =Nagaland!Z8 -> 0 | S8: =Nagaland!AA8 -> 0 | T8: =Nagaland!AB8 -> 0 | U8: =Nagaland!AC8 -> 0
A9: 1.03 | B9: Composite Schools | C9: =Nagaland!C9 -> 0 | D9: =Nagaland!D9 -> 0 | E9: =Nagaland!E9 -> 0 | F9: =Nagaland!F9 -> 0 | G9: =Nagaland!G9 -> 0 | H9: =Nagaland!H9 -> 0 | I9: =Nagaland!L9 -> 0 | J9: =Nagaland!O9 -> 0 | K9: =Nagaland!P9 -> 0 | L9: =Nagaland!Q9 -> 0 | M9: =Nagaland!R9 -> 0 | N9: =Nagaland!S9 -> 0 | O9: =Nagaland!U9 -> 0 | P9: =Nagaland!X9 -> 0 | Q9: =Nagaland!Y9 -> 0 | R9: =Nagaland!Z9 -> 0 | S9: =Nagaland!AA9 -> 0 | T9: =Nagaland!AB9 -> 0 | U9: =Nagaland!AC9 -> 0
A10: 1.04 (a) | B10: Residential schools for specific category of children (for 50 childrens) | C10: =Nagaland!C10 -> 0 | D10: =Nagaland!D10 -> 0 | E10: =Nagaland!E10 -> 0 | F10: =Nagaland!F10 -> 0 | G10: =Nagaland!G10 -> 0 | H10: =Nagaland!H10 -> 0 | I10: =Nagaland!L10 -> 0 | J10: =Nagaland!O10 -> 0 | K10: =Nagaland!P10 -> 0 | L10: =Nagaland!Q10 -> 0 | M10: =Nagaland!R10 -> 0 | N10: =Nagaland!S10 -> 0 | O10: =Nagaland!U10 -> 0 | P10: =Nagaland!X10 -> 0 | Q10: =Nagaland!Y10 -> 0 | R10: =Nagaland!Z10 -> 0 | S10: =Nagaland!AA10 -> 0 | T10: =Nagaland!AB10 -> 0 | U10: =Nagaland!AC10 -> 0
A11: 1.04 (b) | B11: Residential schools for specific category of children (for 100 childrens) | C11: =Nagaland!C11 -> 0 | D11: =Nagaland!D11 -> 0 | E11: =Nagaland!E11 -> 0 | F11: =Nagaland!F11 -> 0 | G11: =Nagaland!G11 -> 0 | H11: =Nagaland!H11 -> 0 | I11: =Nagaland!L11 -> 0 | J11: =Nagaland!O11 -> 0 | K11: =Nagaland!P11 -> 0 | L11: =Nagaland!Q11 -> 0 | M11: =Nagaland!R11 -> 0 | N11: =Nagaland!S11 -> 0 | O11: =Nagaland!U11 -> 0 | P11: =Nagaland!X11 -> 0 | Q11: =Nagaland!Y11 -> 0 | R11: =Nagaland!Z11 -> 0 | S11: =Nagaland!AA11 -> 0 | T11: =Nagaland!AB11 -> 0 | U11: =Nagaland!AC11 -> 0
A12: 1.05 | B12: Residential Hostel | C12: =Nagaland!C12 -> 0 | D12: =Nagaland!D12 -> 0 | E12: =Nagaland!E12 -> 0 | F12: =Nagaland!F12 -> 0 | G12: =Nagaland!G12 -> 0 | H12: =Nagaland!H12 -> 0 | I12: =Nagaland!L12 -> 0 | J12: =Nagaland!O12 -> 0 | K12: =Nagaland!P12 -> 0 | L12: =Nagaland!Q12 -> 0 | M12: =Nagaland!R12 -> 0 | N12: =Nagaland!S12 -> 0 | O12: =Nagaland!U12 -> 0 | P12: =Nagaland!X12 -> 0 | Q12: =Nagaland!Y12 -> 0 | R12: =Nagaland!Z12 -> 0 | S12: =Nagaland!AA12 -> 0 | T12: =Nagaland!AB12 -> 0 | U12: =Nagaland!AC12 -> 0
A13: 1.06 | B13: Integration of Class V with primary schools | C13: =Nagaland!C13 -> 0 | D13: =Nagaland!D13 -> 0 | E13: =Nagaland!E13 -> 0 | F13: =Nagaland!F13 -> 0 | G13: =Nagaland!G13 -> 0 | H13: =Nagaland!H13 -> 0 | I13: =Nagaland!L13 -> 0 | J13: =Nagaland!O13 -> 0 | K13: =Nagaland!P13 -> 0 | L13: =Nagaland!Q13 -> 0 | M13: =Nagaland!R13 -> 0 | N13: =Nagaland!S13 -> 0 | O13: =Nagaland!U13 -> 0 | P13: =Nagaland!X13 -> 0 | Q13: =Nagaland!Y13 -> 0 | R13: =Nagaland!Z13 -> 0 | S13: =Nagaland!AA13 -> 0 | T13: =Nagaland!AB13 -> 0 | U13: =Nagaland!AC13 -> 0
A14: 1.07 | B14: Integration of Class VIII with upper primary schools | C14: =Nagaland!C14 -> 0 | D14: =Nagaland!D14 -> 0 | E14: =Nagaland!E14 -> 0 | F14: =Nagaland!F14 -> 0 | G14: =Nagaland!G14 -> 0 | H14: =Nagaland!H14 -> 0 | I14: =Nagaland!L14 -> 0 | J14: =Nagaland!O14 -> 0 | K14: =Nagaland!P14 -> 0 | L14: =Nagaland!Q14 -> 0 | M14: =Nagaland!R14 -> 0 | N14: =Nagaland!S14 -> 0 | O14: =Nagaland!U14 -> 0 | P14: =Nagaland!X14 -> 0 | Q14: =Nagaland!Y14 -> 0 | R14: =Nagaland!Z14 -> 0 | S14: =Nagaland!AA14 -> 0 | T14: =Nagaland!AB14 -> 0 | U14: =Nagaland!AC14 -> 0
A15: 2 | B15: Residential Schools for specific category of children (New) | C15: =Nagaland!C15 -> 0 | D15: =Nagaland!D15 -> 0 | E15: =Nagaland!E15 -> 0 | F15: =Nagaland!F15 -> 0 | G15: =Nagaland!G15 -> 0 | H15: =Nagaland!H15 -> 0 | I15: =Nagaland!L15 -> 0 | J15: =Nagaland!O15 -> 0 | K15: =Nagaland!P15 -> 0 | L15: =Nagaland!Q15 -> 0 | M15: =Nagaland!R15 -> 0 | N15: =Nagaland!S15 -> 0 | O15: =Nagaland!U15 -> 0 | P15: =Nagaland!X15 -> 0 | Q15: =Nagaland!Y15 -> 0 | R15: =Nagaland!Z15 -> 0 | S15: =Nagaland!AA15 -> 0 | T15: =Nagaland!AB15 -> 0 | U15: =Nagaland!AC15 -> 0
B16: 50 children | C16: =Nagaland!C16 -> 0 | D16: =Nagaland!D16 -> 0 | E16: =Nagaland!E16 -> 0 | F16: =Nagaland!F16 -> 0 | G16: =Nagaland!G16 -> 0 | H16: =Nagaland!H16 -> 0 | I16: =Nagaland!L16 -> 0 | J16: =Nagaland!O16 -> 0 | K16: =Nagaland!P16 -> 0 | L16: =Nagaland!Q16 -> 0 | M16: =Nagaland!R16 -> 0 | N16: =Nagaland!S16 -> 0 | O16: =Nagaland!U16 -> 0 | P16: =Nagaland!X16 -> 0 | Q16: =Nagaland!Y16 -> 0 | R16: =Nagaland!Z16 -> 0 | S16: =Nagaland!AA16 -> 0 | T16: =Nagaland!AB16 -> 0 | U16: =Nagaland!AC16 -> 0
B17: Non-recurring (one time grant) | C17: =Nagaland!C17 -> 0 | D17: =Nagaland!D17 -> 0 | E17: =Nagaland!E17 -> 0 | F17: =Nagaland!F17 -> 0 | G17: =Nagaland!G17 -> 0 | H17: =Nagaland!H17 -> 0 | I17: =Nagaland!L17 -> 0 | J17: =Nagaland!O17 -> 0 | K17: =Nagaland!P17 -> 0 | L17: =Nagaland!Q17 -> 0 | M17: =Nagaland!R17 -> 0 | N17: =Nagaland!S17 -> 0 | O17: =Nagaland!U17 -> 0 | P17: =Nagaland!X17 -> 0 | Q17: =Nagaland!Y17 -> 0 | R17: =Nagaland!Z17 -> 0 | S17: =Nagaland!AA17 -> 0 | T17: =Nagaland!AB17 -> 0 | U17: =Nagaland!AC17 -> 0
A18: 2.01 | B18: Furniture/ Equipment (including kitchen) | C18: =Nagaland!C18 -> 0 | D18: =Nagaland!D18 -> 0 | E18: =Nagaland!E18 -> 0 | F18: =Nagaland!F18 -> 0 | G18: =Nagaland!G18 -> 0 | H18: =Nagaland!H18 -> 0 | I18: =Nagaland!L18 -> 0 | J18: =Nagaland!O18 -> 0 | K18: =Nagaland!P18 -> 0 | L18: =Nagaland!Q18 -> 0 | M18: =Nagaland!R18 -> 0 | N18: =Nagaland!S18 -> 0 | O18: =Nagaland!U18 -> 0 | P18: =Nagaland!X18 -> 0 | Q18: =Nagaland!Y18 -> 0 | R18: =Nagaland!Z18 -> 0 | S18: =Nagaland!AA18 -> 0 | T18: =Nagaland!AB18 -> 0 | U18: =Nagaland!AC18 -> 0
A19: 2.02 | B19: TLM and equipment including library books | C19: =Nagaland!C19 -> 0 | D19: =Nagaland!D19 -> 0 | E19: =Nagaland!E19 -> 0 | F19: =Nagaland!F19 -> 0 | G19: =Nagaland!G19 -> 0 | H19: =Nagaland!H19 -> 0 | I19: =Nagaland!L19 -> 0 | J19: =Nagaland!O19 -> 0 | K19: =Nagaland!P19 -> 0 | L19: =Nagaland!Q19 -> 0 | M19: =Nagaland!R19 -> 0 | N19: =Nagaland!S19 -> 0 | O19: =Nagaland!U19 -> 0 | P19: =Nagaland!X19 -> 0 | Q19: =Nagaland!Y19 -> 0 | R19: =Nagaland!Z19 -> 0 | S19: =Nagaland!AA19 -> 0 | T19: =Nagaland!AB19 -> 0 | U19: =Nagaland!AC19 -> 0
A20: 2.03 | B20: Bedding (new) | C20: =Nagaland!C20 -> 0 | D20: =Nagaland!D20 -> 0 | E20: =Nagaland!E20 -> 0 | F20: =Nagaland!F20 -> 0 | G20: =Nagaland!G20 -> 0 | H20: =Nagaland!H20 -> 0 | I20: =Nagaland!L20 -> 0 | J20: =Nagaland!O20 -> 0 | K20: =Nagaland!P20 -> 0 | L20: =Nagaland!Q20 -> 0 | M20: =Nagaland!R20 -> 0 | N20: =Nagaland!S20 -> 0 | O20: =Nagaland!U20 -> 0 | P20: =Nagaland!X20 -> 0 | Q20: =Nagaland!Y20 -> 0 | R20: =Nagaland!Z20 -> 0 | S20: =Nagaland!AA20 -> 0 | T20: =Nagaland!AB20 -> 0 | U20: =Nagaland!AC20 -> 0
A21: 2.04 | B21: Replacement of bedding (once in 3 years) | C21: =Nagaland!C21 -> 0 | D21: =Nagaland!D21 -> 0 | E21: =Nagaland!E21 -> 0 | F21: =Nagaland!F21 -> 0 | G21: =Nagaland!G21 -> 0 | H21: =Nagaland!H21 -> 0 | I21: =Nagaland!L21 -> 0 | J21: =Nagaland!O21 -> 0 | K21: =Nagaland!P21 -> 0 | L21: =Nagaland!Q21 -> 0 | M21: =Nagaland!R21 -> 0 | N21: =Nagaland!S21 -> 0 | O21: =Nagaland!U21 -> 0 | P21: =Nagaland!X21 -> 0 | Q21: =Nagaland!Y21 -> 0 | R21: =Nagaland!Z21 -> 0 | S21: =Nagaland!AA21 -> 0 | T21: =Nagaland!AB21 -> 0 | U21: =Nagaland!AC21 -> 0
B22: Sub Total (Non Recurring) | C22: =Nagaland!C22 -> 0 | D22: =Nagaland!D22 -> 0 | E22: =Nagaland!E22 -> 0 | F22: =Nagaland!F22 -> 0 | G22: =Nagaland!G22 -> 0 | H22: =Nagaland!H22 -> 0 | I22: =Nagaland!L22 -> 0 | J22: =Nagaland!O22 -> 0 | K22: =Nagaland!P22 -> 0 | L22: =Nagaland!Q22 -> 0 | M22: =Nagaland!R22 -> 0 | N22: =Nagaland!S22 -> 0 | O22: =Nagaland!U22 -> 0 | P22: =Nagaland!X22 -> 0 | Q22: =Nagaland!Y22 -> 0 | R22: =Nagaland!Z22 -> 0 | S22: =Nagaland!AA22 -> 0 | T22: =Nagaland!AB22 -> 0 | U22: =Nagaland!AC22 -> 0
B23: Recurring | C23: =Nagaland!C23 -> 0 | D23: =Nagaland!D23 -> 0 | E23: =Nagaland!E23 -> 0 | F23: =Nagaland!F23 -> 0 | G23: =Nagaland!G23 -> 0 | H23: =Nagaland!H23 -> 0 | I23: =Nagaland!L23 -> 0 | J23: =Nagaland!O23 -> 0 | K23: =Nagaland!P23 -> 0 | L23: =Nagaland!Q23 -> 0 | M23: =Nagaland!R23 -> 0 | N23: =Nagaland!S23 -> 0 | O23: =Nagaland!U23 -> 0 | P23: =Nagaland!X23 -> 0 | Q23: =Nagaland!Y23 -> 0 | R23: =Nagaland!Z23 -> 0 | S23: =Nagaland!AA23 -> 0 | T23: =Nagaland!AB23 -> 0 | U23: =Nagaland!AC23 -> 0
A24: 2.05 | B24: Maintenance per child Per month @ Rs.1500/- | C24: =Nagaland!C24 -> 0 | D24: =Nagaland!D24 -> 0 | E24: =Nagaland!E24 -> 0 | F24: =Nagaland!F24 -> 0 | G24: =Nagaland!G24 -> 0 | H24: =Nagaland!H24 -> 0 | I24: =Nagaland!L24 -> 0 | J24: =Nagaland!O24 -> 0 | K24: =Nagaland!P24 -> 0 | L24: =Nagaland!Q24 -> 0 | M24: =Nagaland!R24 -> 0 | N24: =Nagaland!S24 -> 0 | O24: =Nagaland!U24 -> 0 | P24: =Nagaland!X24 -> 0 | Q24: =Nagaland!Y24 -> 0 | R24: =Nagaland!Z24 -> 0 | S24: =Nagaland!AA24 -> 0 | T24: =Nagaland!AB24 -> 0 | U24: =Nagaland!AC24 -> 0
A25: 2.06 | B25: Stipend per child per month @ Rs.100/- | C25: =Nagaland!C25 -> 0 | D25: =Nagaland!D25 -> 0 | E25: =Nagaland!E25 -> 0 | F25: =Nagaland!F25 -> 0 | G25: =Nagaland!G25 -> 0 | H25: =Nagaland!H25 -> 0 | I25: =Nagaland!L25 -> 0 | J25: =Nagaland!O25 -> 0 | K25: =Nagaland!P25 -> 0 | L25: =Nagaland!Q25 -> 0 | M25: =Nagaland!R25 -> 0 | N25: =Nagaland!S25 -> 0 | O25: =Nagaland!U25 -> 0 | P25: =Nagaland!X25 -> 0 | Q25: =Nagaland!Y25 -> 0 | R25: =Nagaland!Z25 -> 0 | S25: =Nagaland!AA25 -> 0 | T25: =Nagaland!AB25 -> 0 | U25: =Nagaland!AC25 -> 0
A26: 2.07 | B26: Supplementary TLM, Stationery and other educational material @Rs.1000/- per child per annum | C26: =Nagaland!C26 -> 0 | D26: =Nagaland!D26 -> 0 | E26: =Nagaland!E26 -> 0 | F26: =Nagaland!F26 -> 0 | G26: =Nagaland!G26 -> 0 | H26: =Nagaland!H26 -> 0 | I26: =Nagaland!L26 -> 0 | J26: =Nagaland!O26 -> 0 | K26: =Nagaland!P26 -> 0 | L26: =Nagaland!Q26 -> 0 | M26: =Nagaland!R26 -> 0 | N26: =Nagaland!S26 -> 0 | O26: =Nagaland!U26 -> 0 | P26: =Nagaland!X26 -> 0 | Q26: =Nagaland!Y26 -> 0 | R26: =Nagaland!Z26 -> 0 | S26: =Nagaland!AA26 -> 0 | T26: =Nagaland!AB26 -> 0 | U26: =Nagaland!AC26 -> 0
A27: 2.08 | B27: Salaries | C27: =Nagaland!C27 -> 0 | D27: =Nagaland!D27 -> 0 | E27: =Nagaland!E27 -> 0 | F27: =Nagaland!F27 -> 0 | G27: =Nagaland!G27 -> 0 | H27: =Nagaland!H27 -> 0 | I27: =Nagaland!L27 -> 0 | J27: =Nagaland!O27 -> 0 | K27: =Nagaland!P27 -> 0 | L27: =Nagaland!Q27 -> 0 | M27: =Nagaland!R27 -> 0 | N27: =Nagaland!S27 -> 0 | O27: =Nagaland!U27 -> 0 | P27: =Nagaland!X27 -> 0 | Q27: =Nagaland!Y27 -> 0 | R27: =Nagaland!Z27 -> 0 | S27: =Nagaland!AA27 -> 0 | T27: =Nagaland!AB27 -> 0 | U27: =Nagaland!AC27 -> 0
A28: (a) | B28: 1 Warden @ Rs.25000/- per month | C28: =Nagaland!C28 -> 0 | D28: =Nagaland!D28 -> 0 | E28: =Nagaland!E28 -> 0 | F28: =Nagaland!F28 -> 0 | G28: =Nagaland!G28 -> 0 | H28: =Nagaland!H28 -> 0 | I28: =Nagaland!L28 -> 0 | J28: =Nagaland!O28 -> 0 | K28: =Nagaland!P28 -> 0 | L28: =Nagaland!Q28 -> 0 | M28: =Nagaland!R28 -> 0 | N28: =Nagaland!S28 -> 0 | O28: =Nagaland!U28 -> 0 | P28: =Nagaland!X28 -> 0 | Q28: =Nagaland!Y28 -> 0 | R28: =Nagaland!Z28 -> 0 | S28: =Nagaland!AA28 -> 0 | T28: =Nagaland!AB28 -> 0 | U28: =Nagaland!AC28 -> 0
A29: (b) | B29: 4 Fulltime teachers as per RTE Norms @ Rs. 20,000/- per month per teacher | C29: =Nagaland!C29 -> 0 | D29: =Nagaland!D29 -> 0 | E29: =Nagaland!E29 -> 0 | F29: =Nagaland!F29 -> 0 | G29: =Nagaland!G29 -> 0 | H29: =Nagaland!H29 -> 0 | I29: =Nagaland!L29 -> 0 | J29: =Nagaland!O29 -> 0 | K29: =Nagaland!P29 -> 0 | L29: =Nagaland!Q29 -> 0 | M29: =Nagaland!R29 -> 0 | N29: =Nagaland!S29 -> 0 | O29: =Nagaland!U29 -> 0 | P29: =Nagaland!X29 -> 0 | Q29: =Nagaland!Y29 -> 0 | R29: =Nagaland!Z29 -> 0 | S29: =Nagaland!AA29 -> 0 | T29: =Nagaland!AB29 -> 0 | U29: =Nagaland!AC29 -> 0
A30: (c) | B30: 2 Urdu Teachers (only for Blocks with muslim population above 20% and select urban areas) @ Rs.12,000/- per month per teacher. | C30: =Nagaland!C30 -> 0 | D30: =Nagaland!D30 -> 0 | E30: =Nagaland!E30 -> 0 | F30: =Nagaland!F30 -> 0 | G30: =Nagaland!G30 -> 0 | H30: =Nagaland!H30 -> 0 | I30: =Nagaland!L30 -> 0 | J30: =Nagaland!O30 -> 0 | K30: =Nagaland!P30 -> 0 | L30: =Nagaland!Q30 -> 0 | M30: =Nagaland!R30 -> 0 | N30: =Nagaland!S30 -> 0 | O30: =Nagaland!U30 -> 0 | P30: =Nagaland!X30 -> 0 | Q30: =Nagaland!Y30 -> 0 | R30: =Nagaland!Z30 -> 0 | S30: =Nagaland!AA30 -> 0 | T30: =Nagaland!AB30 -> 0 | U30: =Nagaland!AC30 -> 0
A31: (d) | B31: 3 Part time teachers @ Rs.5,000/- per month per teacher | C31: =Nagaland!C31 -> 0 | D31: =Nagaland!D31 -> 0 | E31: =Nagaland!E31 -> 0 | F31: =Nagaland!F31 -> 0 | G31: =Nagaland!G31 -> 0 | H31: =Nagaland!H31 -> 0 | I31: =Nagaland!L31 -> 0 | J31: =Nagaland!O31 -> 0 | K31: =Nagaland!P31 -> 0 | L31: =Nagaland!Q31 -> 0 | M31: =Nagaland!R31 -> 0 | N31: =Nagaland!S31 -> 0 | O31: =Nagaland!U31 -> 0 | P31: =Nagaland!X31 -> 0 | Q31: =Nagaland!Y31 -> 0 | R31: =Nagaland!Z31 -> 0 | S31: =Nagaland!AA31 -> 0 | T31: =Nagaland!AB31 -> 0 | U31: =Nagaland!AC31 -> 0
A32: (e) | B32: 1 Full time Accountant @ Rs. 10,000/- per month | C32: =Nagaland!C32 -> 0 | D32: =Nagaland!D32 -> 0 | E32: =Nagaland!E32 -> 0 | F32: =Nagaland!F32 -> 0 | G32: =Nagaland!G32 -> 0 | H32: =Nagaland!H32 -> 0 | I32: =Nagaland!L32 -> 0 | J32: =Nagaland!O32 -> 0 | K32: =Nagaland!P32 -> 0 | L32: =Nagaland!Q32 -> 0 | M32: =Nagaland!R32 -> 0 | N32: =Nagaland!S32 -> 0 | O32: =Nagaland!U32 -> 0 | P32: =Nagaland!X32 -> 0 | Q32: =Nagaland!Y32 -> 0 | R32: =Nagaland!Z32 -> 0 | S32: =Nagaland!AA32 -> 0 | T32: =Nagaland!AB32 -> 0 | U32: =Nagaland!AC32 -> 0
A33: (f) | B33: 2 Support staff - (Accountant/Assistant, Peon, Chowkidar) @ Rs. 5,000/- per month per staff | C33: =Nagaland!C33 -> 0 | D33: =Nagaland!D33 -> 0 | E33: =Nagaland!E33 -> 0 | F33: =Nagaland!F33 -> 0 | G33: =Nagaland!G33 -> 0 | H33: =Nagaland!H33 -> 0 | I33: =Nagaland!L33 -> 0 | J33: =Nagaland!O33 -> 0 | K33: =Nagaland!P33 -> 0 | L33: =Nagaland!Q33 -> 0 | M33: =Nagaland!R33 -> 0 | N33: =Nagaland!S33 -> 0 | O33: =Nagaland!U33 -> 0 | P33: =Nagaland!X33 -> 0 | Q33: =Nagaland!Y33 -> 0 | R33: =Nagaland!Z33 -> 0 | S33: =Nagaland!AA33 -> 0 | T33: =Nagaland!AB33 -> 0 | U33: =Nagaland!AC33 -> 0
A34: (g) | B34: 1 Head Cook @ Rs. 6,000/- per month and upto 2 Asstt. Cooks @ Rs. 4,500/- per month per cook | C34: =Nagaland!C34 -> 0 | D34: =Nagaland!D34 -> 0 | E34: =Nagaland!E34 -> 0 | F34: =Nagaland!F34 -> 0 | G34: =Nagaland!G34 -> 0 | H34: =Nagaland!H34 -> 0 | I34: =Nagaland!L34 -> 0 | J34: =Nagaland!O34 -> 0 | K34: =Nagaland!P34 -> 0 | L34: =Nagaland!Q34 -> 0 | M34: =Nagaland!R34 -> 0 | N34: =Nagaland!S34 -> 0 | O34: =Nagaland!U34 -> 0 | P34: =Nagaland!X34 -> 0 | Q34: =Nagaland!Y34 -> 0 | R34: =Nagaland!Z34 -> 0 | S34: =Nagaland!AA34 -> 0 | T34: =Nagaland!AB34 -> 0 | U34: =Nagaland!AC34 -> 0
A35: 2.09 | B35: Specific Skill training @ Rs.1000/- per annum per child | C35: =Nagaland!C35 -> 0 | D35: =Nagaland!D35 -> 0 | E35: =Nagaland!E35 -> 0 | F35: =Nagaland!F35 -> 0 | G35: =Nagaland!G35 -> 0 | H35: =Nagaland!H35 -> 0 | I35: =Nagaland!L35 -> 0 | J35: =Nagaland!O35 -> 0 | K35: =Nagaland!P35 -> 0 | L35: =Nagaland!Q35 -> 0 | M35: =Nagaland!R35 -> 0 | N35: =Nagaland!S35 -> 0 | O35: =Nagaland!U35 -> 0 | P35: =Nagaland!X35 -> 0 | Q35: =Nagaland!Y35 -> 0 | R35: =Nagaland!Z35 -> 0 | S35: =Nagaland!AA35 -> 0 | T35: =Nagaland!AB35 -> 0 | U35: =Nagaland!AC35 -> 0
A36: 2.1 | B36: Electricity / water charges @ Rs. 1000/- per annum per child | C36: =Nagaland!C36 -> 0 | D36: =Nagaland!D36 -> 0 | E36: =Nagaland!E36 -> 0 | F36: =Nagaland!F36 -> 0 | G36: =Nagaland!G36 -> 0 | H36: =Nagaland!H36 -> 0 | I36: =Nagaland!L36 -> 0 | J36: =Nagaland!O36 -> 0 | K36: =Nagaland!P36 -> 0 | L36: =Nagaland!Q36 -> 0 | M36: =Nagaland!R36 -> 0 | N36: =Nagaland!S36 -> 0 | O36: =Nagaland!U36 -> 0 | P36: =Nagaland!X36 -> 0 | Q36: =Nagaland!Y36 -> 0 | R36: =Nagaland!Z36 -> 0 | S36: =Nagaland!AA36 -> 0 | T36: =Nagaland!AB36 -> 0 | U36: =Nagaland!AC36 -> 0
A37: =+A36+0.01 -> 2.11 | B37: Medical care/contingencies @ Rs.1250/- per annum per child | C37: =Nagaland!C37 -> 0 | D37: =Nagaland!D37 -> 0 | E37: =Nagaland!E37 -> 0 | F37: =Nagaland!F37 -> 0 | G37: =Nagaland!G37 -> 0 | H37: =Nagaland!H37 -> 0 | I37: =Nagaland!L37 -> 0 | J37: =Nagaland!O37 -> 0 | K37: =Nagaland!P37 -> 0 | L37: =Nagaland!Q37 -> 0 | M37: =Nagaland!R37 -> 0 | N37: =Nagaland!S37 -> 0 | O37: =Nagaland!U37 -> 0 | P37: =Nagaland!X37 -> 0 | Q37: =Nagaland!Y37 -> 0 | R37: =Nagaland!Z37 -> 0 | S37: =Nagaland!AA37 -> 0 | T37: =Nagaland!AB37 -> 0 | U37: =Nagaland!AC37 -> 0
A38: =+A37+0.01 -> 2.12 | B38: Maintenance @ Rs. 750/- per child per annum | C38: =Nagaland!C38 -> 0 | D38: =Nagaland!D38 -> 0 | E38: =Nagaland!E38 -> 0 | F38: =Nagaland!F38 -> 0 | G38: =Nagaland!G38 -> 0 | H38: =Nagaland!H38 -> 0 | I38: =Nagaland!L38 -> 0 | J38: =Nagaland!O38 -> 0 | K38: =Nagaland!P38 -> 0 | L38: =Nagaland!Q38 -> 0 | M38: =Nagaland!R38 -> 0 | N38: =Nagaland!S38 -> 0 | O38: =Nagaland!U38 -> 0 | P38: =Nagaland!X38 -> 0 | Q38: =Nagaland!Y38 -> 0 | R38: =Nagaland!Z38 -> 0 | S38: =Nagaland!AA38 -> 0 | T38: =Nagaland!AB38 -> 0 | U38: =Nagaland!AC38 -> 0
A39: 2.13 | B39: Miscellaneous @ Rs. 750/- per child per annum | C39: =Nagaland!C39 -> 0 | D39: =Nagaland!D39 -> 0 | E39: =Nagaland!E39 -> 0 | F39: =Nagaland!F39 -> 0 | G39: =Nagaland!G39 -> 0 | H39: =Nagaland!H39 -> 0 | I39: =Nagaland!L39 -> 0 | J39: =Nagaland!O39 -> 0 | K39: =Nagaland!P39 -> 0 | L39: =Nagaland!Q39 -> 0 | M39: =Nagaland!R39 -> 0 | N39: =Nagaland!S39 -> 0 | O39: =Nagaland!U39 -> 0 | P39: =Nagaland!X39 -> 0 | Q39: =Nagaland!Y39 -> 0 | R39: =Nagaland!Z39 -> 0 | S39: =Nagaland!AA39 -> 0 | T39: =Nagaland!AB39 -> 0 | U39: =Nagaland!AC39 -> 0
A40: 2.14 | B40: Preparatory camps @ Rs. 300/- per child per annum | C40: =Nagaland!C40 -> 0 | D40: =Nagaland!D40 -> 0 | E40: =Nagaland!E40 -> 0 | F40: =Nagaland!F40 -> 0 | G40: =Nagaland!G40 -> 0 | H40: =Nagaland!H40 -> 0 | I40: =Nagaland!L40 -> 0 | J40: =Nagaland!O40 -> 0 | K40: =Nagaland!P40 -> 0 | L40: =Nagaland!Q40 -> 0 | M40: =Nagaland!R40 -> 0 | N40: =Nagaland!S40 -> 0 | O40: =Nagaland!U40 -> 0 | P40: =Nagaland!X40 -> 0 | Q40: =Nagaland!Y40 -> 0 | R40: =Nagaland!Z40 -> 0 | S40: =Nagaland!AA40 -> 0 | T40: =Nagaland!AB40 -> 0 | U40: =Nagaland!AC40 -> 0
A41: 2.15 | B41: P.T.A / school functions @ Rs. 300/- per child per annum | C41: =Nagaland!C41 -> 0 | D41: =Nagaland!D41 -> 0 | E41: =Nagaland!E41 -> 0 | F41: =Nagaland!F41 -> 0 | G41: =Nagaland!G41 -> 0 | H41: =Nagaland!H41 -> 0 | I41: =Nagaland!L41 -> 0 | J41: =Nagaland!O41 -> 0 | K41: =Nagaland!P41 -> 0 | L41: =Nagaland!Q41 -> 0 | M41: =Nagaland!R41 -> 0 | N41: =Nagaland!S41 -> 0 | O41: =Nagaland!U41 -> 0 | P41: =Nagaland!X41 -> 0 | Q41: =Nagaland!Y41 -> 0 | R41: =Nagaland!Z41 -> 0 | S41: =Nagaland!AA41 -> 0 | T41: =Nagaland!AB41 -> 0 | U41: =Nagaland!AC41 -> 0
A42: 2.16 | B42: Provision of Rent @ Rs. 10,000/- per child per annum | C42: =Nagaland!C42 -> 0 | D42: =Nagaland!D42 -> 0 | E42: =Nagaland!E42 -> 0 | F42: =Nagaland!F42 -> 0 | G42: =Nagaland!G42 -> 0 | H42: =Nagaland!H42 -> 0 | I42: =Nagaland!L42 -> 0 | J42: =Nagaland!O42 -> 0 | K42: =Nagaland!P42 -> 0 | L42: =Nagaland!Q42 -> 0 | M42: =Nagaland!R42 -> 0 | N42: =Nagaland!S42 -> 0 | O42: =Nagaland!U42 -> 0 | P42: =Nagaland!X42 -> 0 | Q42: =Nagaland!Y42 -> 0 | R42: =Nagaland!Z42 -> 0 | S42: =Nagaland!AA42 -> 0 | T42: =Nagaland!AB42 -> 0 | U42: =Nagaland!AC42 -> 0
A43: 2.17 | B43: Capacity Building @ Rs. 500/- per child per annum | C43: =Nagaland!C43 -> 0 | D43: =Nagaland!D43 -> 0 | E43: =Nagaland!E43 -> 0 | F43: =Nagaland!F43 -> 0 | G43: =Nagaland!G43 -> 0 | H43: =Nagaland!H43 -> 0 | I43: =Nagaland!L43 -> 0 | J43: =Nagaland!O43 -> 0 | K43: =Nagaland!P43 -> 0 | L43: =Nagaland!Q43 -> 0 | M43: =Nagaland!R43 -> 0 | N43: =Nagaland!S43 -> 0 | O43: =Nagaland!U43 -> 0 | P43: =Nagaland!X43 -> 0 | Q43: =Nagaland!Y43 -> 0 | R43: =Nagaland!Z43 -> 0 | S43: =Nagaland!AA43 -> 0 | T43: =Nagaland!AB43 -> 0 | U43: =Nagaland!AC43 -> 0
A44: 2.18 | B44: Physical / Self Defence Training @ Rs.200/- per child per annum | C44: =Nagaland!C44 -> 0 | D44: =Nagaland!D44 -> 0 | E44: =Nagaland!E44 -> 0 | F44: =Nagaland!F44 -> 0 | G44: =Nagaland!G44 -> 0 | H44: =Nagaland!H44 -> 0 | I44: =Nagaland!L44 -> 0 | J44: =Nagaland!O44 -> 0 | K44: =Nagaland!P44 -> 0 | L44: =Nagaland!Q44 -> 0 | M44: =Nagaland!R44 -> 0 | N44: =Nagaland!S44 -> 0 | O44: =Nagaland!U44 -> 0 | P44: =Nagaland!X44 -> 0 | Q44: =Nagaland!Y44 -> 0 | R44: =Nagaland!Z44 -> 0 | S44: =Nagaland!AA44 -> 0 | T44: =Nagaland!AB44 -> 0 | U44: =Nagaland!AC44 -> 0
B45: Sub Total (Recurring) | C45: =Nagaland!C45 -> 0 | D45: =Nagaland!D45 -> 0 | E45: =Nagaland!E45 -> 0 | F45: =Nagaland!F45 -> 0 | G45: =Nagaland!G45 -> 0 | H45: =Nagaland!H45 -> 0 | I45: =Nagaland!L45 -> 0 | J45: =Nagaland!O45 -> 0 | K45: =Nagaland!P45 -> 0 | L45: =Nagaland!Q45 -> 0 | M45: =Nagaland!R45 -> 0 | N45: =Nagaland!S45 -> 0 | O45: =Nagaland!U45 -> 0 | P45: =Nagaland!X45 -> 0 | Q45: =Nagaland!Y45 -> 0 | R45: =Nagaland!Z45 -> 0 | S45: =Nagaland!AA45 -> 0 | T45: =Nagaland!AB45 -> 0 | U45: =Nagaland!AC45 -> 0
B46: Total (Non Recurring + Recurring) | C46: =Nagaland!C46 -> 0 | D46: =Nagaland!D46 -> 0 | E46: =Nagaland!E46 -> 0 | F46: =Nagaland!F46 -> 0 | G46: =Nagaland!G46 -> 0 | H46: =Nagaland!H46 -> 0 | I46: =Nagaland!L46 -> 0 | J46: =Nagaland!O46 -> 0 | K46: =Nagaland!P46 -> 0 | L46: =Nagaland!Q46 -> 0 | M46: =Nagaland!R46 -> 0 | N46: =Nagaland!S46 -> 0 | O46: =Nagaland!U46 -> 0 | P46: =Nagaland!X46 -> 0 | Q46: =Nagaland!Y46 -> 0 | R46: =Nagaland!Z46 -> 0 | S46: =Nagaland!AA46 -> 0 | T46: =Nagaland!AB46 -> 0 | U46: =Nagaland!AC46 -> 0
B47: 100 children | C47: =Nagaland!C47 -> 0 | D47: =Nagaland!D47 -> 0 | E47: =Nagaland!E47 -> 0 | F47: =Nagaland!F47 -> 0 | G47: =Nagaland!G47 -> 0 | H47: =Nagaland!H47 -> 0 | I47: =Nagaland!L47 -> 0 | J47: =Nagaland!O47 -> 0 | K47: =Nagaland!P47 -> 0 | L47: =Nagaland!Q47 -> 0 | M47: =Nagaland!R47 -> 0 | N47: =Nagaland!S47 -> 0 | O47: =Nagaland!U47 -> 0 | P47: =Nagaland!X47 -> 0 | Q47: =Nagaland!Y47 -> 0 | R47: =Nagaland!Z47 -> 0 | S47: =Nagaland!AA47 -> 0 | T47: =Nagaland!AB47 -> 0 | U47: =Nagaland!AC47 -> 0
B48: Non-recurring (one time grant) | C48: =Nagaland!C48 -> 0 | D48: =Nagaland!D48 -> 0 | E48: =Nagaland!E48 -> 0 | F48: =Nagaland!F48 -> 0 | G48: =Nagaland!G48 -> 0 | H48: =Nagaland!H48 -> 0 | I48: =Nagaland!L48 -> 0 | J48: =Nagaland!O48 -> 0 | K48: =Nagaland!P48 -> 0 | L48: =Nagaland!Q48 -> 0 | M48: =Nagaland!R48 -> 0 | N48: =Nagaland!S48 -> 0 | O48: =Nagaland!U48 -> 0 | P48: =Nagaland!X48 -> 0 | Q48: =Nagaland!Y48 -> 0 | R48: =Nagaland!Z48 -> 0 | S48: =Nagaland!AA48 -> 0 | T48: =Nagaland!AB48 -> 0 | U48: =Nagaland!AC48 -> 0
A49: 2.19 | B49: Furniture / Equipment (including kitchen equipment) | C49: =Nagaland!C49 -> 0 | D49: =Nagaland!D49 -> 0 | E49: =Nagaland!E49 -> 0 | F49: =Nagaland!F49 -> 0 | G49: =Nagaland!G49 -> 0 | H49: =Nagaland!H49 -> 0 | I49: =Nagaland!L49 -> 0 | Q49: =Nagaland!Y49 -> 0 | R49: =Nagaland!Z49 -> 0 | S49: =Nagaland!AA49 -> 0 | T49: =Nagaland!AB49 -> 0 | U49: =Nagaland!AC49 -> 0
A50: =+A49+0.01 -> 2.2 | B50: TLM and equipment including library books (New) | C50: =Nagaland!C50 -> 0 | D50: =Nagaland!D50 -> 0 | E50: =Nagaland!E50 -> 0 | F50: =Nagaland!F50 -> 0 | G50: =Nagaland!G50 -> 0 | H50: =Nagaland!H50 -> 0 | I50: =Nagaland!L50 -> 0 | Q50: =Nagaland!Y50 -> 0 | R50: =Nagaland!Z50 -> 0 | S50: =Nagaland!AA50 -> 0 | T50: =Nagaland!AB50 -> 0 | U50: =Nagaland!AC50 -> 0
A51: 2.21 | B51: Bedding (New) | C51: =Nagaland!C51 -> 0 | D51: =Nagaland!D51 -> 0 | E51: =Nagaland!E51 -> 0 | F51: =Nagaland!F51 -> 0 | G51: =Nagaland!G51 -> 0 | H51: =Nagaland!H51 -> 0 | I51: =Nagaland!L51 -> 0 | Q51: =Nagaland!Y51 -> 0 | R51: =Nagaland!Z51 -> 0 | S51: =Nagaland!AA51 -> 0 | T51: =Nagaland!AB51 -> 0 | U51: =Nagaland!AC51 -> 0
A52: 2.22 | B52: Replacement of bedding (once in 3 years) | C52: =Nagaland!C52 -> 0 | D52: =Nagaland!D52 -> 0 | E52: =Nagaland!E52 -> 0 | F52: =Nagaland!F52 -> 0 | G52: =Nagaland!G52 -> 0 | H52: =Nagaland!H52 -> 0 | I52: =Nagaland!L52 -> 0 | Q52: =Nagaland!Y52 -> 0 | R52: =Nagaland!Z52 -> 0 | S52: =Nagaland!AA52 -> 0 | T52: =Nagaland!AB52 -> 0 | U52: =Nagaland!AC52 -> 0
B53: Sub Total Non-recurring | C53: =Nagaland!C53 -> 0 | D53: =Nagaland!D53 -> 0 | E53: =Nagaland!E53 -> 0 | F53: =Nagaland!F53 -> 0 | G53: =Nagaland!G53 -> 0 | H53: =Nagaland!H53 -> 0 | I53: =Nagaland!L53 -> 0 | Q53: =Nagaland!Y53 -> 0 | R53: =Nagaland!Z53 -> 0 | S53: =Nagaland!AA53 -> 0 | T53: =Nagaland!AB53 -> 0 | U53: =Nagaland!AC53 -> 0
B54: Recurring | C54: =Nagaland!C54 -> 0 | D54: =Nagaland!D54 -> 0 | E54: =Nagaland!E54 -> 0 | F54: =Nagaland!F54 -> 0 | G54: =Nagaland!G54 -> 0 | H54: =Nagaland!H54 -> 0 | I54: =Nagaland!L54 -> 0 | Q54: =Nagaland!Y54 -> 0 | R54: =Nagaland!Z54 -> 0 | S54: =Nagaland!AA54 -> 0 | T54: =Nagaland!AB54 -> 0 | U54: =Nagaland!AC54 -> 0
A55: 2.23 | B55: Maintenance per child per month @ Rs. 1500/- | C55: =Nagaland!C55 -> 0 | D55: =Nagaland!D55 -> 0 | E55: =Nagaland!E55 -> 0 | F55: =Nagaland!F55 -> 0 | G55: =Nagaland!G55 -> 0 | H55: =Nagaland!H55 -> 0 | I55: =Nagaland!L55 -> 0 | Q55: =Nagaland!Y55 -> 0 | R55: =Nagaland!Z55 -> 0 | S55: =Nagaland!AA55 -> 0 | T55: =Nagaland!AB55 -> 0 | U55: =Nagaland!AC55 -> 0
A56: =+A55+0.01 -> 2.24 | B56: Stipend per child per month @ Rs.100/- | C56: =Nagaland!C56 -> 0 | D56: =Nagaland!D56 -> 0 | E56: =Nagaland!E56 -> 0 | F56: =Nagaland!F56 -> 0 | G56: =Nagaland!G56 -> 0 | H56: =Nagaland!H56 -> 0 | I56: =Nagaland!L56 -> 0 | Q56: =Nagaland!Y56 -> 0 | R56: =Nagaland!Z56 -> 0 | S56: =Nagaland!AA56 -> 0 | T56: =Nagaland!AB56 -> 0 | U56: =Nagaland!AC56 -> 0
A57: 2.25 | B57: Supplementary TLM, Stationery and other educational material per child @1000/- per annum | C57: =Nagaland!C57 -> 0 | D57: =Nagaland!D57 -> 0 | E57: =Nagaland!E57 -> 0 | F57: =Nagaland!F57 -> 0 | G57: =Nagaland!G57 -> 0 | H57: =Nagaland!H57 -> 0 | I57: =Nagaland!L57 -> 0 | Q57: =Nagaland!Y57 -> 0 | R57: =Nagaland!Z57 -> 0 | S57: =Nagaland!AA57 -> 0 | T57: =Nagaland!AB57 -> 0 | U57: =Nagaland!AC57 -> 0
A58: 2.26 | B58: Salaries | C58: =Nagaland!C58 -> 0 | D58: =Nagaland!D58 -> 0 | E58: =Nagaland!E58 -> 0 | F58: =Nagaland!F58 -> 0 | G58: =Nagaland!G58 -> 0 | H58: =Nagaland!H58 -> 0 | I58: =Nagaland!L58 -> 0 | Q58: =Nagaland!Y58 -> 0 | R58: =Nagaland!Z58 -> 0 | S58: =Nagaland!AA58 -> 0 | T58: =Nagaland!AB58 -> 0 | U58: =Nagaland!AC58 -> 0
A59: (a) | B59: 1 Warden @ Rs. 25,000/- per month | C59: =Nagaland!C59 -> 0 | D59: =Nagaland!D59 -> 0 | E59: =Nagaland!E59 -> 0 | F59: =Nagaland!F59 -> 0 | G59: =Nagaland!G59 -> 0 | H59: =Nagaland!H59 -> 0 | I59: =Nagaland!L59 -> 0 | Q59: =Nagaland!Y59 -> 0 | R59: =Nagaland!Z59 -> 0 | S59: =Nagaland!AA59 -> 0 | T59: =Nagaland!AB59 -> 0 | U59: =Nagaland!AC59 -> 0
A60: (b) | B60: 1 head teacher @ Rs. 25,000/- per month in case the enrollment exceeds 100 | C60: =Nagaland!C60 -> 0 | D60: =Nagaland!D60 -> 0 | E60: =Nagaland!E60 -> 0 | F60: =Nagaland!F60 -> 0 | G60: =Nagaland!G60 -> 0 | H60: =Nagaland!H60 -> 0 | I60: =Nagaland!L60 -> 0 | Q60: =Nagaland!Y60 -> 0 | R60: =Nagaland!Z60 -> 0 | S60: =Nagaland!AA60 -> 0 | T60: =Nagaland!AB60 -> 0 | U60: =Nagaland!AC60 -> 0
A61: (c) | B61: 4 - 5 Full time teachers as per RTE norms @ Rs. 20,000/- per month per teacher | C61: =Nagaland!C61 -> 0 | D61: =Nagaland!D61 -> 0 | E61: =Nagaland!E61 -> 0 | F61: =Nagaland!F61 -> 0 | G61: =Nagaland!G61 -> 0 | H61: =Nagaland!H61 -> 0 | I61: =Nagaland!L61 -> 0 | Q61: =Nagaland!Y61 -> 0 | R61: =Nagaland!Z61 -> 0 | S61: =Nagaland!AA61 -> 0 | T61: =Nagaland!AB61 -> 0 | U61: =Nagaland!AC61 -> 0
A62: (d) | B62: 2 Urdu Teachers (only for blocks with muslim population above 20% and select urban areas), if required @ Rs. 12,000/- per month per teacher | C62: =Nagaland!C62 -> 0 | D62: =Nagaland!D62 -> 0 | E62: =Nagaland!E62 -> 0 | F62: =Nagaland!F62 -> 0 | G62: =Nagaland!G62 -> 0 | H62: =Nagaland!H62 -> 0 | I62: =Nagaland!L62 -> 0 | Q62: =Nagaland!Y62 -> 0 | R62: =Nagaland!Z62 -> 0 | S62: =Nagaland!AA62 -> 0 | T62: =Nagaland!AB62 -> 0 | U62: =Nagaland!AC62 -> 0
A63: (e) | B63: 3 part time teachers @ Rs. 5,000/- per month per teacher | C63: =Nagaland!C63 -> 0 | D63: =Nagaland!D63 -> 0 | E63: =Nagaland!E63 -> 0 | F63: =Nagaland!F63 -> 0 | G63: =Nagaland!G63 -> 0 | H63: =Nagaland!H63 -> 0 | I63: =Nagaland!L63 -> 0 | Q63: =Nagaland!Y63 -> 0 | R63: =Nagaland!Z63 -> 0 | S63: =Nagaland!AA63 -> 0 | T63: =Nagaland!AB63 -> 0 | U63: =Nagaland!AC63 -> 0
A64: (f) | B64: 1 Full time Accountant @ Rs. 10,000/- per month | C64: =Nagaland!C64 -> 0 | D64: =Nagaland!D64 -> 0 | E64: =Nagaland!E64 -> 0 | F64: =Nagaland!F64 -> 0 | G64: =Nagaland!G64 -> 0 | H64: =Nagaland!H64 -> 0 | I64: =Nagaland!L64 -> 0 | Q64: =Nagaland!Y64 -> 0 | R64: =Nagaland!Z64 -> 0 | S64: =Nagaland!AA64 -> 0 | T64: =Nagaland!AB64 -> 0 | U64: =Nagaland!AC64 -> 0
A65: (g) | B65: 2 Support Staff – (Accountant/ Assistant, Peon, Chowkidar) @ Rs. 5,000/- per month per staff | C65: =Nagaland!C65 -> 0 | D65: =Nagaland!D65 -> 0 | E65: =Nagaland!E65 -> 0 | F65: =Nagaland!F65 -> 0 | G65: =Nagaland!G65 -> 0 | H65: =Nagaland!H65 -> 0 | I65: =Nagaland!L65 -> 0 | Q65: =Nagaland!Y65 -> 0 | R65: =Nagaland!Z65 -> 0 | S65: =Nagaland!AA65 -> 0 | T65: =Nagaland!AB65 -> 0 | U65: =Nagaland!AC65 -> 0
A66: (h) | B66: 1 Head cook @ Rs. 6,000/- per month and upto 2 Asstt. Cooks @ Rs. 4,500/- per month per cook | C66: =Nagaland!C66 -> 0 | D66: =Nagaland!D66 -> 0 | E66: =Nagaland!E66 -> 0 | F66: =Nagaland!F66 -> 0 | G66: =Nagaland!G66 -> 0 | H66: =Nagaland!H66 -> 0 | I66: =Nagaland!L66 -> 0 | Q66: =Nagaland!Y66 -> 0 | R66: =Nagaland!Z66 -> 0 | S66: =Nagaland!AA66 -> 0 | T66: =Nagaland!AB66 -> 0 | U66: =Nagaland!AC66 -> 0
A67: 2.27 | B67: Specific skill training per child @ Rs.1000/- per annum | C67: =Nagaland!C67 -> 0 | D67: =Nagaland!D67 -> 0 | E67: =Nagaland!E67 -> 0 | F67: =Nagaland!F67 -> 0 | G67: =Nagaland!G67 -> 0 | H67: =Nagaland!H67 -> 0 | I67: =Nagaland!L67 -> 0 | Q67: =Nagaland!Y67 -> 0 | R67: =Nagaland!Z67 -> 0 | S67: =Nagaland!AA67 -> 0 | T67: =Nagaland!AB67 -> 0 | U67: =Nagaland!AC67 -> 0
A68: 2.28 | B68: Electricity / water charges per child @Rs.1000/- per annum | C68: =Nagaland!C68 -> 0 | D68: =Nagaland!D68 -> 0 | E68: =Nagaland!E68 -> 0 | F68: =Nagaland!F68 -> 0 | G68: =Nagaland!G68 -> 0 | H68: =Nagaland!H68 -> 0 | I68: =Nagaland!L68 -> 0 | Q68: =Nagaland!Y68 -> 0 | R68: =Nagaland!Z68 -> 0 | S68: =Nagaland!AA68 -> 0 | T68: =Nagaland!AB68 -> 0 | U68: =Nagaland!AC68 -> 0
A69: 2.29 | B69: Medical care/contingencies @ Rs.1250/- per child per annum | C69: =Nagaland!C69 -> 0 | D69: =Nagaland!D69 -> 0 | E69: =Nagaland!E69 -> 0 | F69: =Nagaland!F69 -> 0 | G69: =Nagaland!G69 -> 0 | H69: =Nagaland!H69 -> 0 | I69: =Nagaland!L69 -> 0 | Q69: =Nagaland!Y69 -> 0 | R69: =Nagaland!Z69 -> 0 | S69: =Nagaland!AA69 -> 0 | T69: =Nagaland!AB69 -> 0 | U69: =Nagaland!AC69 -> 0
A70: 2.3 | B70: Maintenance @ Rs.750/- per child per annum | C70: =Nagaland!C70 -> 0 | D70: =Nagaland!D70 -> 0 | E70: =Nagaland!E70 -> 0 | F70: =Nagaland!F70 -> 0 | G70: =Nagaland!G70 -> 0 | H70: =Nagaland!H70 -> 0 | I70: =Nagaland!L70 -> 0 | Q70: =Nagaland!Y70 -> 0 | R70: =Nagaland!Z70 -> 0 | S70: =Nagaland!AA70 -> 0 | T70: =Nagaland!AB70 -> 0 | U70: =Nagaland!AC70 -> 0
A71: 2.31 | B71: Miscellaneous @ Rs.750/- per child per annum | C71: =Nagaland!C71 -> 0 | D71: =Nagaland!D71 -> 0 | E71: =Nagaland!E71 -> 0 | F71: =Nagaland!F71 -> 0 | G71: =Nagaland!G71 -> 0 | H71: =Nagaland!H71 -> 0 | I71: =Nagaland!L71 -> 0 | Q71: =Nagaland!Y71 -> 0 | R71: =Nagaland!Z71 -> 0 | S71: =Nagaland!AA71 -> 0 | T71: =Nagaland!AB71 -> 0 | U71: =Nagaland!AC71 -> 0
A72: 2.32 | B72: Preparatory camps @ Rs.200/- per child per annum | C72: =Nagaland!C72 -> 0 | D72: =Nagaland!D72 -> 0 | E72: =Nagaland!E72 -> 0 | F72: =Nagaland!F72 -> 0 | G72: =Nagaland!G72 -> 0 | H72: =Nagaland!H72 -> 0 | I72: =Nagaland!L72 -> 0 | J72: =Nagaland!O72 -> 0 | K72: =Nagaland!P72 -> 0 | L72: =Nagaland!Q72 -> 0 | M72: =Nagaland!R72 -> 0 | N72: =Nagaland!S72 -> 0 | O72: =Nagaland!U72 -> 0 | P72: =Nagaland!X72 -> 0 | Q72: =Nagaland!Y72 -> 0 | R72: =Nagaland!Z72 -> 0 | S72: =Nagaland!AA72 -> 0 | T72: =Nagaland!AB72 -> 0 | U72: =Nagaland!AC72 -> 0
A73: 2.33 | B73: P.T.A / school functions @ Rs.200/- per child per annum | C73: =Nagaland!C73 -> 0 | D73: =Nagaland!D73 -> 0 | E73: =Nagaland!E73 -> 0 | F73: =Nagaland!F73 -> 0 | G73: =Nagaland!G73 -> 0 | H73: =Nagaland!H73 -> 0 | I73: =Nagaland!L73 -> 0 | J73: =Nagaland!O73 -> 0 | K73: =Nagaland!P73 -> 0 | L73: =Nagaland!Q73 -> 0 | M73: =Nagaland!R73 -> 0 | N73: =Nagaland!S73 -> 0 | O73: =Nagaland!U73 -> 0 | P73: =Nagaland!X73 -> 0 | Q73: =Nagaland!Y73 -> 0 | R73: =Nagaland!Z73 -> 0 | S73: =Nagaland!AA73 -> 0 | T73: =Nagaland!AB73 -> 0 | U73: =Nagaland!AC73 -> 0
A74: 2.34 | B74: Provision of Rent @ Rs. 6000/- per child per annum | C74: =Nagaland!C74 -> 0 | D74: =Nagaland!D74 -> 0 | E74: =Nagaland!E74 -> 0 | F74: =Nagaland!F74 -> 0 | G74: =Nagaland!G74 -> 0 | H74: =Nagaland!H74 -> 0 | I74: =Nagaland!L74 -> 0 | J74: =Nagaland!O74 -> 0 | K74: =Nagaland!P74 -> 0 | L74: =Nagaland!Q74 -> 0 | M74: =Nagaland!R74 -> 0 | N74: =Nagaland!S74 -> 0 | O74: =Nagaland!U74 -> 0 | P74: =Nagaland!X74 -> 0 | Q74: =Nagaland!Y74 -> 0 | R74: =Nagaland!Z74 -> 0 | S74: =Nagaland!AA74 -> 0 | T74: =Nagaland!AB74 -> 0 | U74: =Nagaland!AC74 -> 0
A75: 2.35 | B75: Capacity Building @ Rs.500/- per child per annum | C75: =Nagaland!C75 -> 0 | D75: =Nagaland!D75 -> 0 | E75: =Nagaland!E75 -> 0 | F75: =Nagaland!F75 -> 0 | G75: =Nagaland!G75 -> 0 | H75: =Nagaland!H75 -> 0 | I75: =Nagaland!L75 -> 0 | K75: =Nagaland!P75 -> 0 | L75: =Nagaland!Q75 -> 0 | M75: =Nagaland!R75 -> 0 | N75: =Nagaland!S75 -> 0 | O75: =Nagaland!U75 -> 0 | Q75: =Nagaland!Y75 -> 0 | R75: =Nagaland!Z75 -> 0 | S75: =Nagaland!AA75 -> 0 | T75: =Nagaland!AB75 -> 0 | U75: =Nagaland!AC75 -> 0
A76: 2.36 | B76: Physical / Self Defence training @ Rs. 200/- per child per annum. | C76: =Nagaland!C76 -> 0 | D76: =Nagaland!D76 -> 0 | E76: =Nagaland!E76 -> 0 | F76: =Nagaland!F76 -> 0 | G76: =Nagaland!G76 -> 0 | H76: =Nagaland!H76 -> 0 | I76: =Nagaland!L76 -> 0 | J76: =Nagaland!O76 -> 0 | K76: =Nagaland!P76 -> 0 | L76: =Nagaland!Q76 -> 0 | M76: =Nagaland!R76 -> 0 | N76: =Nagaland!S76 -> 0 | O76: =Nagaland!U76 -> 0 | P76: =Nagaland!X76 -> 0 | Q76: =Nagaland!Y76 -> 0 | R76: =Nagaland!Z76 -> 0 | S76: =Nagaland!AA76 -> 0 | T76: =Nagaland!AB76 -> 0 | U76: =Nagaland!AC76 -> 0
B77: Sub Total (Recurring) | C77: =Nagaland!C77 -> 0 | D77: =Nagaland!D77 -> 0 | E77: =Nagaland!E77 -> 0 | F77: =Nagaland!F77 -> 0 | G77: =Nagaland!G77 -> 0 | H77: =Nagaland!H77 -> 0 | I77: =Nagaland!L77 -> 0 | J77: =Nagaland!O77 -> 0 | K77: =Nagaland!P77 -> 0 | L77: =Nagaland!Q77 -> 0 | M77: =Nagaland!R77 -> 0 | N77: =Nagaland!S77 -> 0 | O77: =Nagaland!U77 -> 0 | P77: =Nagaland!X77 -> 0 | Q77: =Nagaland!Y77 -> 0 | R77: =Nagaland!Z77 -> 0 | S77: =Nagaland!AA77 -> 0 | T77: =Nagaland!AB77 -> 0 | U77: =Nagaland!AC77 -> 0
B78: Total (Recurring + Non Recurring) | C78: =Nagaland!C78 -> 0 | D78: =Nagaland!D78 -> 0 | E78: =Nagaland!E78 -> 0 | F78: =Nagaland!F78 -> 0 | G78: =Nagaland!G78 -> 0 | H78: =Nagaland!H78 -> 0 | I78: =Nagaland!L78 -> 0 | J78: =Nagaland!O78 -> 0 | K78: =Nagaland!P78 -> 0 | L78: =Nagaland!Q78 -> 0 | M78: =Nagaland!R78 -> 0 | N78: =Nagaland!S78 -> 0 | O78: =Nagaland!U78 -> 0 | P78: =Nagaland!X78 -> 0 | Q78: =Nagaland!Y78 -> 0 | R78: =Nagaland!Z78 -> 0 | S78: =Nagaland!AA78 -> 0 | T78: =Nagaland!AB78 -> 0 | U78: =Nagaland!AC78 -> 0
B79: Total (50 + 100 children) | C79: =Nagaland!C79 -> 0 | D79: =Nagaland!D79 -> 0 | E79: =Nagaland!E79 -> 0 | F79: =Nagaland!F79 -> 0 | G79: =Nagaland!G79 -> 0 | H79: =Nagaland!H79 -> 0 | I79: =Nagaland!L79 -> 0 | J79: =Nagaland!O79 -> 0 | K79: =Nagaland!P79 -> 0 | L79: =Nagaland!Q79 -> 0 | M79: =Nagaland!R79 -> 0 | N79: =Nagaland!S79 -> 0 | O79: =Nagaland!U79 -> 0 | P79: =Nagaland!X79 -> 0 | Q79: =Nagaland!Y79 -> 0 | R79: =Nagaland!Z79 -> 0 | S79: =Nagaland!AA79 -> 0 | T79: =Nagaland!AB79 -> 0 | U79: =Nagaland!AC79 -> 0
A80: 3 | B80: Residential Hostel for specific category of children (Recurring) | C80: =Nagaland!C80 -> 0 | D80: =Nagaland!D80 -> 0 | E80: =Nagaland!E80 -> 0 | F80: =Nagaland!F80 -> 0 | G80: =Nagaland!G80 -> 0 | H80: =Nagaland!H80 -> 0 | I80: =Nagaland!L80 -> 0 | J80: =Nagaland!O80 -> 0 | K80: =Nagaland!P80 -> 0 | L80: =Nagaland!Q80 -> 0 | M80: =Nagaland!R80 -> 0 | N80: =Nagaland!S80 -> 0 | O80: =Nagaland!U80 -> 0 | P80: =Nagaland!X80 -> 0 | Q80: =Nagaland!Y80 -> 0 | R80: =Nagaland!Z80 -> 0 | S80: =Nagaland!AA80 -> 0 | T80: =Nagaland!AB80 -> 0 | U80: =Nagaland!AC80 -> 0
A81: (A) | B81: 50 children | C81: =Nagaland!C81 -> 0 | D81: =Nagaland!D81 -> 0 | E81: =Nagaland!E81 -> 0 | F81: =Nagaland!F81 -> 0 | G81: =Nagaland!G81 -> 0 | H81: =Nagaland!H81 -> 0 | I81: =Nagaland!L81 -> 0 | J81: =Nagaland!O81 -> 0 | K81: =Nagaland!P81 -> 0 | L81: =Nagaland!Q81 -> 0 | M81: =Nagaland!R81 -> 0 | N81: =Nagaland!S81 -> 0 | O81: =Nagaland!U81 -> 0 | P81: =Nagaland!X81 -> 0 | Q81: =Nagaland!Y81 -> 0 | R81: =Nagaland!Z81 -> 0 | S81: =Nagaland!AA81 -> 0 | T81: =Nagaland!AB81 -> 0 | U81: =Nagaland!AC81 -> 0
B82: Non-recurring (one time grant) | C82: =Nagaland!C82 -> 0 | D82: =Nagaland!D82 -> 0 | E82: =Nagaland!E82 -> 0 | F82: =Nagaland!F82 -> 0 | G82: =Nagaland!G82 -> 0 | H82: =Nagaland!H82 -> 0 | I82: =Nagaland!L82 -> 0 | J82: =Nagaland!O82 -> 0 | K82: =Nagaland!P82 -> 0 | L82: =Nagaland!Q82 -> 0 | M82: =Nagaland!R82 -> 0 | N82: =Nagaland!S82 -> 0 | O82: =Nagaland!U82 -> 0 | P82: =Nagaland!X82 -> 0 | Q82: =Nagaland!Y82 -> 0 | R82: =Nagaland!Z82 -> 0 | S82: =Nagaland!AA82 -> 0 | T82: =Nagaland!AB82 -> 0 | U82: =Nagaland!AC82 -> 0
A83: 3.01 | B83: Furniture/ Equipment (including kitchen) | C83: =Nagaland!C83 -> 0 | D83: =Nagaland!D83 -> 0 | E83: =Nagaland!E83 -> 0 | F83: =Nagaland!F83 -> 0 | G83: =Nagaland!G83 -> 0 | H83: =Nagaland!H83 -> 0 | I83: =Nagaland!L83 -> 0 | J83: =Nagaland!O83 -> 0 | K83: =Nagaland!P83 -> 0 | L83: =Nagaland!Q83 -> 0 | M83: =Nagaland!R83 -> 0 | N83: =Nagaland!S83 -> 0 | O83: =Nagaland!U83 -> 0 | P83: =Nagaland!X83 -> 0 | Q83: =Nagaland!Y83 -> 0 | R83: =Nagaland!Z83 -> 0 | S83: =Nagaland!AA83 -> 0 | T83: =Nagaland!AB83 -> 0 | U83: =Nagaland!AC83 -> 0
A84: =+A83+0.01 -> 3.02 | B84: TLM and equipment including library books | C84: =Nagaland!C84 -> 0 | D84: =Nagaland!D84 -> 0 | E84: =Nagaland!E84 -> 0 | F84: =Nagaland!F84 -> 0 | G84: =Nagaland!G84 -> 0 | H84: =Nagaland!H84 -> 0 | I84: =Nagaland!L84 -> 0 | J84: =Nagaland!O84 -> 0 | K84: =Nagaland!P84 -> 0 | L84: =Nagaland!Q84 -> 0 | M84: =Nagaland!R84 -> 0 | N84: =Nagaland!S84 -> 0 | O84: =Nagaland!U84 -> 0 | P84: =Nagaland!X84 -> 0 | Q84: =Nagaland!Y84 -> 0 | R84: =Nagaland!Z84 -> 0 | S84: =Nagaland!AA84 -> 0 | T84: =Nagaland!AB84 -> 0 | U84: =Nagaland!AC84 -> 0
A85: 3.03 | B85: Bedding (new) | C85: =Nagaland!C85 -> 0 | D85: =Nagaland!D85 -> 0 | E85: =Nagaland!E85 -> 0 | F85: =Nagaland!F85 -> 0 | G85: =Nagaland!G85 -> 0 | H85: =Nagaland!H85 -> 0 | I85: =Nagaland!L85 -> 0 | J85: =Nagaland!O85 -> 0 | K85: =Nagaland!P85 -> 0 | L85: =Nagaland!Q85 -> 0 | M85: =Nagaland!R85 -> 0 | N85: =Nagaland!S85 -> 0 | O85: =Nagaland!U85 -> 0 | P85: =Nagaland!X85 -> 0 | Q85: =Nagaland!Y85 -> 0 | R85: =Nagaland!Z85 -> 0 | S85: =Nagaland!AA85 -> 0 | T85: =Nagaland!AB85 -> 0 | U85: =Nagaland!AC85 -> 0
A86: 3.04 | B86: Replacement of bedding (once in 3 years) | C86: =Nagaland!C86 -> 0 | D86: =Nagaland!D86 -> 0 | E86: =Nagaland!E86 -> 0 | F86: =Nagaland!F86 -> 0 | G86: =Nagaland!G86 -> 0 | H86: =Nagaland!H86 -> 0 | I86: =Nagaland!L86 -> 0 | J86: =Nagaland!O86 -> 0 | K86: =Nagaland!P86 -> 0 | L86: =Nagaland!Q86 -> 0 | M86: =Nagaland!R86 -> 0 | N86: =Nagaland!S86 -> 0 | O86: =Nagaland!U86 -> 0 | P86: =Nagaland!X86 -> 0 | Q86: =Nagaland!Y86 -> 0 | R86: =Nagaland!Z86 -> 0 | S86: =Nagaland!AA86 -> 0 | T86: =Nagaland!AB86 -> 0 | U86: =Nagaland!AC86 -> 0
B87: Sub Total (Non Recurring) | C87: =Nagaland!C87 -> 0 | D87: =Nagaland!D87 -> 0 | E87: =Nagaland!E87 -> 0 | F87: =Nagaland!F87 -> 0 | G87: =Nagaland!G87 -> 0 | H87: =Nagaland!H87 -> 0 | I87: =Nagaland!L87 -> 0 | J87: =Nagaland!O87 -> 0 | K87: =Nagaland!P87 -> 0 | L87: =Nagaland!Q87 -> 0 | M87: =Nagaland!R87 -> 0 | N87: =Nagaland!S87 -> 0 | O87: =Nagaland!U87 -> 0 | P87: =Nagaland!X87 -> 0 | Q87: =Nagaland!Y87 -> 0 | R87: =Nagaland!Z87 -> 0 | S87: =Nagaland!AA87 -> 0 | T87: =Nagaland!AB87 -> 0 | U87: =Nagaland!AC87 -> 0
B88: Recurring | C88: =Nagaland!C88 -> 0 | D88: =Nagaland!D88 -> 0 | E88: =Nagaland!E88 -> 0 | F88: =Nagaland!F88 -> 0 | G88: =Nagaland!G88 -> 0 | H88: =Nagaland!H88 -> 0 | I88: =Nagaland!L88 -> 0 | J88: =Nagaland!O88 -> 0 | K88: =Nagaland!P88 -> 0 | L88: =Nagaland!Q88 -> 0 | M88: =Nagaland!R88 -> 0 | N88: =Nagaland!S88 -> 0 | O88: =Nagaland!U88 -> 0 | P88: =Nagaland!X88 -> 0 | Q88: =Nagaland!Y88 -> 0 | R88: =Nagaland!Z88 -> 0 | S88: =Nagaland!AA88 -> 0 | T88: =Nagaland!AB88 -> 0 | U88: =Nagaland!AC88 -> 0
A89: 3.05 | B89: Maintenance per child per month @ Rs.1500/- | C89: =Nagaland!C89 -> 0 | D89: =Nagaland!D89 -> 0 | E89: =Nagaland!E89 -> 0 | F89: =Nagaland!F89 -> 0 | G89: =Nagaland!G89 -> 0 | H89: =Nagaland!H89 -> 0 | I89: =Nagaland!L89 -> 0 | J89: =Nagaland!O89 -> 0 | K89: =Nagaland!P89 -> 0 | L89: =Nagaland!Q89 -> 0 | M89: =Nagaland!R89 -> 0 | N89: =Nagaland!S89 -> 0 | O89: =Nagaland!U89 -> 0 | P89: =Nagaland!X89 -> 0 | Q89: =Nagaland!Y89 -> 0 | R89: =Nagaland!Z89 -> 0 | S89: =Nagaland!AA89 -> 0 | T89: =Nagaland!AB89 -> 0 | U89: =Nagaland!AC89 -> 0
A90: =+A89+0.01 -> 3.06 | B90: Stipend per child per month @ Rs.100/- | C90: =Nagaland!C90 -> 0 | D90: =Nagaland!D90 -> 0 | E90: =Nagaland!E90 -> 0 | F90: =Nagaland!F90 -> 0 | G90: =Nagaland!G90 -> 0 | H90: =Nagaland!H90 -> 0 | I90: =Nagaland!L90 -> 0 | J90: =Nagaland!O90 -> 0 | K90: =Nagaland!P90 -> 0 | L90: =Nagaland!Q90 -> 0 | M90: =Nagaland!R90 -> 0 | N90: =Nagaland!S90 -> 0 | O90: =Nagaland!U90 -> 0 | P90: =Nagaland!X90 -> 0 | Q90: =Nagaland!Y90 -> 0 | R90: =Nagaland!Z90 -> 0 | S90: =Nagaland!AA90 -> 0 | T90: =Nagaland!AB90 -> 0 | U90: =Nagaland!AC90 -> 0
A91: 3.07 | B91: Supplementary TLM, Stationery and other educational material @Rs.1000/- per child per annum | C91: =Nagaland!C91 -> 0 | D91: =Nagaland!D91 -> 0 | E91: =Nagaland!E91 -> 0 | F91: =Nagaland!F91 -> 0 | G91: =Nagaland!G91 -> 0 | H91: =Nagaland!H91 -> 0 | I91: =Nagaland!L91 -> 0 | J91: =Nagaland!O91 -> 0 | K91: =Nagaland!P91 -> 0 | L91: =Nagaland!Q91 -> 0 | M91: =Nagaland!R91 -> 0 | N91: =Nagaland!S91 -> 0 | O91: =Nagaland!U91 -> 0 | P91: =Nagaland!X91 -> 0 | Q91: =Nagaland!Y91 -> 0 | R91: =Nagaland!Z91 -> 0 | S91: =Nagaland!AA91 -> 0 | T91: =Nagaland!AB91 -> 0 | U91: =Nagaland!AC91 -> 0
A92: (a) | B92: Salaries | C92: =Nagaland!C92 -> 0 | D92: =Nagaland!D92 -> 0 | E92: =Nagaland!E92 -> 0 | F92: =Nagaland!F92 -> 0 | G92: =Nagaland!G92 -> 0 | H92: =Nagaland!H92 -> 0 | I92: =Nagaland!L92 -> 0 | J92: =Nagaland!O92 -> 0 | K92: =Nagaland!P92 -> 0 | L92: =Nagaland!Q92 -> 0 | M92: =Nagaland!R92 -> 0 | N92: =Nagaland!S92 -> 0 | O92: =Nagaland!U92 -> 0 | P92: =Nagaland!X92 -> 0 | Q92: =Nagaland!Y92 -> 0 | R92: =Nagaland!Z92 -> 0 | S92: =Nagaland!AA92 -> 0 | T92: =Nagaland!AB92 -> 0 | U92: =Nagaland!AC92 -> 0
A93: (b) | B93: 1 Warden @ Rs. 25,000/- per month | C93: =Nagaland!C93 -> 0 | D93: =Nagaland!D93 -> 0 | E93: =Nagaland!E93 -> 0 | F93: =Nagaland!F93 -> 0 | G93: =Nagaland!G93 -> 0 | H93: =Nagaland!H93 -> 0 | I93: =Nagaland!L93 -> 0 | J93: =Nagaland!O93 -> 0 | K93: =Nagaland!P93 -> 0 | L93: =Nagaland!Q93 -> 0 | M93: =Nagaland!R93 -> 0 | N93: =Nagaland!S93 -> 0 | O93: =Nagaland!U93 -> 0 | P93: =Nagaland!X93 -> 0 | Q93: =Nagaland!Y93 -> 0 | R93: =Nagaland!Z93 -> 0 | S93: =Nagaland!AA93 -> 0 | T93: =Nagaland!AB93 -> 0 | U93: =Nagaland!AC93 -> 0
A94: (c) | B94: 2 Urdu Teachers (only for blocks with muslim population above 20% and select urban areas). If required @ Rs 12000/- per month per teacher | C94: =Nagaland!C94 -> 0 | D94: =Nagaland!D94 -> 0 | E94: =Nagaland!E94 -> 0 | F94: =Nagaland!F94 -> 0 | G94: =Nagaland!G94 -> 0 | H94: =Nagaland!H94 -> 0 | I94: =Nagaland!L94 -> 0 | J94: =Nagaland!O94 -> 0 | K94: =Nagaland!P94 -> 0 | L94: =Nagaland!Q94 -> 0 | M94: =Nagaland!R94 -> 0 | N94: =Nagaland!S94 -> 0 | O94: =Nagaland!U94 -> 0 | P94: =Nagaland!X94 -> 0 | Q94: =Nagaland!Y94 -> 0 | R94: =Nagaland!Z94 -> 0 | S94: =Nagaland!AA94 -> 0 | T94: =Nagaland!AB94 -> 0 | U94: =Nagaland!AC94 -> 0
A95: (d) | B95: 3 Part time teachers @ Rs 5000/- per month per teacher | C95: =Nagaland!C95 -> 0 | D95: =Nagaland!D95 -> 0 | E95: =Nagaland!E95 -> 0 | F95: =Nagaland!F95 -> 0 | G95: =Nagaland!G95 -> 0 | H95: =Nagaland!H95 -> 0 | I95: =Nagaland!L95 -> 0 | J95: =Nagaland!O95 -> 0 | K95: =Nagaland!P95 -> 0 | L95: =Nagaland!Q95 -> 0 | M95: =Nagaland!R95 -> 0 | N95: =Nagaland!S95 -> 0 | O95: =Nagaland!U95 -> 0 | P95: =Nagaland!X95 -> 0 | Q95: =Nagaland!Y95 -> 0 | R95: =Nagaland!Z95 -> 0 | S95: =Nagaland!AA95 -> 0 | T95: =Nagaland!AB95 -> 0 | U95: =Nagaland!AC95 -> 0
A96: (e) | B96: 1 Full time Accountant @ Rs 10000/- per month | C96: =Nagaland!C96 -> 0 | D96: =Nagaland!D96 -> 0 | E96: =Nagaland!E96 -> 0 | F96: =Nagaland!F96 -> 0 | G96: =Nagaland!G96 -> 0 | H96: =Nagaland!H96 -> 0 | I96: =Nagaland!L96 -> 0 | J96: =Nagaland!O96 -> 0 | K96: =Nagaland!P96 -> 0 | L96: =Nagaland!Q96 -> 0 | M96: =Nagaland!R96 -> 0 | N96: =Nagaland!S96 -> 0 | O96: =Nagaland!U96 -> 0 | P96: =Nagaland!X96 -> 0 | Q96: =Nagaland!Y96 -> 0 | R96: =Nagaland!Z96 -> 0 | S96: =Nagaland!AA96 -> 0 | T96: =Nagaland!AB96 -> 0 | U96: =Nagaland!AC96 -> 0
A97: (f) | B97: 2 Support Staff - (Accountant / Assistant, Peon, Chowkidar) @ Rs 5000/- per month per staff | C97: =Nagaland!C97 -> 0 | D97: =Nagaland!D97 -> 0 | E97: =Nagaland!E97 -> 0 | F97: =Nagaland!F97 -> 0 | G97: =Nagaland!G97 -> 0 | H97: =Nagaland!H97 -> 0 | I97: =Nagaland!L97 -> 0 | J97: =Nagaland!O97 -> 0 | K97: =Nagaland!P97 -> 0 | L97: =Nagaland!Q97 -> 0 | M97: =Nagaland!R97 -> 0 | N97: =Nagaland!S97 -> 0 | O97: =Nagaland!U97 -> 0 | P97: =Nagaland!X97 -> 0 | Q97: =Nagaland!Y97 -> 0 | R97: =Nagaland!Z97 -> 0 | S97: =Nagaland!AA97 -> 0 | T97: =Nagaland!AB97 -> 0 | U97: =Nagaland!AC97 -> 0
A98: (g) | B98: 1 Head cook @ Rs 6000/- per month and upto 2 Assistant cooks @ Rs 4500/- per month per cook | C98: =Nagaland!C98 -> 0 | D98: =Nagaland!D98 -> 0 | E98: =Nagaland!E98 -> 0 | F98: =Nagaland!F98 -> 0 | G98: =Nagaland!G98 -> 0 | H98: =Nagaland!H98 -> 0 | I98: =Nagaland!L98 -> 0 | J98: =Nagaland!O98 -> 0 | K98: =Nagaland!P98 -> 0 | L98: =Nagaland!Q98 -> 0 | M98: =Nagaland!R98 -> 0 | N98: =Nagaland!S98 -> 0 | O98: =Nagaland!U98 -> 0 | P98: =Nagaland!X98 -> 0 | Q98: =Nagaland!Y98 -> 0 | R98: =Nagaland!Z98 -> 0 | S98: =Nagaland!AA98 -> 0 | T98: =Nagaland!AB98 -> 0 | U98: =Nagaland!AC98 -> 0
A99: (h) | B99: Specific skill training per child @ Rs 1000/- per annum | C99: =Nagaland!C99 -> 0 | D99: =Nagaland!D99 -> 0 | E99: =Nagaland!E99 -> 0 | F99: =Nagaland!F99 -> 0 | G99: =Nagaland!G99 -> 0 | H99: =Nagaland!H99 -> 0 | I99: =Nagaland!L99 -> 0 | J99: =Nagaland!O99 -> 0 | K99: =Nagaland!P99 -> 0 | L99: =Nagaland!Q99 -> 0 | M99: =Nagaland!R99 -> 0 | N99: =Nagaland!S99 -> 0 | O99: =Nagaland!U99 -> 0 | P99: =Nagaland!X99 -> 0 | Q99: =Nagaland!Y99 -> 0 | R99: =Nagaland!Z99 -> 0 | S99: =Nagaland!AA99 -> 0 | T99: =Nagaland!AB99 -> 0 | U99: =Nagaland!AC99 -> 0
A100: 3.08 | B100: Electricity / Water charges per child @ Rs 1000/- per annum | C100: =Nagaland!C100 -> 0 | D100: =Nagaland!D100 -> 0 | E100: =Nagaland!E100 -> 0 | F100: =Nagaland!F100 -> 0 | G100: =Nagaland!G100 -> 0 | H100: =Nagaland!H100 -> 0 | I100: =Nagaland!L100 -> 0 | J100: =Nagaland!O100 -> 0 | K100: =Nagaland!P100 -> 0 | L100: =Nagaland!Q100 -> 0 | M100: =Nagaland!R100 -> 0 | N100: =Nagaland!S100 -> 0 | O100: =Nagaland!U100 -> 0 | P100: =Nagaland!X100 -> 0 | Q100: =Nagaland!Y100 -> 0 | R100: =Nagaland!Z100 -> 0 | S100: =Nagaland!AA100 -> 0 | T100: =Nagaland!AB100 -> 0 | U100: =Nagaland!AC100 -> 0
A101: =+A100+0.01 -> 3.09 | B101: Medical care/contingencies @ Rs.1250/- per child per annum | C101: =Nagaland!C101 -> 0 | D101: =Nagaland!D101 -> 0 | E101: =Nagaland!E101 -> 0 | F101: =Nagaland!F101 -> 0 | G101: =Nagaland!G101 -> 0 | H101: =Nagaland!H101 -> 0 | I101: =Nagaland!L101 -> 0 | J101: =Nagaland!O101 -> 0 | K101: =Nagaland!P101 -> 0 | L101: =Nagaland!Q101 -> 0 | M101: =Nagaland!R101 -> 0 | N101: =Nagaland!S101 -> 0 | O101: =Nagaland!U101 -> 0 | P101: =Nagaland!X101 -> 0 | Q101: =Nagaland!Y101 -> 0 | R101: =Nagaland!Z101 -> 0 | S101: =Nagaland!AA101 -> 0 | T101: =Nagaland!AB101 -> 0 | U101: =Nagaland!AC101 -> 0
A102: 3.1 | B102: Maintenance @ Rs 750/- per child per annum | C102: =Nagaland!C102 -> 0 | D102: =Nagaland!D102 -> 0 | E102: =Nagaland!E102 -> 0 | F102: =Nagaland!F102 -> 0 | G102: =Nagaland!G102 -> 0 | H102: =Nagaland!H102 -> 0 | I102: =Nagaland!L102 -> 0 | J102: =Nagaland!O102 -> 0 | K102: =Nagaland!P102 -> 0 | L102: =Nagaland!Q102 -> 0 | M102: =Nagaland!R102 -> 0 | N102: =Nagaland!S102 -> 0 | O102: =Nagaland!U102 -> 0 | P102: =Nagaland!X102 -> 0 | Q102: =Nagaland!Y102 -> 0 | R102: =Nagaland!Z102 -> 0 | S102: =Nagaland!AA102 -> 0 | T102: =Nagaland!AB102 -> 0 | U102: =Nagaland!AC102 -> 0
A103: 3.11 | B103: Miscellaneous @ Rs 750/- per child per annum | C103: =Nagaland!C103 -> 0 | D103: =Nagaland!D103 -> 0 | E103: =Nagaland!E103 -> 0 | F103: =Nagaland!F103 -> 0 | G103: =Nagaland!G103 -> 0 | H103: =Nagaland!H103 -> 0 | I103: =Nagaland!L103 -> 0 | J103: =Nagaland!O103 -> 0 | K103: =Nagaland!P103 -> 0 | L103: =Nagaland!Q103 -> 0 | M103: =Nagaland!R103 -> 0 | N103: =Nagaland!S103 -> 0 | O103: =Nagaland!U103 -> 0 | P103: =Nagaland!X103 -> 0 | Q103: =Nagaland!Y103 -> 0 | R103: =Nagaland!Z103 -> 0 | S103: =Nagaland!AA103 -> 0 | T103: =Nagaland!AB103 -> 0 | U103: =Nagaland!AC103 -> 0
A104: 3.12 | B104: Preparatory camp @ Rs 300/- per child per annum | C104: =Nagaland!C104 -> 0 | D104: =Nagaland!D104 -> 0 | E104: =Nagaland!E104 -> 0 | F104: =Nagaland!F104 -> 0 | G104: =Nagaland!G104 -> 0 | H104: =Nagaland!H104 -> 0 | I104: =Nagaland!L104 -> 0 | J104: =Nagaland!O104 -> 0 | K104: =Nagaland!P104 -> 0 | L104: =Nagaland!Q104 -> 0 | M104: =Nagaland!R104 -> 0 | N104: =Nagaland!S104 -> 0 | O104: =Nagaland!U104 -> 0 | P104: =Nagaland!X104 -> 0 | Q104: =Nagaland!Y104 -> 0 | R104: =Nagaland!Z104 -> 0 | S104: =Nagaland!AA104 -> 0 | T104: =Nagaland!AB104 -> 0 | U104: =Nagaland!AC104 -> 0
A105: 3.13 | B105: P.T.A / school functions @ Rs 300/- per child per annum | C105: =Nagaland!C105 -> 0 | D105: =Nagaland!D105 -> 0 | E105: =Nagaland!E105 -> 0 | F105: =Nagaland!F105 -> 0 | G105: =Nagaland!G105 -> 0 | H105: =Nagaland!H105 -> 0 | I105: =Nagaland!L105 -> 0 | J105: =Nagaland!O105 -> 0 | K105: =Nagaland!P105 -> 0 | L105: =Nagaland!Q105 -> 0 | M105: =Nagaland!R105 -> 0 | N105: =Nagaland!S105 -> 0 | O105: =Nagaland!U105 -> 0 | P105: =Nagaland!X105 -> 0 | Q105: =Nagaland!Y105 -> 0 | R105: =Nagaland!Z105 -> 0 | S105: =Nagaland!AA105 -> 0 | T105: =Nagaland!AB105 -> 0 | U105: =Nagaland!AC105 -> 0
A106: 3.14 | B106: Provision of rent @ Rs 10000/- per child per annum | C106: =Nagaland!C106 -> 0 | D106: =Nagaland!D106 -> 0 | E106: =Nagaland!E106 -> 0 | F106: =Nagaland!F106 -> 0 | G106: =Nagaland!G106 -> 0 | H106: =Nagaland!H106 -> 0 | I106: =Nagaland!L106 -> 0 | J106: =Nagaland!O106 -> 0 | K106: =Nagaland!P106 -> 0 | L106: =Nagaland!Q106 -> 0 | M106: =Nagaland!R106 -> 0 | N106: =Nagaland!S106 -> 0 | O106: =Nagaland!U106 -> 0 | P106: =Nagaland!X106 -> 0 | Q106: =Nagaland!Y106 -> 0 | R106: =Nagaland!Z106 -> 0 | S106: =Nagaland!AA106 -> 0 | T106: =Nagaland!AB106 -> 0 | U106: =Nagaland!AC106 -> 0
A107: 3.15 | B107: Capacity Building @ Rs 500/- per child per annum | C107: =Nagaland!C107 -> 0 | D107: =Nagaland!D107 -> 0 | E107: =Nagaland!E107 -> 0 | F107: =Nagaland!F107 -> 0 | G107: =Nagaland!G107 -> 0 | H107: =Nagaland!H107 -> 0 | I107: =Nagaland!L107 -> 0 | J107: =Nagaland!O107 -> 0 | K107: =Nagaland!P107 -> 0 | L107: =Nagaland!Q107 -> 0 | M107: =Nagaland!R107 -> 0 | N107: =Nagaland!S107 -> 0 | O107: =Nagaland!U107 -> 0 | P107: =Nagaland!X107 -> 0 | Q107: =Nagaland!Y107 -> 0 | R107: =Nagaland!Z107 -> 0 | S107: =Nagaland!AA107 -> 0 | T107: =Nagaland!AB107 -> 0 | U107: =Nagaland!AC107 -> 0
A108: 3.16 | B108: Physical / Self Defence training @ Rs 200/- per child per annum | C108: =Nagaland!C108 -> 0 | D108: =Nagaland!D108 -> 0 | E108: =Nagaland!E108 -> 0 | F108: =Nagaland!F108 -> 0 | G108: =Nagaland!G108 -> 0 | H108: =Nagaland!H108 -> 0 | I108: =Nagaland!L108 -> 0 | J108: =Nagaland!O108 -> 0 | K108: =Nagaland!P108 -> 0 | L108: =Nagaland!Q108 -> 0 | M108: =Nagaland!R108 -> 0 | N108: =Nagaland!S108 -> 0 | O108: =Nagaland!U108 -> 0 | P108: =Nagaland!X108 -> 0 | Q108: =Nagaland!Y108 -> 0 | R108: =Nagaland!Z108 -> 0 | S108: =Nagaland!AA108 -> 0 | T108: =Nagaland!AB108 -> 0 | U108: =Nagaland!AC108 -> 0
B109: Sub Total (Recurring) | C109: =Nagaland!C109 -> 0 | D109: =Nagaland!D109 -> 0 | E109: =Nagaland!E109 -> 0 | F109: =Nagaland!F109 -> 0 | G109: =Nagaland!G109 -> 0 | H109: =Nagaland!H109 -> 0 | I109: =Nagaland!L109 -> 0 | J109: =Nagaland!O109 -> 0 | K109: =Nagaland!P109 -> 0 | L109: =Nagaland!Q109 -> 0 | M109: =Nagaland!R109 -> 0 | N109: =Nagaland!S109 -> 0 | O109: =Nagaland!U109 -> 0 | P109: =Nagaland!X109 -> 0 | Q109: =Nagaland!Y109 -> 0 | R109: =Nagaland!Z109 -> 0 | S109: =Nagaland!AA109 -> 0 | T109: =Nagaland!AB109 -> 0 | U109: =Nagaland!AC109 -> 0
B110: Total (Non Recurring + Recurring) | C110: =Nagaland!C110 -> 0 | D110: =Nagaland!D110 -> 0 | E110: =Nagaland!E110 -> 0 | F110: =Nagaland!F110 -> 0 | G110: =Nagaland!G110 -> 0 | H110: =Nagaland!H110 -> 0 | I110: =Nagaland!L110 -> 0 | J110: =Nagaland!O110 -> 0 | K110: =Nagaland!P110 -> 0 | L110: =Nagaland!Q110 -> 0 | M110: =Nagaland!R110 -> 0 | N110: =Nagaland!S110 -> 0 | O110: =Nagaland!U110 -> 0 | P110: =Nagaland!X110 -> 0 | Q110: =Nagaland!Y110 -> 0 | R110: =Nagaland!Z110 -> 0 | S110: =Nagaland!AA110 -> 0 | T110: =Nagaland!AB110 -> 0 | U110: =Nagaland!AC110 -> 0
A111: (B) | B111: 100 Children | C111: =Nagaland!C111 -> 0 | D111: =Nagaland!D111 -> 0 | E111: =Nagaland!E111 -> 0 | F111: =Nagaland!F111 -> 0 | G111: =Nagaland!G111 -> 0 | H111: =Nagaland!H111 -> 0 | I111: =Nagaland!L111 -> 0 | J111: =Nagaland!O111 -> 0 | K111: =Nagaland!P111 -> 0 | L111: =Nagaland!Q111 -> 0 | M111: =Nagaland!R111 -> 0 | N111: =Nagaland!S111 -> 0 | O111: =Nagaland!U111 -> 0 | P111: =Nagaland!X111 -> 0 | Q111: =Nagaland!Y111 -> 0 | R111: =Nagaland!Z111 -> 0 | S111: =Nagaland!AA111 -> 0 | T111: =Nagaland!AB111 -> 0 | U111: =Nagaland!AC111 -> 0
B112: Non-recurring (one time grant) | C112: =Nagaland!C112 -> 0 | D112: =Nagaland!D112 -> 0 | E112: =Nagaland!E112 -> 0 | F112: =Nagaland!F112 -> 0 | G112: =Nagaland!G112 -> 0 | H112: =Nagaland!H112 -> 0 | I112: =Nagaland!L112 -> 0 | J112: =Nagaland!O112 -> 0 | K112: =Nagaland!P112 -> 0 | L112: =Nagaland!Q112 -> 0 | M112: =Nagaland!R112 -> 0 | N112: =Nagaland!S112 -> 0 | O112: =Nagaland!U112 -> 0 | P112: =Nagaland!X112 -> 0 | Q112: =Nagaland!Y112 -> 0 | R112: =Nagaland!Z112 -> 0 | S112: =Nagaland!AA112 -> 0 | T112: =Nagaland!AB112 -> 0 | U112: =Nagaland!AC112 -> 0
A113: 3.17 | B113: Furniture / Equipment (including kitchen equipment) | C113: =Nagaland!C113 -> 6 | D113: =Nagaland!D113 -> 18 | E113: =Nagaland!E113 -> 0 | F113: =Nagaland!F113 -> 0 | G113: =Nagaland!G113 -> 0 | H113: =Nagaland!H113 -> 0 | I113: =Nagaland!L113 -> 15 | J113: =Nagaland!O113 -> 2.5 | K113: =Nagaland!P113 -> 5 | L113: =Nagaland!Q113 -> 12.5 | M113: =Nagaland!R113 -> 11 | N113: =Nagaland!S113 -> 27.5 | O113: =Nagaland!U113 -> 15 | P113: =Nagaland!X113 -> 2.5 | Q113: =Nagaland!Y113 -> 5 | R113: =Nagaland!Z113 -> 12.5 | S113: =Nagaland!AA113 -> 11 | T113: =Nagaland!AB113 -> 27.5 | U113: =Nagaland!AC113 -> Recommended as proposed with 5 new hostels with a capacity of 50 each
A114: =+A113+0.01 -> 3.18 | B114: TLM and equipment including library books (New) | C114: =Nagaland!C114 -> 0 | D114: =Nagaland!D114 -> 0 | E114: =Nagaland!E114 -> 0 | F114: =Nagaland!F114 -> 0 | G114: =Nagaland!G114 -> 0 | H114: =Nagaland!H114 -> 0 | I114: =Nagaland!L114 -> 0 | J114: =Nagaland!O114 -> 3 | K114: =Nagaland!P114 -> 11 | L114: =Nagaland!Q114 -> 33 | M114: =Nagaland!R114 -> 11 | N114: =Nagaland!S114 -> 33 | O114: =Nagaland!U114 -> 0 | P114: =Nagaland!X114 -> 3 | Q114: =Nagaland!Y114 -> 11 | R114: =Nagaland!Z114 -> 33 | S114: =Nagaland!AA114 -> 11 | T114: =Nagaland!AB114 -> 33 | U114: =Nagaland!AC114 -> Recommended as proposed
A115: 3.19 | B115: Bedding (New) | C115: =Nagaland!C115 -> 6 | D115: =Nagaland!D115 -> 4.5 | E115: =Nagaland!E115 -> 0 | F115: =Nagaland!F115 -> 0 | G115: =Nagaland!G115 -> 0 | H115: =Nagaland!H115 -> 0 | I115: =Nagaland!L115 -> 2.25 | J115: =Nagaland!O115 -> 0.375 | K115: =Nagaland!P115 -> 5 | L115: =Nagaland!Q115 -> 1.875 | M115: =Nagaland!R115 -> 5 | N115: =Nagaland!S115 -> 4.125 | O115: =Nagaland!U115 -> 2.25 | P115: =Nagaland!X115 -> 0.375 | Q115: =Nagaland!Y115 -> 5 | R115: =Nagaland!Z115 -> 1.875 | S115: =Nagaland!AA115 -> 5 | T115: =Nagaland!AB115 -> 4.125 | U115: =Nagaland!AC115 -> Recommended as proposed
A116: 3.2 | B116: Replacement of bedding (once in 3 years) | C116: =Nagaland!C116 -> 0 | D116: =Nagaland!D116 -> 0 | E116: =Nagaland!E116 -> 0 | F116: =Nagaland!F116 -> 0 | G116: =Nagaland!G116 -> 0 | H116: =Nagaland!H116 -> 0 | I116: =Nagaland!L116 -> 0 | J116: =Nagaland!O116 -> 0 | K116: =Nagaland!P116 -> 0 | L116: =Nagaland!Q116 -> 0 | M116: =Nagaland!R116 -> 0 | N116: =Nagaland!S116 -> 0 | O116: =Nagaland!U116 -> 0 | P116: =Nagaland!X116 -> 0 | Q116: =Nagaland!Y116 -> 0 | R116: =Nagaland!Z116 -> 0 | S116: =Nagaland!AA116 -> 0 | T116: =Nagaland!AB116 -> 0 | U116: =Nagaland!AC116 -> 0
B117: Sub Total Non-recurring | C117: =Nagaland!C117 -> 6 | D117: =Nagaland!D117 -> 22.5 | E117: =Nagaland!E117 -> 0 | F117: =Nagaland!F117 -> 0 | G117: =Nagaland!G117 -> 0 | H117: =Nagaland!H117 -> 0 | I117: =Nagaland!L117 -> 17.25 | J117: =Nagaland!O117 -> 0 | K117: =Nagaland!P117 -> 11 | L117: =Nagaland!Q117 -> 47.375 | M117: =Nagaland!R117 -> 11 | N117: =Nagaland!S117 -> 64.625 | O117: =Nagaland!U117 -> 17.25 | P117: =Nagaland!X117 -> 0 | Q117: =Nagaland!Y117 -> 11 | R117: =Nagaland!Z117 -> 47.375 | S117: =Nagaland!AA117 -> 11 | T117: =Nagaland!AB117 -> 64.625 | U117: =Nagaland!AC117 -> 0
B118: Recurring | C118: =Nagaland!C118 -> 0 | D118: =Nagaland!D118 -> 0 | E118: =Nagaland!E118 -> 0 | F118: =Nagaland!F118 -> 0 | G118: =Nagaland!G118 -> 0 | H118: =Nagaland!H118 -> 0 | I118: =Nagaland!L118 -> 0 | J118: =Nagaland!O118 -> 0 | K118: =Nagaland!P118 -> 0 | L118: =Nagaland!Q118 -> 0 | M118: =Nagaland!R118 -> 0 | N118: =Nagaland!S118 -> 0 | O118: =Nagaland!U118 -> 0 | P118: =Nagaland!X118 -> 0 | Q118: =Nagaland!Y118 -> 0 | R118: =Nagaland!Z118 -> 0 | S118: =Nagaland!AA118 -> 0 | T118: =Nagaland!AB118 -> 0 | U118: =Nagaland!AC118 -> 0
A119: 3.21 | B119: Maintenance per child Per month @ Rs.1500/- | C119: =Nagaland!C119 -> 6 | D119: =Nagaland!D119 -> 54 | E119: =Nagaland!E119 -> 0 | F119: =Nagaland!F119 -> 1.86 | G119: =E119/C119 -> 0 | H119: =F119/D119 -> 0.03444444444 | I119: =Nagaland!L119 -> 0 | J119: =Nagaland!O119 -> 9 | K119: =Nagaland!P119 -> 11 | L119: =Nagaland!Q119 -> 99 | M119: =Nagaland!R119 -> 11 | N119: =Nagaland!S119 -> 99 | O119: =Nagaland!U119 -> 0 | P119: =Nagaland!X119 -> 9 | Q119: =Nagaland!Y119 -> 11 | R119: =Nagaland!Z119 -> 99 | S119: =Nagaland!AA119 -> 11 | T119: =Nagaland!AB119 -> 99 | U119: =Nagaland!AC119 -> Recommended as proposed
A120: =+A119+0.01 -> 3.22 | B120: Stipend per child per month @ Rs.100/- | C120: =Nagaland!C120 -> 6 | D120: =Nagaland!D120 -> 3.6 | E120: =Nagaland!E120 -> 0 | F120: =Nagaland!F120 -> 0.12 | G120: =E120/C120 -> 0 | H120: =F120/D120 -> 0.03333333333 | I120: =Nagaland!L120 -> 0 | J120: =Nagaland!O120 -> 0.6 | K120: =Nagaland!P120 -> 11 | L120: =Nagaland!Q120 -> 6.6 | M120: =Nagaland!R120 -> 11 | N120: =Nagaland!S120 -> 6.6 | O120: =Nagaland!U120 -> 0 | P120: =Nagaland!X120 -> 0.6 | Q120: =Nagaland!Y120 -> 11 | R120: =Nagaland!Z120 -> 6.6 | S120: =Nagaland!AA120 -> 11 | T120: =Nagaland!AB120 -> 6.6 | U120: =Nagaland!AC120 -> Recommended as proposed
A121: 3.23 | B121: Supplementary TLM, Stationery and other educational material @Rs.1000/- per child per annum | C121: =Nagaland!C121 -> 0 | D121: =Nagaland!D121 -> 0 | E121: =Nagaland!E121 -> 0 | F121: =Nagaland!F121 -> 0 | G121: =Nagaland!G121 -> 0 | H121: =Nagaland!H121 -> 0 | I121: =Nagaland!L121 -> 0 | J121: =Nagaland!O121 -> 0.5 | K121: =Nagaland!P121 -> 11 | L121: =Nagaland!Q121 -> 5.5 | M121: =Nagaland!R121 -> 11 | N121: =Nagaland!S121 -> 5.5 | O121: =Nagaland!U121 -> 0 | P121: =Nagaland!X121 -> 0.5 | Q121: =Nagaland!Y121 -> 11 | R121: =Nagaland!Z121 -> 5.5 | S121: =Nagaland!AA121 -> 11 | T121: =Nagaland!AB121 -> 5.5 | U121: =Nagaland!AC121 -> Recommended as proposed
A122: (a) | B122: Salaries | C122: =Nagaland!C122 -> 6 | D122: =Nagaland!D122 -> 0 | E122: =Nagaland!E122 -> 0 | F122: =Nagaland!F122 -> 0 | G122: =Nagaland!G122 -> 0 | H122: =Nagaland!H122 -> 0 | I122: =Nagaland!L122 -> 0 | J122: =Nagaland!O122 -> 0 | K122: =Nagaland!P122 -> 0 | L122: =Nagaland!Q122 -> 0 | M122: =Nagaland!R122 -> 0 | N122: =Nagaland!S122 -> 0 | O122: =Nagaland!U122 -> 0 | P122: =Nagaland!X122 -> 0 | Q122: =Nagaland!Y122 -> 0 | R122: =Nagaland!Z122 -> 0 | S122: =Nagaland!AA122 -> 0 | T122: =Nagaland!AB122 -> 0 | U122: =Nagaland!AC122 -> 0
A123: (b) | B123: 1 Warden @ Rs. 25,000/- per month | C123: =Nagaland!C123 -> 6 | D123: =Nagaland!D123 -> 18 | E123: =Nagaland!E123 -> 1 | F123: =Nagaland!F123 -> 1 | G123: =E123/C123 -> 0.1666666667 | H123: =F123/D123 -> 0.05555555556 | I123: =Nagaland!L123 -> 0 | J123: =Nagaland!O123 -> 3 | K123: =Nagaland!P123 -> 11 | L123: =Nagaland!Q123 -> 33 | M123: =Nagaland!R123 -> 11 | N123: =Nagaland!S123 -> 33 | O123: =Nagaland!U123 -> 0 | P123: =Nagaland!X123 -> 3 | Q123: =Nagaland!Y123 -> 11 | R123: =Nagaland!Z123 -> 33 | S123: =Nagaland!AA123 -> 11 | T123: =Nagaland!AB123 -> 33 | U123: =Nagaland!AC123 -> Recommended as proposed
A124: (c) | B124: 2 Urdu Teachers (only for blocks with muslim population above 20% and select urban areas). If required @ Rs 12000/- per month per teacher | C124: =Nagaland!C124 -> 6 | D124: =Nagaland!D124 -> 0 | E124: =Nagaland!E124 -> 0 | F124: =Nagaland!F124 -> 0 | G124: =Nagaland!G124 -> 0 | H124: =Nagaland!H124 -> 0 | I124: =Nagaland!L124 -> 0 | J124: =Nagaland!O124 -> 0 | K124: =Nagaland!P124 -> 0 | L124: =Nagaland!Q124 -> 0 | M124: =Nagaland!R124 -> 0 | N124: =Nagaland!S124 -> 0 | O124: =Nagaland!U124 -> 0 | P124: =Nagaland!X124 -> 0 | Q124: =Nagaland!Y124 -> 0 | R124: =Nagaland!Z124 -> 0 | S124: =Nagaland!AA124 -> 0 | T124: =Nagaland!AB124 -> 0 | U124: =Nagaland!AC124 -> 0
A125: (d) | B125: 3 Part time teachers @ Rs 5000/- per month per teacher | C125: =Nagaland!C125 -> 6 | D125: =Nagaland!D125 -> 10.8 | E125: =Nagaland!E125 -> 0 | F125: =Nagaland!F125 -> 0.4 | G125: =E125/C125 -> 0 | H125: 0.03703703704 | I125: =Nagaland!L125 -> 0 | J125: =Nagaland!O125 -> 1.8 | K125: =Nagaland!P125 -> 11 | L125: =Nagaland!Q125 -> 19.8 | M125: =Nagaland!R125 -> 11 | N125: =Nagaland!S125 -> 19.8 | O125: =Nagaland!U125 -> 0 | P125: =Nagaland!X125 -> 1.8 | Q125: =Nagaland!Y125 -> 11 | R125: =Nagaland!Z125 -> 19.8 | S125: =Nagaland!AA125 -> 11 | T125: =Nagaland!AB125 -> 19.8 | U125: =Nagaland!AC125 -> Recommended as proposed
A126: (e) | B126: 1 Full time Accountant @ Rs 10000/- per month | C126: =Nagaland!C126 -> 6 | D126: =Nagaland!D126 -> 7.2 | E126: =Nagaland!E126 -> 0 | F126: =Nagaland!F126 -> 0 | G126: 0 | H126: 0 | I126: =Nagaland!L126 -> 0 | J126: =Nagaland!O126 -> 1.2 | K126: =Nagaland!P126 -> 11 | L126: =Nagaland!Q126 -> 13.2 | M126: =Nagaland!R126 -> 11 | N126: =Nagaland!S126 -> 13.2 | O126: =Nagaland!U126 -> 0 | P126: =Nagaland!X126 -> 1.2 | Q126: =Nagaland!Y126 -> 11 | R126: =Nagaland!Z126 -> 13.2 | S126: =Nagaland!AA126 -> 11 | T126: =Nagaland!AB126 -> 13.2 | U126: =Nagaland!AC126 -> Recommended as proposed
A127: (f) | B127: 2 Support Staff - (Accountant / Assistant, Peon, Chowkidar) @ Rs 5000/- per month per staff | C127: =Nagaland!C127 -> 6 | D127: =Nagaland!D127 -> 7.2 | E127: =Nagaland!E127 -> 0 | F127: =Nagaland!F127 -> 0.2 | G127: 0 | H127: 0.02777777778 | I127: =Nagaland!L127 -> 0 | J127: =Nagaland!O127 -> 1.2 | K127: =Nagaland!P127 -> 11 | L127: =Nagaland!Q127 -> 13.2 | M127: =Nagaland!R127 -> 11 | N127: =Nagaland!S127 -> 13.2 | O127: =Nagaland!U127 -> 0 | P127: =Nagaland!X127 -> 1.2 | Q127: =Nagaland!Y127 -> 11 | R127: =Nagaland!Z127 -> 13.2 | S127: =Nagaland!AA127 -> 11 | T127: =Nagaland!AB127 -> 13.2 | U127: =Nagaland!AC127 -> Recommended as proposed
A128: (g) | B128: 1 Head cook @ Rs 6000/- per month and upto 2 Assistant cooks @ Rs 4500/- per month per cook | C128: =Nagaland!C128 -> 6 | D128: =Nagaland!D128 -> 10.8 | E128: =Nagaland!E128 -> 0 | F128: =Nagaland!F128 -> 0.36 | G128: 0 | H128: 0.03333333333 | I128: =Nagaland!L128 -> 0 | J128: =Nagaland!O128 -> 1.8 | K128: =Nagaland!P128 -> 11 | L128: =Nagaland!Q128 -> 19.8 | M128: =Nagaland!R128 -> 11 | N128: =Nagaland!S128 -> 19.8 | O128: =Nagaland!U128 -> 0 | P128: =Nagaland!X128 -> 1.8 | Q128: =Nagaland!Y128 -> 11 | R128: =Nagaland!Z128 -> 19.8 | S128: =Nagaland!AA128 -> 11 | T128: =Nagaland!AB128 -> 19.8 | U128: =Nagaland!AC128 -> Recommended as proposed
A129: 3.24 | B129: Specific skill training per child @ Rs 1000/- per annum | C129: =Nagaland!C129 -> 0 | D129: =Nagaland!D129 -> 0 | E129: =Nagaland!E129 -> 0 | F129: =Nagaland!F129 -> 0 | G129: =Nagaland!G129 -> 0 | H129: =Nagaland!H129 -> 0 | I129: =Nagaland!L129 -> 0 | J129: =Nagaland!O129 -> 0.5 | K129: =Nagaland!P129 -> 11 | L129: =Nagaland!Q129 -> 5.5 | M129: =Nagaland!R129 -> 11 | N129: =Nagaland!S129 -> 5.5 | O129: =Nagaland!U129 -> 0 | P129: =Nagaland!X129 -> 0.5 | Q129: =Nagaland!Y129 -> 11 | R129: =Nagaland!Z129 -> 5.5 | S129: =Nagaland!AA129 -> 11 | T129: =Nagaland!AB129 -> 5.5 | U129: =Nagaland!AC129 -> Recommended as proposed
A130: =+A129+0.01 -> 3.25 | B130: Electricity / Water charges per child @ Rs 1000/- per annum | C130: =Nagaland!C130 -> 6 | D130: =Nagaland!D130 -> 3 | E130: =Nagaland!E130 -> 0 | F130: =Nagaland!F130 -> 0 | G130: =E130/C130 -> 0 | H130: 0 | I130: =Nagaland!L130 -> 0 | J130: =Nagaland!O130 -> 0.5 | K130: =Nagaland!P130 -> 11 | L130: =Nagaland!Q130 -> 5.5 | M130: =Nagaland!R130 -> 11 | N130: =Nagaland!S130 -> 5.5 | O130: =Nagaland!U130 -> 0 | P130: =Nagaland!X130 -> 0.5 | Q130: =Nagaland!Y130 -> 11 | R130: =Nagaland!Z130 -> 5.5 | S130: =Nagaland!AA130 -> 11 | T130: =Nagaland!AB130 -> 5.5 | U130: =Nagaland!AC130 -> Recommended as proposed
A131: 3.26 | B131: Medical care/contingencies @ Rs.1250/- per child per annum | C131: =Nagaland!C131 -> 6 | D131: =Nagaland!D131 -> 3.75 | E131: =Nagaland!E131 -> 0 | F131: =Nagaland!F131 -> 0.2 | G131: 0 | H131: 0.05333333333 | I131: =Nagaland!L131 -> 0 | J131: =Nagaland!O131 -> 0.625 | K131: =Nagaland!P131 -> 11 | L131: =Nagaland!Q131 -> 6.875 | M131: =Nagaland!R131 -> 11 | N131: =Nagaland!S131 -> 6.875 | O131: =Nagaland!U131 -> 0 | P131: =Nagaland!X131 -> 0.625 | Q131: =Nagaland!Y131 -> 11 | R131: =Nagaland!Z131 -> 6.875 | S131: =Nagaland!AA131 -> 11 | T131: =Nagaland!AB131 -> 6.875 | U131: =Nagaland!AC131 -> Recommended as proposed
A132: 3.27 | B132: Maintenance @ Rs 750/- per child per annum | C132: =Nagaland!C132 -> 6 | D132: =Nagaland!D132 -> 2.25 | E132: =Nagaland!E132 -> 0 | F132: =Nagaland!F132 -> 0.15 | G132: 0 | H132: 0.06666666667 | I132: =Nagaland!L132 -> 0 | J132: =Nagaland!O132 -> 0.375 | K132: =Nagaland!P132 -> 11 | L132: =Nagaland!Q132 -> 4.125 | M132: =Nagaland!R132 -> 11 | N132: =Nagaland!S132 -> 4.125 | O132: =Nagaland!U132 -> 0 | P132: =Nagaland!X132 -> 0.375 | Q132: =Nagaland!Y132 -> 11 | R132: =Nagaland!Z132 -> 4.125 | S132: =Nagaland!AA132 -> 11 | T132: =Nagaland!AB132 -> 4.125 | U132: =Nagaland!AC132 -> Recommended as proposed
A133: 3.28 | B133: Miscellaneous @ Rs 750/- per child per annum | C133: =Nagaland!C133 -> 6 | D133: =Nagaland!D133 -> 2.25 | E133: =Nagaland!E133 -> 0 | F133: =Nagaland!F133 -> 0.15 | G133: 0 | H133: 0.06666666667 | I133: =Nagaland!L133 -> 0 | J133: =Nagaland!O133 -> 0.375 | K133: =Nagaland!P133 -> 11 | L133: =Nagaland!Q133 -> 4.125 | M133: =Nagaland!R133 -> 11 | N133: =Nagaland!S133 -> 4.125 | O133: =Nagaland!U133 -> 0 | P133: =Nagaland!X133 -> 0.375 | Q133: =Nagaland!Y133 -> 11 | R133: =Nagaland!Z133 -> 4.125 | S133: =Nagaland!AA133 -> 11 | T133: =Nagaland!AB133 -> 4.125 | U133: =Nagaland!AC133 -> Recommended as proposed
A134: 3.29 | B134: Preparatory camp @ Rs 300/- per child per annum | C134: =Nagaland!C134 -> 0 | D134: =Nagaland!D134 -> 0 | E134: =Nagaland!E134 -> 0 | F134: =Nagaland!F134 -> 0 | G134: =Nagaland!G134 -> 0 | H134: =Nagaland!H134 -> 0 | I134: =Nagaland!L134 -> 0 | J134: =Nagaland!O134 -> 0.15 | K134: =Nagaland!P134 -> 11 | L134: =Nagaland!Q134 -> 1.65 | M134: =Nagaland!R134 -> 11 | N134: =Nagaland!S134 -> 1.65 | O134: =Nagaland!U134 -> 0 | P134: =Nagaland!X134 -> 0.15 | Q134: =Nagaland!Y134 -> 11 | R134: =Nagaland!Z134 -> 1.65 | S134: =Nagaland!AA134 -> 11 | T134: =Nagaland!AB134 -> 1.65 | U134: =Nagaland!AC134 -> Recommended as proposed
A135: 3.3 | B135: P.T.A / school functions @ Rs 300/- per child per annum | C135: =Nagaland!C135 -> 0 | D135: =Nagaland!D135 -> 0 | E135: =Nagaland!E135 -> 0 | F135: =Nagaland!F135 -> 0 | G135: =Nagaland!G135 -> 0 | H135: =Nagaland!H135 -> 0 | I135: =Nagaland!L135 -> 0 | J135: =Nagaland!O135 -> 0.15 | K135: =Nagaland!P135 -> 11 | L135: =Nagaland!Q135 -> 1.65 | M135: =Nagaland!R135 -> 11 | N135: =Nagaland!S135 -> 1.65 | O135: =Nagaland!U135 -> 0 | P135: =Nagaland!X135 -> 0.15 | Q135: =Nagaland!Y135 -> 11 | R135: =Nagaland!Z135 -> 1.65 | S135: =Nagaland!AA135 -> 11 | T135: =Nagaland!AB135 -> 1.65 | U135: =Nagaland!AC135 -> Recommended as proposed
A136: 3.31 | B136: Provision of rent @ Rs 10000/- per child per annum | C136: =Nagaland!C136 -> 5 | D136: =Nagaland!D136 -> 25 | E136: =Nagaland!E136 -> 0 | F136: =Nagaland!F136 -> 0 | G136: =Nagaland!G136 -> 0 | H136: =Nagaland!H136 -> 0 | I136: =Nagaland!L136 -> 0 | J136: =Nagaland!O136 -> 0 | K136: =Nagaland!P136 -> 10 | L136: =Nagaland!Q136 -> 50 | M136: =Nagaland!R136 -> 10 | N136: =Nagaland!S136 -> 50 | O136: =Nagaland!U136 -> 0 | P136: =Nagaland!X136 -> 5 | Q136: =Nagaland!Y136 -> 10 | R136: =Nagaland!Z136 -> 50 | S136: =Nagaland!AA136 -> 10 | T136: =Nagaland!AB136 -> 50 | U136: =Nagaland!AC136 -> Recommended as proposed
A137: 3.32 | B137: Capacity Building @ Rs 500/- per child per annum | C137: =Nagaland!C137 -> 0 | D137: =Nagaland!D137 -> 0 | E137: =Nagaland!E137 -> 0 | F137: =Nagaland!F137 -> 0 | G137: =E137/C137 ->  | H137: =F137/D137 ->  | I137: =Nagaland!L137 -> 0 | J137: =Nagaland!O137 -> 0.25 | K137: =Nagaland!P137 -> 11 | L137: =Nagaland!Q137 -> 2.75 | M137: =Nagaland!R137 -> 11 | N137: =Nagaland!S137 -> 2.75 | O137: =Nagaland!U137 -> 0 | P137: =Nagaland!X137 -> 0.25 | Q137: =Nagaland!Y137 -> 11 | R137: =Nagaland!Z137 -> 2.75 | S137: =Nagaland!AA137 -> 11 | T137: =Nagaland!AB137 -> 2.75 | U137: =Nagaland!AC137 -> Recommended as proposed
A138: 3.33 | B138: Physical / Self Defence training @ Rs 200/- per child per annum | C138: =Nagaland!C138 -> 0 | D138: =Nagaland!D138 -> 0 | E138: =Nagaland!E138 -> 0 | F138: =Nagaland!F138 -> 0 | G138: =Nagaland!G138 -> 0 | H138: =Nagaland!H138 -> 0 | I138: =Nagaland!L138 -> 0 | J138: =Nagaland!O138 -> 0.1 | K138: =Nagaland!P138 -> 11 | L138: =Nagaland!Q138 -> 1.1 | M138: =Nagaland!R138 -> 11 | N138: =Nagaland!S138 -> 1.1 | O138: =Nagaland!U138 -> 0 | P138: =Nagaland!X138 -> 0.1 | Q138: =Nagaland!Y138 -> 11 | R138: =Nagaland!Z138 -> 1.1 | S138: =Nagaland!AA138 -> 11 | T138: =Nagaland!AB138 -> 1.1 | U138: =Nagaland!AC138 -> Recommended as proposed
B139: Sub Total (Recurring) | C139: =Nagaland!C139 -> 6 | D139: =Nagaland!D139 -> 147.85 | E139: =Nagaland!E139 -> 0 | F139: =Nagaland!F139 -> 4.44 | G139: =E139/C139 -> 0 | H139: =F139/D139 -> 0.03003043625 | I139: =Nagaland!L139 -> 0 | J139: =Nagaland!O139 -> 0 | K139: =Nagaland!P139 -> 11 | L139: =Nagaland!Q139 -> 293.375 | M139: =Nagaland!R139 -> 11 | N139: =Nagaland!S139 -> 293.375 | O139: =Nagaland!U139 -> 0 | P139: =Nagaland!X139 -> 0 | Q139: =Nagaland!Y139 -> 11 | R139: =Nagaland!Z139 -> 293.375 | S139: =Nagaland!AA139 -> 11 | T139: =Nagaland!AB139 -> 293.375 | U139: =Nagaland!AC139 -> 0
B140: Total (Recurring + Non Recurring) | C140: =Nagaland!C140 -> 6 | D140: =Nagaland!D140 -> 170.35 | E140: =Nagaland!E140 -> 0 | F140: =Nagaland!F140 -> 4.44 | G140: 0 | H140: 0.02606398591 | I140: =Nagaland!L140 -> 17.25 | J140: =Nagaland!O140 -> 0 | K140: =Nagaland!P140 -> 11 | L140: =Nagaland!Q140 -> 340.75 | M140: =Nagaland!R140 -> 11 | N140: =Nagaland!S140 -> 358 | O140: =Nagaland!U140 -> 17.25 | P140: =Nagaland!X140 -> 0 | Q140: =Nagaland!Y140 -> 11 | R140: =Nagaland!Z140 -> 340.75 | S140: =Nagaland!AA140 -> 11 | T140: =Nagaland!AB140 -> 358 | U140: =Nagaland!AC140 -> 0
B141: Total (A + B) | C141: =Nagaland!C141 -> 6 | D141: =Nagaland!D141 -> 170.35 | E141: =Nagaland!E141 -> 0 | F141: =Nagaland!F141 -> 4.44 | G141: 0 | H141: 0.02606398591 | I141: =Nagaland!L141 -> 17.25 | J141: =Nagaland!O141 -> 0 | K141: =Nagaland!P141 -> 11 | L141: =Nagaland!Q141 -> 340.75 | M141: =Nagaland!R141 -> 11 | N141: =Nagaland!S141 -> 358 | O141: =Nagaland!U141 -> 17.25 | P141: =Nagaland!X141 -> 0 | Q141: =Nagaland!Y141 -> 11 | R141: =Nagaland!Z141 -> 340.75 | S141: =Nagaland!AA141 -> 11 | T141: =Nagaland!AB141 -> 358 | U141: =Nagaland!AC141 -> 0
A142: 4 | B142: Transport/Escort Facility | C142: =Nagaland!C142 -> 0 | D142: =Nagaland!D142 -> 0 | E142: =Nagaland!E142 -> 0 | F142: =Nagaland!F142 -> 0 | G142: =Nagaland!G142 -> 0 | H142: =Nagaland!H142 -> 0 | I142: =Nagaland!L142 -> 0 | J142: =Nagaland!O142 -> 0 | K142: =Nagaland!P142 -> 0 | L142: =Nagaland!Q142 -> 0 | M142: =Nagaland!R142 -> 0 | N142: =Nagaland!S142 -> 0 | O142: =Nagaland!U142 -> 0 | P142: =Nagaland!X142 -> 0 | Q142: =Nagaland!Y142 -> 0 | R142: =Nagaland!Z142 -> 0 | S142: =Nagaland!AA142 -> 0 | T142: =Nagaland!AB142 -> 0 | U142: =Nagaland!AC142 -> 0
A143: 4.01 | B143: Children in remote habitation | C143: =Nagaland!C143 -> 0 | D143: =Nagaland!D143 -> 0 | E143: =Nagaland!E143 -> 0 | F143: =Nagaland!F143 -> 0 | G143: =Nagaland!G143 -> 0 | H143: =Nagaland!H143 -> 0 | I143: =Nagaland!L143 -> 0 | J143: =Nagaland!O143 -> 0.03 | K143: =Nagaland!P143 -> 0 | L143: =Nagaland!Q143 -> 0 | M143: =Nagaland!R143 -> 0 | N143: =Nagaland!S143 -> 0 | O143: =Nagaland!U143 -> 0 | P143: =Nagaland!X143 -> 0.03 | Q143: =Nagaland!Y143 -> 0 | R143: =Nagaland!Z143 -> 0 | S143: =Nagaland!AA143 -> 0 | T143: =Nagaland!AB143 -> 0 | U143: =Nagaland!AC143 -> 0
A144: 4.02 | B144: Urban deprived children/children without adult protection | C144: =Nagaland!C144 -> 0 | D144: =Nagaland!D144 -> 0 | E144: =Nagaland!E144 -> 0 | F144: =Nagaland!F144 -> 0 | G144: =Nagaland!G144 -> 0 | H144: =Nagaland!H144 -> 0 | I144: =Nagaland!L144 -> 0 | J144: =Nagaland!O144 -> 0.03 | K144: =Nagaland!P144 -> 0 | L144: =Nagaland!Q144 -> 0 | M144: =Nagaland!R144 -> 0 | N144: =Nagaland!S144 -> 0 | O144: =Nagaland!U144 -> 0 | P144: =Nagaland!X144 -> 0.03 | Q144: =Nagaland!Y144 -> 0 | R144: =Nagaland!Z144 -> 0 | S144: =Nagaland!AA144 -> 0 | T144: =Nagaland!AB144 -> 0 | U144: =Nagaland!AC144 -> 0
B145: Sub Total | C145: =Nagaland!C145 -> 0 | D145: =Nagaland!D145 -> 0 | E145: =Nagaland!E145 -> 0 | F145: =Nagaland!F145 -> 0 | G145: =Nagaland!G145 -> 0 | H145: =Nagaland!H145 -> 0 | I145: =Nagaland!L145 -> 0 | J145: =Nagaland!O145 -> 0 | K145: =Nagaland!P145 -> 0 | L145: =Nagaland!Q145 -> 0 | M145: =Nagaland!R145 -> 0 | N145: =Nagaland!S145 -> 0 | O145: =Nagaland!U145 -> 0 | P145: =Nagaland!X145 -> 0 | Q145: =Nagaland!Y145 -> 0 | R145: =Nagaland!Z145 -> 0 | S145: =Nagaland!AA145 -> 0 | T145: =Nagaland!AB145 -> 0 | U145: =Nagaland!AC145 -> 0
A146: 5 | B146: Reimbursement of Fee against 25% admission under Section 12(1)(c) of RTE Act 2009 (Entry Level) subject to upper limit of 20% of AWP&B subject to guidelines issued by MHRD | C146: =Nagaland!C146 -> 0 | D146: =Nagaland!D146 -> 0 | E146: =Nagaland!E146 -> 0 | F146: =Nagaland!F146 -> 0 | G146: =Nagaland!G146 -> 0 | H146: =Nagaland!H146 -> 0 | I146: =Nagaland!L146 -> 0 | J146: =Nagaland!O146 -> 0 | K146: =Nagaland!P146 -> 0 | L146: =Nagaland!Q146 -> 0 | M146: =Nagaland!R146 -> 0 | N146: =Nagaland!S146 -> 0 | O146: =Nagaland!U146 -> 0 | P146: =Nagaland!X146 -> 0 | Q146: =Nagaland!Y146 -> 0 | R146: =Nagaland!Z146 -> 0 | S146: =Nagaland!AA146 -> 0 | T146: =Nagaland!AB146 -> 0 | U146: =Nagaland!AC146 -> 0
B147: Sub Total | C147: =Nagaland!C147 -> 0 | D147: =Nagaland!D147 -> 0 | E147: =Nagaland!E147 -> 0 | F147: =Nagaland!F147 -> 0 | G147: =Nagaland!G147 -> 0 | H147: =Nagaland!H147 -> 0 | I147: =Nagaland!L147 -> 0 | J147: =Nagaland!O147 -> 0 | K147: =Nagaland!P147 -> 0 | L147: =Nagaland!Q147 -> 0 | M147: =Nagaland!R147 -> 0 | N147: =Nagaland!S147 -> 0 | O147: =Nagaland!U147 -> 0 | P147: =Nagaland!X147 -> 0 | Q147: =Nagaland!Y147 -> 0 | R147: =Nagaland!Z147 -> 0 | S147: =Nagaland!AA147 -> 0 | T147: =Nagaland!AB147 -> 0 | U147: =Nagaland!AC147 -> 0
A148: =+A146+1 -> 6 | B148: Special Training for mainstreaming of out of school children | C148: =Nagaland!C148 -> 0 | D148: =Nagaland!D148 -> 0 | E148: =Nagaland!E148 -> 0 | F148: =Nagaland!F148 -> 0 | G148: =Nagaland!G148 -> 0 | H148: =Nagaland!H148 -> 0 | I148: =Nagaland!L148 -> 0 | J148: =Nagaland!O148 -> 0 | K148: =Nagaland!P148 -> 0 | L148: =Nagaland!Q148 -> 0 | M148: =Nagaland!R148 -> 0 | N148: =Nagaland!S148 -> 0 | O148: =Nagaland!U148 -> 0 | P148: =Nagaland!X148 -> 0 | Q148: =Nagaland!Y148 -> 0 | R148: =Nagaland!Z148 -> 0 | S148: =Nagaland!AA148 -> 0 | T148: =Nagaland!AB148 -> 0 | U148: =Nagaland!AC148 -> 0
A149: 6.01 | B149: Residential (Fresh) | C149: =Nagaland!C149 -> 0 | D149: =Nagaland!D149 -> 0 | E149: =Nagaland!E149 -> 0 | F149: =Nagaland!F149 -> 0 | G149: =Nagaland!G149 -> 0 | H149: =Nagaland!H149 -> 0 | I149: =Nagaland!L149 -> 0 | J149: =Nagaland!O149 -> 0 | K149: =Nagaland!P149 -> 0 | L149: =Nagaland!Q149 -> 0 | M149: =Nagaland!R149 -> 0 | N149: =Nagaland!S149 -> 0 | O149: =Nagaland!U149 -> 0 | P149: =Nagaland!X149 -> 0 | Q149: =Nagaland!Y149 -> 0 | R149: =Nagaland!Z149 -> 0 | S149: =Nagaland!AA149 -> 0 | T149: =Nagaland!AB149 -> 0 | U149: =Nagaland!AC149 -> 0
B150: (a) 12 months | C150: =Nagaland!C150 -> 0 | D150: =Nagaland!D150 -> 0 | E150: =Nagaland!E150 -> 0 | F150: =Nagaland!F150 -> 0 | G150: =Nagaland!G150 -> 0 | H150: =Nagaland!H150 -> 0 | I150: =Nagaland!L150 -> 0 | J150: =Nagaland!O150 -> 0.2 | K150: =Nagaland!P150 -> 0 | L150: =Nagaland!Q150 -> 0 | M150: =Nagaland!R150 -> 0 | N150: =Nagaland!S150 -> 0 | O150: =Nagaland!U150 -> 0 | P150: =Nagaland!X150 -> 0 | Q150: =Nagaland!Y150 -> 0 | R150: =Nagaland!Z150 -> 0 | S150: =Nagaland!AA150 -> 0 | T150: =Nagaland!AB150 -> 0 | U150: =Nagaland!AC150 -> 0
B151: (b) 9 months | C151: =Nagaland!C151 -> 3938 | D151: =Nagaland!D151 -> 590.7 | E151: =Nagaland!E151 -> 0 | F151: =Nagaland!F151 -> 0 | G151: =E151/C151 -> 0 | H151: =F151/D151 -> 0 | I151: =Nagaland!L151 -> 0 | J151: =Nagaland!O151 -> 0.15 | K151: =Nagaland!P151 -> 2355 | L151: =Nagaland!Q151 -> 353.25 | M151: =Nagaland!R151 -> 2355 | N151: =Nagaland!S151 -> 353.25 | O151: =Nagaland!U151 -> 0 | P151: =Nagaland!X151 -> 0.15 | Q151: =Nagaland!Y151 -> 2355 | R151: =Nagaland!Z151 -> 353.25 | S151: =Nagaland!AA151 -> 2355 | T151: =Nagaland!AB151 -> 353.25 | U151: =Nagaland!AC151 -> Recommended as proposed | V151: =Q151*P151 -> 353.25
B152: (c) 6 months | C152: =Nagaland!C152 -> 0 | D152: =Nagaland!D152 -> 0 | E152: =Nagaland!E152 -> 0 | F152: =Nagaland!F152 -> 0 | G152: =Nagaland!G152 -> 0 | H152: =Nagaland!H152 -> 0 | I152: =Nagaland!L152 -> 0 | J152: =Nagaland!O152 -> 0.1 | K152: =Nagaland!P152 -> 0 | L152: =Nagaland!Q152 -> 0 | M152: =Nagaland!R152 -> 0 | N152: =Nagaland!S152 -> 0 | O152: =Nagaland!U152 -> 0 | P152: =Nagaland!X152 -> 0 | Q152: =Nagaland!Y152 -> 0 | R152: =Nagaland!Z152 -> 0 | S152: =Nagaland!AA152 -> 0 | T152: =Nagaland!AB152 -> 0 | U152: =Nagaland!AC152 -> 0
B153: (d) 3 months | C153: =Nagaland!C153 -> 0 | D153: =Nagaland!D153 -> 0 | E153: =Nagaland!E153 -> 0 | F153: =Nagaland!F153 -> 0 | G153: =Nagaland!G153 -> 0 | H153: =Nagaland!H153 -> 0 | I153: =Nagaland!L153 -> 0 | J153: =Nagaland!O153 -> 0.05 | K153: =Nagaland!P153 -> 0 | L153: =Nagaland!Q153 -> 0 | M153: =Nagaland!R153 -> 0 | N153: =Nagaland!S153 -> 0 | O153: =Nagaland!U153 -> 0 | P153: =Nagaland!X153 -> 0 | Q153: =Nagaland!Y153 -> 0 | R153: =Nagaland!Z153 -> 0 | S153: =Nagaland!AA153 -> 0 | T153: =Nagaland!AB153 -> 0 | U153: =Nagaland!AC153 -> 0
B154: Sub Total | C154: =Nagaland!C154 -> 3938 | D154: =Nagaland!D154 -> 590.7 | E154: =Nagaland!E154 -> 0 | F154: =Nagaland!F154 -> 0 | G154: =E154/C154 -> 0 | H154: =F154/D154 -> 0 | I154: =Nagaland!L154 -> 0 | J154: =Nagaland!O154 -> 0 | K154: =Nagaland!P154 -> 2355 | L154: =Nagaland!Q154 -> 353.25 | M154: =Nagaland!R154 -> 2355 | N154: =Nagaland!S154 -> 353.25 | O154: =Nagaland!U154 -> 0 | P154: =Nagaland!X154 -> 0 | Q154: =Nagaland!Y154 -> 2355 | R154: =Nagaland!Z154 -> 353.25 | S154: =Nagaland!AA154 -> 2355 | T154: =Nagaland!AB154 -> 353.25 | U154: =Nagaland!AC154 -> 0
A155: =+A149+0.01 -> 6.02 | B155: Residential (Continuing from previous year) | C155: =Nagaland!C155 -> 0 | D155: =Nagaland!D155 -> 0 | E155: =Nagaland!E155 -> 0 | F155: =Nagaland!F155 -> 0 | G155: =Nagaland!G155 -> 0 | H155: =Nagaland!H155 -> 0 | I155: =Nagaland!L155 -> 0 | J155: =Nagaland!O155 -> 0 | K155: =Nagaland!P155 -> 0 | L155: =Nagaland!Q155 -> 0 | M155: =Nagaland!R155 -> 0 | N155: =Nagaland!S155 -> 0 | O155: =Nagaland!U155 -> 0 | P155: =Nagaland!X155 -> 0 | Q155: =Nagaland!Y155 -> 0 | R155: =Nagaland!Z155 -> 0 | S155: =Nagaland!AA155 -> 0 | T155: =Nagaland!AB155 -> 0 | U155: =Nagaland!AC155 -> 0
B156: (a) 12 months | C156: =Nagaland!C156 -> 0 | D156: =Nagaland!D156 -> 0 | E156: =Nagaland!E156 -> 0 | F156: =Nagaland!F156 -> 0 | G156: =Nagaland!G156 -> 0 | H156: =Nagaland!H156 -> 0 | I156: =Nagaland!L156 -> 0 | J156: =Nagaland!O156 -> 0.2 | K156: =Nagaland!P156 -> 0 | L156: =Nagaland!Q156 -> 0 | M156: =Nagaland!R156 -> 0 | N156: =Nagaland!S156 -> 0 | O156: =Nagaland!U156 -> 0 | P156: =Nagaland!X156 -> 0 | Q156: =Nagaland!Y156 -> 0 | R156: =Nagaland!Z156 -> 0 | S156: =Nagaland!AA156 -> 0 | T156: =Nagaland!AB156 -> 0 | U156: =Nagaland!AC156 -> 0
B157: (b) 9 months | C157: =Nagaland!C157 -> 0 | D157: =Nagaland!D157 -> 0 | E157: =Nagaland!E157 -> 0 | F157: =Nagaland!F157 -> 0 | G157: =Nagaland!G157 -> 0 | H157: =Nagaland!H157 -> 0 | I157: =Nagaland!L157 -> 0 | J157: =Nagaland!O157 -> 0.15 | K157: =Nagaland!P157 -> 0 | L157: =Nagaland!Q157 -> 0 | M157: =Nagaland!R157 -> 0 | N157: =Nagaland!S157 -> 0 | O157: =Nagaland!U157 -> 0 | P157: =Nagaland!X157 -> 0 | Q157: =Nagaland!Y157 -> 0 | R157: =Nagaland!Z157 -> 0 | S157: =Nagaland!AA157 -> 0 | T157: =Nagaland!AB157 -> 0 | U157: =Nagaland!AC157 -> 0
B158: (c) 6 months | C158: =Nagaland!C158 -> 0 | D158: =Nagaland!D158 -> 0 | E158: =Nagaland!E158 -> 0 | F158: =Nagaland!F158 -> 0 | G158: =Nagaland!G158 -> 0 | H158: =Nagaland!H158 -> 0 | I158: =Nagaland!L158 -> 0 | J158: =Nagaland!O158 -> 0.075 | K158: =Nagaland!P158 -> 0 | L158: =Nagaland!Q158 -> 0 | M158: =Nagaland!R158 -> 0 | N158: =Nagaland!S158 -> 0 | O158: =Nagaland!U158 -> 0 | P158: =Nagaland!X158 -> 0 | Q158: =Nagaland!Y158 -> 0 | R158: =Nagaland!Z158 -> 0 | S158: =Nagaland!AA158 -> 0 | T158: =Nagaland!AB158 -> 0 | U158: =Nagaland!AC158 -> 0
B159: (d) 3 months | C159: =Nagaland!C159 -> 0 | D159: =Nagaland!D159 -> 0 | E159: =Nagaland!E159 -> 0 | F159: =Nagaland!F159 -> 0 | G159: =Nagaland!G159 -> 0 | H159: =Nagaland!H159 -> 0 | I159: =Nagaland!L159 -> 0 | J159: =Nagaland!O159 -> 0.05 | K159: =Nagaland!P159 -> 0 | L159: =Nagaland!Q159 -> 0 | M159: =Nagaland!R159 -> 0 | N159: =Nagaland!S159 -> 0 | O159: =Nagaland!U159 -> 0 | P159: =Nagaland!X159 -> 0 | Q159: =Nagaland!Y159 -> 0 | R159: =Nagaland!Z159 -> 0 | S159: =Nagaland!AA159 -> 0 | T159: =Nagaland!AB159 -> 0 | U159: =Nagaland!AC159 -> 0
B160: Sub Total | C160: =Nagaland!C160 -> 0 | D160: =Nagaland!D160 -> 0 | E160: =Nagaland!E160 -> 0 | F160: =Nagaland!F160 -> 0 | G160: =Nagaland!G160 -> 0 | H160: =Nagaland!H160 -> 0 | I160: =Nagaland!L160 -> 0 | J160: =Nagaland!O160 -> 0 | K160: =Nagaland!P160 -> 0 | L160: =Nagaland!Q160 -> 0 | M160: =Nagaland!R160 -> 0 | N160: =Nagaland!S160 -> 0 | O160: =Nagaland!U160 -> 0 | P160: =Nagaland!X160 -> 0 | Q160: =Nagaland!Y160 -> 0 | R160: =Nagaland!Z160 -> 0 | S160: =Nagaland!AA160 -> 0 | T160: =Nagaland!AB160 -> 0 | U160: =Nagaland!AC160 -> 0
A161: 6.03 | B161: Non-Residential (Fresh) | C161: =Nagaland!C161 -> 0 | D161: =Nagaland!D161 -> 0 | E161: =Nagaland!E161 -> 0 | F161: =Nagaland!F161 -> 0 | G161: =Nagaland!G161 -> 0 | H161: =Nagaland!H161 -> 0 | I161: =Nagaland!L161 -> 0 | J161: =Nagaland!O161 -> 0 | K161: =Nagaland!P161 -> 0 | L161: =Nagaland!Q161 -> 0 | M161: =Nagaland!R161 -> 0 | N161: =Nagaland!S161 -> 0 | O161: =Nagaland!U161 -> 0 | P161: =Nagaland!X161 -> 0 | Q161: =Nagaland!Y161 -> 0 | R161: =Nagaland!Z161 -> 0 | S161: =Nagaland!AA161 -> 0 | T161: =Nagaland!AB161 -> 0 | U161: =Nagaland!AC161 -> 0
B162: (a) 12 months | C162: =Nagaland!C162 -> 0 | D162: =Nagaland!D162 -> 0 | E162: =Nagaland!E162 -> 0 | F162: =Nagaland!F162 -> 0 | G162: =Nagaland!G162 -> 0 | H162: =Nagaland!H162 -> 0 | I162: =Nagaland!L162 -> 0 | J162: =Nagaland!O162 -> 0.06 | K162: =Nagaland!P162 -> 0 | L162: =Nagaland!Q162 -> 0 | M162: =Nagaland!R162 -> 0 | N162: =Nagaland!S162 -> 0 | O162: =Nagaland!U162 -> 0 | P162: =Nagaland!X162 -> 0 | Q162: =Nagaland!Y162 -> 0 | R162: =Nagaland!Z162 -> 0 | S162: =Nagaland!AA162 -> 0 | T162: =Nagaland!AB162 -> 0 | U162: =Nagaland!AC162 -> 0
B163: (b) 9 months | C163: =Nagaland!C163 -> 0 | D163: =Nagaland!D163 -> 0 | E163: =Nagaland!E163 -> 0 | F163: =Nagaland!F163 -> 0 | G163: =Nagaland!G163 -> 0 | H163: =Nagaland!H163 -> 0 | I163: =Nagaland!L163 -> 0 | J163: =Nagaland!O163 -> 0.045 | K163: =Nagaland!P163 -> 0 | L163: =Nagaland!Q163 -> 0 | M163: =Nagaland!R163 -> 0 | N163: =Nagaland!S163 -> 0 | O163: =Nagaland!U163 -> 0 | P163: =Nagaland!X163 -> 0 | Q163: =Nagaland!Y163 -> 0 | R163: =Nagaland!Z163 -> 0 | S163: =Nagaland!AA163 -> 0 | T163: =Nagaland!AB163 -> 0 | U163: =Nagaland!AC163 -> 0
B164: (c) 6 months | C164: =Nagaland!C164 -> 4022 | D164: =Nagaland!D164 -> 120.66 | E164: =Nagaland!E164 -> 0 | F164: =Nagaland!F164 -> 0 | G164: =E164/C164 -> 0 | H164: =F164/D164 -> 0 | I164: =Nagaland!L164 -> 0 | J164: =Nagaland!O164 -> 0.03 | K164: =Nagaland!P164 -> 3219 | L164: =Nagaland!Q164 -> 96.57 | M164: =Nagaland!R164 -> 3219 | N164: =Nagaland!S164 -> 96.57 | O164: =Nagaland!U164 -> 0 | P164: =Nagaland!X164 -> 0.03 | Q164: =Nagaland!Y164 -> 3219 | R164: =Nagaland!Z164 -> 96.57 | S164: =Nagaland!AA164 -> 3219 | T164: =Nagaland!AB164 -> 96.57 | U164: =Nagaland!AC164 -> Recommended as proposed | V164: =Q164*P164 -> 96.57
B165: (d) 3 months | C165: =Nagaland!C165 -> 0 | D165: =Nagaland!D165 -> 0 | E165: =Nagaland!E165 -> 0 | F165: =Nagaland!F165 -> 0 | G165: =Nagaland!G165 -> 0 | H165: =Nagaland!H165 -> 0 | I165: =Nagaland!L165 -> 0 | J165: =Nagaland!O165 -> 0.015 | K165: =Nagaland!P165 -> 0 | L165: =Nagaland!Q165 -> 0 | M165: =Nagaland!R165 -> 0 | N165: =Nagaland!S165 -> 0 | O165: =Nagaland!U165 -> 0 | P165: =Nagaland!X165 -> 0 | Q165: =Nagaland!Y165 -> 0 | R165: =Nagaland!Z165 -> 0 | S165: =Nagaland!AA165 -> 0 | T165: =Nagaland!AB165 -> 0 | U165: =Nagaland!AC165 -> 0
B166: Sub Total | C166: =Nagaland!C166 -> 4022 | D166: =Nagaland!D166 -> 120.66 | E166: =Nagaland!E166 -> 0 | F166: =Nagaland!F166 -> 0 | G166: =E166/C166 -> 0 | H166: =F166/D166 -> 0 | I166: =Nagaland!L166 -> 0 | J166: =Nagaland!O166 -> 0 | K166: =Nagaland!P166 -> 3219 | L166: =Nagaland!Q166 -> 96.57 | M166: =Nagaland!R166 -> 3219 | N166: =Nagaland!S166 -> 96.57 | O166: =Nagaland!U166 -> 0 | P166: =Nagaland!X166 -> 0 | Q166: =Nagaland!Y166 -> 3219 | R166: =Nagaland!Z166 -> 96.57 | S166: =Nagaland!AA166 -> 3219 | T166: =Nagaland!AB166 -> 96.57 | U166: =Nagaland!AC166 -> 0
A167: 6.04 | B167: Non-Residential (Continuing from previous year) | C167: =Nagaland!C167 -> 0 | D167: =Nagaland!D167 -> 0 | E167: =Nagaland!E167 -> 0 | F167: =Nagaland!F167 -> 0 | G167: =Nagaland!G167 -> 0 | H167: =Nagaland!H167 -> 0 | I167: =Nagaland!L167 -> 0 | J167: =Nagaland!O167 -> 0 | K167: =Nagaland!P167 -> 0 | L167: =Nagaland!Q167 -> 0 | M167: =Nagaland!R167 -> 0 | N167: =Nagaland!S167 -> 0 | O167: =Nagaland!U167 -> 0 | P167: =Nagaland!X167 -> 0 | Q167: =Nagaland!Y167 -> 0 | R167: =Nagaland!Z167 -> 0 | S167: =Nagaland!AA167 -> 0 | T167: =Nagaland!AB167 -> 0 | U167: =Nagaland!AC167 -> 0
B168: (a) 12 months | C168: =Nagaland!C168 -> 0 | D168: =Nagaland!D168 -> 0 | E168: =Nagaland!E168 -> 0 | F168: =Nagaland!F168 -> 0 | G168: =Nagaland!G168 -> 0 | H168: =Nagaland!H168 -> 0 | I168: =Nagaland!L168 -> 0 | J168: =Nagaland!O168 -> 0.06 | K168: =Nagaland!P168 -> 0 | L168: =Nagaland!Q168 -> 0 | M168: =Nagaland!R168 -> 0 | N168: =Nagaland!S168 -> 0 | O168: =Nagaland!U168 -> 0 | P168: =Nagaland!X168 -> 0 | Q168: =Nagaland!Y168 -> 0 | R168: =Nagaland!Z168 -> 0 | S168: =Nagaland!AA168 -> 0 | T168: =Nagaland!AB168 -> 0 | U168: =Nagaland!AC168 -> 0
B169: (b) 9 months | C169: =Nagaland!C169 -> 0 | D169: =Nagaland!D169 -> 0 | E169: =Nagaland!E169 -> 0 | F169: =Nagaland!F169 -> 0 | G169: =Nagaland!G169 -> 0 | H169: =Nagaland!H169 -> 0 | I169: =Nagaland!L169 -> 0 | J169: =Nagaland!O169 -> 0.045 | K169: =Nagaland!P169 -> 0 | L169: =Nagaland!Q169 -> 0 | M169: =Nagaland!R169 -> 0 | N169: =Nagaland!S169 -> 0 | O169: =Nagaland!U169 -> 0 | P169: =Nagaland!X169 -> 0 | Q169: =Nagaland!Y169 -> 0 | R169: =Nagaland!Z169 -> 0 | S169: =Nagaland!AA169 -> 0 | T169: =Nagaland!AB169 -> 0 | U169: =Nagaland!AC169 -> 0
B170: (c) 6 months | C170: =Nagaland!C170 -> 0 | D170: =Nagaland!D170 -> 0 | E170: =Nagaland!E170 -> 0 | F170: =Nagaland!F170 -> 0 | G170: =Nagaland!G170 -> 0 | H170: =Nagaland!H170 -> 0 | I170: =Nagaland!L170 -> 0 | J170: =Nagaland!O170 -> 0.03 | K170: =Nagaland!P170 -> 0 | L170: =Nagaland!Q170 -> 0 | M170: =Nagaland!R170 -> 0 | N170: =Nagaland!S170 -> 0 | O170: =Nagaland!U170 -> 0 | P170: =Nagaland!X170 -> 0 | Q170: =Nagaland!Y170 -> 0 | R170: =Nagaland!Z170 -> 0 | S170: =Nagaland!AA170 -> 0 | T170: =Nagaland!AB170 -> 0 | U170: =Nagaland!AC170 -> 0
B171: (d) 3 months | C171: =Nagaland!C171 -> 0 | D171: =Nagaland!D171 -> 0 | E171: =Nagaland!E171 -> 0 | F171: =Nagaland!F171 -> 0 | G171: =Nagaland!G171 -> 0 | H171: =Nagaland!H171 -> 0 | I171: =Nagaland!L171 -> 0 | J171: =Nagaland!O171 -> 0.015 | K171: =Nagaland!P171 -> 0 | L171: =Nagaland!Q171 -> 0 | M171: =Nagaland!R171 -> 0 | N171: =Nagaland!S171 -> 0 | O171: =Nagaland!U171 -> 0 | P171: =Nagaland!X171 -> 0 | Q171: =Nagaland!Y171 -> 0 | R171: =Nagaland!Z171 -> 0 | S171: =Nagaland!AA171 -> 0 | T171: =Nagaland!AB171 -> 0 | U171: =Nagaland!AC171 -> 0
B172: Sub Total | C172: =Nagaland!C172 -> 0 | D172: =Nagaland!D172 -> 0 | E172: =Nagaland!E172 -> 0 | F172: =Nagaland!F172 -> 0 | G172: =Nagaland!G172 -> 0 | H172: =Nagaland!H172 -> 0 | I172: =Nagaland!L172 -> 0 | J172: =Nagaland!O172 -> 0 | K172: =Nagaland!P172 -> 0 | L172: =Nagaland!Q172 -> 0 | M172: =Nagaland!R172 -> 0 | N172: =Nagaland!S172 -> 0 | O172: =Nagaland!U172 -> 0 | P172: =Nagaland!X172 -> 0 | Q172: =Nagaland!Y172 -> 0 | R172: =Nagaland!Z172 -> 0 | S172: =Nagaland!AA172 -> 0 | T172: =Nagaland!AB172 -> 0 | U172: =Nagaland!AC172 -> 0
A173: 6.05 | B173: Madarasa/Maktab | C173: =Nagaland!C173 -> 0 | D173: =Nagaland!D173 -> 0 | E173: =Nagaland!E173 -> 0 | F173: =Nagaland!F173 -> 0 | G173: =Nagaland!G173 -> 0 | H173: =Nagaland!H173 -> 0 | I173: =Nagaland!L173 -> 0 | J173: =Nagaland!O173 -> 0 | K173: =Nagaland!P173 -> 0 | L173: =Nagaland!Q173 -> 0 | M173: =Nagaland!R173 -> 0 | N173: =Nagaland!S173 -> 0 | O173: =Nagaland!U173 -> 0 | P173: =Nagaland!X173 -> 0 | Q173: =Nagaland!Y173 -> 0 | R173: =Nagaland!Z173 -> 0 | S173: =Nagaland!AA173 -> 0 | T173: =Nagaland!AB173 -> 0 | U173: =Nagaland!AC173 -> 0
B174: (a) 12 months | C174: =Nagaland!C174 -> 0 | D174: =Nagaland!D174 -> 0 | E174: =Nagaland!E174 -> 0 | F174: =Nagaland!F174 -> 0 | G174: =Nagaland!G174 -> 0 | H174: =Nagaland!H174 -> 0 | I174: =Nagaland!L174 -> 0 | J174: =Nagaland!O174 -> 0 | K174: =Nagaland!P174 -> 0 | L174: =Nagaland!Q174 -> 0 | M174: =Nagaland!R174 -> 0 | N174: =Nagaland!S174 -> 0 | O174: =Nagaland!U174 -> 0 | P174: =Nagaland!X174 -> 0 | Q174: =Nagaland!Y174 -> 0 | R174: =Nagaland!Z174 -> 0 | S174: =Nagaland!AA174 -> 0 | T174: =Nagaland!AB174 -> 0 | U174: =Nagaland!AC174 -> 0
B175: (b) 9 months | C175: =Nagaland!C175 -> 0 | D175: =Nagaland!D175 -> 0 | E175: =Nagaland!E175 -> 0 | F175: =Nagaland!F175 -> 0 | G175: =Nagaland!G175 -> 0 | H175: =Nagaland!H175 -> 0 | I175: =Nagaland!L175 -> 0 | J175: =Nagaland!O175 -> 0 | K175: =Nagaland!P175 -> 0 | L175: =Nagaland!Q175 -> 0 | M175: =Nagaland!R175 -> 0 | N175: =Nagaland!S175 -> 0 | O175: =Nagaland!U175 -> 0 | P175: =Nagaland!X175 -> 0 | Q175: =Nagaland!Y175 -> 0 | R175: =Nagaland!Z175 -> 0 | S175: =Nagaland!AA175 -> 0 | T175: =Nagaland!AB175 -> 0 | U175: =Nagaland!AC175 -> 0
B176: (c) 6 months | C176: =Nagaland!C176 -> 0 | D176: =Nagaland!D176 -> 0 | E176: =Nagaland!E176 -> 0 | F176: =Nagaland!F176 -> 0 | G176: =Nagaland!G176 -> 0 | H176: =Nagaland!H176 -> 0 | I176: =Nagaland!L176 -> 0 | J176: =Nagaland!O176 -> 0 | K176: =Nagaland!P176 -> 0 | L176: =Nagaland!Q176 -> 0 | M176: =Nagaland!R176 -> 0 | N176: =Nagaland!S176 -> 0 | O176: =Nagaland!U176 -> 0 | P176: =Nagaland!X176 -> 0 | Q176: =Nagaland!Y176 -> 0 | R176: =Nagaland!Z176 -> 0 | S176: =Nagaland!AA176 -> 0 | T176: =Nagaland!AB176 -> 0 | U176: =Nagaland!AC176 -> 0
B177: (d) 3 months | C177: =Nagaland!C177 -> 0 | D177: =Nagaland!D177 -> 0 | E177: =Nagaland!E177 -> 0 | F177: =Nagaland!F177 -> 0 | G177: =Nagaland!G177 -> 0 | H177: =Nagaland!H177 -> 0 | I177: =Nagaland!L177 -> 0 | J177: =Nagaland!O177 -> 0 | K177: =Nagaland!P177 -> 0 | L177: =Nagaland!Q177 -> 0 | M177: =Nagaland!R177 -> 0 | N177: =Nagaland!S177 -> 0 | O177: =Nagaland!U177 -> 0 | P177: =Nagaland!X177 -> 0 | Q177: =Nagaland!Y177 -> 0 | R177: =Nagaland!Z177 -> 0 | S177: =Nagaland!AA177 -> 0 | T177: =Nagaland!AB177 -> 0 | U177: =Nagaland!AC177 -> 0
B178: Sub Total | C178: =Nagaland!C178 -> 0 | D178: =Nagaland!D178 -> 0 | E178: =Nagaland!E178 -> 0 | F178: =Nagaland!F178 -> 0 | G178: =Nagaland!G178 -> 0 | H178: =Nagaland!H178 -> 0 | I178: =Nagaland!L178 -> 0 | J178: =Nagaland!O178 -> 0 | K178: =Nagaland!P178 -> 0 | L178: =Nagaland!Q178 -> 0 | M178: =Nagaland!R178 -> 0 | N178: =Nagaland!S178 -> 0 | O178: =Nagaland!U178 -> 0 | P178: =Nagaland!X178 -> 0 | Q178: =Nagaland!Y178 -> 0 | R178: =Nagaland!Z178 -> 0 | S178: =Nagaland!AA178 -> 0 | T178: =Nagaland!AB178 -> 0 | U178: =Nagaland!AC178 -> 0
A179: 6.06 | B179: Seasonal Hostel (Residential) | C179: =Nagaland!C179 -> 0 | D179: =Nagaland!D179 -> 0 | E179: =Nagaland!E179 -> 0 | F179: =Nagaland!F179 -> 0 | G179: =Nagaland!G179 -> 0 | H179: =Nagaland!H179 -> 0 | I179: =Nagaland!L179 -> 0 | J179: =Nagaland!O179 -> 0 | K179: =Nagaland!P179 -> 0 | L179: =Nagaland!Q179 -> 0 | M179: =Nagaland!R179 -> 0 | N179: =Nagaland!S179 -> 0 | O179: =Nagaland!U179 -> 0 | P179: =Nagaland!X179 -> 0 | Q179: =Nagaland!Y179 -> 0 | R179: =Nagaland!Z179 -> 0 | S179: =Nagaland!AA179 -> 0 | T179: =Nagaland!AB179 -> 0 | U179: =Nagaland!AC179 -> 0
B180: (a) 12 months | C180: =Nagaland!C180 -> 0 | D180: =Nagaland!D180 -> 0 | E180: =Nagaland!E180 -> 0 | F180: =Nagaland!F180 -> 0 | G180: =Nagaland!G180 -> 0 | H180: =Nagaland!H180 -> 0 | I180: =Nagaland!L180 -> 0 | J180: =Nagaland!O180 -> 0 | K180: =Nagaland!P180 -> 0 | L180: =Nagaland!Q180 -> 0 | M180: =Nagaland!R180 -> 0 | N180: =Nagaland!S180 -> 0 | O180: =Nagaland!U180 -> 0 | P180: =Nagaland!X180 -> 0 | Q180: =Nagaland!Y180 -> 0 | R180: =Nagaland!Z180 -> 0 | S180: =Nagaland!AA180 -> 0 | T180: =Nagaland!AB180 -> 0 | U180: =Nagaland!AC180 -> 0
B181: (b) 9 months | C181: =Nagaland!C181 -> 0 | D181: =Nagaland!D181 -> 0 | E181: =Nagaland!E181 -> 0 | F181: =Nagaland!F181 -> 0 | G181: =Nagaland!G181 -> 0 | H181: =Nagaland!H181 -> 0 | I181: =Nagaland!L181 -> 0 | J181: =Nagaland!O181 -> 0 | K181: =Nagaland!P181 -> 0 | L181: =Nagaland!Q181 -> 0 | M181: =Nagaland!R181 -> 0 | N181: =Nagaland!S181 -> 0 | O181: =Nagaland!U181 -> 0 | P181: =Nagaland!X181 -> 0 | Q181: =Nagaland!Y181 -> 0 | R181: =Nagaland!Z181 -> 0 | S181: =Nagaland!AA181 -> 0 | T181: =Nagaland!AB181 -> 0 | U181: =Nagaland!AC181 -> 0
B182: (c) 6 months | C182: =Nagaland!C182 -> 0 | D182: =Nagaland!D182 -> 0 | E182: =Nagaland!E182 -> 0 | F182: =Nagaland!F182 -> 0 | G182: =Nagaland!G182 -> 0 | H182: =Nagaland!H182 -> 0 | I182: =Nagaland!L182 -> 0 | J182: =Nagaland!O182 -> 0 | K182: =Nagaland!P182 -> 0 | L182: =Nagaland!Q182 -> 0 | M182: =Nagaland!R182 -> 0 | N182: =Nagaland!S182 -> 0 | O182: =Nagaland!U182 -> 0 | P182: =Nagaland!X182 -> 0 | Q182: =Nagaland!Y182 -> 0 | R182: =Nagaland!Z182 -> 0 | S182: =Nagaland!AA182 -> 0 | T182: =Nagaland!AB182 -> 0 | U182: =Nagaland!AC182 -> 0
B183: (d) 3 months | C183: =Nagaland!C183 -> 0 | D183: =Nagaland!D183 -> 0 | E183: =Nagaland!E183 -> 0 | F183: =Nagaland!F183 -> 0 | G183: =Nagaland!G183 -> 0 | H183: =Nagaland!H183 -> 0 | I183: =Nagaland!L183 -> 0 | J183: =Nagaland!O183 -> 0 | K183: =Nagaland!P183 -> 0 | L183: =Nagaland!Q183 -> 0 | M183: =Nagaland!R183 -> 0 | N183: =Nagaland!S183 -> 0 | O183: =Nagaland!U183 -> 0 | P183: =Nagaland!X183 -> 0 | Q183: =Nagaland!Y183 -> 0 | R183: =Nagaland!Z183 -> 0 | S183: =Nagaland!AA183 -> 0 | T183: =Nagaland!AB183 -> 0 | U183: =Nagaland!AC183 -> 0
B184: Sub Total | C184: =Nagaland!C184 -> 0 | D184: =Nagaland!D184 -> 0 | E184: =Nagaland!E184 -> 0 | F184: =Nagaland!F184 -> 0 | G184: =Nagaland!G184 -> 0 | H184: =Nagaland!H184 -> 0 | I184: =Nagaland!L184 -> 0 | J184: =Nagaland!O184 -> 0 | K184: =Nagaland!P184 -> 0 | L184: =Nagaland!Q184 -> 0 | M184: =Nagaland!R184 -> 0 | N184: =Nagaland!S184 -> 0 | O184: =Nagaland!U184 -> 0 | P184: =Nagaland!X184 -> 0 | Q184: =Nagaland!Y184 -> 0 | R184: =Nagaland!Z184 -> 0 | S184: =Nagaland!AA184 -> 0 | T184: =Nagaland!AB184 -> 0 | U184: =Nagaland!AC184 -> 0
A185: 6.07 | B185: Seasonal Hostel (Non Residential) | C185: =Nagaland!C185 -> 0 | D185: =Nagaland!D185 -> 0 | E185: =Nagaland!E185 -> 0 | F185: =Nagaland!F185 -> 0 | G185: =Nagaland!G185 -> 0 | H185: =Nagaland!H185 -> 0 | I185: =Nagaland!L185 -> 0 | J185: =Nagaland!O185 -> 0 | K185: =Nagaland!P185 -> 0 | L185: =Nagaland!Q185 -> 0 | M185: =Nagaland!R185 -> 0 | N185: =Nagaland!S185 -> 0 | O185: =Nagaland!U185 -> 0 | P185: =Nagaland!X185 -> 0 | Q185: =Nagaland!Y185 -> 0 | R185: =Nagaland!Z185 -> 0 | S185: =Nagaland!AA185 -> 0 | T185: =Nagaland!AB185 -> 0 | U185: =Nagaland!AC185 -> 0
B186: (a) 12 months | C186: =Nagaland!C186 -> 0 | D186: =Nagaland!D186 -> 0 | E186: =Nagaland!E186 -> 0 | F186: =Nagaland!F186 -> 0 | G186: =Nagaland!G186 -> 0 | H186: =Nagaland!H186 -> 0 | I186: =Nagaland!L186 -> 0 | J186: =Nagaland!O186 -> 0 | K186: =Nagaland!P186 -> 0 | L186: =Nagaland!Q186 -> 0 | M186: =Nagaland!R186 -> 0 | N186: =Nagaland!S186 -> 0 | O186: =Nagaland!U186 -> 0 | P186: =Nagaland!X186 -> 0 | Q186: =Nagaland!Y186 -> 0 | R186: =Nagaland!Z186 -> 0 | S186: =Nagaland!AA186 -> 0 | T186: =Nagaland!AB186 -> 0 | U186: =Nagaland!AC186 -> 0
B187: (b) 9 months | C187: =Nagaland!C187 -> 0 | D187: =Nagaland!D187 -> 0 | E187: =Nagaland!E187 -> 0 | F187: =Nagaland!F187 -> 0 | G187: =Nagaland!G187 -> 0 | H187: =Nagaland!H187 -> 0 | I187: =Nagaland!L187 -> 0 | J187: =Nagaland!O187 -> 0 | K187: =Nagaland!P187 -> 0 | L187: =Nagaland!Q187 -> 0 | M187: =Nagaland!R187 -> 0 | N187: =Nagaland!S187 -> 0 | O187: =Nagaland!U187 -> 0 | P187: =Nagaland!X187 -> 0 | Q187: =Nagaland!Y187 -> 0 | R187: =Nagaland!Z187 -> 0 | S187: =Nagaland!AA187 -> 0 | T187: =Nagaland!AB187 -> 0 | U187: =Nagaland!AC187 -> 0
B188: (c) 6 months | C188: =Nagaland!C188 -> 0 | D188: =Nagaland!D188 -> 0 | E188: =Nagaland!E188 -> 0 | F188: =Nagaland!F188 -> 0 | G188: =Nagaland!G188 -> 0 | H188: =Nagaland!H188 -> 0 | I188: =Nagaland!L188 -> 0 | J188: =Nagaland!O188 -> 0 | K188: =Nagaland!P188 -> 0 | L188: =Nagaland!Q188 -> 0 | M188: =Nagaland!R188 -> 0 | N188: =Nagaland!S188 -> 0 | O188: =Nagaland!U188 -> 0 | P188: =Nagaland!X188 -> 0 | Q188: =Nagaland!Y188 -> 0 | R188: =Nagaland!Z188 -> 0 | S188: =Nagaland!AA188 -> 0 | T188: =Nagaland!AB188 -> 0 | U188: =Nagaland!AC188 -> 0
B189: (d) 3 months | C189: =Nagaland!C189 -> 0 | D189: =Nagaland!D189 -> 0 | E189: =Nagaland!E189 -> 0 | F189: =Nagaland!F189 -> 0 | G189: =Nagaland!G189 -> 0 | H189: =Nagaland!H189 -> 0 | I189: =Nagaland!L189 -> 0 | J189: =Nagaland!O189 -> 0 | K189: =Nagaland!P189 -> 0 | L189: =Nagaland!Q189 -> 0 | M189: =Nagaland!R189 -> 0 | N189: =Nagaland!S189 -> 0 | O189: =Nagaland!U189 -> 0 | P189: =Nagaland!X189 -> 0 | Q189: =Nagaland!Y189 -> 0 | R189: =Nagaland!Z189 -> 0 | S189: =Nagaland!AA189 -> 0 | T189: =Nagaland!AB189 -> 0 | U189: =Nagaland!AC189 -> 0
B190: Sub Total | C190: =Nagaland!C190 -> 0 | D190: =Nagaland!D190 -> 0 | E190: =Nagaland!E190 -> 0 | F190: =Nagaland!F190 -> 0 | G190: =Nagaland!G190 -> 0 | H190: =Nagaland!H190 -> 0 | I190: =Nagaland!L190 -> 0 | J190: =Nagaland!O190 -> 0 | K190: =Nagaland!P190 -> 0 | L190: =Nagaland!Q190 -> 0 | M190: =Nagaland!R190 -> 0 | N190: =Nagaland!S190 -> 0 | O190: =Nagaland!U190 -> 0 | P190: =Nagaland!X190 -> 0 | Q190: =Nagaland!Y190 -> 0 | R190: =Nagaland!Z190 -> 0 | S190: =Nagaland!AA190 -> 0 | T190: =Nagaland!AB190 -> 0 | U190: =Nagaland!AC190 -> 0
B191: Total | C191: =Nagaland!C191 -> 7960 | D191: =Nagaland!D191 -> 711.36 | E191: =Nagaland!E191 -> 0 | F191: =Nagaland!F191 -> 0 | G191: =E191/C191 -> 0 | H191: =F191/D191 -> 0 | I191: =Nagaland!L191 -> 0 | J191: =Nagaland!O191 -> 0 | K191: =Nagaland!P191 -> 5574 | L191: =Nagaland!Q191 -> 449.82 | M191: =Nagaland!R191 -> 5574 | N191: =Nagaland!S191 -> 449.82 | O191: =Nagaland!U191 -> 0 | P191: =Nagaland!X191 -> 0 | Q191: =Nagaland!Y191 -> 5574 | R191: =Nagaland!Z191 -> 449.82 | S191: =Nagaland!AA191 -> 5574 | T191: =Nagaland!AB191 -> 449.82 | U191: =Nagaland!AC191 -> 0
A192: II | B192: RETENTION | C192: =Nagaland!C192 -> 0 | D192: =Nagaland!D192 -> 0 | E192: =Nagaland!E192 -> 0 | F192: =Nagaland!F192 -> 0 | G192: =Nagaland!G192 -> 0 | H192: =Nagaland!H192 -> 0 | I192: =Nagaland!L192 -> 0 | J192: =Nagaland!O192 -> 0 | K192: =Nagaland!P192 -> 0 | L192: =Nagaland!Q192 -> 0 | M192: =Nagaland!R192 -> 0 | N192: =Nagaland!S192 -> 0 | O192: =Nagaland!U192 -> 0 | P192: =Nagaland!X192 -> 0 | Q192: =Nagaland!Y192 -> 0 | R192: =Nagaland!Z192 -> 0 | S192: =Nagaland!AA192 -> 0 | T192: =Nagaland!AB192 -> 0 | U192: =Nagaland!AC192 -> 0
A193: 7 | B193: Free Text Books | C193: =Nagaland!C193 -> 0 | D193: =Nagaland!D193 -> 0 | E193: =Nagaland!E193 -> 0 | F193: =Nagaland!F193 -> 0 | G193: =Nagaland!G193 -> 0 | H193: =Nagaland!H193 -> 0 | I193: =Nagaland!L193 -> 0 | J193: =Nagaland!O193 -> 0 | K193: =Nagaland!P193 -> 0 | L193: =Nagaland!Q193 -> 0 | M193: =Nagaland!R193 -> 0 | N193: =Nagaland!S193 -> 0 | O193: =Nagaland!U193 -> 0 | P193: =Nagaland!X193 -> 0 | Q193: =Nagaland!Y193 -> 0 | R193: =Nagaland!Z193 -> 0 | S193: =Nagaland!AA193 -> 0 | T193: =Nagaland!AB193 -> 0 | U193: =Nagaland!AC193 -> 0
A194: 7.01 | B194: Free Text Books (P) | C194: =Nagaland!C194 -> 0 | D194: =Nagaland!D194 -> 0 | E194: =Nagaland!E194 -> 0 | F194: =Nagaland!F194 -> 0 | G194: =Nagaland!G194 -> 0 | H194: =Nagaland!H194 -> 0 | I194: =Nagaland!L194 -> 0 | J194: =Nagaland!O194 -> 0 | K194: =Nagaland!P194 -> 0 | L194: =Nagaland!Q194 -> 0 | M194: =Nagaland!R194 -> 0 | N194: =Nagaland!S194 -> 0 | O194: =Nagaland!U194 -> 0 | P194: =Nagaland!X194 -> 0 | Q194: =Nagaland!Y194 -> 0 | R194: =Nagaland!Z194 -> 0 | S194: =Nagaland!AA194 -> 0 | T194: =Nagaland!AB194 -> 0 | U194: =Nagaland!AC194 -> 0
B195: (a) Class I & II | C195: =Nagaland!C195 -> 51784 | D195: =Nagaland!D195 -> 77.676 | E195: =Nagaland!E195 -> 0 | F195: =Nagaland!F195 -> 0 | G195: =E195/C195 -> 0 | H195: =F195/D195 -> 0 | I195: =Nagaland!L195 -> 0 | J195: =Nagaland!O195 -> 0.0015 | K195: =Nagaland!P195 -> 38675 | L195: =Nagaland!Q195 -> 58.0125 | M195: =Nagaland!R195 -> 38675 | N195: =Nagaland!S195 -> 58.0125 | O195: =Nagaland!U195 -> 0 | P195: =Nagaland!X195 -> 0.0015 | Q195: =Nagaland!Y195 -> 38675 | R195: =Nagaland!Z195 -> 58.0125 | S195: =Nagaland!AA195 -> 38675 | T195: =Nagaland!AB195 -> 58.0125 | U195: =Nagaland!AC195 -> Recommended as proposed
B196: (b) Class III to V | C196: =Nagaland!C196 -> 65050 | D196: =Nagaland!D196 -> 97.575 | E196: =Nagaland!E196 -> 0 | F196: =Nagaland!F196 -> 0 | G196: 0 | H196: 0 | I196: =Nagaland!L196 -> 0 | J196: =Nagaland!O196 -> 0.0015 | K196: =Nagaland!P196 -> 47506 | L196: =Nagaland!Q196 -> 71.259 | M196: =Nagaland!R196 -> 47506 | N196: =Nagaland!S196 -> 71.259 | O196: =Nagaland!U196 -> 0 | P196: =Nagaland!X196 -> 0.0015 | Q196: =Nagaland!Y196 -> 47506 | R196: =Nagaland!Z196 -> 71.259 | S196: =Nagaland!AA196 -> 47506 | T196: =Nagaland!AB196 -> 71.259 | U196: =Nagaland!AC196 -> Recommended as proposed
A197: 7.02 | B197: Braille Books (P) Class I & II | C197: =Nagaland!C197 -> 220 | D197: =Nagaland!D197 -> 0.33 | E197: =Nagaland!E197 -> 0 | F197: =Nagaland!F197 -> 0 | G197: 0 | H197: 0 | I197: =Nagaland!L197 -> 0 | J197: =Nagaland!O197 -> 0.0015 | K197: =Nagaland!P197 -> 440 | L197: =Nagaland!Q197 -> 0.66 | M197: =Nagaland!R197 -> 440 | N197: =Nagaland!S197 -> 0.66 | O197: =Nagaland!U197 -> 0 | P197: =Nagaland!X197 -> 0.0015 | Q197: =Nagaland!Y197 -> 440 | R197: =Nagaland!Z197 -> 0.66 | S197: =Nagaland!AA197 -> 440 | T197: =Nagaland!AB197 -> 0.66 | U197: =Nagaland!AC197 -> Recommended as proposed | V197: =Q197*P197 -> 0.66
A198: =+A197+0.01 -> 7.03 | B198: Braille Books (P) Class III to V | C198: =Nagaland!C198 -> 330 | D198: =Nagaland!D198 -> 0.495 | E198: =Nagaland!E198 -> 0 | F198: =Nagaland!F198 -> 0 | G198: 0 | H198: 0 | I198: =Nagaland!L198 -> 0 | J198: =Nagaland!O198 -> 0.0015 | K198: =Nagaland!P198 -> 660 | L198: =Nagaland!Q198 -> 0.99 | M198: =Nagaland!R198 -> 660 | N198: =Nagaland!S198 -> 0.99 | O198: =Nagaland!U198 -> 0 | P198: =Nagaland!X198 -> 0.0015 | Q198: =Nagaland!Y198 -> 660 | R198: =Nagaland!Z198 -> 0.99 | S198: =Nagaland!AA198 -> 660 | T198: =Nagaland!AB198 -> 0.99 | U198: =Nagaland!AC198 -> Recommended as proposed | V198: =Q198*P198 -> 0.99
A199: =+A198+0.01 -> 7.04 | B199: Free Text Books (UP) | C199: =Nagaland!C199 -> 45122 | D199: =Nagaland!D199 -> 112.805 | E199: =Nagaland!E199 -> 0 | F199: =Nagaland!F199 -> 0 | G199: 0 | H199: 0 | I199: =Nagaland!L199 -> 0 | J199: =Nagaland!O199 -> 0.0025 | K199: =Nagaland!P199 -> 36950 | L199: =Nagaland!Q199 -> 92.375 | M199: =Nagaland!R199 -> 36950 | N199: =Nagaland!S199 -> 92.375 | O199: =Nagaland!U199 -> 0 | P199: =Nagaland!X199 -> 0.0025 | Q199: =Nagaland!Y199 -> 36950 | R199: =Nagaland!Z199 -> 92.375 | S199: =Nagaland!AA199 -> 36950 | T199: =Nagaland!AB199 -> 92.375 | U199: =Nagaland!AC199 -> Recommended as proposed
A200: 7.05 | B200: Braille Books (UP) Class Vi to VIII | C200: =Nagaland!C200 -> 330 | D200: =Nagaland!D200 -> 0.825 | E200: =Nagaland!E200 -> 0 | F200: =Nagaland!F200 -> 0 | G200: =E200/C200 -> 0 | H200: =F200/D200 -> 0 | I200: =Nagaland!L200 -> 0 | J200: =Nagaland!O200 -> 0.0025 | K200: =Nagaland!P200 -> 660 | L200: =Nagaland!Q200 -> 1.65 | M200: =Nagaland!R200 -> 660 | N200: =Nagaland!S200 -> 1.65 | O200: =Nagaland!U200 -> 0 | P200: =Nagaland!X200 -> 0.0025 | Q200: =Nagaland!Y200 -> 660 | R200: =Nagaland!Z200 -> 1.65 | S200: =Nagaland!AA200 -> 660 | T200: =Nagaland!AB200 -> 1.65 | U200: =Nagaland!AC200 -> Recommended as proposed | V200: =Q200*P200 -> 1.65
... 313 more rows

Sheet Sheet1 (hidden)
A1: S. No. | B1: Name of the district | C1: Fresh Outlay 2016-17 | D1: Expdr.
A3: 1 | B3: Dimapur | C3: 5366.207011 | D3: 2617.5765
A4: 2 | B4: Kiphire | C4: 2443.257048 | D4: 1093.0515
A5: 3 | B5: Kohima | C5: 2156.940983 | D5: 1132.6265
A6: 4 | B6: Longleng | C6: 1505.383988 | D6: 760.101
A7: 5 | B7: Mokokchung | C7: 2060.492227 | D7: 1057.8255
A8: 6 | B8: Mon | C8: 3515.759584 | D8: 1871.103
A9: 7 | B9: Peren | C9: 1944.930804 | D9: 1157.12
A10: 8 | B10: Phek | C10: 2435.62947 | D10: 930.463
A11: 9 | B11: Tuensang | C11: 4098.650226 | D11: 1991.1745
A12: 10 | B12: Wokha | C12: 2224.762596 | D12: 1278.4185
A13: 11 | B13: Zunheboto | C13: 3328.871676 | D13: 1847.1305
B14: State Intervention | C14: ='%'!Z15 -> 429.3599 | D14: ='%'!AA15 -> 152.66
B15: TOTAL | C15: =SUM(C3:C14) -> 31510.24551 | D15: =SUM(D3:D14) -> 15889.2505

Sheet Provision (hidden)
A1: Outlay approved 2016-17 | B1: Capital Head (all civil works under SSA & KGBV) | C1: General Head | D1: GOI Share (90% )
D2: Capital Head | E2: General Head | F2: Total
A3: =Nagaland!AB515 -> 30690.10096 | B3: =Nagaland!AB382+Nagaland!AB479+Nagaland!AB480+Nagaland!AB481+Nagaland!AB482+Nagaland!AB483 -> 10049.20801 | C3: =A3-B3 -> 20640.89295 | D3: =B3*90% -> 9044.287209 | E3: =C3*90% -> 18576.80365 | F3: =SUM(D3:E3) -> 27621.09086

Sheet Fund released-15-16 (hidden)
A1: Fund released 2015-16 & Recommended outlay 2016-17 SSA, Nagaland
A2: S. No. | B2: Particulars | C2: Amount Rs. in Crore | D2: Amount Rs. in Lakh
A3: 1 | B3: Approved outlay for the year 2015-16 | C3: =D3/100 -> 300.7884277 | D3: =Nagaland!D515 -> 30078.84277
A4: 2 | B4: Opening balance with State as on 01/04/2015 | C4: =D4/100 -> 85.0887 | D4: 8508.87
A5: 3 | B5: Actual outlay size (after deducting opening bal.) | C5: =C3-C4 -> 215.6997277 | D5: =D3-D4 -> 21569.97277
A6: 4 | B6: GOI Share of outlay as per sharing pattern (90%) | C6: =D6/100 -> 194.129755 | D6: =D5*90% -> 19412.9755
A7: 5 | B7: Status of GOI releases during 2015-16
B8: Adhoc Funds (Released) | C8: =D8/100 -> 0
B9: Balance of 1st installment (Released) | C9: =D9/100 -> 87.3953 | D9: 8739.53
B10: Balance of 2nd installment (not released)-Audit Report not received till 31st March 2016 | C10: 0 | D10: 0
B11: Sub total | C11: =SUM(C8:C9) -> 87.3953 | D11: =SUM(D8:D9) -> 8739.53
A12: 6 | B12: Balance amount due from GOI | C12: =D12/100 -> 106.734455 | D12: =D6-D11 -> 10673.4455
A13: 7 | B13: Current year’s proposal (2016-17) | C13: =D13/100 -> 361.67655 | D13: =Nagaland!S515 -> 36167.655
A14: 8 | B14: Current year’s recommendations (2016-17) | C14: =D14/100 -> 306.9010096 | D14: =Nagaland!AB515 -> 30690.10096
A15: 9 | B15: Additional fund allocated as per 14th Finance Commission | C15: =D15 -> 1551.02 | D15: =2613.71-1062.69 -> 1551.02

Sheet 10 yrs.information (hidden)
A1: Nagaland, SSA
I2: (Rs. in crore)
A3: S.No. | B3: Name of State/UT | C3: Financial Year | D3: Funding Pattern | E3: PAB Approvals | H3: Actual Releases
E4: Approved | F4: Central Share | G4: State Share | H4: By Centre | I4: By State | J4: Total
E5: (i) | F5: (ii) | G5: (iii) | H5: (iv) | I5: (v) | J5: (vi)=(iv)+(v)
A6: 1 | B6: Maharashtra | C6: 2015-16
C7: 2014-15
C8: 2013-14
C9: 2012-13
C10: 2011-12
C11: 2010-11
C12: 2009-10
C13: 2008-09
C14: 2007-08
C15: 2006-07
A18: (i) | B18: Details of 14th FC award in respect of Maharashtra
A20: a. | B20: 2014-15 | C20: Rs. 1062.69 | D20: Crore
A21: b. | B21: 2015-16 | C21: Rs. 2613.71 | D21: Crore
A22: c. | B22: Difference between 2015-16 and 2014-15 | E22: =2613.71-1062.69 -> 1551.02
A24: (ii) | B24: Copy of D.O. letter from Secretary (SE&L) to Chief Secretary, Maharashtra on 14th FC Award.
B26: Letter is enclosed.
A28: (iii) | B28: Status of IInd Intallment
A32: (iv) | B32: Unspent Balance : | C32: As on 01-04.2015 (Audited) | E32: Rs. 85.09 Crore
A35: (v) | B35: Outstanding Advances : | D35: As on 01-04-2015 | F35: Rs. Crore

Sheet Comparison-2015-16 and 2016-17 (hidden)
B1: SSA, Maharashtra - 2016-17
B3: Outlay Approved in 2015-16 | C3: Outlay Recommended for 2016-17 | D3: Decrease in outlay for 2016-17 | E3: % icnreased in outlay (%)
B4: =Nagaland!D515 -> 30078.84277 | C4: =Nagaland!AB515 -> 30690.10096 | D4: =C4-B4 -> 611.2581842 | E4: =D4/B4*100 -> 2.032186507
B7: Teacher Salary 2015-16 | C7: Teachers Salary 2016-17 | D7: Difference
B8: =Nagaland!D259 -> 12717.7554 | C8: =Nagaland!AB259 -> 13913.64407 | D8: =C8-B8 -> 1195.888668

Sheet Categorywise breakup-16-17 (hidden)
A1: Break up of Interventions-2016-17-SSA, Nagaland
A2: SNo. | B2: Category | D2: Outlay approved by PAB (including spillover)-2014-15 | E2: % | F2: Outlay approved by PAB (including spillover)-2015-16 | G2: Achievement | H2: % | I2: Financial Proposal for 2016-17 | J2: % | K2: Financial Recommendation for 2016-17 | L2: %
B3: Category-1
A4: 1 | B4: Reimbursement under Section 12(1)(c) | J4: =I4/$I$36*100 -> 0
A5: 2 | B5: Textbooks | D5: =[36]Nagaland!$AB$119 -> 338.5155 | E5: =D5/$D$36*100 -> 1.134653373 | F5: =Nagaland!$D$204 -> 293.006 | G5: =Nagaland!F204 -> 0 | H5: =G5/F5*100 -> 0 | I5: =Nagaland!$S$204 -> 226.5965 | J5: 0.6265169805 | K5: =Nagaland!$AB$204 -> 226.5965 | L5: =K5/$K$36*100 -> 0.7383374213
A6: 3 | B6: Uniforms | D6: =[36]Nagaland!$AB$125 -> 767.516 | E6: 2.572598945 | F6: =Nagaland!$D$210 -> 647.824 | G6: =Nagaland!F210 -> 0 | H6: =G6/F6*100 -> 0 | I6: =Nagaland!$S$210 -> 492.524 | J6: 1.361780298 | K6: =Nagaland!$AB$210 -> 492.524 | L6: 1.604830172
A7: 4 (a) | B7: Residential Schools | D7: =[36]Nagaland!$AB$45 -> 20.185
A8: 4 (b) | B8: Residential Hostels | E8: 0 | F8: =Nagaland!$D$140 -> 170.35 | G8: =Nagaland!F141 -> 4.44 | H8: 2.606398591 | I8: =Nagaland!$S$140 -> 358 | J8: 0.9898347018 | K8: =Nagaland!$AB$140 -> 358 | L8: 1.16649991
A9: 5 | B9: KGBV | D9: =[36]Nagaland!$AB$366 -> 1475.57352 | E9: 4.945901949 | F9: =Nagaland!$D$514 -> 1011.78 | G9: =Nagaland!F514 -> 316.03 | H9: 31.2350511 | I9: =Nagaland!$S$514 -> 957.88 | J9: 2.648443755 | K9: =Nagaland!$AB$514 -> 695.75 | L9: 2.267017632
A10: 6 | B10: IE | D10: =[36]Nagaland!$AB$262 -> 190.038 | E10: 0.6369789792 | F10: =Nagaland!$D$334 -> 97.95 | G10: =Nagaland!F334 -> 0 | H10: 0 | I10: =Nagaland!$S$334 -> 72.42 | J10: 0.2002341595 | K10: =Nagaland!$AB$334 -> 36.09 | L10: 0.1175949211
A11: 7 | B11: School Grant | D11: =[36]Nagaland!$AB$251 -> 153.52 | E11: 0.5145761 | F11: =Nagaland!$D$323 -> 154.68 | G11: =Nagaland!F323 -> 154.68 | H11: 100 | I11: =Nagaland!$S$323 -> 154.51 | J11: 0.4272049156 | K11: =Nagaland!$AB$323 -> 146.54 | L11: 0.4774829519
A12: 8 | B12: Programme Management | D12: =[36]Nagaland!$AB$319+[36]Nagaland!$AB$325 -> 864.89997 | E12: 2.89901546 | F12: =Nagaland!$D$389+Nagaland!$D$398 -> 850 | G12: =Nagaland!F389+Nagaland!F398 -> 140.14 | H12: 16.48705882 | I12: =Nagaland!$S$389+Nagaland!$S$398 -> 1074.825 | J12: 2.971785149 | K12: =Nagaland!$AB$389+Nagaland!$AB$398 -> 1071 | L12: 3.489724591
B13: Sub Total | D13: =SUM(D4:D12) -> 3810.24799 | E13: 12.77138191 | F13: =SUM(F4:F12) -> 3225.59 | G13: =SUM(G4:G12) -> 615.29 | H13: 19.07526995 | I13: =SUM(I4:I12) -> 3336.7555 | J13: 9.225799959 | K13: =SUM(K4:K12) -> 3026.5005 | L13: 9.861487599
B14: Category-2
A15: 9 | B15: Transport/Escort Facility | J15: 0 | L15: 0
A16: 10 | B16: Special training | D16: =[36]Nagaland!$AB$110 -> 470.9668 | E16: 1.578610339 | F16: =Nagaland!$D$191 -> 711.36 | G16: =Nagaland!F191 -> 0 | H16: 0 | I16: =Nagaland!$S$191 -> 449.82 | J16: 1.243707948 | K16: =Nagaland!$AB$191 -> 449.82 | L16: 1.465684328
A17: 11 | B17: Teachers’ Training | D17: =[36]Nagaland!$AB$212 -> 178.92654 | E17: 0.5997350257 | F17: =Nagaland!$D$282 -> 386.465 | G17: =Nagaland!F282 -> 63.07 | H17: 16.31971847 | I17: =Nagaland!$S$282 -> 724.33 | J17: 2.002701032 | K17: =Nagaland!$AB$282 -> 444 | L17: 1.446720559
A18: 12 (a) | B18: BRC/URC | D18: =[36]Nagaland!$AB$226 -> 604.076 | E18: 2.024772487 | F18: =Nagaland!$D$296 -> 669.42356 | G18: =Nagaland!F296 -> 0 | H18: 0 | I18: =Nagaland!$S$296 -> 706.23832 | J18: 1.952679321 | K18: =Nagaland!$AB$296 -> 697.03832 | L18: 2.271215468
A19: 12 (b) | B19: CRC | D19: =[36]Nagaland!$AB$235 -> 280.772 | E19: 0.9411057892 | F19: =Nagaland!$D$305 -> 299.5 | G19: =Nagaland!F305 -> 0 | H19: 0 | I19: =Nagaland!$S$305 -> 305.75 | J19: 0.8453686035 | K19: =Nagaland!$AB$305 -> 287 | L19: 0.9351549556
A20: 13 | B20: LEP | D20: =[36]Nagaland!$AB$320 -> 42.2499 | E20: 0.1416153515 | F20: =Nagaland!$D$391 -> 34.5 | G20: =Nagaland!F391 -> 0 | H20: 0 | I20: =Nagaland!Q391+Nagaland!Q392+Nagaland!Q393 -> 659.6902971 | J20: 1.823978627 | K20: =Nagaland!Z391+Nagaland!Z392+Nagaland!Z393 -> 569.07816 | L20: 1.854272688
A21: 14 | B21: Innovation for CAL | D21: =[36]Nagaland!$AB$238 -> 81.796 | F21: =Nagaland!$D$308 -> 515 | G21: =Nagaland!F308 -> 124.41 | H21: 24.15728155 | I21: =Nagaland!$S$308 -> 695.4 | J21: 1.922712435 | K21: =Nagaland!$AB$308 -> 550 | L21: 1.7921088
A22: 15 | B22: Libraries in schools | I22: =Nagaland!S312 -> 0 | J22: 0 | K22: =Nagaland!AB312 -> 0 | L22: 0
A23: 16 | B23: Teachers Grant | I23: =Nagaland!S319 -> 85.065 | J23: 0.2351963377 | K23: =Nagaland!AB319 -> 85.065 | L23: 0.2771740638
A24: 17 | B24: TLE for new schools
A25: 18 | B25: REMS | D25: =[36]Nagaland!$AB$255+[36]Nagaland!$AB$326 -> 35.87375 | E25: 0.1202434495 | F25: =Nagaland!$D$327+Nagaland!$D$399 -> 36.86 | G25: =Nagaland!E327+Nagaland!E399 -> 0 | H25: 0 | I25: =Nagaland!$S$327+Nagaland!$S$399 -> 40.875 | J25: 0.1130153448 | K25: =Nagaland!$AB$327+Nagaland!$AB$399 -> 39.3599 | L25: 0.1282494966
A26: 19 | B26: Innovative Activities | F26: =Nagaland!$D$340 -> 550 | G26: =Nagaland!F340 -> 16.184 | H26: 2.942545455 | I26: =Nagaland!$S$340 -> 550 | J26: 1.520695771 | K26: =Nagaland!$AB$340 -> 550 | L26: 1.7921088
A27: 20 | B27: Community Mobilization | E27: 0 | F27: =Nagaland!$D$394 -> 16.5 | G27: =Nagaland!F394 -> 0 | H27: 0 | I27: =Nagaland!$S$394 -> 26.05 | J27: 0.07202568151 | K27: =Nagaland!$AB$394 -> 25 | L27: 0.08145949091
A28: 21 | B28: SMC/PRI Training | D28: =[36]Nagaland!$AB$273 -> 49.5 | E28: 0.1659166034 | F28: =Nagaland!$D$344 -> 49.104 | G28: =Nagaland!F344 -> 49.104 | H28: 100 | I28: =Nagaland!$S$344 -> 37.062 | J28: 0.1024727757 | K28: =Nagaland!$AB$344 -> 37.062 | L28: 0.1207620661
B29: Sub Total | D29: =SUM(D15:D28) -> 1744.16099 | E29: 5.846167014 | F29: =SUM(F15:F28) -> 3268.71256 | G29: =SUM(G15:G28) -> 252.768 | H29: 7.732952817 | I29: =SUM(I15:I28) -> 4280.280617 | J29: 11.83455388 | K29: =SUM(K15:K28) -> 3733.42338 | L29: 12.16491072
B30: Category-3
A31: 23 | B31: Teacher's Salary | D31: =[36]Nagaland!$AB$201 -> 9942.7104 | E31: 33.32647955 | F31: =Nagaland!$D$259 -> 12717.7554 | G31: =Nagaland!F259 -> 9439.68 | H31: 74.22441856 | I31: =Nagaland!$S$259 -> 13913.64407 | J31: 38.46985399 | K31: =Nagaland!$AB$259 -> 13913.64407 | L31: 45.3359345
A32: 24 | B32: Civil Works | D32: =[36]Nagaland!$AB$312 -> 14025.30614 | E32: 47.01073044 | F32: =Nagaland!$D$382 -> 10453.67981 | G32: =Nagaland!F382 -> 1897.16 | H32: 18.14825051 | I32: =Nagaland!$S$382 -> 14432.59981 | J32: 39.90471545 | K32: =Nagaland!$AB$382 -> 9812.15801 | L32: 31.97173585
A33: 25 | B33: Maintenance Grant | D33: =[36]Nagaland!$AB$258 -> 206.25 | E33: 0.6913191807 | F33: =Nagaland!$D$330 -> 202.95 | G33: =Nagaland!F330 -> 0 | H33: 0 | I33: =Nagaland!$S$330 -> 204.375 | J33: 0.565076724 | K33: =Nagaland!$AB$330 -> 204.375 | L33: 0.6659313382
A34: 26 | B34: SIEMAT | D34: =[36]Nagaland!$AB$327 -> 105.59 | E34: 0.353921902
B35: Sub Total | D35: =SUM(D31:D34) -> 24279.85654 | E35: 81.38245108 | F35: =SUM(F31:F34) -> 23374.38521 | G35: =SUM(G31:G34) -> 11336.84 | H35: 48.5011259 | I35: =SUM(I31:I34) -> 28550.61888 | J35: 78.93964616 | K35: =SUM(K31:K34) -> 23930.17708 | L35: 77.97360169
B36: TOTAL | D36: =D13+D29+D35 -> 29834.26552 | E36: 100 | F36: =F13+F29+F35 -> 29868.68777 | G36: =G13+G29+G35 -> 12204.898 | H36: 40.86184868 | I36: =I13+I29+I35 -> 36167.655 | J36: 100 | K36: =K13+K29+K35 -> 30690.10096 | L36: 100
F38: =Nagaland!$D$515 -> 30078.84277 | G38: =Nagaland!F515 -> 12217.418 | I38: =Nagaland!S515 -> 36167.655 | K38: =Nagaland!AB515 -> 30690.10096
D39: =[36]Nagaland!$AB$367 -> 29834.26552
D40: =D39-D36 -> 0 | F40: =F38-F36 -> 210.155 | G40: 12.52 | H40: -40.86184868 | I40: 0 | J40: -100 | K40: 0

Sheet Budget & Expdr.2015-16 (hidden)
A1: Budget and Expenditure in 2015-16 - SSA, Maharashtra
A2: S. No. | B2: Head | C2: Outlay Approved | G2: Expenditure
C3: Spill Over | D3: Deferred Liability | E3: Fresh | F3: Total | G3: Spill Over | H3: Deferred Liability | I3: Fresh | J3: Total
A4: 1 | B4: SSA | C4: =[37]Nagaland!$U$398 -> 14025.30205 | E4: =[37]Nagaland!$Z$398 -> 15892.6558 | F4: =SUM(C4:E4) -> 29917.95785 | G4: 5287.46 | I4: =Nagaland!F402-5287.46 -> 6613.928 | J4: =SUM(G4:I4) -> 11901.388
A5: 2 | B5: KGBV | C5: =[37]Nagaland!$U$510 -> 1074.06 | E5: =[37]Nagaland!$Z$510 -> 409.2 | F5: =SUM(C5:E5) -> 1483.26 | G5: 624.37 | I5: =Nagaland!F514-624.37 -> -308.34 | J5: =SUM(G5:I5) -> 316.03
B6: Total | C6: =SUM(C4:C5) -> 15099.36205 | D6: 0 | E6: 16301.8558 | F6: 31401.21785 | G6: 5911.83 | H6: 0 | I6: 6305.588 | J6: 12217.418
C8: =[37]Nagaland!$U$511 -> 15099.36205 | E8: =[37]Nagaland!$Z$511 -> 16301.8558 | F8: =C8+E8 -> 31401.21785 | I8: =Nagaland!F515 -> 12217.418 | J8: =SUM(G8:I8) -> 12217.418
C9: =C6-C8 -> 0 | E9: =E6-E8 -> 0 | F9: =F6-F8 -> 0 | I9: =I6-I8 -> -5911.83 | J9: =J6-J8 -> 0

Sheet 2015-16 (hidden)
A2: Progress against AWP&B 2015-16
A3: State : SSA, Nagaland
A4: S.No. | B4: Intervention | C4: Spill over | D4: Sanctioned in 2015-16 | F4: Total | H4: Achievement | J4: Progress in Percentage
C5: Fin. | D5: Phy | E5: Fin | F5: Phy | G5: Fin | H5: Phy | I5: Fin | J5: Phy | K5: Fin
A6: Category 1
A7: 1 | B7: Reimbursement under Section 12(1)(c) | F7: =D7 -> 0 | G7: =E7+C7 -> 0 | J7: =IFERROR(H7/F7,0) -> 0 | K7: 0
A8: 2 | B8: Free Text Books | F8: =D8 -> 0 | G8: =E8+C8 -> 0 | J8: 0 | K8: 0
B9: a. Primary | D9: =Nagaland!$C$195+Nagaland!$C$196 -> 116834 | E9: =Nagaland!$D$195+Nagaland!$D$196 -> 175.251 | F9: 116834 | G9: 175.251 | H9: =Nagaland!$E$195+Nagaland!$E$196 -> 0 | I9: =Nagaland!$F$195+Nagaland!$F$196 -> 0 | J9: 0 | K9: 0
B10: b. Upper Primary | D10: =Nagaland!$C$199 -> 45122 | E10: =Nagaland!$D$199 -> 112.805 | F10: 45122 | G10: 112.805 | H10: =Nagaland!$E$199 -> 0 | I10: =Nagaland!$F$199 -> 0 | J10: 0 | K10: 0
B11: c. Large Print Book | F11: 0 | G11: 0 | J11: 0 | K11: 0
B12: d. Braille Book | D12: =Nagaland!$C$197+Nagaland!$C$198+Nagaland!$C$200 -> 880 | E12: =Nagaland!$D$197+Nagaland!$D$198+Nagaland!$D$200 -> 1.65 | F12: 880 | G12: 1.65 | H12: =Nagaland!$E$197+Nagaland!$E$198+Nagaland!$E$200 -> 0 | I12: =Nagaland!$E$197+Nagaland!$E$198+Nagaland!$E$200 -> 0 | J12: 0 | K12: 0
A13: 3 | B13: Free Uniform | D13: =Nagaland!$C$210 -> 161956 | E13: =Nagaland!$D$210 -> 647.824 | F13: 161956 | G13: 647.824 | H13: =Nagaland!$E$210 -> 0 | I13: =Nagaland!$F$210 -> 0 | J13: 0 | K13: 0
A14: 4 | B14: Residential School/ Hostel | D14: =Nagaland!$C$141 -> 6 | E14: =Nagaland!$D$141 -> 170.35 | F14: 6 | G14: 170.35 | H14: =Nagaland!$E$141 -> 0 | I14: =Nagaland!$F$141 -> 4.44 | J14: 0 | K14: 0.02606398591
A15: 5 | B15: KGBV | C15: =[37]Nagaland!$U$510 -> 1074.06 | D15: =Nagaland!$C$514 -> 11 | E15: =[37]Nagaland!$Z$510 -> 409.2 | F15: 11 | G15: 1483.26 | H15: =Nagaland!$E$514 -> 11 | I15: =Nagaland!$F$514 -> 316.03 | J15: 1 | K15: 0.2130644661 | L15: 1838.62
A16: 6 | B16: IE | D16: =Nagaland!$C$334 -> 3265 | E16: =Nagaland!$D$334 -> 97.95 | F16: 3265 | G16: 97.95 | H16: =Nagaland!$E$334 -> 0 | I16: =Nagaland!$F$334 -> 0 | J16: 0 | K16: 0
A17: 7 | B17: School Grant | D17: =Nagaland!$C$323 -> 2728 | E17: =Nagaland!$D$323 -> 154.68 | F17: 2728 | G17: 154.68 | H17: =Nagaland!$E$323 -> 2728 | I17: =Nagaland!$F$323 -> 154.68 | J17: 1 | K17: 1
A18: 8 | B18: Project Management | D18: =Nagaland!$C$389 -> 0 | E18: =Nagaland!$D$389+Nagaland!$D$398 -> 850 | F18: 0 | G18: 850 | H18: =Nagaland!$E$389 -> 0 | I18: =Nagaland!$F$389+Nagaland!$F$398 -> 140.14 | J18: 0 | K18: 0.1648705882
A19: Sub Total | C19: =SUM(C7:C18) -> 1074.06 | D19: 330802 | E19: =SUM(E7:E18) -> 2619.71 | F19: 330802 | G19: 3693.77 | H19: 2739 | I19: 615.29 | J19: 0.008279877389 | K19: 0.166575071
A20: Category 2
A21: 9 | B21: Transport / Escort facility | F21: =D21 -> 0 | G21: =E21+C21 -> 0 | J21: =IFERROR(H21/F21,0) -> 0 | K21: 0
A22: 10 | B22: Special Training for Age appropriate addmission of OoSC | F22: 0 | G22: 0 | J22: 0 | K22: 0
B23: Residential (Fresh) | F23: 0 | G23: 0 | J23: 0 | K23: 0
B24: a. 12 months | F24: 0 | G24: 0 | J24: 0 | K24: 0
B25: Residential continuing from previous year | F25: 0 | G25: 0 | J25: 0 | K25: 0
B26: a.9 months | D26: =Nagaland!$C$154 -> 3938 | E26: =Nagaland!$D$154 -> 590.7 | F26: 3938 | G26: 590.7 | H26: =Nagaland!$E$154 -> 0 | I26: =Nagaland!$F$154 -> 0 | J26: 0 | K26: 0
B27: Non Residential (Fresh) | F27: 0 | G27: 0 | J27: 0 | K27: 0
B28: a. 12 Months | F28: 0 | G28: 0 | J28: 0 | K28: 0
B29: b. 6 months | D29: =Nagaland!$C$164 -> 4022 | E29: =Nagaland!$D$164 -> 120.66 | F29: 4022 | G29: 120.66 | H29: =Nagaland!$E$164 -> 0 | I29: =Nagaland!$F$164 -> 0 | J29: 0 | K29: 0
B30: c. 3 months | F30: 0 | G30: 0 | J30: 0 | K30: 0
B31: NonResidential continuing from previous year | F31: 0 | G31: 0 | J31: 0 | K31: 0
B32: 12 Months | F32: 0 | G32: 0 | J32: 0 | K32: 0
B33: Madarasa/Maktab | F33: =D33 -> 0 | G33: =E33+C33 -> 0 | J33: 0 | K33: 0
B34: (a) 6 months | F34: =D34 -> 0 | G34: =E34+C34 -> 0 | J34: 0 | K34: 0
B35: Seasonal Hostel (Residential) | F35: 0 | G35: =E35+C35 -> 0 | J35: 0 | K35: 0
B36: (c) 6 months | F36: 0 | G36: 0 | J36: 0 | K36: 0
B37: Seasonal Day Care Centre (Non Residential) | F37: 0 | G37: 0 | J37: 0 | K37: 0
B38: a. 6 months | F38: 0 | G38: 0 | J38: 0 | K38: 0
A39: 11 | B39: Teacher Training | D39: =Nagaland!$C$282 -> 22642 | E39: =Nagaland!$D$282 -> 386.465 | F39: 22642 | G39: 386.465 | H39: =Nagaland!$E$282 -> 6307.49 | I39: =Nagaland!$F$282 -> 63.07 | J39: 0.2785747725 | K39: 0.1631971847
A40: 12 | B40: Academic Support through BRC/CRC | F40: 0 | G40: 0 | J40: 0 | K40: 0
B41: a) BRC | D41: =Nagaland!$C$296 -> 46 | E41: =Nagaland!$D$296 -> 669.42356 | F41: 46 | G41: 669.42356 | H41: =Nagaland!$E$296 -> 0 | I41: =Nagaland!$F$296 -> 0 | J41: 0 | K41: 0 | L41: 2058.65
B42: b) CRC | D42: =Nagaland!$C$305 -> 125 | E42: =Nagaland!$D$305 -> 299.5 | F42: 125 | G42: 299.5 | H42: =Nagaland!$E$305 -> 0 | I42: =Nagaland!$F$305 -> 0 | J42: 0 | K42: 0
A43: 13 | B43: Learning Enhancement Programme (LEP) | D43: =Nagaland!$C$391 -> 690 | E43: =Nagaland!$D$391 -> 34.5 | F43: 690 | G43: 34.5 | H43: =Nagaland!$E$391 -> 2.3 | I43: =Nagaland!$F$391 -> 0 | J43: 0.003333333333 | K43: 0
A44: 14 | B44: Innovation fund for CAL | D44: =Nagaland!$C$308 -> 0 | E44: =Nagaland!$D$308 -> 515 | F44: 0 | G44: 515 | H44: =Nagaland!$E$308 -> 0 | I44: =Nagaland!$F$308 -> 124.41 | J44: 0 | K44: 0.2415728155
A45: 15 | B45: Library | F45: 0 | G45: 0 | J45: 0 | K45: 0
A46: =A45+1 -> 16 | B46: Teacher Grant | F46: 0 | G46: 0 | J46: 0 | K46: 0
A47: 17 | B47: TLE for New Schools | F47: 0 | G47: 0 | J47: 0 | K47: 0
A48: 18 | B48: REMS | D48: =Nagaland!$C$327 -> 0 | E48: =Nagaland!$D$326+Nagaland!$D$399 -> 36.86 | F48: 0 | G48: 36.86 | H48: =Nagaland!$E$327 -> 0 | I48: =Nagaland!$F$326+Nagaland!$F$399 -> 12.52 | J48: 0 | K48: 0.339663592
A49: 19 | B49: Innovation | D49: =Nagaland!$C$340 -> 11 | E49: =Nagaland!$D$340 -> 550 | F49: 11 | G49: 550 | H49: =Nagaland!$E$340 -> 0 | I49: =Nagaland!$F$340 -> 16.184 | J49: 0 | K49: 0.02942545455
A50: 20 | B50: Community Mobilization (0.5%) | D50: =Nagaland!$C$394 -> 0 | E50: =Nagaland!$D$394 -> 16.5 | F50: 0 | G50: 16.5 | H50: =Nagaland!$E$394 -> 2.21 | I50: =Nagaland!$F$394 -> 0 | J50: 0 | K50: 0
A51: 21 | B51: SMC Training | D51: =Nagaland!$C$344 -> 16368 | E51: =Nagaland!$D$344 -> 49.104 | F51: 16368 | G51: 49.104 | H51: =Nagaland!$E$344 -> 16368 | I51: =Nagaland!$F$344 -> 49.104 | J51: 1 | K51: 1
A52: Total | C52: =SUM(C21:C51) -> 0 | D52: 47842 | E52: 3268.71256 | F52: 47842 | G52: 3268.71256 | H52: 22680 | I52: 265.288 | J52: 0.474060449 | K52: 0.08115978237
A53: Category 3
A54: 22 | B54: Teacher Salary | D54: =Nagaland!$C$259 -> 3780 | E54: =Nagaland!$D$259 -> 12717.7554 | F54: =D54 -> 3780 | G54: =E54+C54 -> 12717.7554 | H54: =Nagaland!$E$259 -> 3780 | I54: =Nagaland!$F$259 -> 9439.68 | J54: =IFERROR(H54/F54,0) -> 1 | K54: 0.7422441856 | L54: 124169.97
A55: =A54+1 -> 23 | B55: New Schools (Building) | C55: =Nagaland!$D$347+Nagaland!$D$349+807.96 -> 8741.253524 | D55: =Nagaland!$C$347+Nagaland!$C$349 -> 0 | F55: 0 | G55: 8741.253524 | H55: =Nagaland!$E$347+Nagaland!$E$349 -> 0 | I55: =Nagaland!$F$347+Nagaland!$F$349 -> 738.65 | J55: 0 | K55: 0.08450161044
A56: 24 | B56: Additional Classrooms (ACR) | C56: =[37]Nagaland!$U$354 -> 1756.42 | D56: =Nagaland!$C$356 -> 27 | E56: =[37]Nagaland!$Z$354 -> 112.78 | F56: 27 | G56: 1869.2 | H56: =Nagaland!$E$356 -> 0 | I56: =Nagaland!$F$356 -> 360.2 | J56: 0 | K56: 0.1927027605
A57: 25 | B57: Block Resource Centers | F57: 0 | G57: 0 | J57: 0 | K57: 0
A58: 26 | B58: Cluster Resource Centers | F58: 0 | G58: 0 | J58: 0 | K58: 0
A59: 27 | B59: Residential Schools (Building) | F59: 0 | G59: 0 | J59: 0 | K59: 0
A60: 28 | B60: Toilets & Drinking Water | C60: =[37]Nagaland!$U$358+[37]Nagaland!$U$359+[37]Nagaland!$U$361 -> 1006.88553 | D60: =Nagaland!$C$360+Nagaland!$C$361+Nagaland!$C$363 -> 0 | E60: =[37]Nagaland!$Z$361 -> 502.39 | F60: 0 | G60: 1509.27553 | H60: =Nagaland!$E$360+Nagaland!$E$361+Nagaland!$E$363 -> 0 | I60: =Nagaland!$F$360+Nagaland!$F$361+Nagaland!$F$363 -> 435.99 | J60: 0 | K60: 0.2888736956 | L60: 139.59
A61: 29 | B61: Furniture | F61: 0 | G61: 0 | J61: 0 | K61: 0
A62: 30 | B62: Civil Works (includes buildingless and dialiapidated spill over) | D62: =Nagaland!$C$352+Nagaland!$C$353+Nagaland!$C$354 -> 0 | F62: 0 | G62: 0 | H62: =Nagaland!$E$352+Nagaland!$E$353+Nagaland!$E$354 -> 0 | I62: =Nagaland!$F$352+Nagaland!$F$353+Nagaland!$F$354 -> 15.76 | J62: 0 | K62: 0
B63: a. Boundary Walls | F63: 0 | G63: 0 | J63: 0 | K63: 0
B64: b. Ramps | C64: 261.68 | D64: =Nagaland!$C$369 -> 0 | F64: 0 | G64: 261.68 | H64: =Nagaland!$E$369 -> 0 | I64: =Nagaland!$F$369 -> 82.87 | J64: 0 | K64: 0.3166845002
A65: =A62+1 -> 31 | B65: Repairs to School Buildings | F65: 0 | G65: 0 | J65: 0 | K65: 0
A66: =A65+1 -> 32 | B66: Maintenance Grant | D66: =Nagaland!$C$330 -> 2706 | E66: =Nagaland!$D$330 -> 202.95 | F66: 2706 | G66: 202.95 | H66: =Nagaland!$E$330 -> 0 | I66: =Nagaland!$F$330 -> 0 | J66: 0 | K66: 0 | L66: 1209.68
A67: 33 | B67: School and Social Mapping | F67: 0 | G67: 0 | J67: 0 | K67: 0
A68: 34 | B68: Opening new Primary Schools: | F68: 0 | G68: 0 | J68: 0 | K68: 0
A69: 35 | B69: Opening Upper Primary Schools/Sections | F69: 0 | G69: 0 | J69: 0 | K69: 0
A70: 36 | B70: Conversion of EGS Centres into schools | C70: All EGS already converted into Schools
A71: 37 | B71: SIEMAT | C71: One Time Grant
A72: 38 | B72: NPGEL | C72: Activity Closed
B73: Total | C73: =SUM(C54:C72) -> 11766.23905 | D73: 6513 | E73: 13535.8754 | F73: 6513 | G73: 25302.11445 | H73: 3780 | I73: 11073.15 | J73: =IFERROR(H73/F73,0) -> 0.5803777061 | K73: =IFERROR(I73/G73,0) -> 0.4376373374
B74: Grand Total | C74: =C19+C52+C73 -> 12840.29905 | D74: 385157 | E74: 19424.29796 | F74: 385157 | G74: 32264.59701 | H74: 29199 | I74: 11953.728 | J74: =IFERROR(H74/F74,0) -> 0.07581064345 | K74: =IFERROR(I74/G74,0) -> 0.3704905409
C76: =[37]Nagaland!$U$511 -> 15099.36205 | D76: =[37]Nagaland!$Y$511 -> 384145 | E76: =[37]Nagaland!$Z$511 -> 16301.8558 | F76: =D76 -> 384145 | G76: =C76+E76 -> 31401.21785 | H76: =Nagaland!E515 -> 29199 | I76: =Nagaland!F515 -> 12217.418
C77: =C76-C74 -> 2259.063 | E77: =E76-E74 -> -3122.44216 | I77: =I76-I74 -> 263.69
E80: =Nagaland!$D$515 -> 30078.84277
E82: =E80-E74 -> 10654.54481

Sheet 2016-17 (hidden)
A1: Proposal and Recommendation 2016-17
A2: S. No. | B2: Head | C2: Outlay Proposed | G2: Approved Outlay
C3: Spill Over | D3: Deferred Liability | E3: Fresh | F3: Total | G3: Spill Over | H3: Deferred Liability | I3: Fresh | J3: Total
A4: 1 | B4: SSA | C4: =Nagaland!L402 -> 8964.359814 | E4: =Nagaland!Q402 -> 26245.41519 | F4: =SUM(C4:E4) -> 35209.775 | G4: =Nagaland!U402 -> 7078.16801 | I4: =Nagaland!Z402 -> 22916.18295 | J4: =SUM(G4:I4) -> 29994.35096
A5: 2 | B5: KGBV | C5: =Nagaland!L514 -> 303.8 | E5: =Nagaland!Q514 -> 654.08 | F5: =SUM(C5:E5) -> 957.88 | G5: =Nagaland!U514 -> 303.8 | I5: =Nagaland!Z514 -> 391.95 | J5: =SUM(G5:I5) -> 695.75
B6: Total | C6: =SUM(C4:C5) -> 9268.159814 | D6: 0 | E6: 26899.49519 | F6: 36167.655 | G6: 7381.96801 | H6: 0 | I6: 23308.13295 | J6: 30690.10096
C8: =Nagaland!L515 -> 9268.159814 | E8: =Nagaland!Q515 -> 26899.49519 | F8: =SUM(C8:E8) -> 36167.655 | G8: =Nagaland!U515 -> 7381.96801 | I8: =Nagaland!Z515 -> 23308.13295 | J8: =SUM(G8:I8) -> 30690.10096
C9: =C6-C8 -> 0 | E9: =E6-E8 -> 0 | F9: =F6-F8 -> 0 | G9: =G6-G8 -> 0 | I9: =I6-I8 -> 0 | J9: =J6-J8 -> 0

Sheet Proposal & recomm.2016-17 (hidden)
A2: Proposal & Recommendations for AWP&B 2016-17
A3: State: SSA, Nagaland | C3: Proposed by State for 2016-2017 | H3: Recommendation for 2016-2017 | M3: Remarks
A4: S.No. | B4: Intervention | C4: Spill over | D4: Fresh Proposal | F4: Total | H4: Spill over | I4: Fresh Proposal | K4: Total
C5: Fin. | D5: Phy. | E5: Fin | F5: Phy. | G5: Fin | H5: Fin. | I5: Phy. | J5: Fin | K5: Phy. | L5: Fin
A6: Category 1
A7: 1 | B7: Reimbursement under Section 12(1)(c) | F7: =D7 -> 0 | G7: =E7+C7 -> 0 | K7: =I7 -> 0 | L7: =J7+H7 -> 0
A8: 2 | B8: Free Text Books | F8: 0 | G8: 0 | K8: =I8 -> 0 | L8: =J8+H8 -> 0
B9: a. Primary | D9: =Nagaland!P195+Nagaland!P196 -> 86181 | E9: =Nagaland!Q195+Nagaland!Q196 -> 129.2715 | F9: 86181 | G9: 129.2715 | I9: =Nagaland!Y195+Nagaland!Y196 -> 86181 | J9: =Nagaland!Z195+Nagaland!Z196 -> 129.2715 | K9: =I9 -> 86181 | L9: =J9+H9 -> 129.2715
B10: b. Upper Primary | D10: =Nagaland!P199 -> 36950 | E10: =Nagaland!Q199 -> 92.375 | F10: 36950 | G10: 92.375 | I10: =Nagaland!Y199 -> 36950 | J10: =Nagaland!Z199 -> 92.375 | K10: =I10 -> 36950 | L10: =J10+H10 -> 92.375
B11: c. Large Print Book | D11: =Nagaland!P201 -> 220 | E11: =Nagaland!Q201 -> 0.33 | F11: 220 | G11: 0.33 | I11: =Nagaland!Y201 -> 220 | J11: =Nagaland!Z201 -> 0.33 | K11: =I11 -> 220 | L11: =J11+H11 -> 0.33 | M11: Recommended as proposed.
B12: d. Braille Book | D12: =Nagaland!P197+Nagaland!P198+Nagaland!P200 -> 1760 | E12: =Nagaland!Q197+Nagaland!Q198+Nagaland!Q200 -> 3.3 | F12: 1760 | G12: 3.3 | I12: =Nagaland!Y197+Nagaland!Y198+Nagaland!Y200 -> 1760 | J12: =Nagaland!Z197+Nagaland!Z198+Nagaland!Z200 -> 3.3 | K12: =I12 -> 1760 | L12: =J12+H12 -> 3.3 | M12: Recommended as proposed.
A13: 3 | B13: Free Uniform | D13: =Nagaland!P210 -> 123131 | E13: =Nagaland!Q210 -> 492.524 | F13: 123131 | G13: 492.524 | I13: =Nagaland!Y210 -> 123131 | J13: =Nagaland!Z210 -> 492.524 | K13: 123131 | L13: 492.524
A14: 4 | B14: Residential School/ Hostel | D14: =Nagaland!P141 -> 11 | E14: =Nagaland!Q141 -> 340.75 | F14: 11 | G14: 340.75 | I14: =Nagaland!Y141 -> 11 | J14: =Nagaland!Z141 -> 340.75 | K14: 11 | L14: 340.75
A15: 5 | B15: KGBV | C15: =Nagaland!L514 -> 303.8 | D15: =Nagaland!P514 -> 22 | E15: =Nagaland!Q514 -> 654.08 | F15: 22 | G15: 957.88 | H15: =Nagaland!U514 -> 303.8 | I15: =Nagaland!Y514 -> 11 | J15: =Nagaland!Z514 -> 391.95 | K15: 11 | L15: 695.75 | M15: Recommended as appraised.
A16: 6 | B16: IE | D16: =Nagaland!P334 -> 2414 | E16: =Nagaland!Q334 -> 72.42 | F16: 2414 | G16: 72.42 | I16: =Nagaland!Y334 -> 1203 | J16: =Nagaland!Z334 -> 36.09 | K16: 1203 | L16: 36.09 | M16: Recommended as appraised.
A17: 7 | B17: School Grant | D17: =Nagaland!P323 -> 2725 | E17: =Nagaland!Q323 -> 154.51 | F17: 2725 | G17: 154.51 | I17: =Nagaland!Y323 -> 2594 | J17: =Nagaland!Z323 -> 146.54 | K17: 2594 | L17: 146.54
A18: 8 | B18: a. Project Management | E18: =Nagaland!Q389+Nagaland!Q398 -> 1074.825 | G18: 1074.825 | J18: =Nagaland!Z389+Nagaland!Z398 -> 1071 | L18: 1071 | N18: 3250.53
B19: b. Finance | C19: Covered Under Project Management and Overall allocation | P19: =L9+L10+L11+L12+L13+L14+L15+L16+L17+L18 -> 3007.9305
A20: Sub Total | C20: =SUM(C7:C19) -> 303.8 | D20: 253414 | E20: 3014.3855 | F20: 253414 | G20: 3318.1855 | H20: 303.8 | I20: 252061 | J20: 2704.1305 | K20: 252061 | L20: 3007.9305 | M20: =L20/L80 -> 0.1000088243
A21: Category 2
A22: 9 | B22: Transport / Escort facility | F22: =D22 -> 0 | G22: =E22+C22 -> 0 | K22: =I22 -> 0 | L22: =J22+H22 -> 0
A23: 10 | B23: Special Training for Age appropriate addmission of OoSC | F23: 0 | G23: 0 | K23: 0 | L23: 0 | O23: =L29+#REF!+#REF!+L41+L42+L44+L45+L46+L47+L50+L52+L53+L55+L56 -> 
B24: Residential (Fresh) | F24: 0 | G24: 0 | K24: 0 | L24: 0
B25: a. 9 months | D25: =Nagaland!P151 -> 2355 | E25: =Nagaland!Q151 -> 353.25 | F25: 2355 | G25: 353.25 | I25: =Nagaland!Y151 -> 2355 | J25: =Nagaland!Z151 -> 353.25 | K25: 2355 | L25: 353.25
B26: Residential continuing from previous year | F26: 0 | G26: 0 | K26: 0 | L26: 0
B27: a.12 months | F27: 0 | G27: 0 | K27: 0 | L27: 0
B28: Non Residential (Fresh) | F28: 0 | G28: 0 | K28: 0 | L28: 0
B29: (a) 12 months | F29: 0 | G29: 0 | K29: 0 | L29: 0
B30: (b) 6 months | D30: =Nagaland!P164 -> 3219 | E30: =Nagaland!Q164 -> 96.57 | F30: 3219 | G30: 96.57 | I30: =Nagaland!Y164 -> 3219 | J30: =Nagaland!Z164 -> 96.57 | K30: 3219 | L30: 96.57
B31: (c) 3 months | F31: 0 | G31: 0 | K31: 0 | L31: 0
B32: NonResidential continuing from previous year | F32: 0 | G32: 0 | K32: 0 | L32: 0
B33: 12 Months | F33: 0 | G33: 0 | K33: 0 | L33: 0
B34: Madarasa/Maktab | F34: 0 | G34: 0 | K34: 0 | L34: 0
B35: (a) 6 months | F35: =D35 -> 0 | G35: =E35+C35 -> 0 | K35: =I35 -> 0 | L35: =J35+H35 -> 0
B36: (b) 3 months | F36: =D36 -> 0 | G36: =E36+C36 -> 0 | K36: =I36 -> 0 | L36: =J36+H36 -> 0
B37: Seasonal Hostel (Residential) | F37: 0 | G37: 0 | K37: 0 | L37: 0
B38: (a) 12 months | F38: =D38 -> 0 | G38: =E38+C38 -> 0 | K38: 0 | L38: 0
B39: (c) 6 months | F39: 0 | G39: 0 | K39: 0 | L39: 0
B40: Seasonal Centre (Non Residential) | F40: 0 | G40: 0 | K40: 0 | L40: 0
B41: (a) 6 months | F41: =D41 -> 0 | G41: 0 | K41: 0 | L41: 0
A42: 11 | B42: Teacher Training | D42: =Nagaland!P282 -> 38769 | E42: =Nagaland!Q282 -> 724.33 | F42: 38769 | G42: =E42+C42 -> 724.33 | I42: =Nagaland!Y282 -> 36859 | J42: =Nagaland!Z282 -> 444 | K42: 36859 | L42: 444
A43: 12 | B43: Academic Support through BRC/CRC | F43: 0 | G43: 0 | K43: 0 | L43: 0
B44: a) BRC | D44: =Nagaland!P296 -> 46 | E44: =Nagaland!Q296 -> 706.23832 | F44: 46 | G44: 706.23832 | I44: =Nagaland!Y296 -> 46 | J44: =Nagaland!Z296 -> 697.03832 | K44: 46 | L44: 697.03832
B45: b) CRC | D45: =Nagaland!P305 -> 125 | E45: =Nagaland!Q305 -> 305.75 | F45: 125 | G45: 305.75 | I45: =Nagaland!Y305 -> 125 | J45: =Nagaland!Z305 -> 287 | K45: 125 | L45: 287
A46: 13 | B46: Learning Enhancement Programme (LEP) | D46: =Nagaland!P391+Nagaland!P392+Nagaland!P393 -> 14272 | E46: =Nagaland!Q391+Nagaland!Q392+Nagaland!Q393 -> 659.6902971 | F46: 14272 | G46: 659.6902971 | I46: =Nagaland!Y395 -> 4346 | J46: =Nagaland!Z391+Nagaland!Z392+Nagaland!Z393 -> 569.07816 | K46: 4346 | L46: 569.07816
A47: 14 | B47: a. Innovation fund for CAL | C47: =Nagaland!L308 -> 390.59 | E47: =Nagaland!Q308 -> 304.81 | F47: 0 | G47: 695.4 | H47: =Nagaland!U308 -> 0 | J47: =Nagaland!Z308 -> 550 | K47: 0 | L47: 550 | M47: Rs. 252 lakh for 84 schools under CAL and Rs. 263 lakh for RAA activities.
B48: b. Rashtriya Avishkar Abhiyan (RAA) | C48: This activity will be supported under CAL
A49: 15 | B49: Library | D49: =Nagaland!P312 -> 0 | E49: =Nagaland!Q312 -> 0 | F49: =D49 -> 0 | G49: =E49+C49 -> 0 | I49: =Nagaland!Y312 -> 0 | J49: =Nagaland!Z312 -> 0 | K49: =I49 -> 0 | L49: =J49+H49 -> 0
A50: =A49+1 -> 16 | B50: Teacher Grant | D50: =Nagaland!P319 -> 17013 | E50: =Nagaland!Q319 -> 85.065 | F50: =D50 -> 17013 | G50: =E50+C50 -> 85.065 | I50: =Nagaland!Y319 -> 17013 | J50: =Nagaland!Z319 -> 85.065 | K50: =I50 -> 17013 | L50: =J50+H50 -> 85.065
A51: =A50+1 -> 17 | B51: TLE for New Schools | F51: =D51 -> 0 | G51: =E51+C51 -> 0 | K51: =I51 -> 0 | L51: =J51+H51 -> 0
A52: =A51+1 -> 18 | B52: REMS | D52: =Nagaland!P327 -> 0 | E52: =Nagaland!Q327+Nagaland!Q399 -> 40.875 | F52: =D52 -> 0 | G52: =E52+C52 -> 40.875 | I52: =Nagaland!Y399 -> 2725 | J52: =Nagaland!Z399 -> 39.3599 | K52: =I52 -> 2725 | L52: =J52+H52 -> 39.3599 | M52: Provided entire eligible amount at the SPO level.
A53: =A52+1 -> 19 | B53: a. Innovation | D53: =Nagaland!P340 -> 11 | E53: =Nagaland!Q340 -> 550 | F53: =D53 -> 11 | G53: =E53+C53 -> 550 | I53: =Nagaland!Y340 -> 11 | J53: =Nagaland!Z340 -> 550 | K53: =I53 -> 11 | L53: =J53+H53 -> 550 | M53: Rs. 50 lakh per district for all the activities of PBBB. Includes Rs. 88 lakh for achievement survey and Rs. 16.20 lakh for school evaluation.
B54: b. Pade Bharat Bade Bharat (PBBB) | C54: This activity will be supported under Innovation Head
A55: =A53+1 -> 20 | B55: Community Mobilization (0.5%) | E55: =Nagaland!Q394 -> 26.05 | F55: =D55 -> 0 | G55: =E55+C55 -> 26.05 | J55: =Nagaland!Z394 -> 25 | K55: =I55 -> 0 | L55: =J55+H55 -> 25
A56: =A55+1 -> 21 | B56: SMC Training | D56: =Nagaland!P344 -> 12354 | E56: =Nagaland!Q344 -> 37.062 | F56: =D56 -> 12354 | G56: =E56+C56 -> 37.062 | I56: =Nagaland!Y344 -> 12354 | J56: =Nagaland!Z344 -> 37.062 | K56: =I56 -> 12354 | L56: =J56+H56 -> 37.062
A57: Total | C57: =SUM(C22:C56) -> 390.59 | D57: 88164 | E57: 3889.690617 | F57: 88164 | G57: 4280.280617 | H57: 0 | I57: 79053 | J57: 3733.42338 | K57: 79053 | L57: 3733.42338 | M57: =L57/L80 -> 0.1241302891
A58: Category 3
A59: 22 | B59: Teacher Salary | D59: =Nagaland!P259 -> 3780 | E59: =Nagaland!Q259 -> 13913.64407 | F59: =D59 -> 3780 | G59: =E59+C59 -> 13913.64407 | I59: =Nagaland!Y259 -> 3780 | J59: =Nagaland!Z259 -> 13913.64407 | K59: =I59 -> 3780 | L59: =J59+H59 -> 13913.64407 | O59: =L59+L61+L65 -> 14697.74736
A60: =A59+1 -> 23 | B60: New Schools (Building) | C60: =Nagaland!L347+Nagaland!L349+Nagaland!L352+Nagaland!L353+Nagaland!L354 -> 7281.556524 | D60: =Nagaland!P351+Nagaland!P352+Nagaland!P353+Nagaland!P354 -> 72 | E60: =Nagaland!Q351+Nagaland!Q352+Nagaland!Q353+Nagaland!Q354 -> 3281.61 | F60: 72 | G60: 10563.16652 | H60: =Nagaland!U347+Nagaland!U349+Nagaland!U352+Nagaland!U353+Nagaland!U354 -> 5785.95472 | I60: =Nagaland!Y351+Nagaland!Y352+Nagaland!Y353+Nagaland!Y354 -> 58 | J60: =Nagaland!Z351+Nagaland!Z352+Nagaland!Z353+Nagaland!Z354 -> 2646.17 | K60: 58 | L60: 8432.12472
A61: 24 | B61: Additional Classrooms (ACR) | C61: =Nagaland!L356 -> 347.12 | D61: =Nagaland!P356 -> 33 | E61: =Nagaland!Q356 -> 429.5 | F61: 33 | G61: 776.62 | H61: =Nagaland!U356 -> 347.12 | I61: =Nagaland!Y356 -> 6 | J61: =Nagaland!Z356 -> 70.35 | K61: 6 | L61: 417.47 | M61: Recommended Spill Over of Rs. 430.50 lakh for 32 ACRs proposed by state on the ground the work could not be done due to insufficient fund. Recommended fresh Outlay of Rs 276.82 lakh for 27 ACR base on enrolment, existing Classrooms and Techers availability as per net gap in coordination with MIS unit of TSG.
A62: 25 | B62: Block Resource Centers | F62: 0 | G62: 0 | K62: 0 | L62: 0
A63: 26 | B63: Cluster Resource Centers | F63: 0 | G63: 0 | K63: 0 | L63: 0
A64: 27 | B64: Residential Schools (Building) | D64: =Nagaland!P375 -> 5 | E64: =Nagaland!Q375 -> 721 | F64: 5 | G64: 721 | I64: =Nagaland!Y375 -> 0 | J64: =Nagaland!Z375 -> 0 | K64: 0 | L64: 0 | M64: Recommended as appraised.
A65: 28 | B65: Toilets & Drinking Water | C65: =Nagaland!L360+Nagaland!L361+Nagaland!L363 -> 366.63329 | D65: =Nagaland!P360+Nagaland!P361+Nagaland!P363+Nagaland!P372+Nagaland!P373 -> 395 | E65: =Nagaland!Q360+Nagaland!Q361+Nagaland!Q363+Nagaland!Q372+Nagaland!Q373 -> 1409.25 | F65: 395 | G65: 1775.88329 | H65: =Nagaland!U360+Nagaland!U361+Nagaland!U363 -> 366.63329 | I65: =Nagaland!Y360+Nagaland!Y361+Nagaland!Y363+Nagaland!Y372+Nagaland!Y373 -> 0 | J65: =Nagaland!Z360+Nagaland!Z361+Nagaland!Z363+Nagaland!Z372+Nagaland!Z373 -> 0 | K65: 0 | L65: 366.63329 | M65: Recommended Spill Over of Rs. 802.62 lakh proposed by state on the ground the work could not be done due to insufficient fund. Recommended fresh Outlay of Rs 114.05 lakh for 21 girls and 9 boys toilets based on enrolment, existing toilets as per net gap in coordination with MIS unit of TSG.
A66: 29 | B66: Furniture | F66: 0 | G66: 0 | K66: 0 | L66: 0
A67: 30 | B67: Civil Works (others) | K67: 0 | L67: 0
B68: a. Boundary Walls (7462.75 Rm for 93 schools) | D68: =Nagaland!P364 -> 0 | E68: =Nagaland!Q364 -> 0 | F68: 0 | G68: 0 | I68: =Nagaland!Y364 -> 0 | J68: =Nagaland!Z364 -> 0 | K68: 0 | L68: 0 | M68: Not Recommended
B69: b. Ramps | C69: =Nagaland!L369 -> 1.05 | F69: 0 | G69: 1.05 | H69: =Nagaland!U369 -> 1.05 | K69: 0 | L69: 1.05 | M69: Spillover Recommended
A70: =A67+1 -> 31 | B70: Repairs to School Buildings | D70: =Nagaland!P381 -> 0 | E70: =Nagaland!Q381 -> 0 | F70: 0 | G70: 0 | I70: =Nagaland!Y381 -> 0 | J70: =Nagaland!Z381 -> 0 | K70: 0 | L70: 0 | N70: =[38]consolidated!S383-[38]consolidated!S373 -> 133749.7841
A71: =A70+1 -> 32 | B71: a. Maintenance Grant | D71: =Nagaland!P330 -> 2725 | E71: =Nagaland!Q330 -> 204.375 | F71: 2725 | G71: 204.375 | I71: =Nagaland!Y330 -> 2725 | J71: =Nagaland!Z330 -> 204.375 | K71: 2725 | L71: 204.375 | M71: Recommended as admissible
B72: b. Swacchh Vidyalaya | C72: Covered under School Maintenance Grant
A73: =A71+1 -> 33 | B73: School and Social Mapping: | F73: =D73 -> 0 | G73: =E73+C73 -> 0 | K73: =I73 -> 0 | L73: =J73+H73 -> 0
A74: =A73+1 -> 34 | B74: Opening new Primary Schools: | F74: =D74 -> 0 | G74: =E74+C74 -> 0 | K74: =I74 -> 0 | L74: =J74+H74 -> 0
A75: =A74+1 -> 35 | B75: Opening Upper Primary Schools/Sections: | F75: =D75 -> 0 | G75: =E75+C75 -> 0 | K75: =I75 -> 0 | L75: =J75+H75 -> 0
A76: =A75+1 -> 36 | B76: Conversion of EGS Centres into schools: | C76: All EGS already converted into Schools
A77: =A76+1 -> 37 | B77: SIEMAT | C77: One Time Grant
A78: =A77+1 -> 38 | B78: NPGEL | C78: Activity Closed
B79: Total | C79: =SUM(C59:C78) -> 7996.359814 | D79: 7010 | E79: 19959.37907 | F79: 7010 | G79: 27955.73888 | H79: 6500.75801 | I79: 6569 | J79: 16834.53907 | K79: 6569 | L79: 23335.29708
B80: Grand Total | C80: =C20+C57+C79 -> 8690.749814 | D80: 348588 | E80: 26863.45519 | F80: 348588 | G80: 35554.205 | H80: 6804.55801 | I80: 337683 | J80: 23272.09295 | K80: 337683 | L80: 30076.65096
L82: .
C83: =Nagaland!L515 -> 9268.159814 | D83: =Nagaland!P515 -> 0 | E83: =Nagaland!Q515 -> 26899.49519 | F83: =Nagaland!R515 -> 0 | G83: =Nagaland!S515 -> 36167.655 | H83: =Nagaland!U515 -> 7381.96801 | I83: =Nagaland!Y515 -> 0 | J83: =Nagaland!Z515 -> 23308.13295 | K83: =Nagaland!AA515 -> 0 | L83: =Nagaland!AB515 -> 30690.10096 | N83: =L79+L57+L20 -> 30076.65096
C84: =C83-C80 -> 577.41 | D84: =D83-D80 -> -348588 | E84: =E83-E80 -> 36.04 | G84: =G83-G80 -> 613.45 | H84: =H83-H80 -> 577.41 | I84: =I83-I80 -> -337683 | J84: =J83-J80 -> 36.04 | L84: =L83-L80 -> 613.45
M86: =L80-L18 -> 29005.65096
K87: Mgt.cost | L87: =L18/L80*100 -> 3.560901782 | M87: =M86*3.63% -> 1052.90513 | N87: =M87/(M86+M87)*100 -> 3.502846666
K88: LEP | L88: =L46/L80*100 -> 1.892092842 | M88: =M87-L18 -> -18.09487022
K89: CM | L89: =L55/L80*100 -> 0.08312095663
K90: Total | L90: =SUM(L87:L89) -> 5.536115581 | M90: =M86+M87 -> 30058.55609
K91: Mgt.+CM | L91: =L87+L89 -> 3.644022739 | M91: =M87/M90*100 -> 3.502846666 | O91: =4-0.49 -> 3.51
L93: =L80*3.5% -> 1052.682784 | M93: =L18 -> 1071
M98: =2500-28.56 -> 2471.44

Sheet Expected outcome (hidden)
A1: Sr. No | B1: Expected outcome | C1: Fund Approved | D1: Budget Head
C2: (Rs. In Lakh)
A3: 1 | B3: Enrolment of Out of school children | C3: =Nagaland!AB141+Nagaland!AB191 -> 807.82 | D3: Residential Hostels and Special Training (See serial No. 8 (4 and10) of Index.)
A4: 2 | B4: ASMITA (Child wise Data Base) PAB approved Rs. 3.50 lakh for Child wise data base, Rs. 11 lakh for internet connection and Rs. 10 lakh for Server. | C4: =3.5+11+10 -> 24.5 | D4: REMS (See serial No. 8 (18) of Index.)
A5: 3 | B5: Shala Sidhi (Basic) | C5: =[39]REMS!D6 -> 400.12 | D5: REMS @ Rs. 10/- per child
A6: 4 | B6: Padhe Bharat Badhe Bharat
B7: i. In Service Teacher Training | C7: =Nagaland!Z263+Nagaland!Z264+Nagaland!Z265+Nagaland!Z267+Nagaland!Z268+Nagaland!Z269 -> 340.26 | D7: Teacher Training (See serial No. 8 (11) of Index.)
B8: ii. School Leadership | C8: =Nagaland!Z280+Nagaland!Z281 -> 17 | D8: Teacher Training (See serial No. 8 (11) of Index.)
B9: iii. Academic Support and Supervision (BRC and CRC) | C9: =Nagaland!Z296+Nagaland!Z305 -> 984.03832 | D9: Academic Support and Supervision through BRC and CRC. (See serial No. 8 (12) of Index.)
B10: iv. Learning Enhancement Programme | C10: =Nagaland!Z391+Nagaland!Z392+Nagaland!Z393 -> 569.07816 | D10: Learning Enhancement Programme (See serial No. 8 (13) of Index.)
B11: v. Innovation Fund for Computer Aided Learning (CAL) * | C11: 252 | D11: Innovation for Computer Aided Learning - Rs. 252 lakh for 84 schools schools under CAL (See serial No. 8 (14) of Index.)
B12: vi. RAA | C12: 263 | D12: Innovation for Computer Aided Learning (RAA activities only) - Rs. 263 lakh for RAA (See serial No. 8 (14) of Index.)
B13: vii. Library | D13: Not recommended. Library (See serial No. 8 (15) of Index.)
B14: viii. Teacher Grant | C14: =Nagaland!Z319 -> 85.065 | D14: Annual Grant (See serial No. 8 (16) of Index.)
B15: ix. State Achievement Survey (SAS) | C15: 88 | D15: REMS (See serial No. 8 (18) of Index.)
B16: x. Innovation fund for Equity (Vidyanjali, Twinning amongst schools, Bal Sansad, Remedial Teaching and any activity related to CCE) | C16: =550-(88+16.2) -> 445.8 | D16: Innovation fund for Equity (See serial No. 8 (19) of Index.)
C18: =88+16.2 -> 104.2

Sheet Total categorywise (hidden)
A1: Category | B1: Amount Approved (in lakh)
A2: I | B2: ='Proposal & recomm.2016-17'!L20 -> 3007.9305
A3: II | B3: ='Proposal & recomm.2016-17'!L57 -> 3733.42338
A4: III | B4: ='Proposal & recomm.2016-17'!L79 -> 23335.29708
A5: Total | B5: =SUM(B2:B4) -> 30076.65096

Sheet Nagaland
A1: S.No. | B1: Activity | C1: Year 2016-17 | K1: Outlay Proposed for 2017-18 | T1: Outlay Recommended for 2017-18 | AC1: Remarks
C2: Outlay approved by PAB (including spillover) | E2: Achievement | I2: Savings | K2: Spill Over | M2: Deferred liability of 2015-16 | O2: Fresh | R2: Total | T2: Spill Over | V2: Deferred liability of 2016-17 | X2: Fresh | AA2: Total
C3: Phy. | D3: Fin | E3: Phy. | F3: Fin. | G3: Phy. (%) | H3: Fin. (%) | I3: Phy. | J3: Fin. | K3: Phy. | L3: Fin. | M3: Phy. | N3: Fin. | O3: Unit Cost | P3: Phy. | Q3: Fin. | R3: Phy. | S3: Fin. | T3: Phy | U3: Fin. | V3: Phy. | W3: Fin. | X3: Unit Cost | Y3: Phy. | Z3: Fin. | AA3: Phy. | AB3: Fin.
A4: I | B4: ACCESS
B5: SSA | AC5: =SUM(Dmr:Zun!AB5) -> 0
A6: 1 | B6: Opening of New Schools | AC6: =SUM(Dmr:Zun!AC6) -> 0
A7: 1.01 | B7: New Primary School | C7: =SUM(Dmr:Zun!C7) -> 0 | D7: =SUM(Dmr:Zun!D7) -> 0 | E7: =SUM(Dmr:Zun!E7) -> 0 | F7: =SUM(Dmr:Zun!F7) -> 0 | I7: =SUM(Dmr:Zun!I7) -> 0 | J7: =SUM(Dmr:Zun!J7) -> 0 | K7: =SUM(Dmr:Zun!K7) -> 0 | L7: =SUM(Dmr:Zun!L7) -> 0 | M7: =SUM(Dmr:Zun!M7) -> 0 | N7: =SUM(Dmr:Zun!N7) -> 0 | P7: =SUM(Dmr:Zun!P7) -> 0 | Q7: =SUM(Dmr:Zun!Q7) -> 0 | R7: =SUM(Dmr:Zun!R7) -> 0 | S7: =SUM(Dmr:Zun!S7) -> 0 | T7: =SUM(Dmr:Zun!T7) -> 0 | U7: =SUM(Dmr:Zun!U7) -> 0 | V7: =SUM(Dmr:Zun!V7) -> 0 | W7: =SUM(Dmr:Zun!W7) -> 0 | Y7: =SUM(Dmr:Zun!Y7) -> 0 | Z7: =SUM(Dmr:Zun!Z7) -> 0 | AA7: =SUM(Dmr:Zun!AA7) -> 0 | AB7: =SUM(Dmr:Zun!AB7) -> 0 | AC7: =SUM(Dmr:Zun!AC7) -> 0 | AD7: =+X7*Y7=Z7 -> TRUE | AE7: =+U7+Z7=AB7 -> TRUE | AF7: =+Q7 -> 0 | AG7: =+S7 -> 0 | AH7: =+L7+Q7=S7 -> TRUE
A8: 1.02 | B8: Upgradation of PS to UPS | C8: =SUM(Dmr:Zun!C8) -> 0 | D8: =SUM(Dmr:Zun!D8) -> 0 | E8: =SUM(Dmr:Zun!E8) -> 0 | F8: =SUM(Dmr:Zun!F8) -> 0 | I8: =SUM(Dmr:Zun!I8) -> 0 | J8: =SUM(Dmr:Zun!J8) -> 0 | K8: =SUM(Dmr:Zun!K8) -> 0 | L8: =SUM(Dmr:Zun!L8) -> 0 | M8: =SUM(Dmr:Zun!M8) -> 0 | N8: =SUM(Dmr:Zun!N8) -> 0 | P8: =SUM(Dmr:Zun!P8) -> 0 | Q8: =SUM(Dmr:Zun!Q8) -> 0 | R8: =SUM(Dmr:Zun!R8) -> 0 | S8: =SUM(Dmr:Zun!S8) -> 0 | T8: =SUM(Dmr:Zun!T8) -> 0 | U8: =SUM(Dmr:Zun!U8) -> 0 | V8: =SUM(Dmr:Zun!V8) -> 0 | W8: =SUM(Dmr:Zun!W8) -> 0 | Y8: =SUM(Dmr:Zun!Y8) -> 0 | Z8: =SUM(Dmr:Zun!Z8) -> 0 | AA8: =SUM(Dmr:Zun!AA8) -> 0 | AB8: =SUM(Dmr:Zun!AB8) -> 0 | AC8: =SUM(Dmr:Zun!AC8) -> 0 | AD8: =+X8*Y8=Z8 -> TRUE | AE8: =+U8+Z8=AB8 -> TRUE | AF8: =+Q8 -> 0 | AG8: =+S8 -> 0 | AH8: =+L8+Q8=S8 -> TRUE
A9: 1.03 | B9: Composite Schools | C9: =SUM(Dmr:Zun!C9) -> 0 | D9: =SUM(Dmr:Zun!D9) -> 0 | E9: =SUM(Dmr:Zun!E9) -> 0 | F9: =SUM(Dmr:Zun!F9) -> 0 | I9: =SUM(Dmr:Zun!I9) -> 0 | J9: =SUM(Dmr:Zun!J9) -> 0 | K9: =SUM(Dmr:Zun!K9) -> 0 | L9: =SUM(Dmr:Zun!L9) -> 0 | M9: =SUM(Dmr:Zun!M9) -> 0 | N9: =SUM(Dmr:Zun!N9) -> 0 | P9: =SUM(Dmr:Zun!P9) -> 0 | Q9: =SUM(Dmr:Zun!Q9) -> 0 | R9: =SUM(Dmr:Zun!R9) -> 0 | S9: =SUM(Dmr:Zun!S9) -> 0 | T9: =SUM(Dmr:Zun!T9) -> 0 | U9: =SUM(Dmr:Zun!U9) -> 0 | V9: =SUM(Dmr:Zun!V9) -> 0 | W9: =SUM(Dmr:Zun!W9) -> 0 | Y9: =SUM(Dmr:Zun!Y9) -> 0 | Z9: =SUM(Dmr:Zun!Z9) -> 0 | AA9: =SUM(Dmr:Zun!AA9) -> 0 | AB9: =SUM(Dmr:Zun!AB9) -> 0 | AC9: =SUM(Dmr:Zun!AC9) -> 0 | AD9: TRUE | AE9: TRUE | AF9: 0 | AG9: 0 | AH9: TRUE
A10: 1.04 (a) | B10: Residential schools for specific category of children (for 50 childrens) | C10: =SUM(Dmr:Zun!C10) -> 0 | D10: =SUM(Dmr:Zun!D10) -> 0 | E10: =SUM(Dmr:Zun!E10) -> 0 | F10: =SUM(Dmr:Zun!F10) -> 0 | I10: =SUM(Dmr:Zun!I10) -> 0 | J10: =SUM(Dmr:Zun!J10) -> 0 | K10: =SUM(Dmr:Zun!K10) -> 0 | L10: =SUM(Dmr:Zun!L10) -> 0 | M10: =SUM(Dmr:Zun!M10) -> 0 | N10: =SUM(Dmr:Zun!N10) -> 0 | P10: =SUM(Dmr:Zun!P10) -> 0 | Q10: =SUM(Dmr:Zun!Q10) -> 0 | R10: =SUM(Dmr:Zun!R10) -> 0 | S10: =SUM(Dmr:Zun!S10) -> 0 | T10: =SUM(Dmr:Zun!T10) -> 0 | U10: =SUM(Dmr:Zun!U10) -> 0 | V10: =SUM(Dmr:Zun!V10) -> 0 | W10: =SUM(Dmr:Zun!W10) -> 0 | Y10: =SUM(Dmr:Zun!Y10) -> 0 | Z10: =SUM(Dmr:Zun!Z10) -> 0 | AA10: =SUM(Dmr:Zun!AA10) -> 0 | AB10: =SUM(Dmr:Zun!AB10) -> 0 | AC10: =SUM(Dmr:Zun!AC10) -> 0 | AD10: TRUE | AE10: TRUE | AF10: 0 | AG10: 0 | AH10: TRUE
A11: 1.04 (b) | B11: Residential schools for specific category of children (for 100 childrens) | C11: =SUM(Dmr:Zun!C11) -> 0 | D11: =SUM(Dmr:Zun!D11) -> 0 | E11: =SUM(Dmr:Zun!E11) -> 0 | F11: =SUM(Dmr:Zun!F11) -> 0 | I11: =SUM(Dmr:Zun!I11) -> 0 | J11: =SUM(Dmr:Zun!J11) -> 0 | K11: =SUM(Dmr:Zun!K11) -> 0 | L11: =SUM(Dmr:Zun!L11) -> 0 | M11: =SUM(Dmr:Zun!M11) -> 0 | N11: =SUM(Dmr:Zun!N11) -> 0 | P11: =SUM(Dmr:Zun!P11) -> 0 | Q11: =SUM(Dmr:Zun!Q11) -> 0 | R11: =SUM(Dmr:Zun!R11) -> 0 | S11: =SUM(Dmr:Zun!S11) -> 0 | T11: =SUM(Dmr:Zun!T11) -> 0 | U11: =SUM(Dmr:Zun!U11) -> 0 | V11: =SUM(Dmr:Zun!V11) -> 0 | W11: =SUM(Dmr:Zun!W11) -> 0 | Y11: =SUM(Dmr:Zun!Y11) -> 0 | Z11: =SUM(Dmr:Zun!Z11) -> 0 | AA11: =SUM(Dmr:Zun!AA11) -> 0 | AB11: =SUM(Dmr:Zun!AB11) -> 0 | AC11: =SUM(Dmr:Zun!AC11) -> 0 | AD11: TRUE | AE11: TRUE | AF11: 0 | AG11: 0 | AH11: TRUE
A12: 1.05 | B12: Residential Hostel | C12: =SUM(Dmr:Zun!C12) -> 0 | D12: =SUM(Dmr:Zun!D12) -> 0 | E12: =SUM(Dmr:Zun!E12) -> 0 | F12: =SUM(Dmr:Zun!F12) -> 0 | I12: =SUM(Dmr:Zun!I12) -> 0 | J12: =SUM(Dmr:Zun!J12) -> 0 | K12: =SUM(Dmr:Zun!K12) -> 0 | L12: =SUM(Dmr:Zun!L12) -> 0 | M12: =SUM(Dmr:Zun!M12) -> 0 | N12: =SUM(Dmr:Zun!N12) -> 0 | P12: =SUM(Dmr:Zun!P12) -> 0 | Q12: =SUM(Dmr:Zun!Q12) -> 0 | R12: =SUM(Dmr:Zun!R12) -> 0 | S12: =SUM(Dmr:Zun!S12) -> 0 | T12: =SUM(Dmr:Zun!T12) -> 0 | U12: =SUM(Dmr:Zun!U12) -> 0 | V12: =SUM(Dmr:Zun!V12) -> 0 | W12: =SUM(Dmr:Zun!W12) -> 0 | Y12: =SUM(Dmr:Zun!Y12) -> 0 | Z12: =SUM(Dmr:Zun!Z12) -> 0 | AA12: =SUM(Dmr:Zun!AA12) -> 0 | AB12: =SUM(Dmr:Zun!AB12) -> 0 | AC12: =SUM(Dmr:Zun!AC12) -> 0 | AD12: TRUE | AE12: TRUE | AF12: 0 | AG12: 0 | AH12: TRUE
A13: 1.06 | B13: Integration of Class V with primary schools | C13: =SUM(Dmr:Zun!C13) -> 0 | D13: =SUM(Dmr:Zun!D13) -> 0 | E13: =SUM(Dmr:Zun!E13) -> 0 | F13: =SUM(Dmr:Zun!F13) -> 0 | I13: =SUM(Dmr:Zun!I13) -> 0 | J13: =SUM(Dmr:Zun!J13) -> 0 | K13: =SUM(Dmr:Zun!K13) -> 0 | L13: =SUM(Dmr:Zun!L13) -> 0 | M13: =SUM(Dmr:Zun!M13) -> 0 | N13: =SUM(Dmr:Zun!N13) -> 0 | P13: =SUM(Dmr:Zun!P13) -> 0 | Q13: =SUM(Dmr:Zun!Q13) -> 0 | R13: =SUM(Dmr:Zun!R13) -> 0 | S13: =SUM(Dmr:Zun!S13) -> 0 | T13: =SUM(Dmr:Zun!T13) -> 0 | U13: =SUM(Dmr:Zun!U13) -> 0 | V13: =SUM(Dmr:Zun!V13) -> 0 | W13: =SUM(Dmr:Zun!W13) -> 0 | Y13: =SUM(Dmr:Zun!Y13) -> 0 | Z13: =SUM(Dmr:Zun!Z13) -> 0 | AA13: =SUM(Dmr:Zun!AA13) -> 0 | AB13: =SUM(Dmr:Zun!AB13) -> 0 | AC13: =SUM(Dmr:Zun!AC13) -> 0 | AD13: TRUE | AE13: TRUE | AF13: 0 | AG13: 0 | AH13: TRUE
A14: 1.07 | B14: Integration of Class VIII with upper primary schools | C14: =SUM(Dmr:Zun!C14) -> 0 | D14: =SUM(Dmr:Zun!D14) -> 0 | E14: =SUM(Dmr:Zun!E14) -> 0 | F14: =SUM(Dmr:Zun!F14) -> 0 | I14: =SUM(Dmr:Zun!I14) -> 0 | J14: =SUM(Dmr:Zun!J14) -> 0 | K14: =SUM(Dmr:Zun!K14) -> 0 | L14: =SUM(Dmr:Zun!L14) -> 0 | M14: =SUM(Dmr:Zun!M14) -> 0 | N14: =SUM(Dmr:Zun!N14) -> 0 | P14: =SUM(Dmr:Zun!P14) -> 0 | Q14: =SUM(Dmr:Zun!Q14) -> 0 | R14: =SUM(Dmr:Zun!R14) -> 0 | S14: =SUM(Dmr:Zun!S14) -> 0 | T14: =SUM(Dmr:Zun!T14) -> 0 | U14: =SUM(Dmr:Zun!U14) -> 0 | V14: =SUM(Dmr:Zun!V14) -> 0 | W14: =SUM(Dmr:Zun!W14) -> 0 | Y14: =SUM(Dmr:Zun!Y14) -> 0 | Z14: =SUM(Dmr:Zun!Z14) -> 0 | AA14: =SUM(Dmr:Zun!AA14) -> 0 | AB14: =SUM(Dmr:Zun!AB14) -> 0 | AC14: =SUM(Dmr:Zun!AC14) -> 0 | AD14: TRUE | AE14: TRUE | AF14: 0 | AG14: 0 | AH14: TRUE
A15: 2 | B15: Residential Schools for specific category of children (New) | AC15: =SUM(Dmr:Zun!AC15) -> 0 | AD15: TRUE | AE15: TRUE | AF15: 0 | AG15: 0 | AH15: TRUE
B16: 50 children | AC16: =SUM(Dmr:Zun!AC16) -> 0 | AD16: TRUE | AE16: TRUE | AF16: 0 | AG16: 0 | AH16: TRUE
B17: Non-recurring (one time grant) | AC17: =SUM(Dmr:Zun!AC17) -> 0 | AD17: TRUE | AE17: TRUE | AF17: 0 | AG17: 0 | AH17: TRUE
A18: 2.01 | B18: Furniture/ Equipment (including kitchen) | C18: =SUM(Dmr:Zun!C18) -> 0 | D18: =SUM(Dmr:Zun!D18) -> 0 | E18: =SUM(Dmr:Zun!E18) -> 0 | F18: =SUM(Dmr:Zun!F18) -> 0 | I18: =SUM(Dmr:Zun!I18) -> 0 | J18: =SUM(Dmr:Zun!J18) -> 0 | K18: =SUM(Dmr:Zun!K18) -> 0 | L18: =SUM(Dmr:Zun!L18) -> 0 | M18: =SUM(Dmr:Zun!M18) -> 0 | N18: =SUM(Dmr:Zun!N18) -> 0 | P18: =SUM(Dmr:Zun!P18) -> 0 | Q18: =SUM(Dmr:Zun!Q18) -> 0 | R18: =SUM(Dmr:Zun!R18) -> 0 | S18: =SUM(Dmr:Zun!S18) -> 0 | T18: =SUM(Dmr:Zun!T18) -> 0 | U18: =SUM(Dmr:Zun!U18) -> 0 | V18: =SUM(Dmr:Zun!V18) -> 0 | W18: =SUM(Dmr:Zun!W18) -> 0 | Y18: =SUM(Dmr:Zun!Y18) -> 0 | Z18: =SUM(Dmr:Zun!Z18) -> 0 | AA18: =SUM(Dmr:Zun!AA18) -> 0 | AB18: =SUM(Dmr:Zun!AB18) -> 0 | AC18: =SUM(Dmr:Zun!AC18) -> 0 | AD18: TRUE | AE18: TRUE | AF18: 0 | AG18: 0 | AH18: TRUE
A19: 2.02 | B19: TLM and equipment including library books | C19: =SUM(Dmr:Zun!C19) -> 0 | D19: =SUM(Dmr:Zun!D19) -> 0 | E19: =SUM(Dmr:Zun!E19) -> 0 | F19: =SUM(Dmr:Zun!F19) -> 0 | I19: =SUM(Dmr:Zun!I19) -> 0 | J19: =SUM(Dmr:Zun!J19) -> 0 | K19: =SUM(Dmr:Zun!K19) -> 0 | L19: =SUM(Dmr:Zun!L19) -> 0 | M19: =SUM(Dmr:Zun!M19) -> 0 | N19: =SUM(Dmr:Zun!N19) -> 0 | P19: =SUM(Dmr:Zun!P19) -> 0 | Q19: =SUM(Dmr:Zun!Q19) -> 0 | R19: =SUM(Dmr:Zun!R19) -> 0 | S19: =SUM(Dmr:Zun!S19) -> 0 | T19: =SUM(Dmr:Zun!T19) -> 0 | U19: =SUM(Dmr:Zun!U19) -> 0 | V19: =SUM(Dmr:Zun!V19) -> 0 | W19: =SUM(Dmr:Zun!W19) -> 0 | Y19: =SUM(Dmr:Zun!Y19) -> 0 | Z19: =SUM(Dmr:Zun!Z19) -> 0 | AA19: =SUM(Dmr:Zun!AA19) -> 0 | AB19: =SUM(Dmr:Zun!AB19) -> 0 | AC19: =SUM(Dmr:Zun!AC19) -> 0 | AD19: TRUE | AE19: TRUE | AF19: 0 | AG19: 0 | AH19: TRUE
A20: 2.03 | B20: Bedding (new) | C20: =SUM(Dmr:Zun!C20) -> 0 | D20: =SUM(Dmr:Zun!D20) -> 0 | E20: =SUM(Dmr:Zun!E20) -> 0 | F20: =SUM(Dmr:Zun!F20) -> 0 | I20: =SUM(Dmr:Zun!I20) -> 0 | J20: =SUM(Dmr:Zun!J20) -> 0 | K20: =SUM(Dmr:Zun!K20) -> 0 | L20: =SUM(Dmr:Zun!L20) -> 0 | M20: =SUM(Dmr:Zun!M20) -> 0 | N20: =SUM(Dmr:Zun!N20) -> 0 | P20: =SUM(Dmr:Zun!P20) -> 0 | Q20: =SUM(Dmr:Zun!Q20) -> 0 | R20: =SUM(Dmr:Zun!R20) -> 0 | S20: =SUM(Dmr:Zun!S20) -> 0 | T20: =SUM(Dmr:Zun!T20) -> 0 | U20: =SUM(Dmr:Zun!U20) -> 0 | V20: =SUM(Dmr:Zun!V20) -> 0 | W20: =SUM(Dmr:Zun!W20) -> 0 | Y20: =SUM(Dmr:Zun!Y20) -> 0 | Z20: =SUM(Dmr:Zun!Z20) -> 0 | AA20: =SUM(Dmr:Zun!AA20) -> 0 | AB20: =SUM(Dmr:Zun!AB20) -> 0 | AC20: =SUM(Dmr:Zun!AC20) -> 0 | AD20: TRUE | AE20: TRUE | AF20: 0 | AG20: 0 | AH20: TRUE
A21: 2.04 | B21: Replacement of bedding (once in 3 years) | C21: =SUM(Dmr:Zun!C21) -> 0 | D21: =SUM(Dmr:Zun!D21) -> 0 | E21: =SUM(Dmr:Zun!E21) -> 0 | F21: =SUM(Dmr:Zun!F21) -> 0 | I21: =SUM(Dmr:Zun!I21) -> 0 | J21: =SUM(Dmr:Zun!J21) -> 0 | K21: =SUM(Dmr:Zun!K21) -> 0 | L21: =SUM(Dmr:Zun!L21) -> 0 | M21: =SUM(Dmr:Zun!M21) -> 0 | N21: =SUM(Dmr:Zun!N21) -> 0 | P21: =SUM(Dmr:Zun!P21) -> 0 | Q21: =SUM(Dmr:Zun!Q21) -> 0 | R21: =SUM(Dmr:Zun!R21) -> 0 | S21: =SUM(Dmr:Zun!S21) -> 0 | T21: =SUM(Dmr:Zun!T21) -> 0 | U21: =SUM(Dmr:Zun!U21) -> 0 | V21: =SUM(Dmr:Zun!V21) -> 0 | W21: =SUM(Dmr:Zun!W21) -> 0 | Y21: =SUM(Dmr:Zun!Y21) -> 0 | Z21: =SUM(Dmr:Zun!Z21) -> 0 | AA21: =SUM(Dmr:Zun!AA21) -> 0 | AB21: =SUM(Dmr:Zun!AB21) -> 0 | AC21: =SUM(Dmr:Zun!AC21) -> 0 | AD21: TRUE | AE21: TRUE | AF21: 0 | AG21: 0 | AH21: TRUE
B22: Sub Total (Non Recurring) | D22: =SUBTOTAL(9,D18:D21) -> 0 | F22: =SUBTOTAL(9,F18:F21) -> 0 | J22: =SUBTOTAL(9,J18:J21) -> 0 | L22: =SUBTOTAL(9,L18:L21) -> 0 | N22: =SUBTOTAL(9,N18:N21) -> 0 | Q22: =SUBTOTAL(9,Q18:Q21) -> 0 | S22: =SUBTOTAL(9,S18:S21) -> 0 | U22: =SUBTOTAL(9,U18:U21) -> 0 | W22: =SUBTOTAL(9,W18:W21) -> 0 | Z22: =SUBTOTAL(9,Z18:Z21) -> 0 | AB22: =SUBTOTAL(9,AB18:AB21) -> 0 | AC22: =SUM(Dmr:Zun!AC22) -> 0 | AD22: TRUE | AE22: TRUE | AF22: 0 | AG22: 0 | AH22: TRUE
B23: Recurring | AC23: =SUM(Dmr:Zun!AC23) -> 0 | AD23: TRUE | AE23: TRUE | AF23: 0 | AG23: 0 | AH23: TRUE
A24: 2.05 | B24: Maintenance per child Per month @ Rs.1500/- | C24: =SUM(Dmr:Zun!C24) -> 0 | D24: =SUM(Dmr:Zun!D24) -> 0 | E24: =SUM(Dmr:Zun!E24) -> 0 | F24: =SUM(Dmr:Zun!F24) -> 0 | I24: =SUM(Dmr:Zun!I24) -> 0 | J24: =SUM(Dmr:Zun!J24) -> 0 | K24: =SUM(Dmr:Zun!K24) -> 0 | L24: =SUM(Dmr:Zun!L24) -> 0 | M24: =SUM(Dmr:Zun!M24) -> 0 | N24: =SUM(Dmr:Zun!N24) -> 0 | P24: =SUM(Dmr:Zun!P24) -> 0 | Q24: =SUM(Dmr:Zun!Q24) -> 0 | R24: =SUM(Dmr:Zun!R24) -> 0 | S24: =SUM(Dmr:Zun!S24) -> 0 | T24: =SUM(Dmr:Zun!T24) -> 0 | U24: =SUM(Dmr:Zun!U24) -> 0 | V24: =SUM(Dmr:Zun!V24) -> 0 | W24: =SUM(Dmr:Zun!W24) -> 0 | Y24: =SUM(Dmr:Zun!Y24) -> 0 | Z24: =SUM(Dmr:Zun!Z24) -> 0 | AA24: =SUM(Dmr:Zun!AA24) -> 0 | AB24: =SUM(Dmr:Zun!AB24) -> 0 | AC24: =SUM(Dmr:Zun!AC24) -> 0 | AD24: TRUE | AE24: TRUE | AF24: 0 | AG24: 0 | AH24: TRUE
A25: 2.06 | B25: Stipend per child per month @ Rs.100/- | C25: =SUM(Dmr:Zun!C25) -> 0 | D25: =SUM(Dmr:Zun!D25) -> 0 | E25: =SUM(Dmr:Zun!E25) -> 0 | F25: =SUM(Dmr:Zun!F25) -> 0 | I25: =SUM(Dmr:Zun!I25) -> 0 | J25: =SUM(Dmr:Zun!J25) -> 0 | K25: =SUM(Dmr:Zun!K25) -> 0 | L25: =SUM(Dmr:Zun!L25) -> 0 | M25: =SUM(Dmr:Zun!M25) -> 0 | N25: =SUM(Dmr:Zun!N25) -> 0 | P25: =SUM(Dmr:Zun!P25) -> 0 | Q25: =SUM(Dmr:Zun!Q25) -> 0 | R25: =SUM(Dmr:Zun!R25) -> 0 | S25: =SUM(Dmr:Zun!S25) -> 0 | T25: =SUM(Dmr:Zun!T25) -> 0 | U25: =SUM(Dmr:Zun!U25) -> 0 | V25: =SUM(Dmr:Zun!V25) -> 0 | W25: =SUM(Dmr:Zun!W25) -> 0 | Y25: =SUM(Dmr:Zun!Y25) -> 0 | Z25: =SUM(Dmr:Zun!Z25) -> 0 | AA25: =SUM(Dmr:Zun!AA25) -> 0 | AB25: =SUM(Dmr:Zun!AB25) -> 0 | AC25: =SUM(Dmr:Zun!AC25) -> 0 | AD25: TRUE | AE25: TRUE | AF25: 0 | AG25: 0 | AH25: TRUE
A26: 2.07 | B26: Supplementary TLM, Stationery and other educational material @Rs.1000/- per child per annum | C26: =SUM(Dmr:Zun!C26) -> 0 | D26: =SUM(Dmr:Zun!D26) -> 0 | E26: =SUM(Dmr:Zun!E26) -> 0 | F26: =SUM(Dmr:Zun!F26) -> 0 | I26: =SUM(Dmr:Zun!I26) -> 0 | J26: =SUM(Dmr:Zun!J26) -> 0 | K26: =SUM(Dmr:Zun!K26) -> 0 | L26: =SUM(Dmr:Zun!L26) -> 0 | M26: =SUM(Dmr:Zun!M26) -> 0 | N26: =SUM(Dmr:Zun!N26) -> 0 | P26: =SUM(Dmr:Zun!P26) -> 0 | Q26: =SUM(Dmr:Zun!Q26) -> 0 | R26: =SUM(Dmr:Zun!R26) -> 0 | S26: =SUM(Dmr:Zun!S26) -> 0 | T26: =SUM(Dmr:Zun!T26) -> 0 | U26: =SUM(Dmr:Zun!U26) -> 0 | V26: =SUM(Dmr:Zun!V26) -> 0 | W26: =SUM(Dmr:Zun!W26) -> 0 | Y26: =SUM(Dmr:Zun!Y26) -> 0 | Z26: =SUM(Dmr:Zun!Z26) -> 0 | AA26: =SUM(Dmr:Zun!AA26) -> 0 | AB26: =SUM(Dmr:Zun!AB26) -> 0 | AC26: =SUM(Dmr:Zun!AC26) -> 0 | AD26: TRUE | AE26: TRUE | AF26: 0 | AG26: 0 | AH26: TRUE
A27: 2.08 | B27: Salaries | C27: =SUM(Dmr:Zun!C27) -> 0 | D27: =SUM(Dmr:Zun!D27) -> 0 | E27: =SUM(Dmr:Zun!E27) -> 0 | F27: =SUM(Dmr:Zun!F27) -> 0 | I27: =SUM(Dmr:Zun!I27) -> 0 | J27: =SUM(Dmr:Zun!J27) -> 0 | K27: =SUM(Dmr:Zun!K27) -> 0 | L27: =SUM(Dmr:Zun!L27) -> 0 | M27: =SUM(Dmr:Zun!M27) -> 0 | N27: =SUM(Dmr:Zun!N27) -> 0 | P27: =SUM(Dmr:Zun!P27) -> 0 | Q27: =SUM(Dmr:Zun!Q27) -> 0 | R27: =SUM(Dmr:Zun!R27) -> 0 | S27: =SUM(Dmr:Zun!S27) -> 0 | T27: =SUM(Dmr:Zun!T27) -> 0 | U27: =SUM(Dmr:Zun!U27) -> 0 | V27: =SUM(Dmr:Zun!V27) -> 0 | W27: =SUM(Dmr:Zun!W27) -> 0 | Y27: =SUM(Dmr:Zun!Y27) -> 0 | Z27: =SUM(Dmr:Zun!Z27) -> 0 | AA27: =SUM(Dmr:Zun!AA27) -> 0 | AB27: =SUM(Dmr:Zun!AB27) -> 0 | AC27: =SUM(Dmr:Zun!AC27) -> 0 | AD27: TRUE | AE27: TRUE | AF27: 0 | AG27: 0 | AH27: TRUE
A28: (a) | B28: 1 Warden @ Rs.25000/- per month | C28: =SUM(Dmr:Zun!C28) -> 0 | D28: =SUM(Dmr:Zun!D28) -> 0 | E28: =SUM(Dmr:Zun!E28) -> 0 | F28: =SUM(Dmr:Zun!F28) -> 0 | I28: =SUM(Dmr:Zun!I28) -> 0 | J28: =SUM(Dmr:Zun!J28) -> 0 | K28: =SUM(Dmr:Zun!K28) -> 0 | L28: =SUM(Dmr:Zun!L28) -> 0 | M28: =SUM(Dmr:Zun!M28) -> 0 | N28: =SUM(Dmr:Zun!N28) -> 0 | P28: =SUM(Dmr:Zun!P28) -> 0 | Q28: =SUM(Dmr:Zun!Q28) -> 0 | R28: =SUM(Dmr:Zun!R28) -> 0 | S28: =SUM(Dmr:Zun!S28) -> 0 | T28: =SUM(Dmr:Zun!T28) -> 0 | U28: =SUM(Dmr:Zun!U28) -> 0 | V28: =SUM(Dmr:Zun!V28) -> 0 | W28: =SUM(Dmr:Zun!W28) -> 0 | Y28: =SUM(Dmr:Zun!Y28) -> 0 | Z28: =SUM(Dmr:Zun!Z28) -> 0 | AA28: =SUM(Dmr:Zun!AA28) -> 0 | AB28: =SUM(Dmr:Zun!AB28) -> 0 | AC28: =SUM(Dmr:Zun!AC28) -> 0 | AD28: TRUE | AE28: TRUE | AF28: 0 | AG28: 0 | AH28: TRUE
A29: (b) | B29: 4 Fulltime teachers as per RTE Norms @ Rs. 20,000/- per month per teacher | C29: =SUM(Dmr:Zun!C29) -> 0 | D29: =SUM(Dmr:Zun!D29) -> 0 | E29: =SUM(Dmr:Zun!E29) -> 0 | F29: =SUM(Dmr:Zun!F29) -> 0 | I29: =SUM(Dmr:Zun!I29) -> 0 | J29: =SUM(Dmr:Zun!J29) -> 0 | K29: =SUM(Dmr:Zun!K29) -> 0 | L29: =SUM(Dmr:Zun!L29) -> 0 | M29: =SUM(Dmr:Zun!M29) -> 0 | N29: =SUM(Dmr:Zun!N29) -> 0 | P29: =SUM(Dmr:Zun!P29) -> 0 | Q29: =SUM(Dmr:Zun!Q29) -> 0 | R29: =SUM(Dmr:Zun!R29) -> 0 | S29: =SUM(Dmr:Zun!S29) -> 0 | T29: =SUM(Dmr:Zun!T29) -> 0 | U29: =SUM(Dmr:Zun!U29) -> 0 | V29: =SUM(Dmr:Zun!V29) -> 0 | W29: =SUM(Dmr:Zun!W29) -> 0 | Y29: =SUM(Dmr:Zun!Y29) -> 0 | Z29: =SUM(Dmr:Zun!Z29) -> 0 | AA29: =SUM(Dmr:Zun!AA29) -> 0 | AB29: =SUM(Dmr:Zun!AB29) -> 0 | AC29: =SUM(Dmr:Zun!AC29) -> 0 | AD29: TRUE | AE29: TRUE | AF29: 0 | AG29: 0 | AH29: TRUE
A30: (c) | B30: 2 Urdu Teachers (only for Blocks with muslim population above 20% and select urban areas) @ Rs.12,000/- per month per teacher. | C30: =SUM(Dmr:Zun!C30) -> 0 | D30: =SUM(Dmr:Zun!D30) -> 0 | E30: =SUM(Dmr:Zun!E30) -> 0 | F30: =SUM(Dmr:Zun!F30) -> 0 | I30: =SUM(Dmr:Zun!I30) -> 0 | J30: =SUM(Dmr:Zun!J30) -> 0 | K30: =SUM(Dmr:Zun!K30) -> 0 | L30: =SUM(Dmr:Zun!L30) -> 0 | M30: =SUM(Dmr:Zun!M30) -> 0 | N30: =SUM(Dmr:Zun!N30) -> 0 | P30: =SUM(Dmr:Zun!P30) -> 0 | Q30: =SUM(Dmr:Zun!Q30) -> 0 | R30: =SUM(Dmr:Zun!R30) -> 0 | S30: =SUM(Dmr:Zun!S30) -> 0 | T30: =SUM(Dmr:Zun!T30) -> 0 | U30: =SUM(Dmr:Zun!U30) -> 0 | V30: =SUM(Dmr:Zun!V30) -> 0 | W30: =SUM(Dmr:Zun!W30) -> 0 | Y30: =SUM(Dmr:Zun!Y30) -> 0 | Z30: =SUM(Dmr:Zun!Z30) -> 0 | AA30: =SUM(Dmr:Zun!AA30) -> 0 | AB30: =SUM(Dmr:Zun!AB30) -> 0 | AC30: =SUM(Dmr:Zun!AC30) -> 0 | AD30: TRUE | AE30: TRUE | AF30: 0 | AG30: 0 | AH30: TRUE
A31: (d) | B31: 3 Part time teachers @ Rs.5,000/- per month per teacher | C31: =SUM(Dmr:Zun!C31) -> 0 | D31: =SUM(Dmr:Zun!D31) -> 0 | E31: =SUM(Dmr:Zun!E31) -> 0 | F31: =SUM(Dmr:Zun!F31) -> 0 | I31: =SUM(Dmr:Zun!I31) -> 0 | J31: =SUM(Dmr:Zun!J31) -> 0 | K31: =SUM(Dmr:Zun!K31) -> 0 | L31: =SUM(Dmr:Zun!L31) -> 0 | M31: =SUM(Dmr:Zun!M31) -> 0 | N31: =SUM(Dmr:Zun!N31) -> 0 | P31: =SUM(Dmr:Zun!P31) -> 0 | Q31: =SUM(Dmr:Zun!Q31) -> 0 | R31: =SUM(Dmr:Zun!R31) -> 0 | S31: =SUM(Dmr:Zun!S31) -> 0 | T31: =SUM(Dmr:Zun!T31) -> 0 | U31: =SUM(Dmr:Zun!U31) -> 0 | V31: =SUM(Dmr:Zun!V31) -> 0 | W31: =SUM(Dmr:Zun!W31) -> 0 | Y31: =SUM(Dmr:Zun!Y31) -> 0 | Z31: =SUM(Dmr:Zun!Z31) -> 0 | AA31: =SUM(Dmr:Zun!AA31) -> 0 | AB31: =SUM(Dmr:Zun!AB31) -> 0 | AC31: =SUM(Dmr:Zun!AC31) -> 0 | AD31: TRUE | AE31: TRUE | AF31: 0 | AG31: 0 | AH31: TRUE
A32: (e) | B32: 1 Full time Accountant @ Rs. 10,000/- per month | C32: =SUM(Dmr:Zun!C32) -> 0 | D32: =SUM(Dmr:Zun!D32) -> 0 | E32: =SUM(Dmr:Zun!E32) -> 0 | F32: =SUM(Dmr:Zun!F32) -> 0 | I32: =SUM(Dmr:Zun!I32) -> 0 | J32: =SUM(Dmr:Zun!J32) -> 0 | K32: =SUM(Dmr:Zun!K32) -> 0 | L32: =SUM(Dmr:Zun!L32) -> 0 | M32: =SUM(Dmr:Zun!M32) -> 0 | N32: =SUM(Dmr:Zun!N32) -> 0 | P32: =SUM(Dmr:Zun!P32) -> 0 | Q32: =SUM(Dmr:Zun!Q32) -> 0 | R32: =SUM(Dmr:Zun!R32) -> 0 | S32: =SUM(Dmr:Zun!S32) -> 0 | T32: =SUM(Dmr:Zun!T32) -> 0 | U32: =SUM(Dmr:Zun!U32) -> 0 | V32: =SUM(Dmr:Zun!V32) -> 0 | W32: =SUM(Dmr:Zun!W32) -> 0 | Y32: =SUM(Dmr:Zun!Y32) -> 0 | Z32: =SUM(Dmr:Zun!Z32) -> 0 | AA32: =SUM(Dmr:Zun!AA32) -> 0 | AB32: =SUM(Dmr:Zun!AB32) -> 0 | AC32: =SUM(Dmr:Zun!AC32) -> 0 | AD32: TRUE | AE32: TRUE | AF32: 0 | AG32: 0 | AH32: TRUE
A33: (f) | B33: 2 Support staff - (Accountant/Assistant, Peon, Chowkidar) @ Rs. 5,000/- per month per staff | C33: =SUM(Dmr:Zun!C33) -> 0 | D33: =SUM(Dmr:Zun!D33) -> 0 | E33: =SUM(Dmr:Zun!E33) -> 0 | F33: =SUM(Dmr:Zun!F33) -> 0 | I33: =SUM(Dmr:Zun!I33) -> 0 | J33: =SUM(Dmr:Zun!J33) -> 0 | K33: =SUM(Dmr:Zun!K33) -> 0 | L33: =SUM(Dmr:Zun!L33) -> 0 | M33: =SUM(Dmr:Zun!M33) -> 0 | N33: =SUM(Dmr:Zun!N33) -> 0 | P33: =SUM(Dmr:Zun!P33) -> 0 | Q33: =SUM(Dmr:Zun!Q33) -> 0 | R33: =SUM(Dmr:Zun!R33) -> 0 | S33: =SUM(Dmr:Zun!S33) -> 0 | T33: =SUM(Dmr:Zun!T33) -> 0 | U33: =SUM(Dmr:Zun!U33) -> 0 | V33: =SUM(Dmr:Zun!V33) -> 0 | W33: =SUM(Dmr:Zun!W33) -> 0 | Y33: =SUM(Dmr:Zun!Y33) -> 0 | Z33: =SUM(Dmr:Zun!Z33) -> 0 | AA33: =SUM(Dmr:Zun!AA33) -> 0 | AB33: =SUM(Dmr:Zun!AB33) -> 0 | AC33: =SUM(Dmr:Zun!AC33) -> 0 | AD33: TRUE | AE33: TRUE | AF33: 0 | AG33: 0 | AH33: TRUE
A34: (g) | B34: 1 Head Cook @ Rs. 6,000/- per month and upto 2 Asstt. Cooks @ Rs. 4,500/- per month per cook | C34: =SUM(Dmr:Zun!C34) -> 0 | D34: =SUM(Dmr:Zun!D34) -> 0 | E34: =SUM(Dmr:Zun!E34) -> 0 | F34: =SUM(Dmr:Zun!F34) -> 0 | I34: =SUM(Dmr:Zun!I34) -> 0 | J34: =SUM(Dmr:Zun!J34) -> 0 | K34: =SUM(Dmr:Zun!K34) -> 0 | L34: =SUM(Dmr:Zun!L34) -> 0 | M34: =SUM(Dmr:Zun!M34) -> 0 | N34: =SUM(Dmr:Zun!N34) -> 0 | P34: =SUM(Dmr:Zun!P34) -> 0 | Q34: =SUM(Dmr:Zun!Q34) -> 0 | R34: =SUM(Dmr:Zun!R34) -> 0 | S34: =SUM(Dmr:Zun!S34) -> 0 | T34: =SUM(Dmr:Zun!T34) -> 0 | U34: =SUM(Dmr:Zun!U34) -> 0 | V34: =SUM(Dmr:Zun!V34) -> 0 | W34: =SUM(Dmr:Zun!W34) -> 0 | Y34: =SUM(Dmr:Zun!Y34) -> 0 | Z34: =SUM(Dmr:Zun!Z34) -> 0 | AA34: =SUM(Dmr:Zun!AA34) -> 0 | AB34: =SUM(Dmr:Zun!AB34) -> 0 | AC34: =SUM(Dmr:Zun!AC34) -> 0 | AD34: TRUE | AE34: TRUE | AF34: 0 | AG34: 0 | AH34: TRUE
A35: 2.09 | B35: Specific Skill training @ Rs.1000/- per annum per child | C35: =SUM(Dmr:Zun!C35) -> 0 | D35: =SUM(Dmr:Zun!D35) -> 0 | E35: =SUM(Dmr:Zun!E35) -> 0 | F35: =SUM(Dmr:Zun!F35) -> 0 | I35: =SUM(Dmr:Zun!I35) -> 0 | J35: =SUM(Dmr:Zun!J35) -> 0 | K35: =SUM(Dmr:Zun!K35) -> 0 | L35: =SUM(Dmr:Zun!L35) -> 0 | M35: =SUM(Dmr:Zun!M35) -> 0 | N35: =SUM(Dmr:Zun!N35) -> 0 | P35: =SUM(Dmr:Zun!P35) -> 0 | Q35: =SUM(Dmr:Zun!Q35) -> 0 | R35: =SUM(Dmr:Zun!R35) -> 0 | S35: =SUM(Dmr:Zun!S35) -> 0 | T35: =SUM(Dmr:Zun!T35) -> 0 | U35: =SUM(Dmr:Zun!U35) -> 0 | V35: =SUM(Dmr:Zun!V35) -> 0 | W35: =SUM(Dmr:Zun!W35) -> 0 | Y35: =SUM(Dmr:Zun!Y35) -> 0 | Z35: =SUM(Dmr:Zun!Z35) -> 0 | AA35: =SUM(Dmr:Zun!AA35) -> 0 | AB35: =SUM(Dmr:Zun!AB35) -> 0 | AC35: =SUM(Dmr:Zun!AC35) -> 0 | AD35: TRUE | AE35: TRUE | AF35: 0 | AG35: 0 | AH35: TRUE
A36: 2.1 | B36: Electricity / water charges @ Rs. 1000/- per annum per child | C36: =SUM(Dmr:Zun!C36) -> 0 | D36: =SUM(Dmr:Zun!D36) -> 0 | E36: =SUM(Dmr:Zun!E36) -> 0 | F36: =SUM(Dmr:Zun!F36) -> 0 | I36: =SUM(Dmr:Zun!I36) -> 0 | J36: =SUM(Dmr:Zun!J36) -> 0 | K36: =SUM(Dmr:Zun!K36) -> 0 | L36: =SUM(Dmr:Zun!L36) -> 0 | M36: =SUM(Dmr:Zun!M36) -> 0 | N36: =SUM(Dmr:Zun!N36) -> 0 | P36: =SUM(Dmr:Zun!P36) -> 0 | Q36: =SUM(Dmr:Zun!Q36) -> 0 | R36: =SUM(Dmr:Zun!R36) -> 0 | S36: =SUM(Dmr:Zun!S36) -> 0 | T36: =SUM(Dmr:Zun!T36) -> 0 | U36: =SUM(Dmr:Zun!U36) -> 0 | V36: =SUM(Dmr:Zun!V36) -> 0 | W36: =SUM(Dmr:Zun!W36) -> 0 | Y36: =SUM(Dmr:Zun!Y36) -> 0 | Z36: =SUM(Dmr:Zun!Z36) -> 0 | AA36: =SUM(Dmr:Zun!AA36) -> 0 | AB36: =SUM(Dmr:Zun!AB36) -> 0 | AC36: =SUM(Dmr:Zun!AC36) -> 0 | AD36: TRUE | AE36: TRUE | AF36: 0 | AG36: 0 | AH36: TRUE
A37: =+A36+0.01 -> 2.11 | B37: Medical care/contingencies @ Rs.1250/- per annum per child | C37: =SUM(Dmr:Zun!C37) -> 0 | D37: =SUM(Dmr:Zun!D37) -> 0 | E37: =SUM(Dmr:Zun!E37) -> 0 | F37: =SUM(Dmr:Zun!F37) -> 0 | I37: =SUM(Dmr:Zun!I37) -> 0 | J37: =SUM(Dmr:Zun!J37) -> 0 | K37: =SUM(Dmr:Zun!K37) -> 0 | L37: =SUM(Dmr:Zun!L37) -> 0 | M37: =SUM(Dmr:Zun!M37) -> 0 | N37: =SUM(Dmr:Zun!N37) -> 0 | P37: =SUM(Dmr:Zun!P37) -> 0 | Q37: =SUM(Dmr:Zun!Q37) -> 0 | R37: =SUM(Dmr:Zun!R37) -> 0 | S37: =SUM(Dmr:Zun!S37) -> 0 | T37: =SUM(Dmr:Zun!T37) -> 0 | U37: =SUM(Dmr:Zun!U37) -> 0 | V37: =SUM(Dmr:Zun!V37) -> 0 | W37: =SUM(Dmr:Zun!W37) -> 0 | Y37: =SUM(Dmr:Zun!Y37) -> 0 | Z37: =SUM(Dmr:Zun!Z37) -> 0 | AA37: =SUM(Dmr:Zun!AA37) -> 0 | AB37: =SUM(Dmr:Zun!AB37) -> 0 | AC37: =SUM(Dmr:Zun!AC37) -> 0 | AD37: TRUE | AE37: TRUE | AF37: 0 | AG37: 0 | AH37: TRUE
A38: =+A37+0.01 -> 2.12 | B38: Maintenance @ Rs. 750/- per child per annum | C38: =SUM(Dmr:Zun!C38) -> 0 | D38: =SUM(Dmr:Zun!D38) -> 0 | E38: =SUM(Dmr:Zun!E38) -> 0 | F38: =SUM(Dmr:Zun!F38) -> 0 | I38: =SUM(Dmr:Zun!I38) -> 0 | J38: =SUM(Dmr:Zun!J38) -> 0 | K38: =SUM(Dmr:Zun!K38) -> 0 | L38: =SUM(Dmr:Zun!L38) -> 0 | M38: =SUM(Dmr:Zun!M38) -> 0 | N38: =SUM(Dmr:Zun!N38) -> 0 | P38: =SUM(Dmr:Zun!P38) -> 0 | Q38: =SUM(Dmr:Zun!Q38) -> 0 | R38: =SUM(Dmr:Zun!R38) -> 0 | S38: =SUM(Dmr:Zun!S38) -> 0 | T38: =SUM(Dmr:Zun!T38) -> 0 | U38: =SUM(Dmr:Zun!U38) -> 0 | V38: =SUM(Dmr:Zun!V38) -> 0 | W38: =SUM(Dmr:Zun!W38) -> 0 | Y38: =SUM(Dmr:Zun!Y38) -> 0 | Z38: =SUM(Dmr:Zun!Z38) -> 0 | AA38: =SUM(Dmr:Zun!AA38) -> 0 | AB38: =SUM(Dmr:Zun!AB38) -> 0 | AC38: =SUM(Dmr:Zun!AC38) -> 0 | AD38: TRUE | AE38: TRUE | AF38: 0 | AG38: 0 | AH38: TRUE
A39: 2.13 | B39: Miscellaneous @ Rs. 750/- per child per annum | C39: =SUM(Dmr:Zun!C39) -> 0 | D39: =SUM(Dmr:Zun!D39) -> 0 | E39: =SUM(Dmr:Zun!E39) -> 0 | F39: =SUM(Dmr:Zun!F39) -> 0 | I39: =SUM(Dmr:Zun!I39) -> 0 | J39: =SUM(Dmr:Zun!J39) -> 0 | K39: =SUM(Dmr:Zun!K39) -> 0 | L39: =SUM(Dmr:Zun!L39) -> 0 | M39: =SUM(Dmr:Zun!M39) -> 0 | N39: =SUM(Dmr:Zun!N39) -> 0 | P39: =SUM(Dmr:Zun!P39) -> 0 | Q39: =SUM(Dmr:Zun!Q39) -> 0 | R39: =SUM(Dmr:Zun!R39) -> 0 | S39: =SUM(Dmr:Zun!S39) -> 0 | T39: =SUM(Dmr:Zun!T39) -> 0 | U39: =SUM(Dmr:Zun!U39) -> 0 | V39: =SUM(Dmr:Zun!V39) -> 0 | W39: =SUM(Dmr:Zun!W39) -> 0 | Y39: =SUM(Dmr:Zun!Y39) -> 0 | Z39: =SUM(Dmr:Zun!Z39) -> 0 | AA39: =SUM(Dmr:Zun!AA39) -> 0 | AB39: =SUM(Dmr:Zun!AB39) -> 0 | AC39: =SUM(Dmr:Zun!AC39) -> 0 | AD39: TRUE | AE39: TRUE | AF39: 0 | AG39: 0 | AH39: TRUE
A40: 2.14 | B40: Preparatory camps @ Rs. 300/- per child per annum | C40: =SUM(Dmr:Zun!C40) -> 0 | D40: =SUM(Dmr:Zun!D40) -> 0 | E40: =SUM(Dmr:Zun!E40) -> 0 | F40: =SUM(Dmr:Zun!F40) -> 0 | I40: =SUM(Dmr:Zun!I40) -> 0 | J40: =SUM(Dmr:Zun!J40) -> 0 | K40: =SUM(Dmr:Zun!K40) -> 0 | L40: =SUM(Dmr:Zun!L40) -> 0 | M40: =SUM(Dmr:Zun!M40) -> 0 | N40: =SUM(Dmr:Zun!N40) -> 0 | P40: =SUM(Dmr:Zun!P40) -> 0 | Q40: =SUM(Dmr:Zun!Q40) -> 0 | R40: =SUM(Dmr:Zun!R40) -> 0 | S40: =SUM(Dmr:Zun!S40) -> 0 | T40: =SUM(Dmr:Zun!T40) -> 0 | U40: =SUM(Dmr:Zun!U40) -> 0 | V40: =SUM(Dmr:Zun!V40) -> 0 | W40: =SUM(Dmr:Zun!W40) -> 0 | Y40: =SUM(Dmr:Zun!Y40) -> 0 | Z40: =SUM(Dmr:Zun!Z40) -> 0 | AA40: =SUM(Dmr:Zun!AA40) -> 0 | AB40: =SUM(Dmr:Zun!AB40) -> 0 | AC40: =SUM(Dmr:Zun!AC40) -> 0 | AD40: TRUE | AE40: TRUE | AF40: 0 | AG40: 0 | AH40: TRUE
A41: 2.15 | B41: P.T.A / school functions @ Rs. 300/- per child per annum | C41: =SUM(Dmr:Zun!C41) -> 0 | D41: =SUM(Dmr:Zun!D41) -> 0 | E41: =SUM(Dmr:Zun!E41) -> 0 | F41: =SUM(Dmr:Zun!F41) -> 0 | I41: =SUM(Dmr:Zun!I41) -> 0 | J41: =SUM(Dmr:Zun!J41) -> 0 | K41: =SUM(Dmr:Zun!K41) -> 0 | L41: =SUM(Dmr:Zun!L41) -> 0 | M41: =SUM(Dmr:Zun!M41) -> 0 | N41: =SUM(Dmr:Zun!N41) -> 0 | P41: =SUM(Dmr:Zun!P41) -> 0 | Q41: =SUM(Dmr:Zun!Q41) -> 0 | R41: =SUM(Dmr:Zun!R41) -> 0 | S41: =SUM(Dmr:Zun!S41) -> 0 | T41: =SUM(Dmr:Zun!T41) -> 0 | U41: =SUM(Dmr:Zun!U41) -> 0 | V41: =SUM(Dmr:Zun!V41) -> 0 | W41: =SUM(Dmr:Zun!W41) -> 0 | Y41: =SUM(Dmr:Zun!Y41) -> 0 | Z41: =SUM(Dmr:Zun!Z41) -> 0 | AA41: =SUM(Dmr:Zun!AA41) -> 0 | AB41: =SUM(Dmr:Zun!AB41) -> 0 | AC41: =SUM(Dmr:Zun!AC41) -> 0 | AD41: TRUE | AE41: TRUE | AF41: 0 | AG41: 0 | AH41: TRUE
A42: 2.16 | B42: Provision of Rent @ Rs. 10,000/- per child per annum | C42: =SUM(Dmr:Zun!C42) -> 0 | D42: =SUM(Dmr:Zun!D42) -> 0 | E42: =SUM(Dmr:Zun!E42) -> 0 | F42: =SUM(Dmr:Zun!F42) -> 0 | I42: =SUM(Dmr:Zun!I42) -> 0 | J42: =SUM(Dmr:Zun!J42) -> 0 | K42: =SUM(Dmr:Zun!K42) -> 0 | L42: =SUM(Dmr:Zun!L42) -> 0 | M42: =SUM(Dmr:Zun!M42) -> 0 | N42: =SUM(Dmr:Zun!N42) -> 0 | P42: =SUM(Dmr:Zun!P42) -> 0 | Q42: =SUM(Dmr:Zun!Q42) -> 0 | R42: =SUM(Dmr:Zun!R42) -> 0 | S42: =SUM(Dmr:Zun!S42) -> 0 | T42: =SUM(Dmr:Zun!T42) -> 0 | U42: =SUM(Dmr:Zun!U42) -> 0 | V42: =SUM(Dmr:Zun!V42) -> 0 | W42: =SUM(Dmr:Zun!W42) -> 0 | Y42: =SUM(Dmr:Zun!Y42) -> 0 | Z42: =SUM(Dmr:Zun!Z42) -> 0 | AA42: =SUM(Dmr:Zun!AA42) -> 0 | AB42: =SUM(Dmr:Zun!AB42) -> 0 | AC42: =SUM(Dmr:Zun!AC42) -> 0 | AD42: TRUE | AE42: TRUE | AF42: 0 | AG42: 0 | AH42: TRUE
A43: 2.17 | B43: Capacity Building @ Rs. 500/- per child per annum | C43: =SUM(Dmr:Zun!C43) -> 0 | D43: =SUM(Dmr:Zun!D43) -> 0 | E43: =SUM(Dmr:Zun!E43) -> 0 | F43: =SUM(Dmr:Zun!F43) -> 0 | I43: =SUM(Dmr:Zun!I43) -> 0 | J43: =SUM(Dmr:Zun!J43) -> 0 | K43: =SUM(Dmr:Zun!K43) -> 0 | L43: =SUM(Dmr:Zun!L43) -> 0 | M43: =SUM(Dmr:Zun!M43) -> 0 | N43: =SUM(Dmr:Zun!N43) -> 0 | P43: =SUM(Dmr:Zun!P43) -> 0 | Q43: =SUM(Dmr:Zun!Q43) -> 0 | R43: =SUM(Dmr:Zun!R43) -> 0 | S43: =SUM(Dmr:Zun!S43) -> 0 | T43: =SUM(Dmr:Zun!T43) -> 0 | U43: =SUM(Dmr:Zun!U43) -> 0 | V43: =SUM(Dmr:Zun!V43) -> 0 | W43: =SUM(Dmr:Zun!W43) -> 0 | Y43: =SUM(Dmr:Zun!Y43) -> 0 | Z43: =SUM(Dmr:Zun!Z43) -> 0 | AA43: =SUM(Dmr:Zun!AA43) -> 0 | AB43: =SUM(Dmr:Zun!AB43) -> 0 | AC43: =SUM(Dmr:Zun!AC43) -> 0 | AD43: TRUE | AE43: TRUE | AF43: 0 | AG43: 0 | AH43: TRUE
A44: 2.18 | B44: Physical / Self Defence Training @ Rs.200/- per child per annum | C44: =SUM(Dmr:Zun!C44) -> 0 | D44: =SUM(Dmr:Zun!D44) -> 0 | E44: =SUM(Dmr:Zun!E44) -> 0 | F44: =SUM(Dmr:Zun!F44) -> 0 | I44: =SUM(Dmr:Zun!I44) -> 0 | J44: =SUM(Dmr:Zun!J44) -> 0 | K44: =SUM(Dmr:Zun!K44) -> 0 | L44: =SUM(Dmr:Zun!L44) -> 0 | M44: =SUM(Dmr:Zun!M44) -> 0 | N44: =SUM(Dmr:Zun!N44) -> 0 | P44: =SUM(Dmr:Zun!P44) -> 0 | Q44: =SUM(Dmr:Zun!Q44) -> 0 | R44: =SUM(Dmr:Zun!R44) -> 0 | S44: =SUM(Dmr:Zun!S44) -> 0 | T44: =SUM(Dmr:Zun!T44) -> 0 | U44: =SUM(Dmr:Zun!U44) -> 0 | V44: =SUM(Dmr:Zun!V44) -> 0 | W44: =SUM(Dmr:Zun!W44) -> 0 | Y44: =SUM(Dmr:Zun!Y44) -> 0 | Z44: =SUM(Dmr:Zun!Z44) -> 0 | AA44: =SUM(Dmr:Zun!AA44) -> 0 | AB44: =SUM(Dmr:Zun!AB44) -> 0 | AC44: =SUM(Dmr:Zun!AC44) -> 0 | AD44: TRUE | AE44: TRUE | AF44: 0 | AG44: 0 | AH44: TRUE
B45: Sub Total (Recurring) | D45: =SUBTOTAL(9,D24:D44) -> 0 | F45: =SUBTOTAL(9,F24:F44) -> 0 | J45: =SUBTOTAL(9,J24:J44) -> 0 | L45: =SUBTOTAL(9,L24:L44) -> 0 | N45: =SUBTOTAL(9,N24:N44) -> 0 | Q45: =SUBTOTAL(9,Q24:Q44) -> 0 | S45: =SUBTOTAL(9,S24:S44) -> 0 | U45: =SUBTOTAL(9,U24:U44) -> 0 | W45: =SUBTOTAL(9,W24:W44) -> 0 | Z45: =SUBTOTAL(9,Z24:Z44) -> 0 | AB45: =SUBTOTAL(9,AB24:AB44) -> 0 | AC45: =SUM(Dmr:Zun!AC45) -> 0 | AD45: TRUE | AE45: TRUE | AF45: 0 | AG45: 0 | AH45: TRUE
B46: Total (Non Recurring + Recurring) | D46: =SUBTOTAL(9,D18:D45) -> 0 | F46: =SUBTOTAL(9,F18:F45) -> 0 | J46: =SUBTOTAL(9,J18:J45) -> 0 | L46: =SUBTOTAL(9,L18:L45) -> 0 | N46: =SUBTOTAL(9,N18:N45) -> 0 | Q46: =SUBTOTAL(9,Q18:Q45) -> 0 | S46: =SUBTOTAL(9,S18:S45) -> 0 | U46: =SUBTOTAL(9,U18:U45) -> 0 | W46: =SUBTOTAL(9,W18:W45) -> 0 | Z46: =SUBTOTAL(9,Z18:Z45) -> 0 | AB46: =SUBTOTAL(9,AB18:AB45) -> 0 | AC46: =SUM(Dmr:Zun!AC46) -> 0 | AD46: TRUE | AE46: TRUE | AF46: 0 | AG46: 0 | AH46: TRUE
B47: 100 children | AC47: =SUM(Dmr:Zun!AC47) -> 0 | AD47: TRUE | AE47: TRUE | AF47: 0 | AG47: 0 | AH47: TRUE
B48: Non-recurring (one time grant) | AC48: =SUM(Dmr:Zun!AC48) -> 0 | AD48: TRUE | AE48: TRUE | AF48: 0 | AG48: 0 | AH48: TRUE
A49: 2.19 | B49: Furniture / Equipment (including kitchen equipment) | C49: =SUM(Dmr:Zun!C49) -> 0 | D49: =SUM(Dmr:Zun!D49) -> 0 | E49: =SUM(Dmr:Zun!E49) -> 0 | F49: =SUM(Dmr:Zun!F49) -> 0 | I49: =SUM(Dmr:Zun!I49) -> 0 | J49: =SUM(Dmr:Zun!J49) -> 0 | K49: =SUM(Dmr:Zun!K49) -> 0 | L49: =SUM(Dmr:Zun!L49) -> 0 | M49: =SUM(Dmr:Zun!M49) -> 0 | N49: =SUM(Dmr:Zun!N49) -> 0 | P49: =SUM(Dmr:Zun!P49) -> 0 | Q49: =SUM(Dmr:Zun!Q49) -> 0 | R49: =SUM(Dmr:Zun!R49) -> 0 | S49: =SUM(Dmr:Zun!S49) -> 0 | T49: =SUM(Dmr:Zun!T49) -> 0 | U49: =SUM(Dmr:Zun!U49) -> 0 | V49: =SUM(Dmr:Zun!V49) -> 0 | W49: =SUM(Dmr:Zun!W49) -> 0 | X49: 3 | Y49: =SUM(Dmr:Zun!Y49) -> 0 | Z49: =SUM(Dmr:Zun!Z49) -> 0 | AA49: =SUM(Dmr:Zun!AA49) -> 0 | AB49: =SUM(Dmr:Zun!AB49) -> 0 | AC49: =SUM(Dmr:Zun!AC49) -> 0 | AD49: TRUE | AE49: TRUE | AF49: 0 | AG49: 0 | AH49: TRUE
A50: =+A49+0.01 -> 2.2 | B50: TLM and equipment including library books (New) | C50: =SUM(Dmr:Zun!C50) -> 0 | D50: =SUM(Dmr:Zun!D50) -> 0 | E50: =SUM(Dmr:Zun!E50) -> 0 | F50: =SUM(Dmr:Zun!F50) -> 0 | I50: =SUM(Dmr:Zun!I50) -> 0 | J50: =SUM(Dmr:Zun!J50) -> 0 | K50: =SUM(Dmr:Zun!K50) -> 0 | L50: =SUM(Dmr:Zun!L50) -> 0 | M50: =SUM(Dmr:Zun!M50) -> 0 | N50: =SUM(Dmr:Zun!N50) -> 0 | P50: =SUM(Dmr:Zun!P50) -> 0 | Q50: =SUM(Dmr:Zun!Q50) -> 0 | R50: =SUM(Dmr:Zun!R50) -> 0 | S50: =SUM(Dmr:Zun!S50) -> 0 | T50: =SUM(Dmr:Zun!T50) -> 0 | U50: =SUM(Dmr:Zun!U50) -> 0 | V50: =SUM(Dmr:Zun!V50) -> 0 | W50: =SUM(Dmr:Zun!W50) -> 0 | X50: 3.5 | Y50: =SUM(Dmr:Zun!Y50) -> 0 | Z50: =SUM(Dmr:Zun!Z50) -> 0 | AA50: =SUM(Dmr:Zun!AA50) -> 0 | AB50: =SUM(Dmr:Zun!AB50) -> 0 | AC50: =SUM(Dmr:Zun!AC50) -> 0 | AD50: TRUE | AE50: TRUE | AF50: 0 | AG50: 0 | AH50: TRUE
A51: 2.21 | B51: Bedding (New) | C51: =SUM(Dmr:Zun!C51) -> 0 | D51: =SUM(Dmr:Zun!D51) -> 0 | E51: =SUM(Dmr:Zun!E51) -> 0 | F51: =SUM(Dmr:Zun!F51) -> 0 | I51: =SUM(Dmr:Zun!I51) -> 0 | J51: =SUM(Dmr:Zun!J51) -> 0 | K51: =SUM(Dmr:Zun!K51) -> 0 | L51: =SUM(Dmr:Zun!L51) -> 0 | M51: =SUM(Dmr:Zun!M51) -> 0 | N51: =SUM(Dmr:Zun!N51) -> 0 | P51: =SUM(Dmr:Zun!P51) -> 0 | Q51: =SUM(Dmr:Zun!Q51) -> 0 | R51: =SUM(Dmr:Zun!R51) -> 0 | S51: =SUM(Dmr:Zun!S51) -> 0 | T51: =SUM(Dmr:Zun!T51) -> 0 | U51: =SUM(Dmr:Zun!U51) -> 0 | V51: =SUM(Dmr:Zun!V51) -> 0 | W51: =SUM(Dmr:Zun!W51) -> 0 | X51: 0.75 | Y51: =SUM(Dmr:Zun!Y51) -> 0 | Z51: =SUM(Dmr:Zun!Z51) -> 0 | AA51: =SUM(Dmr:Zun!AA51) -> 0 | AB51: =SUM(Dmr:Zun!AB51) -> 0 | AC51: =SUM(Dmr:Zun!AC51) -> 0 | AD51: TRUE | AE51: TRUE | AF51: 0 | AG51: 0 | AH51: TRUE
A52: 2.22 | B52: Replacement of bedding (once in 3 years) | C52: =SUM(Dmr:Zun!C52) -> 0 | D52: =SUM(Dmr:Zun!D52) -> 0 | E52: =SUM(Dmr:Zun!E52) -> 0 | F52: =SUM(Dmr:Zun!F52) -> 0 | I52: =SUM(Dmr:Zun!I52) -> 0 | J52: =SUM(Dmr:Zun!J52) -> 0 | K52: =SUM(Dmr:Zun!K52) -> 0 | L52: =SUM(Dmr:Zun!L52) -> 0 | M52: =SUM(Dmr:Zun!M52) -> 0 | N52: =SUM(Dmr:Zun!N52) -> 0 | P52: =SUM(Dmr:Zun!P52) -> 0 | Q52: =SUM(Dmr:Zun!Q52) -> 0 | R52: =SUM(Dmr:Zun!R52) -> 0 | S52: =SUM(Dmr:Zun!S52) -> 0 | T52: =SUM(Dmr:Zun!T52) -> 0 | U52: =SUM(Dmr:Zun!U52) -> 0 | V52: =SUM(Dmr:Zun!V52) -> 0 | W52: =SUM(Dmr:Zun!W52) -> 0 | X52: 0.75 | Y52: =SUM(Dmr:Zun!Y52) -> 0 | Z52: =SUM(Dmr:Zun!Z52) -> 0 | AA52: =SUM(Dmr:Zun!AA52) -> 0 | AB52: =SUM(Dmr:Zun!AB52) -> 0 | AC52: =SUM(Dmr:Zun!AC52) -> 0 | AD52: TRUE | AE52: TRUE | AF52: 0 | AG52: 0 | AH52: TRUE
B53: Sub Total Non-recurring | D53: =SUBTOTAL(9,D49:D52) -> 0 | F53: =SUBTOTAL(9,F49:F52) -> 0 | J53: =SUBTOTAL(9,J49:J52) -> 0 | L53: =SUBTOTAL(9,L49:L52) -> 0 | N53: =SUBTOTAL(9,N49:N52) -> 0 | Q53: =SUBTOTAL(9,Q49:Q52) -> 0 | S53: =SUBTOTAL(9,S49:S52) -> 0 | U53: =SUBTOTAL(9,U49:U52) -> 0 | W53: =SUBTOTAL(9,W49:W52) -> 0 | Z53: =SUBTOTAL(9,Z49:Z52) -> 0 | AB53: =SUBTOTAL(9,AB49:AB52) -> 0 | AC53: =SUM(Dmr:Zun!AC53) -> 0 | AD53: TRUE | AE53: TRUE | AF53: 0 | AG53: 0 | AH53: TRUE
B54: Recurring | AC54: =SUM(Dmr:Zun!AC54) -> 0 | AD54: TRUE | AE54: TRUE | AF54: 0 | AG54: 0 | AH54: TRUE
A55: 2.23 | B55: Maintenance per child per month @ Rs. 1500/- | C55: =SUM(Dmr:Zun!C55) -> 0 | D55: =SUM(Dmr:Zun!D55) -> 0 | E55: =SUM(Dmr:Zun!E55) -> 0 | F55: =SUM(Dmr:Zun!F55) -> 0 | I55: =SUM(Dmr:Zun!I55) -> 0 | J55: =SUM(Dmr:Zun!J55) -> 0 | K55: =SUM(Dmr:Zun!K55) -> 0 | L55: =SUM(Dmr:Zun!L55) -> 0 | M55: =SUM(Dmr:Zun!M55) -> 0 | N55: =SUM(Dmr:Zun!N55) -> 0 | P55: =SUM(Dmr:Zun!P55) -> 0 | Q55: =SUM(Dmr:Zun!Q55) -> 0 | R55: =SUM(Dmr:Zun!R55) -> 0 | S55: =SUM(Dmr:Zun!S55) -> 0 | T55: =SUM(Dmr:Zun!T55) -> 0 | U55: =SUM(Dmr:Zun!U55) -> 0 | V55: =SUM(Dmr:Zun!V55) -> 0 | W55: =SUM(Dmr:Zun!W55) -> 0 | X55: 9 | Y55: =SUM(Dmr:Zun!Y55) -> 0 | Z55: =SUM(Dmr:Zun!Z55) -> 0 | AA55: =SUM(Dmr:Zun!AA55) -> 0 | AB55: =SUM(Dmr:Zun!AB55) -> 0 | AC55: =SUM(Dmr:Zun!AC55) -> 0 | AD55: TRUE | AE55: TRUE | AF55: 0 | AG55: 0 | AH55: TRUE
A56: =+A55+0.01 -> 2.24 | B56: Stipend per child per month @ Rs.100/- | C56: =SUM(Dmr:Zun!C56) -> 0 | D56: =SUM(Dmr:Zun!D56) -> 0 | E56: =SUM(Dmr:Zun!E56) -> 0 | F56: =SUM(Dmr:Zun!F56) -> 0 | I56: =SUM(Dmr:Zun!I56) -> 0 | J56: =SUM(Dmr:Zun!J56) -> 0 | K56: =SUM(Dmr:Zun!K56) -> 0 | L56: =SUM(Dmr:Zun!L56) -> 0 | M56: =SUM(Dmr:Zun!M56) -> 0 | N56: =SUM(Dmr:Zun!N56) -> 0 | P56: =SUM(Dmr:Zun!P56) -> 0 | Q56: =SUM(Dmr:Zun!Q56) -> 0 | R56: =SUM(Dmr:Zun!R56) -> 0 | S56: =SUM(Dmr:Zun!S56) -> 0 | T56: =SUM(Dmr:Zun!T56) -> 0 | U56: =SUM(Dmr:Zun!U56) -> 0 | V56: =SUM(Dmr:Zun!V56) -> 0 | W56: =SUM(Dmr:Zun!W56) -> 0 | X56: 0.06 | Y56: =SUM(Dmr:Zun!Y56) -> 0 | Z56: =SUM(Dmr:Zun!Z56) -> 0 | AA56: =SUM(Dmr:Zun!AA56) -> 0 | AB56: =SUM(Dmr:Zun!AB56) -> 0 | AC56: =SUM(Dmr:Zun!AC56) -> 0 | AD56: TRUE | AE56: TRUE | AF56: 0 | AG56: 0 | AH56: TRUE
A57: 2.25 | B57: Supplementary TLM, Stationery and other educational material per child @1000/- per annum | C57: =SUM(Dmr:Zun!C57) -> 0 | D57: =SUM(Dmr:Zun!D57) -> 0 | E57: =SUM(Dmr:Zun!E57) -> 0 | F57: =SUM(Dmr:Zun!F57) -> 0 | I57: =SUM(Dmr:Zun!I57) -> 0 | J57: =SUM(Dmr:Zun!J57) -> 0 | K57: =SUM(Dmr:Zun!K57) -> 0 | L57: =SUM(Dmr:Zun!L57) -> 0 | M57: =SUM(Dmr:Zun!M57) -> 0 | N57: =SUM(Dmr:Zun!N57) -> 0 | P57: =SUM(Dmr:Zun!P57) -> 0 | Q57: =SUM(Dmr:Zun!Q57) -> 0 | R57: =SUM(Dmr:Zun!R57) -> 0 | S57: =SUM(Dmr:Zun!S57) -> 0 | T57: =SUM(Dmr:Zun!T57) -> 0 | U57: =SUM(Dmr:Zun!U57) -> 0 | V57: =SUM(Dmr:Zun!V57) -> 0 | W57: =SUM(Dmr:Zun!W57) -> 0 | X57: 1 | Y57: =SUM(Dmr:Zun!Y57) -> 0 | Z57: =SUM(Dmr:Zun!Z57) -> 0 | AA57: =SUM(Dmr:Zun!AA57) -> 0 | AB57: =SUM(Dmr:Zun!AB57) -> 0 | AC57: =SUM(Dmr:Zun!AC57) -> 0 | AD57: TRUE | AE57: TRUE | AF57: 0 | AG57: 0 | AH57: TRUE
A58: 2.26 | B58: Salaries | C58: =SUM(Dmr:Zun!C58) -> 0 | D58: =SUM(Dmr:Zun!D58) -> 0 | E58: =SUM(Dmr:Zun!E58) -> 0 | F58: =SUM(Dmr:Zun!F58) -> 0 | I58: =SUM(Dmr:Zun!I58) -> 0 | J58: =SUM(Dmr:Zun!J58) -> 0 | K58: =SUM(Dmr:Zun!K58) -> 0 | L58: =SUM(Dmr:Zun!L58) -> 0 | M58: =SUM(Dmr:Zun!M58) -> 0 | N58: =SUM(Dmr:Zun!N58) -> 0 | P58: =SUM(Dmr:Zun!P58) -> 0 | Q58: =SUM(Dmr:Zun!Q58) -> 0 | R58: =SUM(Dmr:Zun!R58) -> 0 | S58: =SUM(Dmr:Zun!S58) -> 0 | T58: =SUM(Dmr:Zun!T58) -> 0 | U58: =SUM(Dmr:Zun!U58) -> 0 | V58: =SUM(Dmr:Zun!V58) -> 0 | W58: =SUM(Dmr:Zun!W58) -> 0 | Y58: =SUM(Dmr:Zun!Y58) -> 0 | Z58: =SUM(Dmr:Zun!Z58) -> 0 | AA58: =SUM(Dmr:Zun!AA58) -> 0 | AB58: =SUM(Dmr:Zun!AB58) -> 0 | AC58: =SUM(Dmr:Zun!AC58) -> 0 | AD58: TRUE | AE58: TRUE | AF58: 0 | AG58: 0 | AH58: TRUE
A59: (a) | B59: 1 Warden @ Rs. 25,000/- per month | C59: =SUM(Dmr:Zun!C59) -> 0 | D59: =SUM(Dmr:Zun!D59) -> 0 | E59: =SUM(Dmr:Zun!E59) -> 0 | F59: =SUM(Dmr:Zun!F59) -> 0 | I59: =SUM(Dmr:Zun!I59) -> 0 | J59: =SUM(Dmr:Zun!J59) -> 0 | K59: =SUM(Dmr:Zun!K59) -> 0 | L59: =SUM(Dmr:Zun!L59) -> 0 | M59: =SUM(Dmr:Zun!M59) -> 0 | N59: =SUM(Dmr:Zun!N59) -> 0 | P59: =SUM(Dmr:Zun!P59) -> 0 | Q59: =SUM(Dmr:Zun!Q59) -> 0 | R59: =SUM(Dmr:Zun!R59) -> 0 | S59: =SUM(Dmr:Zun!S59) -> 0 | T59: =SUM(Dmr:Zun!T59) -> 0 | U59: =SUM(Dmr:Zun!U59) -> 0 | V59: =SUM(Dmr:Zun!V59) -> 0 | W59: =SUM(Dmr:Zun!W59) -> 0 | X59: 3 | Y59: =SUM(Dmr:Zun!Y59) -> 0 | Z59: =SUM(Dmr:Zun!Z59) -> 0 | AA59: =SUM(Dmr:Zun!AA59) -> 0 | AB59: =SUM(Dmr:Zun!AB59) -> 0 | AC59: =SUM(Dmr:Zun!AC59) -> 0 | AD59: TRUE | AE59: TRUE | AF59: 0 | AG59: 0 | AH59: TRUE
A60: (b) | B60: 1 head teacher @ Rs. 25,000/- per month in case the enrollment exceeds 100 | C60: =SUM(Dmr:Zun!C60) -> 0 | D60: =SUM(Dmr:Zun!D60) -> 0 | E60: =SUM(Dmr:Zun!E60) -> 0 | F60: =SUM(Dmr:Zun!F60) -> 0 | I60: =SUM(Dmr:Zun!I60) -> 0 | J60: =SUM(Dmr:Zun!J60) -> 0 | K60: =SUM(Dmr:Zun!K60) -> 0 | L60: =SUM(Dmr:Zun!L60) -> 0 | M60: =SUM(Dmr:Zun!M60) -> 0 | N60: =SUM(Dmr:Zun!N60) -> 0 | P60: =SUM(Dmr:Zun!P60) -> 0 | Q60: =SUM(Dmr:Zun!Q60) -> 0 | R60: =SUM(Dmr:Zun!R60) -> 0 | S60: =SUM(Dmr:Zun!S60) -> 0 | T60: =SUM(Dmr:Zun!T60) -> 0 | U60: =SUM(Dmr:Zun!U60) -> 0 | V60: =SUM(Dmr:Zun!V60) -> 0 | W60: =SUM(Dmr:Zun!W60) -> 0 | Y60: =SUM(Dmr:Zun!Y60) -> 0 | Z60: =SUM(Dmr:Zun!Z60) -> 0 | AA60: =SUM(Dmr:Zun!AA60) -> 0 | AB60: =SUM(Dmr:Zun!AB60) -> 0 | AC60: =SUM(Dmr:Zun!AC60) -> 0 | AD60: TRUE | AE60: TRUE | AF60: 0 | AG60: 0 | AH60: TRUE
A61: (c) | B61: 4 - 5 Full time teachers as per RTE norms @ Rs. 20,000/- per month per teacher | C61: =SUM(Dmr:Zun!C61) -> 0 | D61: =SUM(Dmr:Zun!D61) -> 0 | E61: =SUM(Dmr:Zun!E61) -> 0 | F61: =SUM(Dmr:Zun!F61) -> 0 | I61: =SUM(Dmr:Zun!I61) -> 0 | J61: =SUM(Dmr:Zun!J61) -> 0 | K61: =SUM(Dmr:Zun!K61) -> 0 | L61: =SUM(Dmr:Zun!L61) -> 0 | M61: =SUM(Dmr:Zun!M61) -> 0 | N61: =SUM(Dmr:Zun!N61) -> 0 | P61: =SUM(Dmr:Zun!P61) -> 0 | Q61: =SUM(Dmr:Zun!Q61) -> 0 | R61: =SUM(Dmr:Zun!R61) -> 0 | S61: =SUM(Dmr:Zun!S61) -> 0 | T61: =SUM(Dmr:Zun!T61) -> 0 | U61: =SUM(Dmr:Zun!U61) -> 0 | V61: =SUM(Dmr:Zun!V61) -> 0 | W61: =SUM(Dmr:Zun!W61) -> 0 | X61: 9.6 | Y61: =SUM(Dmr:Zun!Y61) -> 0 | Z61: =SUM(Dmr:Zun!Z61) -> 0 | AA61: =SUM(Dmr:Zun!AA61) -> 0 | AB61: =SUM(Dmr:Zun!AB61) -> 0 | AC61: =SUM(Dmr:Zun!AC61) -> 0 | AD61: TRUE | AE61: TRUE | AF61: 0 | AG61: 0 | AH61: TRUE
A62: (d) | B62: 2 Urdu Teachers (only for blocks with muslim population above 20% and select urban areas), if required @ Rs. 12,000/- per month per teacher | C62: =SUM(Dmr:Zun!C62) -> 0 | D62: =SUM(Dmr:Zun!D62) -> 0 | E62: =SUM(Dmr:Zun!E62) -> 0 | F62: =SUM(Dmr:Zun!F62) -> 0 | I62: =SUM(Dmr:Zun!I62) -> 0 | J62: =SUM(Dmr:Zun!J62) -> 0 | K62: =SUM(Dmr:Zun!K62) -> 0 | L62: =SUM(Dmr:Zun!L62) -> 0 | M62: =SUM(Dmr:Zun!M62) -> 0 | N62: =SUM(Dmr:Zun!N62) -> 0 | P62: =SUM(Dmr:Zun!P62) -> 0 | Q62: =SUM(Dmr:Zun!Q62) -> 0 | R62: =SUM(Dmr:Zun!R62) -> 0 | S62: =SUM(Dmr:Zun!S62) -> 0 | T62: =SUM(Dmr:Zun!T62) -> 0 | U62: =SUM(Dmr:Zun!U62) -> 0 | V62: =SUM(Dmr:Zun!V62) -> 0 | W62: =SUM(Dmr:Zun!W62) -> 0 | Y62: =SUM(Dmr:Zun!Y62) -> 0 | Z62: =SUM(Dmr:Zun!Z62) -> 0 | AA62: =SUM(Dmr:Zun!AA62) -> 0 | AB62: =SUM(Dmr:Zun!AB62) -> 0 | AC62: =SUM(Dmr:Zun!AC62) -> 0 | AD62: TRUE | AE62: TRUE | AF62: 0 | AG62: 0 | AH62: TRUE
A63: (e) | B63: 3 part time teachers @ Rs. 5,000/- per month per teacher | C63: =SUM(Dmr:Zun!C63) -> 0 | D63: =SUM(Dmr:Zun!D63) -> 0 | E63: =SUM(Dmr:Zun!E63) -> 0 | F63: =SUM(Dmr:Zun!F63) -> 0 | I63: =SUM(Dmr:Zun!I63) -> 0 | J63: =SUM(Dmr:Zun!J63) -> 0 | K63: =SUM(Dmr:Zun!K63) -> 0 | L63: =SUM(Dmr:Zun!L63) -> 0 | M63: =SUM(Dmr:Zun!M63) -> 0 | N63: =SUM(Dmr:Zun!N63) -> 0 | P63: =SUM(Dmr:Zun!P63) -> 0 | Q63: =SUM(Dmr:Zun!Q63) -> 0 | R63: =SUM(Dmr:Zun!R63) -> 0 | S63: =SUM(Dmr:Zun!S63) -> 0 | T63: =SUM(Dmr:Zun!T63) -> 0 | U63: =SUM(Dmr:Zun!U63) -> 0 | V63: =SUM(Dmr:Zun!V63) -> 0 | W63: =SUM(Dmr:Zun!W63) -> 0 | X63: 1.8 | Y63: =SUM(Dmr:Zun!Y63) -> 0 | Z63: =SUM(Dmr:Zun!Z63) -> 0 | AA63: =SUM(Dmr:Zun!AA63) -> 0 | AB63: =SUM(Dmr:Zun!AB63) -> 0 | AC63: =SUM(Dmr:Zun!AC63) -> 0 | AD63: TRUE | AE63: TRUE | AF63: 0 | AG63: 0 | AH63: TRUE
A64: (f) | B64: 1 Full time Accountant @ Rs. 10,000/- per month | C64: =SUM(Dmr:Zun!C64) -> 0 | D64: =SUM(Dmr:Zun!D64) -> 0 | E64: =SUM(Dmr:Zun!E64) -> 0 | F64: =SUM(Dmr:Zun!F64) -> 0 | I64: =SUM(Dmr:Zun!I64) -> 0 | J64: =SUM(Dmr:Zun!J64) -> 0 | K64: =SUM(Dmr:Zun!K64) -> 0 | L64: =SUM(Dmr:Zun!L64) -> 0 | M64: =SUM(Dmr:Zun!M64) -> 0 | N64: =SUM(Dmr:Zun!N64) -> 0 | P64: =SUM(Dmr:Zun!P64) -> 0 | Q64: =SUM(Dmr:Zun!Q64) -> 0 | R64: =SUM(Dmr:Zun!R64) -> 0 | S64: =SUM(Dmr:Zun!S64) -> 0 | T64: =SUM(Dmr:Zun!T64) -> 0 | U64: =SUM(Dmr:Zun!U64) -> 0 | V64: =SUM(Dmr:Zun!V64) -> 0 | W64: =SUM(Dmr:Zun!W64) -> 0 | X64: 1.2 | Y64: =SUM(Dmr:Zun!Y64) -> 0 | Z64: =SUM(Dmr:Zun!Z64) -> 0 | AA64: =SUM(Dmr:Zun!AA64) -> 0 | AB64: =SUM(Dmr:Zun!AB64) -> 0 | AC64: =SUM(Dmr:Zun!AC64) -> 0 | AD64: TRUE | AE64: TRUE | AF64: 0 | AG64: 0 | AH64: TRUE
A65: (g) | B65: 2 Support Staff – (Accountant/ Assistant, Peon, Chowkidar) @ Rs. 5,000/- per month per staff | C65: =SUM(Dmr:Zun!C65) -> 0 | D65: =SUM(Dmr:Zun!D65) -> 0 | E65: =SUM(Dmr:Zun!E65) -> 0 | F65: =SUM(Dmr:Zun!F65) -> 0 | I65: =SUM(Dmr:Zun!I65) -> 0 | J65: =SUM(Dmr:Zun!J65) -> 0 | K65: =SUM(Dmr:Zun!K65) -> 0 | L65: =SUM(Dmr:Zun!L65) -> 0 | M65: =SUM(Dmr:Zun!M65) -> 0 | N65: =SUM(Dmr:Zun!N65) -> 0 | P65: =SUM(Dmr:Zun!P65) -> 0 | Q65: =SUM(Dmr:Zun!Q65) -> 0 | R65: =SUM(Dmr:Zun!R65) -> 0 | S65: =SUM(Dmr:Zun!S65) -> 0 | T65: =SUM(Dmr:Zun!T65) -> 0 | U65: =SUM(Dmr:Zun!U65) -> 0 | V65: =SUM(Dmr:Zun!V65) -> 0 | W65: =SUM(Dmr:Zun!W65) -> 0 | X65: 1.2 | Y65: =SUM(Dmr:Zun!Y65) -> 0 | Z65: =SUM(Dmr:Zun!Z65) -> 0 | AA65: =SUM(Dmr:Zun!AA65) -> 0 | AB65: =SUM(Dmr:Zun!AB65) -> 0 | AC65: =SUM(Dmr:Zun!AC65) -> 0 | AD65: TRUE | AE65: TRUE | AF65: 0 | AG65: 0 | AH65: TRUE
A66: (h) | B66: 1 Head cook @ Rs. 6,000/- per month and upto 2 Asstt. Cooks @ Rs. 4,500/- per month per cook | C66: =SUM(Dmr:Zun!C66) -> 0 | D66: =SUM(Dmr:Zun!D66) -> 0 | E66: =SUM(Dmr:Zun!E66) -> 0 | F66: =SUM(Dmr:Zun!F66) -> 0 | I66: =SUM(Dmr:Zun!I66) -> 0 | J66: =SUM(Dmr:Zun!J66) -> 0 | K66: =SUM(Dmr:Zun!K66) -> 0 | L66: =SUM(Dmr:Zun!L66) -> 0 | M66: =SUM(Dmr:Zun!M66) -> 0 | N66: =SUM(Dmr:Zun!N66) -> 0 | P66: =SUM(Dmr:Zun!P66) -> 0 | Q66: =SUM(Dmr:Zun!Q66) -> 0 | R66: =SUM(Dmr:Zun!R66) -> 0 | S66: =SUM(Dmr:Zun!S66) -> 0 | T66: =SUM(Dmr:Zun!T66) -> 0 | U66: =SUM(Dmr:Zun!U66) -> 0 | V66: =SUM(Dmr:Zun!V66) -> 0 | W66: =SUM(Dmr:Zun!W66) -> 0 | X66: 1.8 | Y66: =SUM(Dmr:Zun!Y66) -> 0 | Z66: =SUM(Dmr:Zun!Z66) -> 0 | AA66: =SUM(Dmr:Zun!AA66) -> 0 | AB66: =SUM(Dmr:Zun!AB66) -> 0 | AC66: =SUM(Dmr:Zun!AC66) -> 0 | AD66: TRUE | AE66: TRUE | AF66: 0 | AG66: 0 | AH66: TRUE
A67: 2.27 | B67: Specific skill training per child @ Rs.1000/- per annum | C67: =SUM(Dmr:Zun!C67) -> 0 | D67: =SUM(Dmr:Zun!D67) -> 0 | E67: =SUM(Dmr:Zun!E67) -> 0 | F67: =SUM(Dmr:Zun!F67) -> 0 | I67: =SUM(Dmr:Zun!I67) -> 0 | J67: =SUM(Dmr:Zun!J67) -> 0 | K67: =SUM(Dmr:Zun!K67) -> 0 | L67: =SUM(Dmr:Zun!L67) -> 0 | M67: =SUM(Dmr:Zun!M67) -> 0 | N67: =SUM(Dmr:Zun!N67) -> 0 | P67: =SUM(Dmr:Zun!P67) -> 0 | Q67: =SUM(Dmr:Zun!Q67) -> 0 | R67: =SUM(Dmr:Zun!R67) -> 0 | S67: =SUM(Dmr:Zun!S67) -> 0 | T67: =SUM(Dmr:Zun!T67) -> 0 | U67: =SUM(Dmr:Zun!U67) -> 0 | V67: =SUM(Dmr:Zun!V67) -> 0 | W67: =SUM(Dmr:Zun!W67) -> 0 | X67: 1 | Y67: =SUM(Dmr:Zun!Y67) -> 0 | Z67: =SUM(Dmr:Zun!Z67) -> 0 | AA67: =SUM(Dmr:Zun!AA67) -> 0 | AB67: =SUM(Dmr:Zun!AB67) -> 0 | AC67: =SUM(Dmr:Zun!AC67) -> 0 | AD67: TRUE | AE67: TRUE | AF67: 0 | AG67: 0 | AH67: TRUE
A68: 2.28 | B68: Electricity / water charges per child @Rs.1000/- per annum | C68: =SUM(Dmr:Zun!C68) -> 0 | D68: =SUM(Dmr:Zun!D68) -> 0 | E68: =SUM(Dmr:Zun!E68) -> 0 | F68: =SUM(Dmr:Zun!F68) -> 0 | I68: =SUM(Dmr:Zun!I68) -> 0 | J68: =SUM(Dmr:Zun!J68) -> 0 | K68: =SUM(Dmr:Zun!K68) -> 0 | L68: =SUM(Dmr:Zun!L68) -> 0 | M68: =SUM(Dmr:Zun!M68) -> 0 | N68: =SUM(Dmr:Zun!N68) -> 0 | P68: =SUM(Dmr:Zun!P68) -> 0 | Q68: =SUM(Dmr:Zun!Q68) -> 0 | R68: =SUM(Dmr:Zun!R68) -> 0 | S68: =SUM(Dmr:Zun!S68) -> 0 | T68: =SUM(Dmr:Zun!T68) -> 0 | U68: =SUM(Dmr:Zun!U68) -> 0 | V68: =SUM(Dmr:Zun!V68) -> 0 | W68: =SUM(Dmr:Zun!W68) -> 0 | X68: 0.5 | Y68: =SUM(Dmr:Zun!Y68) -> 0 | Z68: =SUM(Dmr:Zun!Z68) -> 0 | AA68: =SUM(Dmr:Zun!AA68) -> 0 | AB68: =SUM(Dmr:Zun!AB68) -> 0 | AC68: =SUM(Dmr:Zun!AC68) -> 0 | AD68: TRUE | AE68: TRUE | AF68: 0 | AG68: 0 | AH68: TRUE
A69: 2.29 | B69: Medical care/contingencies @ Rs.1250/- per child per annum | C69: =SUM(Dmr:Zun!C69) -> 0 | D69: =SUM(Dmr:Zun!D69) -> 0 | E69: =SUM(Dmr:Zun!E69) -> 0 | F69: =SUM(Dmr:Zun!F69) -> 0 | I69: =SUM(Dmr:Zun!I69) -> 0 | J69: =SUM(Dmr:Zun!J69) -> 0 | K69: =SUM(Dmr:Zun!K69) -> 0 | L69: =SUM(Dmr:Zun!L69) -> 0 | M69: =SUM(Dmr:Zun!M69) -> 0 | N69: =SUM(Dmr:Zun!N69) -> 0 | P69: =SUM(Dmr:Zun!P69) -> 0 | Q69: =SUM(Dmr:Zun!Q69) -> 0 | R69: =SUM(Dmr:Zun!R69) -> 0 | S69: =SUM(Dmr:Zun!S69) -> 0 | T69: =SUM(Dmr:Zun!T69) -> 0 | U69: =SUM(Dmr:Zun!U69) -> 0 | V69: =SUM(Dmr:Zun!V69) -> 0 | W69: =SUM(Dmr:Zun!W69) -> 0 | X69: 0.625 | Y69: =SUM(Dmr:Zun!Y69) -> 0 | Z69: =SUM(Dmr:Zun!Z69) -> 0 | AA69: =SUM(Dmr:Zun!AA69) -> 0 | AB69: =SUM(Dmr:Zun!AB69) -> 0 | AC69: =SUM(Dmr:Zun!AC69) -> 0 | AD69: TRUE | AE69: TRUE | AF69: 0 | AG69: 0 | AH69: TRUE
A70: 2.3 | B70: Maintenance @ Rs.750/- per child per annum | C70: =SUM(Dmr:Zun!C70) -> 0 | D70: =SUM(Dmr:Zun!D70) -> 0 | E70: =SUM(Dmr:Zun!E70) -> 0 | F70: =SUM(Dmr:Zun!F70) -> 0 | I70: =SUM(Dmr:Zun!I70) -> 0 | J70: =SUM(Dmr:Zun!J70) -> 0 | K70: =SUM(Dmr:Zun!K70) -> 0 | L70: =SUM(Dmr:Zun!L70) -> 0 | M70: =SUM(Dmr:Zun!M70) -> 0 | N70: =SUM(Dmr:Zun!N70) -> 0 | P70: =SUM(Dmr:Zun!P70) -> 0 | Q70: =SUM(Dmr:Zun!Q70) -> 0 | R70: =SUM(Dmr:Zun!R70) -> 0 | S70: =SUM(Dmr:Zun!S70) -> 0 | T70: =SUM(Dmr:Zun!T70) -> 0 | U70: =SUM(Dmr:Zun!U70) -> 0 | V70: =SUM(Dmr:Zun!V70) -> 0 | W70: =SUM(Dmr:Zun!W70) -> 0 | X70: 0.375 | Y70: =SUM(Dmr:Zun!Y70) -> 0 | Z70: =SUM(Dmr:Zun!Z70) -> 0 | AA70: =SUM(Dmr:Zun!AA70) -> 0 | AB70: =SUM(Dmr:Zun!AB70) -> 0 | AC70: =SUM(Dmr:Zun!AC70) -> 0 | AD70: TRUE | AE70: TRUE | AF70: 0 | AG70: 0 | AH70: TRUE
A71: 2.31 | B71: Miscellaneous @ Rs.750/- per child per annum | C71: =SUM(Dmr:Zun!C71) -> 0 | D71: =SUM(Dmr:Zun!D71) -> 0 | E71: =SUM(Dmr:Zun!E71) -> 0 | F71: =SUM(Dmr:Zun!F71) -> 0 | I71: =SUM(Dmr:Zun!I71) -> 0 | J71: =SUM(Dmr:Zun!J71) -> 0 | K71: =SUM(Dmr:Zun!K71) -> 0 | L71: =SUM(Dmr:Zun!L71) -> 0 | M71: =SUM(Dmr:Zun!M71) -> 0 | N71: =SUM(Dmr:Zun!N71) -> 0 | P71: =SUM(Dmr:Zun!P71) -> 0 | Q71: =SUM(Dmr:Zun!Q71) -> 0 | R71: =SUM(Dmr:Zun!R71) -> 0 | S71: =SUM(Dmr:Zun!S71) -> 0 | T71: =SUM(Dmr:Zun!T71) -> 0 | U71: =SUM(Dmr:Zun!U71) -> 0 | V71: =SUM(Dmr:Zun!V71) -> 0 | W71: =SUM(Dmr:Zun!W71) -> 0 | X71: 0.375 | Y71: =SUM(Dmr:Zun!Y71) -> 0 | Z71: =SUM(Dmr:Zun!Z71) -> 0 | AA71: =SUM(Dmr:Zun!AA71) -> 0 | AB71: =SUM(Dmr:Zun!AB71) -> 0 | AC71: =SUM(Dmr:Zun!AC71) -> 0 | AD71: TRUE | AE71: TRUE | AF71: 0 | AG71: 0 | AH71: TRUE
A72: 2.32 | B72: Preparatory camps @ Rs.200/- per child per annum | C72: =SUM(Dmr:Zun!C72) -> 0 | D72: =SUM(Dmr:Zun!D72) -> 0 | E72: =SUM(Dmr:Zun!E72) -> 0 | F72: =SUM(Dmr:Zun!F72) -> 0 | I72: =SUM(Dmr:Zun!I72) -> 0 | J72: =SUM(Dmr:Zun!J72) -> 0 | K72: =SUM(Dmr:Zun!K72) -> 0 | L72: =SUM(Dmr:Zun!L72) -> 0 | M72: =SUM(Dmr:Zun!M72) -> 0 | N72: =SUM(Dmr:Zun!N72) -> 0 | P72: =SUM(Dmr:Zun!P72) -> 0 | Q72: =SUM(Dmr:Zun!Q72) -> 0 | R72: =SUM(Dmr:Zun!R72) -> 0 | S72: =SUM(Dmr:Zun!S72) -> 0 | T72: =SUM(Dmr:Zun!T72) -> 0 | U72: =SUM(Dmr:Zun!U72) -> 0 | V72: =SUM(Dmr:Zun!V72) -> 0 | W72: =SUM(Dmr:Zun!W72) -> 0 | Y72: =SUM(Dmr:Zun!Y72) -> 0 | Z72: =SUM(Dmr:Zun!Z72) -> 0 | AA72: =SUM(Dmr:Zun!AA72) -> 0 | AB72: =SUM(Dmr:Zun!AB72) -> 0 | AC72: =SUM(Dmr:Zun!AC72) -> 0 | AD72: =+X72*Y72=Z72 -> TRUE | AE72: =+U72+Z72=AB72 -> TRUE | AF72: =+Q72 -> 0 | AG72: =+S72 -> 0 | AH72: =+L72+Q72=S72 -> TRUE
A73: 2.33 | B73: P.T.A / school functions @ Rs.200/- per child per annum | C73: =SUM(Dmr:Zun!C73) -> 0 | D73: =SUM(Dmr:Zun!D73) -> 0 | E73: =SUM(Dmr:Zun!E73) -> 0 | F73: =SUM(Dmr:Zun!F73) -> 0 | I73: =SUM(Dmr:Zun!I73) -> 0 | J73: =SUM(Dmr:Zun!J73) -> 0 | K73: =SUM(Dmr:Zun!K73) -> 0 | L73: =SUM(Dmr:Zun!L73) -> 0 | M73: =SUM(Dmr:Zun!M73) -> 0 | N73: =SUM(Dmr:Zun!N73) -> 0 | P73: =SUM(Dmr:Zun!P73) -> 0 | Q73: =SUM(Dmr:Zun!Q73) -> 0 | R73: =SUM(Dmr:Zun!R73) -> 0 | S73: =SUM(Dmr:Zun!S73) -> 0 | T73: =SUM(Dmr:Zun!T73) -> 0 | U73: =SUM(Dmr:Zun!U73) -> 0 | V73: =SUM(Dmr:Zun!V73) -> 0 | W73: =SUM(Dmr:Zun!W73) -> 0 | Y73: =SUM(Dmr:Zun!Y73) -> 0 | Z73: =SUM(Dmr:Zun!Z73) -> 0 | AA73: =SUM(Dmr:Zun!AA73) -> 0 | AB73: =SUM(Dmr:Zun!AB73) -> 0 | AC73: =SUM(Dmr:Zun!AC73) -> 0 | AD73: TRUE | AE73: TRUE | AF73: 0 | AG73: 0 | AH73: TRUE
A74: 2.34 | B74: Provision of Rent @ Rs. 6000/- per child per annum | C74: =SUM(Dmr:Zun!C74) -> 0 | D74: =SUM(Dmr:Zun!D74) -> 0 | E74: =SUM(Dmr:Zun!E74) -> 0 | F74: =SUM(Dmr:Zun!F74) -> 0 | I74: =SUM(Dmr:Zun!I74) -> 0 | J74: =SUM(Dmr:Zun!J74) -> 0 | K74: =SUM(Dmr:Zun!K74) -> 0 | L74: =SUM(Dmr:Zun!L74) -> 0 | M74: =SUM(Dmr:Zun!M74) -> 0 | N74: =SUM(Dmr:Zun!N74) -> 0 | P74: =SUM(Dmr:Zun!P74) -> 0 | Q74: =SUM(Dmr:Zun!Q74) -> 0 | R74: =SUM(Dmr:Zun!R74) -> 0 | S74: =SUM(Dmr:Zun!S74) -> 0 | T74: =SUM(Dmr:Zun!T74) -> 0 | U74: =SUM(Dmr:Zun!U74) -> 0 | V74: =SUM(Dmr:Zun!V74) -> 0 | W74: =SUM(Dmr:Zun!W74) -> 0 | Y74: =SUM(Dmr:Zun!Y74) -> 0 | Z74: =SUM(Dmr:Zun!Z74) -> 0 | AA74: =SUM(Dmr:Zun!AA74) -> 0 | AB74: =SUM(Dmr:Zun!AB74) -> 0 | AC74: =SUM(Dmr:Zun!AC74) -> 0 | AD74: TRUE | AE74: TRUE | AF74: 0 | AG74: 0 | AH74: TRUE
A75: 2.35 | B75: Capacity Building @ Rs.500/- per child per annum | C75: =SUM(Dmr:Zun!C75) -> 0 | D75: =SUM(Dmr:Zun!D75) -> 0 | E75: =SUM(Dmr:Zun!E75) -> 0 | F75: =SUM(Dmr:Zun!F75) -> 0 | I75: =SUM(Dmr:Zun!I75) -> 0 | J75: =SUM(Dmr:Zun!J75) -> 0 | K75: =SUM(Dmr:Zun!K75) -> 0 | L75: =SUM(Dmr:Zun!L75) -> 0 | M75: =SUM(Dmr:Zun!M75) -> 0 | N75: =SUM(Dmr:Zun!N75) -> 0 | P75: =SUM(Dmr:Zun!P75) -> 0 | Q75: =SUM(Dmr:Zun!Q75) -> 0 | R75: =SUM(Dmr:Zun!R75) -> 0 | S75: =SUM(Dmr:Zun!S75) -> 0 | T75: =SUM(Dmr:Zun!T75) -> 0 | U75: =SUM(Dmr:Zun!U75) -> 0 | V75: =SUM(Dmr:Zun!V75) -> 0 | W75: =SUM(Dmr:Zun!W75) -> 0 | X75: 0.25 | Y75: =SUM(Dmr:Zun!Y75) -> 0 | Z75: =SUM(Dmr:Zun!Z75) -> 0 | AA75: =SUM(Dmr:Zun!AA75) -> 0 | AB75: =SUM(Dmr:Zun!AB75) -> 0 | AC75: =SUM(Dmr:Zun!AC75) -> 0 | AD75: TRUE | AE75: TRUE | AF75: 0 | AG75: 0 | AH75: TRUE
A76: 2.36 | B76: Physical / Self Defence training @ Rs. 200/- per child per annum. | C76: =SUM(Dmr:Zun!C76) -> 0 | D76: =SUM(Dmr:Zun!D76) -> 0 | E76: =SUM(Dmr:Zun!E76) -> 0 | F76: =SUM(Dmr:Zun!F76) -> 0 | I76: =SUM(Dmr:Zun!I76) -> 0 | J76: =SUM(Dmr:Zun!J76) -> 0 | K76: =SUM(Dmr:Zun!K76) -> 0 | L76: =SUM(Dmr:Zun!L76) -> 0 | M76: =SUM(Dmr:Zun!M76) -> 0 | N76: =SUM(Dmr:Zun!N76) -> 0 | P76: =SUM(Dmr:Zun!P76) -> 0 | Q76: =SUM(Dmr:Zun!Q76) -> 0 | R76: =SUM(Dmr:Zun!R76) -> 0 | S76: =SUM(Dmr:Zun!S76) -> 0 | T76: =SUM(Dmr:Zun!T76) -> 0 | U76: =SUM(Dmr:Zun!U76) -> 0 | V76: =SUM(Dmr:Zun!V76) -> 0 | W76: =SUM(Dmr:Zun!W76) -> 0 | Y76: =SUM(Dmr:Zun!Y76) -> 0 | Z76: =SUM(Dmr:Zun!Z76) -> 0 | AA76: =SUM(Dmr:Zun!AA76) -> 0 | AB76: =SUM(Dmr:Zun!AB76) -> 0 | AC76: =SUM(Dmr:Zun!AC76) -> 0 | AD76: TRUE | AE76: TRUE | AF76: 0 | AG76: 0 | AH76: TRUE
B77: Sub Total (Recurring) | D77: =SUBTOTAL(9,D55:D76) -> 0 | F77: =SUBTOTAL(9,F55:F76) -> 0 | J77: =SUBTOTAL(9,J55:J76) -> 0 | L77: =SUBTOTAL(9,L55:L76) -> 0 | N77: =SUBTOTAL(9,N55:N76) -> 0 | Q77: =SUBTOTAL(9,Q55:Q76) -> 0 | S77: =SUBTOTAL(9,S55:S76) -> 0 | U77: =SUBTOTAL(9,U55:U76) -> 0 | W77: =SUBTOTAL(9,W55:W76) -> 0 | Z77: =SUBTOTAL(9,Z55:Z76) -> 0 | AB77: =SUBTOTAL(9,AB55:AB76) -> 0 | AC77: =SUM(Dmr:Zun!AC77) -> 0 | AD77: TRUE | AE77: TRUE | AF77: 0 | AG77: 0 | AH77: TRUE
B78: Total (Recurring + Non Recurring) | D78: =SUBTOTAL(9,D49:D77) -> 0 | F78: =SUBTOTAL(9,F49:F77) -> 0 | J78: =SUBTOTAL(9,J49:J77) -> 0 | L78: =SUBTOTAL(9,L49:L77) -> 0 | N78: =SUBTOTAL(9,N49:N77) -> 0 | Q78: =SUBTOTAL(9,Q49:Q77) -> 0 | S78: =SUBTOTAL(9,S49:S77) -> 0 | U78: =SUBTOTAL(9,U49:U77) -> 0 | W78: =SUBTOTAL(9,W49:W77) -> 0 | Z78: =SUBTOTAL(9,Z49:Z77) -> 0 | AB78: =SUBTOTAL(9,AB49:AB77) -> 0 | AC78: =SUM(Dmr:Zun!AC78) -> 0 | AD78: TRUE | AE78: TRUE | AF78: 0 | AG78: 0 | AH78: TRUE
B79: Total (50 + 100 children) | D79: =SUBTOTAL(9,D18:D78) -> 0 | F79: =SUBTOTAL(9,F18:F78) -> 0 | J79: =SUBTOTAL(9,J18:J78) -> 0 | L79: =SUBTOTAL(9,L18:L78) -> 0 | N79: =SUBTOTAL(9,N18:N78) -> 0 | Q79: =SUBTOTAL(9,Q18:Q78) -> 0 | S79: =SUBTOTAL(9,S18:S78) -> 0 | U79: =SUBTOTAL(9,U18:U78) -> 0 | W79: =SUBTOTAL(9,W18:W78) -> 0 | Z79: =SUBTOTAL(9,Z18:Z78) -> 0 | AB79: =SUBTOTAL(9,AB18:AB78) -> 0 | AC79: =SUM(Dmr:Zun!AC79) -> 0 | AD79: TRUE | AE79: TRUE | AF79: 0 | AG79: 0 | AH79: TRUE
A80: 3 | B80: Residential Hostel for specific category of children (Recurring) | AC80: =SUM(Dmr:Zun!AC80) -> 0 | AD80: TRUE | AE80: TRUE | AF80: 0 | AG80: 0 | AH80: TRUE
A81: (A) | B81: 50 children | AC81: =SUM(Dmr:Zun!AC81) -> 0 | AD81: TRUE | AE81: TRUE | AF81: 0 | AG81: 0 | AH81: TRUE
B82: Non-recurring (one time grant) | AC82: =SUM(Dmr:Zun!AC82) -> 0 | AD82: TRUE | AE82: TRUE | AF82: 0 | AG82: 0 | AH82: TRUE
A83: 3.01 | B83: Furniture/ Equipment (including kitchen) | C83: =SUM(Dmr:Zun!C83) -> 0 | D83: =SUM(Dmr:Zun!D83) -> 0 | E83: =SUM(Dmr:Zun!E83) -> 0 | F83: =SUM(Dmr:Zun!F83) -> 0 | I83: =SUM(Dmr:Zun!I83) -> 0 | J83: =SUM(Dmr:Zun!J83) -> 0 | K83: =SUM(Dmr:Zun!K83) -> 0 | L83: =SUM(Dmr:Zun!L83) -> 0 | M83: =SUM(Dmr:Zun!M83) -> 0 | N83: =SUM(Dmr:Zun!N83) -> 0 | P83: =SUM(Dmr:Zun!P83) -> 0 | Q83: =SUM(Dmr:Zun!Q83) -> 0 | R83: =SUM(Dmr:Zun!R83) -> 0 | S83: =SUM(Dmr:Zun!S83) -> 0 | T83: =SUM(Dmr:Zun!T83) -> 0 | U83: =SUM(Dmr:Zun!U83) -> 0 | V83: =SUM(Dmr:Zun!V83) -> 0 | W83: =SUM(Dmr:Zun!W83) -> 0 | Y83: =SUM(Dmr:Zun!Y83) -> 0 | Z83: =SUM(Dmr:Zun!Z83) -> 0 | AA83: =SUM(Dmr:Zun!AA83) -> 0 | AB83: =SUM(Dmr:Zun!AB83) -> 0 | AC83: =SUM(Dmr:Zun!AC83) -> 0 | AD83: TRUE | AE83: TRUE | AF83: 0 | AG83: 0 | AH83: TRUE
A84: =+A83+0.01 -> 3.02 | B84: TLM and equipment including library books | C84: =SUM(Dmr:Zun!C84) -> 0 | D84: =SUM(Dmr:Zun!D84) -> 0 | E84: =SUM(Dmr:Zun!E84) -> 0 | F84: =SUM(Dmr:Zun!F84) -> 0 | I84: =SUM(Dmr:Zun!I84) -> 0 | J84: =SUM(Dmr:Zun!J84) -> 0 | K84: =SUM(Dmr:Zun!K84) -> 0 | L84: =SUM(Dmr:Zun!L84) -> 0 | M84: =SUM(Dmr:Zun!M84) -> 0 | N84: =SUM(Dmr:Zun!N84) -> 0 | P84: =SUM(Dmr:Zun!P84) -> 0 | Q84: =SUM(Dmr:Zun!Q84) -> 0 | R84: =SUM(Dmr:Zun!R84) -> 0 | S84: =SUM(Dmr:Zun!S84) -> 0 | T84: =SUM(Dmr:Zun!T84) -> 0 | U84: =SUM(Dmr:Zun!U84) -> 0 | V84: =SUM(Dmr:Zun!V84) -> 0 | W84: =SUM(Dmr:Zun!W84) -> 0 | Y84: =SUM(Dmr:Zun!Y84) -> 0 | Z84: =SUM(Dmr:Zun!Z84) -> 0 | AA84: =SUM(Dmr:Zun!AA84) -> 0 | AB84: =SUM(Dmr:Zun!AB84) -> 0 | AC84: =SUM(Dmr:Zun!AC84) -> 0 | AD84: TRUE | AE84: TRUE | AF84: 0 | AG84: 0 | AH84: TRUE
A85: 3.03 | B85: Bedding (new) | C85: =SUM(Dmr:Zun!C85) -> 0 | D85: =SUM(Dmr:Zun!D85) -> 0 | E85: =SUM(Dmr:Zun!E85) -> 0 | F85: =SUM(Dmr:Zun!F85) -> 0 | I85: =SUM(Dmr:Zun!I85) -> 0 | J85: =SUM(Dmr:Zun!J85) -> 0 | K85: =SUM(Dmr:Zun!K85) -> 0 | L85: =SUM(Dmr:Zun!L85) -> 0 | M85: =SUM(Dmr:Zun!M85) -> 0 | N85: =SUM(Dmr:Zun!N85) -> 0 | P85: =SUM(Dmr:Zun!P85) -> 0 | Q85: =SUM(Dmr:Zun!Q85) -> 0 | R85: =SUM(Dmr:Zun!R85) -> 0 | S85: =SUM(Dmr:Zun!S85) -> 0 | T85: =SUM(Dmr:Zun!T85) -> 0 | U85: =SUM(Dmr:Zun!U85) -> 0 | V85: =SUM(Dmr:Zun!V85) -> 0 | W85: =SUM(Dmr:Zun!W85) -> 0 | Y85: =SUM(Dmr:Zun!Y85) -> 0 | Z85: =SUM(Dmr:Zun!Z85) -> 0 | AA85: =SUM(Dmr:Zun!AA85) -> 0 | AB85: =SUM(Dmr:Zun!AB85) -> 0 | AC85: =SUM(Dmr:Zun!AC85) -> 0 | AD85: TRUE | AE85: TRUE | AF85: 0 | AG85: 0 | AH85: TRUE
A86: 3.04 | B86: Replacement of bedding (once in 3 years) | C86: =SUM(Dmr:Zun!C86) -> 0 | D86: =SUM(Dmr:Zun!D86) -> 0 | E86: =SUM(Dmr:Zun!E86) -> 0 | F86: =SUM(Dmr:Zun!F86) -> 0 | I86: =SUM(Dmr:Zun!I86) -> 0 | J86: =SUM(Dmr:Zun!J86) -> 0 | K86: =SUM(Dmr:Zun!K86) -> 0 | L86: =SUM(Dmr:Zun!L86) -> 0 | M86: =SUM(Dmr:Zun!M86) -> 0 | N86: =SUM(Dmr:Zun!N86) -> 0 | P86: =SUM(Dmr:Zun!P86) -> 0 | Q86: =SUM(Dmr:Zun!Q86) -> 0 | R86: =SUM(Dmr:Zun!R86) -> 0 | S86: =SUM(Dmr:Zun!S86) -> 0 | T86: =SUM(Dmr:Zun!T86) -> 0 | U86: =SUM(Dmr:Zun!U86) -> 0 | V86: =SUM(Dmr:Zun!V86) -> 0 | W86: =SUM(Dmr:Zun!W86) -> 0 | Y86: =SUM(Dmr:Zun!Y86) -> 0 | Z86: =SUM(Dmr:Zun!Z86) -> 0 | AA86: =SUM(Dmr:Zun!AA86) -> 0 | AB86: =SUM(Dmr:Zun!AB86) -> 0 | AC86: =SUM(Dmr:Zun!AC86) -> 0 | AD86: TRUE | AE86: TRUE | AF86: 0 | AG86: 0 | AH86: TRUE
B87: Sub Total (Non Recurring) | D87: =SUBTOTAL(9,D83:D86) -> 0 | F87: =SUBTOTAL(9,F83:F86) -> 0 | J87: =SUBTOTAL(9,J83:J86) -> 0 | L87: =SUBTOTAL(9,L83:L86) -> 0 | N87: =SUBTOTAL(9,N83:N86) -> 0 | Q87: =SUBTOTAL(9,Q83:Q86) -> 0 | S87: =SUBTOTAL(9,S83:S86) -> 0 | U87: =SUBTOTAL(9,U83:U86) -> 0 | W87: =SUBTOTAL(9,W83:W86) -> 0 | Z87: =SUBTOTAL(9,Z83:Z86) -> 0 | AB87: =SUBTOTAL(9,AB83:AB86) -> 0 | AC87: =SUM(Dmr:Zun!AC87) -> 0 | AD87: TRUE | AE87: TRUE | AF87: 0 | AG87: 0 | AH87: TRUE
B88: Recurring | AC88: =SUM(Dmr:Zun!AC88) -> 0 | AD88: TRUE | AE88: TRUE | AF88: 0 | AG88: 0 | AH88: TRUE
A89: 3.05 | B89: Maintenance per child per month @ Rs.1500/- | C89: =SUM(Dmr:Zun!C89) -> 0 | D89: =SUM(Dmr:Zun!D89) -> 0 | E89: =SUM(Dmr:Zun!E89) -> 0 | F89: =SUM(Dmr:Zun!F89) -> 0 | I89: =SUM(Dmr:Zun!I89) -> 0 | J89: =SUM(Dmr:Zun!J89) -> 0 | K89: =SUM(Dmr:Zun!K89) -> 0 | L89: =SUM(Dmr:Zun!L89) -> 0 | M89: =SUM(Dmr:Zun!M89) -> 0 | N89: =SUM(Dmr:Zun!N89) -> 0 | P89: =SUM(Dmr:Zun!P89) -> 0 | Q89: =SUM(Dmr:Zun!Q89) -> 0 | R89: =SUM(Dmr:Zun!R89) -> 0 | S89: =SUM(Dmr:Zun!S89) -> 0 | T89: =SUM(Dmr:Zun!T89) -> 0 | U89: =SUM(Dmr:Zun!U89) -> 0 | V89: =SUM(Dmr:Zun!V89) -> 0 | W89: =SUM(Dmr:Zun!W89) -> 0 | Y89: =SUM(Dmr:Zun!Y89) -> 0 | Z89: =SUM(Dmr:Zun!Z89) -> 0 | AA89: =SUM(Dmr:Zun!AA89) -> 0 | AB89: =SUM(Dmr:Zun!AB89) -> 0 | AC89: =SUM(Dmr:Zun!AC89) -> 0 | AD89: TRUE | AE89: TRUE | AF89: 0 | AG89: 0 | AH89: TRUE
A90: =+A89+0.01 -> 3.06 | B90: Stipend per child per month @ Rs.100/- | C90: =SUM(Dmr:Zun!C90) -> 0 | D90: =SUM(Dmr:Zun!D90) -> 0 | E90: =SUM(Dmr:Zun!E90) -> 0 | F90: =SUM(Dmr:Zun!F90) -> 0 | I90: =SUM(Dmr:Zun!I90) -> 0 | J90: =SUM(Dmr:Zun!J90) -> 0 | K90: =SUM(Dmr:Zun!K90) -> 0 | L90: =SUM(Dmr:Zun!L90) -> 0 | M90: =SUM(Dmr:Zun!M90) -> 0 | N90: =SUM(Dmr:Zun!N90) -> 0 | P90: =SUM(Dmr:Zun!P90) -> 0 | Q90: =SUM(Dmr:Zun!Q90) -> 0 | R90: =SUM(Dmr:Zun!R90) -> 0 | S90: =SUM(Dmr:Zun!S90) -> 0 | T90: =SUM(Dmr:Zun!T90) -> 0 | U90: =SUM(Dmr:Zun!U90) -> 0 | V90: =SUM(Dmr:Zun!V90) -> 0 | W90: =SUM(Dmr:Zun!W90) -> 0 | Y90: =SUM(Dmr:Zun!Y90) -> 0 | Z90: =SUM(Dmr:Zun!Z90) -> 0 | AA90: =SUM(Dmr:Zun!AA90) -> 0 | AB90: =SUM(Dmr:Zun!AB90) -> 0 | AC90: =SUM(Dmr:Zun!AC90) -> 0 | AD90: TRUE | AE90: TRUE | AF90: 0 | AG90: 0 | AH90: TRUE
A91: 3.07 | B91: Supplementary TLM, Stationery and other educational material @Rs.1000/- per child per annum | C91: =SUM(Dmr:Zun!C91) -> 0 | D91: =SUM(Dmr:Zun!D91) -> 0 | E91: =SUM(Dmr:Zun!E91) -> 0 | F91: =SUM(Dmr:Zun!F91) -> 0 | I91: =SUM(Dmr:Zun!I91) -> 0 | J91: =SUM(Dmr:Zun!J91) -> 0 | K91: =SUM(Dmr:Zun!K91) -> 0 | L91: =SUM(Dmr:Zun!L91) -> 0 | M91: =SUM(Dmr:Zun!M91) -> 0 | N91: =SUM(Dmr:Zun!N91) -> 0 | P91: =SUM(Dmr:Zun!P91) -> 0 | Q91: =SUM(Dmr:Zun!Q91) -> 0 | R91: =SUM(Dmr:Zun!R91) -> 0 | S91: =SUM(Dmr:Zun!S91) -> 0 | T91: =SUM(Dmr:Zun!T91) -> 0 | U91: =SUM(Dmr:Zun!U91) -> 0 | V91: =SUM(Dmr:Zun!V91) -> 0 | W91: =SUM(Dmr:Zun!W91) -> 0 | Y91: =SUM(Dmr:Zun!Y91) -> 0 | Z91: =SUM(Dmr:Zun!Z91) -> 0 | AA91: =SUM(Dmr:Zun!AA91) -> 0 | AB91: =SUM(Dmr:Zun!AB91) -> 0 | AC91: =SUM(Dmr:Zun!AC91) -> 0 | AD91: TRUE | AE91: TRUE | AF91: 0 | AG91: 0 | AH91: TRUE
A92: (a) | B92: Salaries | C92: =SUM(Dmr:Zun!C92) -> 0 | D92: =SUM(Dmr:Zun!D92) -> 0 | E92: =SUM(Dmr:Zun!E92) -> 0 | F92: =SUM(Dmr:Zun!F92) -> 0 | I92: =SUM(Dmr:Zun!I92) -> 0 | J92: =SUM(Dmr:Zun!J92) -> 0 | K92: =SUM(Dmr:Zun!K92) -> 0 | L92: =SUM(Dmr:Zun!L92) -> 0 | M92: =SUM(Dmr:Zun!M92) -> 0 | N92: =SUM(Dmr:Zun!N92) -> 0 | P92: =SUM(Dmr:Zun!P92) -> 0 | Q92: =SUM(Dmr:Zun!Q92) -> 0 | R92: =SUM(Dmr:Zun!R92) -> 0 | S92: =SUM(Dmr:Zun!S92) -> 0 | T92: =SUM(Dmr:Zun!T92) -> 0 | U92: =SUM(Dmr:Zun!U92) -> 0 | V92: =SUM(Dmr:Zun!V92) -> 0 | W92: =SUM(Dmr:Zun!W92) -> 0 | Y92: =SUM(Dmr:Zun!Y92) -> 0 | Z92: =SUM(Dmr:Zun!Z92) -> 0 | AA92: =SUM(Dmr:Zun!AA92) -> 0 | AB92: =SUM(Dmr:Zun!AB92) -> 0 | AC92: =SUM(Dmr:Zun!AC92) -> 0 | AD92: TRUE | AE92: TRUE | AF92: 0 | AG92: 0 | AH92: TRUE
A93: (b) | B93: 1 Warden @ Rs. 25,000/- per month | C93: =SUM(Dmr:Zun!C93) -> 0 | D93: =SUM(Dmr:Zun!D93) -> 0 | E93: =SUM(Dmr:Zun!E93) -> 0 | F93: =SUM(Dmr:Zun!F93) -> 0 | I93: =SUM(Dmr:Zun!I93) -> 0 | J93: =SUM(Dmr:Zun!J93) -> 0 | K93: =SUM(Dmr:Zun!K93) -> 0 | L93: =SUM(Dmr:Zun!L93) -> 0 | M93: =SUM(Dmr:Zun!M93) -> 0 | N93: =SUM(Dmr:Zun!N93) -> 0 | P93: =SUM(Dmr:Zun!P93) -> 0 | Q93: =SUM(Dmr:Zun!Q93) -> 0 | R93: =SUM(Dmr:Zun!R93) -> 0 | S93: =SUM(Dmr:Zun!S93) -> 0 | T93: =SUM(Dmr:Zun!T93) -> 0 | U93: =SUM(Dmr:Zun!U93) -> 0 | V93: =SUM(Dmr:Zun!V93) -> 0 | W93: =SUM(Dmr:Zun!W93) -> 0 | Y93: =SUM(Dmr:Zun!Y93) -> 0 | Z93: =SUM(Dmr:Zun!Z93) -> 0 | AA93: =SUM(Dmr:Zun!AA93) -> 0 | AB93: =SUM(Dmr:Zun!AB93) -> 0 | AC93: =SUM(Dmr:Zun!AC93) -> 0 | AD93: TRUE | AE93: TRUE | AF93: 0 | AG93: 0 | AH93: TRUE
A94: (c) | B94: 2 Urdu Teachers (only for blocks with muslim population above 20% and select urban areas). If required @ Rs 12000/- per month per teacher | C94: =SUM(Dmr:Zun!C94) -> 0 | D94: =SUM(Dmr:Zun!D94) -> 0 | E94: =SUM(Dmr:Zun!E94) -> 0 | F94: =SUM(Dmr:Zun!F94) -> 0 | I94: =SUM(Dmr:Zun!I94) -> 0 | J94: =SUM(Dmr:Zun!J94) -> 0 | K94: =SUM(Dmr:Zun!K94) -> 0 | L94: =SUM(Dmr:Zun!L94) -> 0 | M94: =SUM(Dmr:Zun!M94) -> 0 | N94: =SUM(Dmr:Zun!N94) -> 0 | P94: =SUM(Dmr:Zun!P94) -> 0 | Q94: =SUM(Dmr:Zun!Q94) -> 0 | R94: =SUM(Dmr:Zun!R94) -> 0 | S94: =SUM(Dmr:Zun!S94) -> 0 | T94: =SUM(Dmr:Zun!T94) -> 0 | U94: =SUM(Dmr:Zun!U94) -> 0 | V94: =SUM(Dmr:Zun!V94) -> 0 | W94: =SUM(Dmr:Zun!W94) -> 0 | Y94: =SUM(Dmr:Zun!Y94) -> 0 | Z94: =SUM(Dmr:Zun!Z94) -> 0 | AA94: =SUM(Dmr:Zun!AA94) -> 0 | AB94: =SUM(Dmr:Zun!AB94) -> 0 | AC94: =SUM(Dmr:Zun!AC94) -> 0 | AD94: TRUE | AE94: TRUE | AF94: 0 | AG94: 0 | AH94: TRUE
A95: (d) | B95: 3 Part time teachers @ Rs 5000/- per month per teacher | C95: =SUM(Dmr:Zun!C95) -> 0 | D95: =SUM(Dmr:Zun!D95) -> 0 | E95: =SUM(Dmr:Zun!E95) -> 0 | F95: =SUM(Dmr:Zun!F95) -> 0 | I95: =SUM(Dmr:Zun!I95) -> 0 | J95: =SUM(Dmr:Zun!J95) -> 0 | K95: =SUM(Dmr:Zun!K95) -> 0 | L95: =SUM(Dmr:Zun!L95) -> 0 | M95: =SUM(Dmr:Zun!M95) -> 0 | N95: =SUM(Dmr:Zun!N95) -> 0 | P95: =SUM(Dmr:Zun!P95) -> 0 | Q95: =SUM(Dmr:Zun!Q95) -> 0 | R95: =SUM(Dmr:Zun!R95) -> 0 | S95: =SUM(Dmr:Zun!S95) -> 0 | T95: =SUM(Dmr:Zun!T95) -> 0 | U95: =SUM(Dmr:Zun!U95) -> 0 | V95: =SUM(Dmr:Zun!V95) -> 0 | W95: =SUM(Dmr:Zun!W95) -> 0 | Y95: =SUM(Dmr:Zun!Y95) -> 0 | Z95: =SUM(Dmr:Zun!Z95) -> 0 | AA95: =SUM(Dmr:Zun!AA95) -> 0 | AB95: =SUM(Dmr:Zun!AB95) -> 0 | AC95: =SUM(Dmr:Zun!AC95) -> 0 | AD95: TRUE | AE95: TRUE | AF95: 0 | AG95: 0 | AH95: TRUE
A96: (e) | B96: 1 Full time Accountant @ Rs 10000/- per month | C96: =SUM(Dmr:Zun!C96) -> 0 | D96: =SUM(Dmr:Zun!D96) -> 0 | E96: =SUM(Dmr:Zun!E96) -> 0 | F96: =SUM(Dmr:Zun!F96) -> 0 | I96: =SUM(Dmr:Zun!I96) -> 0 | J96: =SUM(Dmr:Zun!J96) -> 0 | K96: =SUM(Dmr:Zun!K96) -> 0 | L96: =SUM(Dmr:Zun!L96) -> 0 | M96: =SUM(Dmr:Zun!M96) -> 0 | N96: =SUM(Dmr:Zun!N96) -> 0 | P96: =SUM(Dmr:Zun!P96) -> 0 | Q96: =SUM(Dmr:Zun!Q96) -> 0 | R96: =SUM(Dmr:Zun!R96) -> 0 | S96: =SUM(Dmr:Zun!S96) -> 0 | T96: =SUM(Dmr:Zun!T96) -> 0 | U96: =SUM(Dmr:Zun!U96) -> 0 | V96: =SUM(Dmr:Zun!V96) -> 0 | W96: =SUM(Dmr:Zun!W96) -> 0 | Y96: =SUM(Dmr:Zun!Y96) -> 0 | Z96: =SUM(Dmr:Zun!Z96) -> 0 | AA96: =SUM(Dmr:Zun!AA96) -> 0 | AB96: =SUM(Dmr:Zun!AB96) -> 0 | AC96: =SUM(Dmr:Zun!AC96) -> 0 | AD96: TRUE | AE96: TRUE | AF96: 0 | AG96: 0 | AH96: TRUE
A97: (f) | B97: 2 Support Staff - (Accountant / Assistant, Peon, Chowkidar) @ Rs 5000/- per month per staff | C97: =SUM(Dmr:Zun!C97) -> 0 | D97: =SUM(Dmr:Zun!D97) -> 0 | E97: =SUM(Dmr:Zun!E97) -> 0 | F97: =SUM(Dmr:Zun!F97) -> 0 | I97: =SUM(Dmr:Zun!I97) -> 0 | J97: =SUM(Dmr:Zun!J97) -> 0 | K97: =SUM(Dmr:Zun!K97) -> 0 | L97: =SUM(Dmr:Zun!L97) -> 0 | M97: =SUM(Dmr:Zun!M97) -> 0 | N97: =SUM(Dmr:Zun!N97) -> 0 | P97: =SUM(Dmr:Zun!P97) -> 0 | Q97: =SUM(Dmr:Zun!Q97) -> 0 | R97: =SUM(Dmr:Zun!R97) -> 0 | S97: =SUM(Dmr:Zun!S97) -> 0 | T97: =SUM(Dmr:Zun!T97) -> 0 | U97: =SUM(Dmr:Zun!U97) -> 0 | V97: =SUM(Dmr:Zun!V97) -> 0 | W97: =SUM(Dmr:Zun!W97) -> 0 | Y97: =SUM(Dmr:Zun!Y97) -> 0 | Z97: =SUM(Dmr:Zun!Z97) -> 0 | AA97: =SUM(Dmr:Zun!AA97) -> 0 | AB97: =SUM(Dmr:Zun!AB97) -> 0 | AC97: =SUM(Dmr:Zun!AC97) -> 0 | AD97: TRUE | AE97: TRUE | AF97: 0 | AG97: 0 | AH97: TRUE
A98: (g) | B98: 1 Head cook @ Rs 6000/- per month and upto 2 Assistant cooks @ Rs 4500/- per month per cook | C98: =SUM(Dmr:Zun!C98) -> 0 | D98: =SUM(Dmr:Zun!D98) -> 0 | E98: =SUM(Dmr:Zun!E98) -> 0 | F98: =SUM(Dmr:Zun!F98) -> 0 | I98: =SUM(Dmr:Zun!I98) -> 0 | J98: =SUM(Dmr:Zun!J98) -> 0 | K98: =SUM(Dmr:Zun!K98) -> 0 | L98: =SUM(Dmr:Zun!L98) -> 0 | M98: =SUM(Dmr:Zun!M98) -> 0 | N98: =SUM(Dmr:Zun!N98) -> 0 | P98: =SUM(Dmr:Zun!P98) -> 0 | Q98: =SUM(Dmr:Zun!Q98) -> 0 | R98: =SUM(Dmr:Zun!R98) -> 0 | S98: =SUM(Dmr:Zun!S98) -> 0 | T98: =SUM(Dmr:Zun!T98) -> 0 | U98: =SUM(Dmr:Zun!U98) -> 0 | V98: =SUM(Dmr:Zun!V98) -> 0 | W98: =SUM(Dmr:Zun!W98) -> 0 | Y98: =SUM(Dmr:Zun!Y98) -> 0 | Z98: =SUM(Dmr:Zun!Z98) -> 0 | AA98: =SUM(Dmr:Zun!AA98) -> 0 | AB98: =SUM(Dmr:Zun!AB98) -> 0 | AC98: =SUM(Dmr:Zun!AC98) -> 0 | AD98: TRUE | AE98: TRUE | AF98: 0 | AG98: 0 | AH98: TRUE
A99: (h) | B99: Specific skill training per child @ Rs 1000/- per annum | C99: =SUM(Dmr:Zun!C99) -> 0 | D99: =SUM(Dmr:Zun!D99) -> 0 | E99: =SUM(Dmr:Zun!E99) -> 0 | F99: =SUM(Dmr:Zun!F99) -> 0 | I99: =SUM(Dmr:Zun!I99) -> 0 | J99: =SUM(Dmr:Zun!J99) -> 0 | K99: =SUM(Dmr:Zun!K99) -> 0 | L99: =SUM(Dmr:Zun!L99) -> 0 | M99: =SUM(Dmr:Zun!M99) -> 0 | N99: =SUM(Dmr:Zun!N99) -> 0 | P99: =SUM(Dmr:Zun!P99) -> 0 | Q99: =SUM(Dmr:Zun!Q99) -> 0 | R99: =SUM(Dmr:Zun!R99) -> 0 | S99: =SUM(Dmr:Zun!S99) -> 0 | T99: =SUM(Dmr:Zun!T99) -> 0 | U99: =SUM(Dmr:Zun!U99) -> 0 | V99: =SUM(Dmr:Zun!V99) -> 0 | W99: =SUM(Dmr:Zun!W99) -> 0 | Y99: =SUM(Dmr:Zun!Y99) -> 0 | Z99: =SUM(Dmr:Zun!Z99) -> 0 | AA99: =SUM(Dmr:Zun!AA99) -> 0 | AB99: =SUM(Dmr:Zun!AB99) -> 0 | AC99: =SUM(Dmr:Zun!AC99) -> 0 | AD99: TRUE | AE99: TRUE | AF99: 0 | AG99: 0 | AH99: TRUE
A100: 3.08 | B100: Electricity / Water charges per child @ Rs 1000/- per annum | C100: =SUM(Dmr:Zun!C100) -> 0 | D100: =SUM(Dmr:Zun!D100) -> 0 | E100: =SUM(Dmr:Zun!E100) -> 0 | F100: =SUM(Dmr:Zun!F100) -> 0 | I100: =SUM(Dmr:Zun!I100) -> 0 | J100: =SUM(Dmr:Zun!J100) -> 0 | K100: =SUM(Dmr:Zun!K100) -> 0 | L100: =SUM(Dmr:Zun!L100) -> 0 | M100: =SUM(Dmr:Zun!M100) -> 0 | N100: =SUM(Dmr:Zun!N100) -> 0 | P100: =SUM(Dmr:Zun!P100) -> 0 | Q100: =SUM(Dmr:Zun!Q100) -> 0 | R100: =SUM(Dmr:Zun!R100) -> 0 | S100: =SUM(Dmr:Zun!S100) -> 0 | T100: =SUM(Dmr:Zun!T100) -> 0 | U100: =SUM(Dmr:Zun!U100) -> 0 | V100: =SUM(Dmr:Zun!V100) -> 0 | W100: =SUM(Dmr:Zun!W100) -> 0 | Y100: =SUM(Dmr:Zun!Y100) -> 0 | Z100: =SUM(Dmr:Zun!Z100) -> 0 | AA100: =SUM(Dmr:Zun!AA100) -> 0 | AB100: =SUM(Dmr:Zun!AB100) -> 0 | AC100: =SUM(Dmr:Zun!AC100) -> 0 | AD100: TRUE | AE100: TRUE | AF100: 0 | AG100: 0 | AH100: TRUE
A101: =+A100+0.01 -> 3.09 | B101: Medical care/contingencies @ Rs.1250/- per child per annum | C101: =SUM(Dmr:Zun!C101) -> 0 | D101: =SUM(Dmr:Zun!D101) -> 0 | E101: =SUM(Dmr:Zun!E101) -> 0 | F101: =SUM(Dmr:Zun!F101) -> 0 | I101: =SUM(Dmr:Zun!I101) -> 0 | J101: =SUM(Dmr:Zun!J101) -> 0 | K101: =SUM(Dmr:Zun!K101) -> 0 | L101: =SUM(Dmr:Zun!L101) -> 0 | M101: =SUM(Dmr:Zun!M101) -> 0 | N101: =SUM(Dmr:Zun!N101) -> 0 | P101: =SUM(Dmr:Zun!P101) -> 0 | Q101: =SUM(Dmr:Zun!Q101) -> 0 | R101: =SUM(Dmr:Zun!R101) -> 0 | S101: =SUM(Dmr:Zun!S101) -> 0 | T101: =SUM(Dmr:Zun!T101) -> 0 | U101: =SUM(Dmr:Zun!U101) -> 0 | V101: =SUM(Dmr:Zun!V101) -> 0 | W101: =SUM(Dmr:Zun!W101) -> 0 | Y101: =SUM(Dmr:Zun!Y101) -> 0 | Z101: =SUM(Dmr:Zun!Z101) -> 0 | AA101: =SUM(Dmr:Zun!AA101) -> 0 | AB101: =SUM(Dmr:Zun!AB101) -> 0 | AC101: =SUM(Dmr:Zun!AC101) -> 0 | AD101: TRUE | AE101: TRUE | AF101: 0 | AG101: 0 | AH101: TRUE
A102: 3.1 | B102: Maintenance @ Rs 750/- per child per annum | C102: =SUM(Dmr:Zun!C102) -> 0 | D102: =SUM(Dmr:Zun!D102) -> 0 | E102: =SUM(Dmr:Zun!E102) -> 0 | F102: =SUM(Dmr:Zun!F102) -> 0 | I102: =SUM(Dmr:Zun!I102) -> 0 | J102: =SUM(Dmr:Zun!J102) -> 0 | K102: =SUM(Dmr:Zun!K102) -> 0 | L102: =SUM(Dmr:Zun!L102) -> 0 | M102: =SUM(Dmr:Zun!M102) -> 0 | N102: =SUM(Dmr:Zun!N102) -> 0 | P102: =SUM(Dmr:Zun!P102) -> 0 | Q102: =SUM(Dmr:Zun!Q102) -> 0 | R102: =SUM(Dmr:Zun!R102) -> 0 | S102: =SUM(Dmr:Zun!S102) -> 0 | T102: =SUM(Dmr:Zun!T102) -> 0 | U102: =SUM(Dmr:Zun!U102) -> 0 | V102: =SUM(Dmr:Zun!V102) -> 0 | W102: =SUM(Dmr:Zun!W102) -> 0 | Y102: =SUM(Dmr:Zun!Y102) -> 0 | Z102: =SUM(Dmr:Zun!Z102) -> 0 | AA102: =SUM(Dmr:Zun!AA102) -> 0 | AB102: =SUM(Dmr:Zun!AB102) -> 0 | AC102: =SUM(Dmr:Zun!AC102) -> 0 | AD102: TRUE | AE102: TRUE | AF102: 0 | AG102: 0 | AH102: TRUE
A103: 3.11 | B103: Miscellaneous @ Rs 750/- per child per annum | C103: =SUM(Dmr:Zun!C103) -> 0 | D103: =SUM(Dmr:Zun!D103) -> 0 | E103: =SUM(Dmr:Zun!E103) -> 0 | F103: =SUM(Dmr:Zun!F103) -> 0 | I103: =SUM(Dmr:Zun!I103) -> 0 | J103: =SUM(Dmr:Zun!J103) -> 0 | K103: =SUM(Dmr:Zun!K103) -> 0 | L103: =SUM(Dmr:Zun!L103) -> 0 | M103: =SUM(Dmr:Zun!M103) -> 0 | N103: =SUM(Dmr:Zun!N103) -> 0 | P103: =SUM(Dmr:Zun!P103) -> 0 | Q103: =SUM(Dmr:Zun!Q103) -> 0 | R103: =SUM(Dmr:Zun!R103) -> 0 | S103: =SUM(Dmr:Zun!S103) -> 0 | T103: =SUM(Dmr:Zun!T103) -> 0 | U103: =SUM(Dmr:Zun!U103) -> 0 | V103: =SUM(Dmr:Zun!V103) -> 0 | W103: =SUM(Dmr:Zun!W103) -> 0 | Y103: =SUM(Dmr:Zun!Y103) -> 0 | Z103: =SUM(Dmr:Zun!Z103) -> 0 | AA103: =SUM(Dmr:Zun!AA103) -> 0 | AB103: =SUM(Dmr:Zun!AB103) -> 0 | AC103: =SUM(Dmr:Zun!AC103) -> 0 | AD103: TRUE | AE103: TRUE | AF103: 0 | AG103: 0 | AH103: TRUE
A104: 3.12 | B104: Preparatory camp @ Rs 300/- per child per annum | C104: =SUM(Dmr:Zun!C104) -> 0 | D104: =SUM(Dmr:Zun!D104) -> 0 | E104: =SUM(Dmr:Zun!E104) -> 0 | F104: =SUM(Dmr:Zun!F104) -> 0 | I104: =SUM(Dmr:Zun!I104) -> 0 | J104: =SUM(Dmr:Zun!J104) -> 0 | K104: =SUM(Dmr:Zun!K104) -> 0 | L104: =SUM(Dmr:Zun!L104) -> 0 | M104: =SUM(Dmr:Zun!M104) -> 0 | N104: =SUM(Dmr:Zun!N104) -> 0 | P104: =SUM(Dmr:Zun!P104) -> 0 | Q104: =SUM(Dmr:Zun!Q104) -> 0 | R104: =SUM(Dmr:Zun!R104) -> 0 | S104: =SUM(Dmr:Zun!S104) -> 0 | T104: =SUM(Dmr:Zun!T104) -> 0 | U104: =SUM(Dmr:Zun!U104) -> 0 | V104: =SUM(Dmr:Zun!V104) -> 0 | W104: =SUM(Dmr:Zun!W104) -> 0 | Y104: =SUM(Dmr:Zun!Y104) -> 0 | Z104: =SUM(Dmr:Zun!Z104) -> 0 | AA104: =SUM(Dmr:Zun!AA104) -> 0 | AB104: =SUM(Dmr:Zun!AB104) -> 0 | AC104: =SUM(Dmr:Zun!AC104) -> 0 | AD104: TRUE | AE104: TRUE | AF104: 0 | AG104: 0 | AH104: TRUE
A105: 3.13 | B105: P.T.A / school functions @ Rs 300/- per child per annum | C105: =SUM(Dmr:Zun!C105) -> 0 | D105: =SUM(Dmr:Zun!D105) -> 0 | E105: =SUM(Dmr:Zun!E105) -> 0 | F105: =SUM(Dmr:Zun!F105) -> 0 | I105: =SUM(Dmr:Zun!I105) -> 0 | J105: =SUM(Dmr:Zun!J105) -> 0 | K105: =SUM(Dmr:Zun!K105) -> 0 | L105: =SUM(Dmr:Zun!L105) -> 0 | M105: =SUM(Dmr:Zun!M105) -> 0 | N105: =SUM(Dmr:Zun!N105) -> 0 | P105: =SUM(Dmr:Zun!P105) -> 0 | Q105: =SUM(Dmr:Zun!Q105) -> 0 | R105: =SUM(Dmr:Zun!R105) -> 0 | S105: =SUM(Dmr:Zun!S105) -> 0 | T105: =SUM(Dmr:Zun!T105) -> 0 | U105: =SUM(Dmr:Zun!U105) -> 0 | V105: =SUM(Dmr:Zun!V105) -> 0 | W105: =SUM(Dmr:Zun!W105) -> 0 | Y105: =SUM(Dmr:Zun!Y105) -> 0 | Z105: =SUM(Dmr:Zun!Z105) -> 0 | AA105: =SUM(Dmr:Zun!AA105) -> 0 | AB105: =SUM(Dmr:Zun!AB105) -> 0 | AC105: =SUM(Dmr:Zun!AC105) -> 0 | AD105: TRUE | AE105: TRUE | AF105: 0 | AG105: 0 | AH105: TRUE
A106: 3.14 | B106: Provision of rent @ Rs 10000/- per child per annum | C106: =SUM(Dmr:Zun!C106) -> 0 | D106: =SUM(Dmr:Zun!D106) -> 0 | E106: =SUM(Dmr:Zun!E106) -> 0 | F106: =SUM(Dmr:Zun!F106) -> 0 | I106: =SUM(Dmr:Zun!I106) -> 0 | J106: =SUM(Dmr:Zun!J106) -> 0 | K106: =SUM(Dmr:Zun!K106) -> 0 | L106: =SUM(Dmr:Zun!L106) -> 0 | M106: =SUM(Dmr:Zun!M106) -> 0 | N106: =SUM(Dmr:Zun!N106) -> 0 | P106: =SUM(Dmr:Zun!P106) -> 0 | Q106: =SUM(Dmr:Zun!Q106) -> 0 | R106: =SUM(Dmr:Zun!R106) -> 0 | S106: =SUM(Dmr:Zun!S106) -> 0 | T106: =SUM(Dmr:Zun!T106) -> 0 | U106: =SUM(Dmr:Zun!U106) -> 0 | V106: =SUM(Dmr:Zun!V106) -> 0 | W106: =SUM(Dmr:Zun!W106) -> 0 | Y106: =SUM(Dmr:Zun!Y106) -> 0 | Z106: =SUM(Dmr:Zun!Z106) -> 0 | AA106: =SUM(Dmr:Zun!AA106) -> 0 | AB106: =SUM(Dmr:Zun!AB106) -> 0 | AC106: =SUM(Dmr:Zun!AC106) -> 0 | AD106: TRUE | AE106: TRUE | AF106: 0 | AG106: 0 | AH106: TRUE
A107: 3.15 | B107: Capacity Building @ Rs 500/- per child per annum | C107: =SUM(Dmr:Zun!C107) -> 0 | D107: =SUM(Dmr:Zun!D107) -> 0 | E107: =SUM(Dmr:Zun!E107) -> 0 | F107: =SUM(Dmr:Zun!F107) -> 0 | I107: =SUM(Dmr:Zun!I107) -> 0 | J107: =SUM(Dmr:Zun!J107) -> 0 | K107: =SUM(Dmr:Zun!K107) -> 0 | L107: =SUM(Dmr:Zun!L107) -> 0 | M107: =SUM(Dmr:Zun!M107) -> 0 | N107: =SUM(Dmr:Zun!N107) -> 0 | P107: =SUM(Dmr:Zun!P107) -> 0 | Q107: =SUM(Dmr:Zun!Q107) -> 0 | R107: =SUM(Dmr:Zun!R107) -> 0 | S107: =SUM(Dmr:Zun!S107) -> 0 | T107: =SUM(Dmr:Zun!T107) -> 0 | U107: =SUM(Dmr:Zun!U107) -> 0 | V107: =SUM(Dmr:Zun!V107) -> 0 | W107: =SUM(Dmr:Zun!W107) -> 0 | Y107: =SUM(Dmr:Zun!Y107) -> 0 | Z107: =SUM(Dmr:Zun!Z107) -> 0 | AA107: =SUM(Dmr:Zun!AA107) -> 0 | AB107: =SUM(Dmr:Zun!AB107) -> 0 | AC107: =SUM(Dmr:Zun!AC107) -> 0 | AD107: TRUE | AE107: TRUE | AF107: 0 | AG107: 0 | AH107: TRUE
A108: 3.16 | B108: Physical / Self Defence training @ Rs 200/- per child per annum | C108: =SUM(Dmr:Zun!C108) -> 0 | D108: =SUM(Dmr:Zun!D108) -> 0 | E108: =SUM(Dmr:Zun!E108) -> 0 | F108: =SUM(Dmr:Zun!F108) -> 0 | I108: =SUM(Dmr:Zun!I108) -> 0 | J108: =SUM(Dmr:Zun!J108) -> 0 | K108: =SUM(Dmr:Zun!K108) -> 0 | L108: =SUM(Dmr:Zun!L108) -> 0 | M108: =SUM(Dmr:Zun!M108) -> 0 | N108: =SUM(Dmr:Zun!N108) -> 0 | P108: =SUM(Dmr:Zun!P108) -> 0 | Q108: =SUM(Dmr:Zun!Q108) -> 0 | R108: =SUM(Dmr:Zun!R108) -> 0 | S108: =SUM(Dmr:Zun!S108) -> 0 | T108: =SUM(Dmr:Zun!T108) -> 0 | U108: =SUM(Dmr:Zun!U108) -> 0 | V108: =SUM(Dmr:Zun!V108) -> 0 | W108: =SUM(Dmr:Zun!W108) -> 0 | Y108: =SUM(Dmr:Zun!Y108) -> 0 | Z108: =SUM(Dmr:Zun!Z108) -> 0 | AA108: =SUM(Dmr:Zun!AA108) -> 0 | AB108: =SUM(Dmr:Zun!AB108) -> 0 | AC108: =SUM(Dmr:Zun!AC108) -> 0 | AD108: TRUE | AE108: TRUE | AF108: 0 | AG108: 0 | AH108: TRUE
B109: Sub Total (Recurring) | D109: =SUBTOTAL(9,D89:D108) -> 0 | F109: =SUBTOTAL(9,F89:F108) -> 0 | J109: =SUBTOTAL(9,J89:J108) -> 0 | L109: =SUBTOTAL(9,L89:L108) -> 0 | N109: =SUBTOTAL(9,N89:N108) -> 0 | Q109: =SUBTOTAL(9,Q89:Q108) -> 0 | S109: =SUBTOTAL(9,S89:S108) -> 0 | U109: =SUBTOTAL(9,U89:U108) -> 0 | W109: =SUBTOTAL(9,W89:W108) -> 0 | Z109: =SUBTOTAL(9,Z89:Z108) -> 0 | AB109: =SUBTOTAL(9,AB89:AB108) -> 0 | AC109: =SUM(Dmr:Zun!AC109) -> 0 | AD109: TRUE | AE109: TRUE | AF109: 0 | AG109: 0 | AH109: TRUE
B110: Total (Non Recurring + Recurring) | D110: =SUBTOTAL(9,D83:D109) -> 0 | F110: =SUBTOTAL(9,F83:F109) -> 0 | J110: =SUBTOTAL(9,J83:J109) -> 0 | L110: =SUBTOTAL(9,L83:L109) -> 0 | N110: =SUBTOTAL(9,N83:N109) -> 0 | Q110: =SUBTOTAL(9,Q83:Q109) -> 0 | S110: =SUBTOTAL(9,S83:S109) -> 0 | U110: =SUBTOTAL(9,U83:U109) -> 0 | W110: =SUBTOTAL(9,W83:W109) -> 0 | Z110: =SUBTOTAL(9,Z83:Z109) -> 0 | AB110: =SUBTOTAL(9,AB83:AB109) -> 0 | AC110: =SUM(Dmr:Zun!AC110) -> 0 | AD110: TRUE | AE110: TRUE | AF110: 0 | AG110: 0 | AH110: TRUE
A111: (B) | B111: 50 Children | AC111: =SUM(Dmr:Zun!AC111) -> 0 | AD111: TRUE | AE111: TRUE | AF111: 0 | AG111: 0 | AH111: TRUE
B112: Non-recurring (one time grant) | AC112: =SUM(Dmr:Zun!AC112) -> 0 | AD112: TRUE | AE112: TRUE | AF112: 0 | AG112: 0 | AH112: TRUE
A113: 3.17 | B113: Furniture / Equipment (including kitchen equipment) | C113: =SUM(Dmr:Zun!C113) -> 6 | D113: =SUM(Dmr:Zun!D113) -> 18 | E113: =SUM(Dmr:Zun!E113) -> 0 | F113: =SUM(Dmr:Zun!F113) -> 0 | I113: =SUM(Dmr:Zun!I113) -> 0 | J113: =SUM(Dmr:Zun!J113) -> 18 | K113: 6 | L113: =SUM(Dmr:Zun!L113) -> 15 | M113: =SUM(Dmr:Zun!M113) -> 0 | N113: =SUM(Dmr:Zun!N113) -> 0 | O113: 2.5 | P113: =SUM(Dmr:Zun!P113) -> 5 | Q113: =SUM(Dmr:Zun!Q113) -> 12.5 | R113: =+K113+P113 -> 11 | S113: =SUM(Dmr:Zun!S113) -> 27.5 | T113: 6 | U113: =SUM(Dmr:Zun!U113) -> 15 | V113: =SUM(Dmr:Zun!V113) -> 0 | W113: =SUM(Dmr:Zun!W113) -> 0 | X113: 2.5 | Y113: =SUM(Dmr:Zun!Y113) -> 5 | Z113: =SUM(Dmr:Zun!Z113) -> 12.5 | AA113: =+T113+Y113 -> 11 | AB113: =SUM(Dmr:Zun!AB113) -> 27.5 | AC113: Recommended as proposed with 5 new hostels with a capacity of 50 each | AD113: TRUE | AE113: TRUE | AF113: 12.5 | AG113: 27.5 | AH113: TRUE
A114: =+A113+0.01 -> 3.18 | B114: TLM and equipment including library books (New) | C114: =SUM(Dmr:Zun!C114) -> 0 | D114: =SUM(Dmr:Zun!D114) -> 0 | E114: =SUM(Dmr:Zun!E114) -> 0 | F114: =SUM(Dmr:Zun!F114) -> 0 | I114: =SUM(Dmr:Zun!I114) -> 0 | J114: =SUM(Dmr:Zun!J114) -> 0 | K114: =SUM(Dmr:Zun!K114) -> 0 | L114: =SUM(Dmr:Zun!L114) -> 0 | M114: =SUM(Dmr:Zun!M114) -> 0 | N114: =SUM(Dmr:Zun!N114) -> 0 | O114: 3 | P114: =SUM(Dmr:Zun!P114) -> 11 | Q114: =SUM(Dmr:Zun!Q114) -> 33 | R114: =P114 -> 11 | S114: =SUM(Dmr:Zun!S114) -> 33 | T114: =SUM(Dmr:Zun!T114) -> 0 | U114: =SUM(Dmr:Zun!U114) -> 0 | V114: =SUM(Dmr:Zun!V114) -> 0 | W114: =SUM(Dmr:Zun!W114) -> 0 | X114: 3 | Y114: =SUM(Dmr:Zun!Y114) -> 11 | Z114: =SUM(Dmr:Zun!Z114) -> 33 | AA114: =Y114 -> 11 | AB114: =SUM(Dmr:Zun!AB114) -> 33 | AC114: Recommended as proposed | AD114: TRUE | AE114: TRUE | AF114: 33 | AG114: 33 | AH114: TRUE
A115: 3.19 | B115: Bedding (New) | C115: =SUM(Dmr:Zun!C115) -> 6 | D115: =SUM(Dmr:Zun!D115) -> 4.5 | E115: =SUM(Dmr:Zun!E115) -> 0 | F115: =SUM(Dmr:Zun!F115) -> 0 | I115: =SUM(Dmr:Zun!I115) -> 0 | J115: =SUM(Dmr:Zun!J115) -> 4.5 | K115: 6 | L115: =SUM(Dmr:Zun!L115) -> 2.25 | M115: =SUM(Dmr:Zun!M115) -> 0 | N115: =SUM(Dmr:Zun!N115) -> 0 | O115: 0.375 | P115: =SUM(Dmr:Zun!P115) -> 5 | Q115: =SUM(Dmr:Zun!Q115) -> 1.875 | R115: 5 | S115: =SUM(Dmr:Zun!S115) -> 4.125 | T115: 6 | U115: =SUM(Dmr:Zun!U115) -> 2.25 | V115: =SUM(Dmr:Zun!V115) -> 0 | W115: =SUM(Dmr:Zun!W115) -> 0 | X115: 0.375 | Y115: =SUM(Dmr:Zun!Y115) -> 5 | Z115: =SUM(Dmr:Zun!Z115) -> 1.875 | AA115: 5 | AB115: =SUM(Dmr:Zun!AB115) -> 4.125 | AC115: Recommended as proposed | AD115: TRUE | AE115: TRUE | AF115: 1.875 | AG115: 4.125 | AH115: TRUE
A116: 3.2 | B116: Replacement of bedding (once in 3 years) | C116: =SUM(Dmr:Zun!C116) -> 0 | D116: =SUM(Dmr:Zun!D116) -> 0 | E116: =SUM(Dmr:Zun!E116) -> 0 | F116: =SUM(Dmr:Zun!F116) -> 0 | I116: =SUM(Dmr:Zun!I116) -> 0 | J116: =SUM(Dmr:Zun!J116) -> 0 | K116: =SUM(Dmr:Zun!K116) -> 0 | L116: =SUM(Dmr:Zun!L116) -> 0 | M116: =SUM(Dmr:Zun!M116) -> 0 | N116: =SUM(Dmr:Zun!N116) -> 0 | P116: =SUM(Dmr:Zun!P116) -> 0 | Q116: =SUM(Dmr:Zun!Q116) -> 0 | R116: 0 | S116: =SUM(Dmr:Zun!S116) -> 0 | T116: =SUM(Dmr:Zun!T116) -> 0 | U116: =SUM(Dmr:Zun!U116) -> 0 | V116: =SUM(Dmr:Zun!V116) -> 0 | W116: =SUM(Dmr:Zun!W116) -> 0 | Y116: =SUM(Dmr:Zun!Y116) -> 0 | Z116: =SUM(Dmr:Zun!Z116) -> 0 | AA116: 0 | AB116: =SUM(Dmr:Zun!AB116) -> 0 | AC116: =SUM(Dmr:Zun!AC116) -> 0 | AD116: TRUE | AE116: TRUE | AF116: 0 | AG116: 0 | AH116: TRUE
B117: Sub Total Non-recurring | C117: =C113 -> 6 | D117: =SUM(Dmr:Zun!D117) -> 22.5 | E117: =SUM(Dmr:Zun!E117) -> 0 | F117: =SUM(Dmr:Zun!F117) -> 0 | I117: =SUM(Dmr:Zun!I117) -> 0 | J117: =SUM(Dmr:Zun!J117) -> 22.5 | K117: =SUM(Dmr:Zun!K117) -> 12 | L117: =SUM(Dmr:Zun!L117) -> 17.25 | M117: =SUM(Dmr:Zun!M117) -> 0 | N117: =SUM(Dmr:Zun!N117) -> 0 | P117: =SUM(Dmr:Zun!P117) -> 11 | Q117: =SUM(Dmr:Zun!Q117) -> 47.375 | R117: =SUM(Dmr:Zun!R117) -> 11 | S117: =SUM(Dmr:Zun!S117) -> 64.625 | T117: =SUM(Dmr:Zun!T117) -> 12 | U117: =SUM(Dmr:Zun!U117) -> 17.25 | V117: =SUM(Dmr:Zun!V117) -> 0 | W117: =SUM(Dmr:Zun!W117) -> 0 | Y117: =SUM(Dmr:Zun!Y117) -> 11 | Z117: =SUM(Dmr:Zun!Z117) -> 47.375 | AA117: =SUM(Dmr:Zun!AA117) -> 11 | AB117: =SUM(Dmr:Zun!AB117) -> 64.625 | AC117: =SUM(Dmr:Zun!AC117) -> 0 | AE117: TRUE | AF117: 47.375 | AG117: 64.625 | AH117: TRUE
B118: Recurring | AC118: =SUM(Dmr:Zun!AC118) -> 0 | AD118: TRUE | AE118: TRUE | AF118: 0 | AG118: 0 | AH118: TRUE
A119: 3.21 | B119: Maintenance per child Per month @ Rs.1500/- | C119: =SUM(Dmr:Zun!C119) -> 6 | D119: =SUM(Dmr:Zun!D119) -> 54 | E119: =SUM(Dmr:Zun!E119) -> 0 | F119: =SUM(Dmr:Zun!F119) -> 1.86 | G119: =E119/C119 -> 0 | H119: =F119/D119 -> 0.03444444444 | I119: =C119 -> 6 | J119: =SUM(Dmr:Zun!J119) -> 52.14 | K119: =SUM(Dmr:Zun!K119) -> 0 | L119: =SUM(Dmr:Zun!L119) -> 0 | M119: =SUM(Dmr:Zun!M119) -> 0 | N119: =SUM(Dmr:Zun!N119) -> 0 | O119: 9 | P119: =SUM(Dmr:Zun!P119) -> 11 | Q119: =SUM(Dmr:Zun!Q119) -> 99 | R119: =P119 -> 11 | S119: =SUM(Dmr:Zun!S119) -> 99 | T119: =SUM(Dmr:Zun!T119) -> 0 | U119: =SUM(Dmr:Zun!U119) -> 0 | V119: =SUM(Dmr:Zun!V119) -> 0 | W119: =SUM(Dmr:Zun!W119) -> 0 | X119: 9 | Y119: =SUM(Dmr:Zun!Y119) -> 11 | Z119: =SUM(Dmr:Zun!Z119) -> 99 | AA119: =Y119 -> 11 | AB119: =SUM(Dmr:Zun!AB119) -> 99 | AC119: Recommended as proposed | AD119: TRUE | AE119: TRUE | AF119: 99 | AG119: 99 | AH119: TRUE
A120: =+A119+0.01 -> 3.22 | B120: Stipend per child per month @ Rs.100/- | C120: =SUM(Dmr:Zun!C120) -> 6 | D120: =SUM(Dmr:Zun!D120) -> 3.6 | E120: =SUM(Dmr:Zun!E120) -> 0 | F120: =SUM(Dmr:Zun!F120) -> 0.12 | G120: =E120/C120 -> 0 | H120: =F120/D120 -> 0.03333333333 | I120: =C120 -> 6 | J120: =SUM(Dmr:Zun!J120) -> 3.48 | K120: =SUM(Dmr:Zun!K120) -> 0 | L120: =SUM(Dmr:Zun!L120) -> 0 | M120: =SUM(Dmr:Zun!M120) -> 0 | N120: =SUM(Dmr:Zun!N120) -> 0 | O120: 0.6 | P120: =SUM(Dmr:Zun!P120) -> 11 | Q120: =SUM(Dmr:Zun!Q120) -> 6.6 | R120: 11 | S120: =SUM(Dmr:Zun!S120) -> 6.6 | T120: =SUM(Dmr:Zun!T120) -> 0 | U120: =SUM(Dmr:Zun!U120) -> 0 | V120: =SUM(Dmr:Zun!V120) -> 0 | W120: =SUM(Dmr:Zun!W120) -> 0 | X120: 0.6 | Y120: =SUM(Dmr:Zun!Y120) -> 11 | Z120: =SUM(Dmr:Zun!Z120) -> 6.6 | AA120: 11 | AB120: =SUM(Dmr:Zun!AB120) -> 6.6 | AC120: Recommended as proposed | AD120: TRUE | AE120: TRUE | AF120: 6.6 | AG120: 6.6 | AH120: TRUE
A121: 3.23 | B121: Supplementary TLM, Stationery and other educational material @Rs.1000/- per child per annum | C121: =SUM(Dmr:Zun!C121) -> 0 | D121: =SUM(Dmr:Zun!D121) -> 0 | E121: =SUM(Dmr:Zun!E121) -> 0 | F121: =SUM(Dmr:Zun!F121) -> 0 | I121: =SUM(Dmr:Zun!I121) -> 0 | J121: =SUM(Dmr:Zun!J121) -> 0 | K121: =SUM(Dmr:Zun!K121) -> 0 | L121: =SUM(Dmr:Zun!L121) -> 0 | M121: =SUM(Dmr:Zun!M121) -> 0 | N121: =SUM(Dmr:Zun!N121) -> 0 | O121: 0.5 | P121: =SUM(Dmr:Zun!P121) -> 11 | Q121: =SUM(Dmr:Zun!Q121) -> 5.5 | R121: 11 | S121: =SUM(Dmr:Zun!S121) -> 5.5 | T121: =SUM(Dmr:Zun!T121) -> 0 | U121: =SUM(Dmr:Zun!U121) -> 0 | V121: =SUM(Dmr:Zun!V121) -> 0 | W121: =SUM(Dmr:Zun!W121) -> 0 | X121: 0.5 | Y121: =SUM(Dmr:Zun!Y121) -> 11 | Z121: =SUM(Dmr:Zun!Z121) -> 5.5 | AA121: 11 | AB121: =SUM(Dmr:Zun!AB121) -> 5.5 | AC121: Recommended as proposed | AD121: TRUE | AE121: TRUE | AF121: 5.5 | AG121: 5.5 | AH121: TRUE
A122: (a) | B122: Salaries | C122: =SUM(Dmr:Zun!C122) -> 6 | D122: =SUM(Dmr:Zun!D122) -> 0 | E122: =SUM(Dmr:Zun!E122) -> 0 | F122: =SUM(Dmr:Zun!F122) -> 0 | I122: =SUM(Dmr:Zun!I122) -> 0 | J122: =SUM(Dmr:Zun!J122) -> 0 | K122: =SUM(Dmr:Zun!K122) -> 0 | L122: =SUM(Dmr:Zun!L122) -> 0 | M122: =SUM(Dmr:Zun!M122) -> 0 | N122: =SUM(Dmr:Zun!N122) -> 0 | AC122: =SUM(Dmr:Zun!AC122) -> 0 | AD122: TRUE | AE122: TRUE | AF122: 0 | AG122: 0 | AH122: TRUE
A123: (b) | B123: 1 Warden @ Rs. 25,000/- per month | C123: =SUM(Dmr:Zun!C123) -> 6 | D123: =SUM(Dmr:Zun!D123) -> 18 | E123: =SUM(Dmr:Zun!E123) -> 1 | F123: =SUM(Dmr:Zun!F123) -> 1 | G123: 0.1666666667 | H123: 0.05555555556 | I123: =C123 -> 6 | J123: =SUM(Dmr:Zun!J123) -> 17 | K123: =SUM(Dmr:Zun!K123) -> 0 | L123: =SUM(Dmr:Zun!L123) -> 0 | M123: =SUM(Dmr:Zun!M123) -> 0 | N123: =SUM(Dmr:Zun!N123) -> 0 | O123: 3 | P123: =SUM(Dmr:Zun!P123) -> 11 | Q123: =SUM(Dmr:Zun!Q123) -> 33 | R123: 11 | S123: =SUM(Dmr:Zun!S123) -> 33 | T123: =SUM(Dmr:Zun!T123) -> 0 | U123: =SUM(Dmr:Zun!U123) -> 0 | V123: =SUM(Dmr:Zun!V123) -> 0 | W123: =SUM(Dmr:Zun!W123) -> 0 | X123: 3 | Y123: =SUM(Dmr:Zun!Y123) -> 11 | Z123: =SUM(Dmr:Zun!Z123) -> 33 | AA123: 11 | AB123: =SUM(Dmr:Zun!AB123) -> 33 | AC123: Recommended as proposed | AD123: TRUE | AE123: TRUE | AF123: 33 | AG123: 33 | AH123: TRUE
A124: (c) | B124: 2 Urdu Teachers (only for blocks with muslim population above 20% and select urban areas). If required @ Rs 12000/- per month per teacher | C124: =SUM(Dmr:Zun!C124) -> 6 | D124: =SUM(Dmr:Zun!D124) -> 0 | E124: =SUM(Dmr:Zun!E124) -> 0 | F124: =SUM(Dmr:Zun!F124) -> 0 | I124: =SUM(Dmr:Zun!I124) -> 0 | J124: =SUM(Dmr:Zun!J124) -> 0 | K124: =SUM(Dmr:Zun!K124) -> 0 | L124: =SUM(Dmr:Zun!L124) -> 0 | M124: =SUM(Dmr:Zun!M124) -> 0 | N124: =SUM(Dmr:Zun!N124) -> 0 | AB124: =SUM(Dmr:Zun!AB124) -> 0 | AC124: =SUM(Dmr:Zun!AC124) -> 0 | AD124: TRUE | AE124: TRUE | AF124: 0 | AG124: 0 | AH124: TRUE
A125: (d) | B125: 3 Part time teachers @ Rs 5000/- per month per teacher | C125: =SUM(Dmr:Zun!C125) -> 6 | D125: =SUM(Dmr:Zun!D125) -> 10.8 | E125: =SUM(Dmr:Zun!E125) -> 0 | F125: =SUM(Dmr:Zun!F125) -> 0.4 | G125: 0 | H125: 0.03703703704 | I125: =C125 -> 6 | J125: =SUM(Dmr:Zun!J125) -> 10.4 | K125: =SUM(Dmr:Zun!K125) -> 0 | L125: =SUM(Dmr:Zun!L125) -> 0 | M125: =SUM(Dmr:Zun!M125) -> 0 | N125: =SUM(Dmr:Zun!N125) -> 0 | O125: 1.8 | P125: =SUM(Dmr:Zun!P125) -> 11 | Q125: =SUM(Dmr:Zun!Q125) -> 19.8 | R125: 11 | S125: =SUM(Dmr:Zun!S125) -> 19.8 | T125: =SUM(Dmr:Zun!T125) -> 0 | U125: =SUM(Dmr:Zun!U125) -> 0 | V125: =SUM(Dmr:Zun!V125) -> 0 | W125: =SUM(Dmr:Zun!W125) -> 0 | X125: 1.8 | Y125: =SUM(Dmr:Zun!Y125) -> 11 | Z125: =SUM(Dmr:Zun!Z125) -> 19.8 | AA125: 11 | AB125: =SUM(Dmr:Zun!AB125) -> 19.8 | AC125: Recommended as proposed | AD125: TRUE | AE125: TRUE | AF125: 19.8 | AG125: 19.8 | AH125: TRUE
A126: (e) | B126: 1 Full time Accountant @ Rs 10000/- per month | C126: =SUM(Dmr:Zun!C126) -> 6 | D126: =SUM(Dmr:Zun!D126) -> 7.2 | E126: =SUM(Dmr:Zun!E126) -> 0 | F126: =SUM(Dmr:Zun!F126) -> 0 | G126: 0 | H126: 0 | I126: 6 | J126: =SUM(Dmr:Zun!J126) -> 7.2 | K126: =SUM(Dmr:Zun!K126) -> 0 | L126: =SUM(Dmr:Zun!L126) -> 0 | M126: =SUM(Dmr:Zun!M126) -> 0 | N126: =SUM(Dmr:Zun!N126) -> 0 | O126: 1.2 | P126: =SUM(Dmr:Zun!P126) -> 11 | Q126: =SUM(Dmr:Zun!Q126) -> 13.2 | R126: 11 | S126: =SUM(Dmr:Zun!S126) -> 13.2 | T126: =SUM(Dmr:Zun!T126) -> 0 | U126: =SUM(Dmr:Zun!U126) -> 0 | V126: =SUM(Dmr:Zun!V126) -> 0 | W126: =SUM(Dmr:Zun!W126) -> 0 | X126: 1.2 | Y126: =SUM(Dmr:Zun!Y126) -> 11 | Z126: =SUM(Dmr:Zun!Z126) -> 13.2 | AA126: 11 | AB126: =SUM(Dmr:Zun!AB126) -> 13.2 | AC126: Recommended as proposed | AD126: TRUE | AE126: TRUE | AF126: 13.2 | AG126: 13.2 | AH126: TRUE
A127: (f) | B127: 2 Support Staff - (Accountant / Assistant, Peon, Chowkidar) @ Rs 5000/- per month per staff | C127: =SUM(Dmr:Zun!C127) -> 6 | D127: =SUM(Dmr:Zun!D127) -> 7.2 | E127: =SUM(Dmr:Zun!E127) -> 0 | F127: =SUM(Dmr:Zun!F127) -> 0.2 | G127: 0 | H127: 0.02777777778 | I127: 6 | J127: =SUM(Dmr:Zun!J127) -> 7 | K127: =SUM(Dmr:Zun!K127) -> 0 | L127: =SUM(Dmr:Zun!L127) -> 0 | M127: =SUM(Dmr:Zun!M127) -> 0 | N127: =SUM(Dmr:Zun!N127) -> 0 | O127: 1.2 | P127: =SUM(Dmr:Zun!P127) -> 11 | Q127: =SUM(Dmr:Zun!Q127) -> 13.2 | R127: 11 | S127: =SUM(Dmr:Zun!S127) -> 13.2 | T127: =SUM(Dmr:Zun!T127) -> 0 | U127: =SUM(Dmr:Zun!U127) -> 0 | V127: =SUM(Dmr:Zun!V127) -> 0 | W127: =SUM(Dmr:Zun!W127) -> 0 | X127: 1.2 | Y127: =SUM(Dmr:Zun!Y127) -> 11 | Z127: =SUM(Dmr:Zun!Z127) -> 13.2 | AA127: 11 | AB127: =SUM(Dmr:Zun!AB127) -> 13.2 | AC127: Recommended as proposed | AD127: TRUE | AE127: TRUE | AF127: 13.2 | AG127: 13.2 | AH127: TRUE
A128: (g) | B128: 1 Head cook @ Rs 6000/- per month and upto 2 Assistant cooks @ Rs 4500/- per month per cook | C128: =SUM(Dmr:Zun!C128) -> 6 | D128: =SUM(Dmr:Zun!D128) -> 10.8 | E128: =SUM(Dmr:Zun!E128) -> 0 | F128: =SUM(Dmr:Zun!F128) -> 0.36 | G128: 0 | H128: 0.03333333333 | I128: 6 | J128: =SUM(Dmr:Zun!J128) -> 10.44 | K128: =SUM(Dmr:Zun!K128) -> 0 | L128: =SUM(Dmr:Zun!L128) -> 0 | M128: =SUM(Dmr:Zun!M128) -> 0 | N128: =SUM(Dmr:Zun!N128) -> 0 | O128: 1.8 | P128: =SUM(Dmr:Zun!P128) -> 11 | Q128: =SUM(Dmr:Zun!Q128) -> 19.8 | R128: 11 | S128: =SUM(Dmr:Zun!S128) -> 19.8 | T128: =SUM(Dmr:Zun!T128) -> 0 | U128: =SUM(Dmr:Zun!U128) -> 0 | V128: =SUM(Dmr:Zun!V128) -> 0 | W128: =SUM(Dmr:Zun!W128) -> 0 | X128: 1.8 | Y128: =SUM(Dmr:Zun!Y128) -> 11 | Z128: =SUM(Dmr:Zun!Z128) -> 19.8 | AA128: 11 | AB128: =SUM(Dmr:Zun!AB128) -> 19.8 | AC128: Recommended as proposed | AD128: TRUE | AE128: TRUE | AF128: 19.8 | AG128: 19.8 | AH128: TRUE
A129: 3.24 | B129: Specific skill training per child @ Rs 1000/- per annum | C129: =SUM(Dmr:Zun!C129) -> 0 | D129: =SUM(Dmr:Zun!D129) -> 0 | E129: =SUM(Dmr:Zun!E129) -> 0 | F129: =SUM(Dmr:Zun!F129) -> 0 | I129: =SUM(Dmr:Zun!I129) -> 0 | J129: =SUM(Dmr:Zun!J129) -> 0 | K129: =SUM(Dmr:Zun!K129) -> 0 | L129: =SUM(Dmr:Zun!L129) -> 0 | M129: =SUM(Dmr:Zun!M129) -> 0 | N129: =SUM(Dmr:Zun!N129) -> 0 | O129: 0.5 | P129: =SUM(Dmr:Zun!P129) -> 11 | Q129: =SUM(Dmr:Zun!Q129) -> 5.5 | R129: 11 | S129: =SUM(Dmr:Zun!S129) -> 5.5 | T129: =SUM(Dmr:Zun!T129) -> 0 | U129: =SUM(Dmr:Zun!U129) -> 0 | V129: =SUM(Dmr:Zun!V129) -> 0 | W129: =SUM(Dmr:Zun!W129) -> 0 | X129: 0.5 | Y129: =SUM(Dmr:Zun!Y129) -> 11 | Z129: =SUM(Dmr:Zun!Z129) -> 5.5 | AA129: 11 | AB129: =SUM(Dmr:Zun!AB129) -> 5.5 | AC129: Recommended as proposed | AD129: TRUE | AE129: TRUE | AF129: 5.5 | AG129: 5.5 | AH129: TRUE
A130: =+A129+0.01 -> 3.25 | B130: Electricity / Water charges per child @ Rs 1000/- per annum | C130: =SUM(Dmr:Zun!C130) -> 6 | D130: =SUM(Dmr:Zun!D130) -> 3 | E130: =SUM(Dmr:Zun!E130) -> 0 | F130: =SUM(Dmr:Zun!F130) -> 0 | G130: 0 | H130: 0 | I130: =C130 -> 6 | J130: =SUM(Dmr:Zun!J130) -> 3 | K130: =SUM(Dmr:Zun!K130) -> 0 | L130: =SUM(Dmr:Zun!L130) -> 0 | M130: =SUM(Dmr:Zun!M130) -> 0 | N130: =SUM(Dmr:Zun!N130) -> 0 | O130: 0.5 | P130: =SUM(Dmr:Zun!P130) -> 11 | Q130: =SUM(Dmr:Zun!Q130) -> 5.5 | R130: 11 | S130: =SUM(Dmr:Zun!S130) -> 5.5 | T130: =SUM(Dmr:Zun!T130) -> 0 | U130: =SUM(Dmr:Zun!U130) -> 0 | V130: =SUM(Dmr:Zun!V130) -> 0 | W130: =SUM(Dmr:Zun!W130) -> 0 | X130: 0.5 | Y130: =SUM(Dmr:Zun!Y130) -> 11 | Z130: =SUM(Dmr:Zun!Z130) -> 5.5 | AA130: 11 | AB130: =SUM(Dmr:Zun!AB130) -> 5.5 | AC130: Recommended as proposed | AD130: TRUE | AE130: TRUE | AF130: 5.5 | AG130: 5.5 | AH130: TRUE
A131: 3.26 | B131: Medical care/contingencies @ Rs.1250/- per child per annum | C131: =SUM(Dmr:Zun!C131) -> 6 | D131: =SUM(Dmr:Zun!D131) -> 3.75 | E131: =SUM(Dmr:Zun!E131) -> 0 | F131: =SUM(Dmr:Zun!F131) -> 0.2 | G131: 0 | H131: 0.05333333333 | I131: 6 | J131: =SUM(Dmr:Zun!J131) -> 3.55 | K131: =SUM(Dmr:Zun!K131) -> 0 | L131: =SUM(Dmr:Zun!L131) -> 0 | M131: =SUM(Dmr:Zun!M131) -> 0 | N131: =SUM(Dmr:Zun!N131) -> 0 | O131: 0.625 | P131: =SUM(Dmr:Zun!P131) -> 11 | Q131: =SUM(Dmr:Zun!Q131) -> 6.875 | R131: 11 | S131: =SUM(Dmr:Zun!S131) -> 6.875 | T131: =SUM(Dmr:Zun!T131) -> 0 | U131: =SUM(Dmr:Zun!U131) -> 0 | V131: =SUM(Dmr:Zun!V131) -> 0 | W131: =SUM(Dmr:Zun!W131) -> 0 | X131: 0.625 | Y131: =SUM(Dmr:Zun!Y131) -> 11 | Z131: =SUM(Dmr:Zun!Z131) -> 6.875 | AA131: 11 | AB131: =SUM(Dmr:Zun!AB131) -> 6.875 | AC131: Recommended as proposed | AD131: TRUE | AE131: TRUE | AF131: 6.875 | AG131: 6.875 | AH131: TRUE
A132: 3.27 | B132: Maintenance @ Rs 750/- per child per annum | C132: =SUM(Dmr:Zun!C132) -> 6 | D132: =SUM(Dmr:Zun!D132) -> 2.25 | E132: =SUM(Dmr:Zun!E132) -> 0 | F132: =SUM(Dmr:Zun!F132) -> 0.15 | G132: 0 | H132: 0.06666666667 | I132: 6 | J132: =SUM(Dmr:Zun!J132) -> 2.1 | K132: =SUM(Dmr:Zun!K132) -> 0 | L132: =SUM(Dmr:Zun!L132) -> 0 | M132: =SUM(Dmr:Zun!M132) -> 0 | N132: =SUM(Dmr:Zun!N132) -> 0 | O132: 0.375 | P132: =SUM(Dmr:Zun!P132) -> 11 | Q132: =SUM(Dmr:Zun!Q132) -> 4.125 | R132: 11 | S132: =SUM(Dmr:Zun!S132) -> 4.125 | T132: =SUM(Dmr:Zun!T132) -> 0 | U132: =SUM(Dmr:Zun!U132) -> 0 | V132: =SUM(Dmr:Zun!V132) -> 0 | W132: =SUM(Dmr:Zun!W132) -> 0 | X132: 0.375 | Y132: =SUM(Dmr:Zun!Y132) -> 11 | Z132: =SUM(Dmr:Zun!Z132) -> 4.125 | AA132: 11 | AB132: =SUM(Dmr:Zun!AB132) -> 4.125 | AC132: Recommended as proposed | AD132: TRUE | AE132: TRUE | AF132: 4.125 | AG132: 4.125 | AH132: TRUE
A133: 3.28 | B133: Miscellaneous @ Rs 750/- per child per annum | C133: =SUM(Dmr:Zun!C133) -> 6 | D133: =SUM(Dmr:Zun!D133) -> 2.25 | E133: =SUM(Dmr:Zun!E133) -> 0 | F133: =SUM(Dmr:Zun!F133) -> 0.15 | G133: 0 | H133: 0.06666666667 | I133: 6 | J133: =SUM(Dmr:Zun!J133) -> 2.1 | K133: =SUM(Dmr:Zun!K133) -> 0 | L133: =SUM(Dmr:Zun!L133) -> 0 | M133: =SUM(Dmr:Zun!M133) -> 0 | N133: =SUM(Dmr:Zun!N133) -> 0 | O133: 0.375 | P133: =SUM(Dmr:Zun!P133) -> 11 | Q133: =SUM(Dmr:Zun!Q133) -> 4.125 | R133: 11 | S133: =SUM(Dmr:Zun!S133) -> 4.125 | T133: =SUM(Dmr:Zun!T133) -> 0 | U133: =SUM(Dmr:Zun!U133) -> 0 | V133: =SUM(Dmr:Zun!V133) -> 0 | W133: =SUM(Dmr:Zun!W133) -> 0 | X133: 0.375 | Y133: =SUM(Dmr:Zun!Y133) -> 11 | Z133: =SUM(Dmr:Zun!Z133) -> 4.125 | AA133: 11 | AB133: =SUM(Dmr:Zun!AB133) -> 4.125 | AC133: Recommended as proposed | AD133: TRUE | AE133: TRUE | AF133: 4.125 | AG133: 4.125 | AH133: TRUE
A134: 3.29 | B134: Preparatory camp @ Rs 300/- per child per annum | C134: =SUM(Dmr:Zun!C134) -> 0 | D134: =SUM(Dmr:Zun!D134) -> 0 | E134: =SUM(Dmr:Zun!E134) -> 0 | F134: =SUM(Dmr:Zun!F134) -> 0 | I134: =SUM(Dmr:Zun!I134) -> 0 | J134: =SUM(Dmr:Zun!J134) -> 0 | K134: =SUM(Dmr:Zun!K134) -> 0 | L134: =SUM(Dmr:Zun!L134) -> 0 | M134: =SUM(Dmr:Zun!M134) -> 0 | N134: =SUM(Dmr:Zun!N134) -> 0 | O134: 0.15 | P134: =SUM(Dmr:Zun!P134) -> 11 | Q134: =SUM(Dmr:Zun!Q134) -> 1.65 | R134: 11 | S134: =SUM(Dmr:Zun!S134) -> 1.65 | T134: =SUM(Dmr:Zun!T134) -> 0 | U134: =SUM(Dmr:Zun!U134) -> 0 | V134: =SUM(Dmr:Zun!V134) -> 0 | W134: =SUM(Dmr:Zun!W134) -> 0 | X134: 0.15 | Y134: =SUM(Dmr:Zun!Y134) -> 11 | Z134: =SUM(Dmr:Zun!Z134) -> 1.65 | AA134: 11 | AB134: =SUM(Dmr:Zun!AB134) -> 1.65 | AC134: Recommended as proposed | AD134: TRUE | AE134: TRUE | AF134: 1.65 | AG134: 1.65 | AH134: TRUE
A135: 3.3 | B135: P.T.A / school functions @ Rs 300/- per child per annum | C135: =SUM(Dmr:Zun!C135) -> 0 | D135: =SUM(Dmr:Zun!D135) -> 0 | E135: =SUM(Dmr:Zun!E135) -> 0 | F135: =SUM(Dmr:Zun!F135) -> 0 | I135: =SUM(Dmr:Zun!I135) -> 0 | J135: =SUM(Dmr:Zun!J135) -> 0 | K135: =SUM(Dmr:Zun!K135) -> 0 | L135: =SUM(Dmr:Zun!L135) -> 0 | M135: =SUM(Dmr:Zun!M135) -> 0 | N135: =SUM(Dmr:Zun!N135) -> 0 | O135: 0.15 | P135: =SUM(Dmr:Zun!P135) -> 11 | Q135: =SUM(Dmr:Zun!Q135) -> 1.65 | R135: 11 | S135: =SUM(Dmr:Zun!S135) -> 1.65 | T135: =SUM(Dmr:Zun!T135) -> 0 | U135: =SUM(Dmr:Zun!U135) -> 0 | V135: =SUM(Dmr:Zun!V135) -> 0 | W135: =SUM(Dmr:Zun!W135) -> 0 | X135: 0.15 | Y135: =SUM(Dmr:Zun!Y135) -> 11 | Z135: =SUM(Dmr:Zun!Z135) -> 1.65 | AA135: 11 | AB135: =SUM(Dmr:Zun!AB135) -> 1.65 | AC135: Recommended as proposed | AD135: TRUE | AE135: TRUE | AF135: 1.65 | AG135: 1.65 | AH135: TRUE
A136: 3.31 | B136: Provision of rent @ Rs 10000/- per child per annum | C136: =SUM(Dmr:Zun!C136) -> 5 | D136: =SUM(Dmr:Zun!D136) -> 25 | E136: =SUM(Dmr:Zun!E136) -> 0 | F136: =SUM(Dmr:Zun!F136) -> 0 | I136: =SUM(Dmr:Zun!I136) -> 5 | J136: =SUM(Dmr:Zun!J136) -> 25 | K136: =SUM(Dmr:Zun!K136) -> 0 | L136: =SUM(Dmr:Zun!L136) -> 0 | M136: =SUM(Dmr:Zun!M136) -> 0 | N136: =SUM(Dmr:Zun!N136) -> 0 | P136: =SUM(Dmr:Zun!P136) -> 10 | Q136: =SUM(Dmr:Zun!Q136) -> 50 | R136: 10 | S136: =SUM(Dmr:Zun!S136) -> 50 | T136: =SUM(Dmr:Zun!T136) -> 0 | U136: =SUM(Dmr:Zun!U136) -> 0 | V136: =SUM(Dmr:Zun!V136) -> 0 | W136: =SUM(Dmr:Zun!W136) -> 0 | X136: 5 | Y136: =SUM(Dmr:Zun!Y136) -> 10 | Z136: =SUM(Dmr:Zun!Z136) -> 50 | AA136: 10 | AB136: =SUM(Dmr:Zun!AB136) -> 50 | AC136: Recommended as proposed | AD136: =+X136*Y136=Z136 -> TRUE | AE136: =+U136+Z136=AB136 -> TRUE | AF136: =+Q136 -> 50 | AG136: =+S136 -> 50 | AH136: =+L136+Q136=S136 -> TRUE
A137: 3.32 | B137: Capacity Building @ Rs 500/- per child per annum | E137: =SUM(Dmr:Zun!E137) -> 0 | F137: =SUM(Dmr:Zun!F137) -> 0 | I137: =C137 -> 0 | J137: =SUM(Dmr:Zun!J137) -> 0 | K137: =SUM(Dmr:Zun!K137) -> 0 | L137: =SUM(Dmr:Zun!L137) -> 0 | M137: =SUM(Dmr:Zun!M137) -> 0 | N137: =SUM(Dmr:Zun!N137) -> 0 | O137: 0.25 | P137: =SUM(Dmr:Zun!P137) -> 11 | Q137: =SUM(Dmr:Zun!Q137) -> 2.75 | R137: 11 | S137: =SUM(Dmr:Zun!S137) -> 2.75 | T137: =SUM(Dmr:Zun!T137) -> 0 | U137: =SUM(Dmr:Zun!U137) -> 0 | V137: =SUM(Dmr:Zun!V137) -> 0 | W137: =SUM(Dmr:Zun!W137) -> 0 | X137: 0.25 | Y137: =SUM(Dmr:Zun!Y137) -> 11 | Z137: =SUM(Dmr:Zun!Z137) -> 2.75 | AA137: 11 | AB137: =SUM(Dmr:Zun!AB137) -> 2.75 | AC137: Recommended as proposed | AD137: TRUE | AE137: TRUE | AF137: 2.75 | AG137: 2.75 | AH137: TRUE
A138: 3.33 | B138: Physical / Self Defence training @ Rs 200/- per child per annum | C138: =SUM(Dmr:Zun!C138) -> 0 | D138: =SUM(Dmr:Zun!D138) -> 0 | E138: =SUM(Dmr:Zun!E138) -> 0 | F138: =SUM(Dmr:Zun!F138) -> 0 | I138: =SUM(Dmr:Zun!I138) -> 0 | J138: =SUM(Dmr:Zun!J138) -> 0 | K138: =SUM(Dmr:Zun!K138) -> 0 | L138: =SUM(Dmr:Zun!L138) -> 0 | M138: =SUM(Dmr:Zun!M138) -> 0 | N138: =SUM(Dmr:Zun!N138) -> 0 | O138: 0.1 | P138: =SUM(Dmr:Zun!P138) -> 11 | Q138: =SUM(Dmr:Zun!Q138) -> 1.1 | R138: 11 | S138: =SUM(Dmr:Zun!S138) -> 1.1 | T138: =SUM(Dmr:Zun!T138) -> 0 | U138: =SUM(Dmr:Zun!U138) -> 0 | V138: =SUM(Dmr:Zun!V138) -> 0 | W138: =SUM(Dmr:Zun!W138) -> 0 | X138: 0.1 | Y138: =SUM(Dmr:Zun!Y138) -> 11 | Z138: =SUM(Dmr:Zun!Z138) -> 1.1 | AA138: 11 | AB138: =SUM(Dmr:Zun!AB138) -> 1.1 | AC138: Recommended as proposed | AD138: TRUE | AE138: TRUE | AF138: 1.1 | AG138: 1.1 | AH138: TRUE
B139: Sub Total (Recurring) | C139: =SUM(Dmr:Zun!C139) -> 6 | D139: =SUM(Dmr:Zun!D139) -> 147.85 | E139: =E119 -> 0 | F139: =SUM(Dmr:Zun!F139) -> 4.44 | G139: 0 | H139: 0.03003043625 | I139: =I119 -> 6 | J139: =SUM(Dmr:Zun!J139) -> 143.41 | K139: =K119 -> 0 | L139: =SUM(Dmr:Zun!L139) -> 0 | M139: =M119 -> 0 | N139: =SUM(Dmr:Zun!N139) -> 0 | P139: =P119 -> 11 | Q139: =SUM(Dmr:Zun!Q139) -> 293.375 | R139: =R119 -> 11 | S139: =SUM(Dmr:Zun!S139) -> 293.375 | T139: =T119 -> 0 | U139: =SUM(Dmr:Zun!U139) -> 0 | V139: =V119 -> 0 | W139: =SUM(Dmr:Zun!W139) -> 0 | Y139: =Y119 -> 11 | Z139: =SUM(Dmr:Zun!Z139) -> 293.375 | AA139: =AA119 -> 11 | AB139: =SUM(Dmr:Zun!AB139) -> 293.375 | AC139: =SUM(Dmr:Zun!AC139) -> 0 | AE139: TRUE | AF139: 293.375 | AG139: 293.375 | AH139: TRUE
B140: Total (Recurring + Non Recurring) | C140: =C139 -> 6 | D140: =SUM(Dmr:Zun!D140) -> 170.35 | E140: =E139 -> 0 | F140: =SUM(Dmr:Zun!F140) -> 4.44 | G140: 0 | H140: 0.02606398591 | I140: =I139 -> 6 | J140: =SUM(Dmr:Zun!J140) -> 165.91 | K140: =K139 -> 0 | L140: =SUM(Dmr:Zun!L140) -> 17.25 | M140: =M139 -> 0 | N140: =SUM(Dmr:Zun!N140) -> 0 | P140: =P139 -> 11 | Q140: =SUM(Dmr:Zun!Q140) -> 340.75 | R140: =R139 -> 11 | S140: =SUM(Dmr:Zun!S140) -> 358 | T140: =T139 -> 0 | U140: =SUM(Dmr:Zun!U140) -> 17.25 | V140: =V139 -> 0 | W140: =SUM(Dmr:Zun!W140) -> 0 | Y140: =Y139 -> 11 | Z140: =SUM(Dmr:Zun!Z140) -> 340.75 | AA140: =AA139 -> 11 | AB140: =SUM(Dmr:Zun!AB140) -> 358 | AC140: =SUM(Dmr:Zun!AC140) -> 0 | AE140: TRUE | AF140: 340.75 | AG140: 358 | AH140: TRUE
B141: Total (A + B) | C141: =C140 -> 6 | D141: =SUM(Dmr:Zun!D141) -> 170.35 | E141: =E140 -> 0 | F141: =SUM(Dmr:Zun!F141) -> 4.44 | G141: 0 | H141: 0.02606398591 | I141: =I140 -> 6 | J141: =SUM(Dmr:Zun!J141) -> 165.91 | K141: =K140 -> 0 | L141: =SUM(Dmr:Zun!L141) -> 17.25 | M141: =M140 -> 0 | N141: =SUM(Dmr:Zun!N141) -> 0 | P141: =P140 -> 11 | Q141: =SUM(Dmr:Zun!Q141) -> 340.75 | R141: =R140 -> 11 | S141: =SUM(Dmr:Zun!S141) -> 358 | T141: =T140 -> 0 | U141: =SUM(Dmr:Zun!U141) -> 17.25 | V141: =V140 -> 0 | W141: =SUM(Dmr:Zun!W141) -> 0 | Y141: =Y140 -> 11 | Z141: =SUM(Dmr:Zun!Z141) -> 340.75 | AA141: =AA140 -> 11 | AB141: =SUM(Dmr:Zun!AB141) -> 358 | AC141: =SUM(Dmr:Zun!AC141) -> 0 | AE141: TRUE | AF141: 340.75 | AG141: 358 | AH141: TRUE
A142: 4 | B142: Transport/Escort Facility | AC142: =SUM(Dmr:Zun!AC142) -> 0 | AD142: TRUE | AE142: TRUE | AF142: 0 | AG142: 0 | AH142: TRUE
A143: 4.01 | B143: Children in remote habitation | C143: =SUM(Dmr:Zun!C143) -> 0 | D143: =SUM(Dmr:Zun!D143) -> 0 | E143: =SUM(Dmr:Zun!E143) -> 0 | F143: =SUM(Dmr:Zun!F143) -> 0 | I143: =SUM(Dmr:Zun!I143) -> 0 | J143: =SUM(Dmr:Zun!J143) -> 0 | K143: =SUM(Dmr:Zun!K143) -> 0 | L143: =SUM(Dmr:Zun!L143) -> 0 | M143: =SUM(Dmr:Zun!M143) -> 0 | N143: =SUM(Dmr:Zun!N143) -> 0 | O143: 0.03 | P143: =SUM(Dmr:Zun!P143) -> 0 | Q143: =SUM(Dmr:Zun!Q143) -> 0 | R143: =SUM(Dmr:Zun!R143) -> 0 | S143: =SUM(Dmr:Zun!S143) -> 0 | T143: =SUM(Dmr:Zun!T143) -> 0 | U143: =SUM(Dmr:Zun!U143) -> 0 | V143: =SUM(Dmr:Zun!V143) -> 0 | W143: =SUM(Dmr:Zun!W143) -> 0 | X143: 0.03 | Y143: =SUM(Dmr:Zun!Y143) -> 0 | Z143: =SUM(Dmr:Zun!Z143) -> 0 | AA143: =SUM(Dmr:Zun!AA143) -> 0 | AB143: =SUM(Dmr:Zun!AB143) -> 0 | AC143: =SUM(Dmr:Zun!AC143) -> 0 | AD143: TRUE | AE143: TRUE | AF143: 0 | AG143: 0 | AH143: TRUE
A144: 4.02 | B144: Urban deprived children/children without adult protection | C144: =SUM(Dmr:Zun!C144) -> 0 | D144: =SUM(Dmr:Zun!D144) -> 0 | E144: =SUM(Dmr:Zun!E144) -> 0 | F144: =SUM(Dmr:Zun!F144) -> 0 | I144: =SUM(Dmr:Zun!I144) -> 0 | J144: =SUM(Dmr:Zun!J144) -> 0 | K144: =SUM(Dmr:Zun!K144) -> 0 | L144: =SUM(Dmr:Zun!L144) -> 0 | M144: =SUM(Dmr:Zun!M144) -> 0 | N144: =SUM(Dmr:Zun!N144) -> 0 | O144: 0.03 | P144: =SUM(Dmr:Zun!P144) -> 0 | Q144: =SUM(Dmr:Zun!Q144) -> 0 | R144: =SUM(Dmr:Zun!R144) -> 0 | S144: =SUM(Dmr:Zun!S144) -> 0 | T144: =SUM(Dmr:Zun!T144) -> 0 | U144: =SUM(Dmr:Zun!U144) -> 0 | V144: =SUM(Dmr:Zun!V144) -> 0 | W144: =SUM(Dmr:Zun!W144) -> 0 | X144: 0.03 | Y144: =SUM(Dmr:Zun!Y144) -> 0 | Z144: =SUM(Dmr:Zun!Z144) -> 0 | AA144: =SUM(Dmr:Zun!AA144) -> 0 | AB144: =SUM(Dmr:Zun!AB144) -> 0 | AC144: =SUM(Dmr:Zun!AC144) -> 0 | AD144: TRUE | AE144: TRUE | AF144: 0 | AG144: 0 | AH144: TRUE
B145: Sub Total | C145: =SUM(Dmr:Zun!C145) -> 0 | D145: =SUM(Dmr:Zun!D145) -> 0 | E145: =SUM(Dmr:Zun!E145) -> 0 | F145: =SUM(Dmr:Zun!F145) -> 0 | I145: =SUM(Dmr:Zun!I145) -> 0 | J145: =SUM(Dmr:Zun!J145) -> 0 | K145: =SUM(Dmr:Zun!K145) -> 0 | L145: =SUM(Dmr:Zun!L145) -> 0 | M145: =SUM(Dmr:Zun!M145) -> 0 | N145: =SUM(Dmr:Zun!N145) -> 0 | P145: =SUM(Dmr:Zun!P145) -> 0 | Q145: =SUM(Dmr:Zun!Q145) -> 0 | R145: =SUM(Dmr:Zun!R145) -> 0 | S145: =SUM(Dmr:Zun!S145) -> 0 | T145: =SUM(Dmr:Zun!T145) -> 0 | U145: =SUM(Dmr:Zun!U145) -> 0 | V145: =SUM(Dmr:Zun!V145) -> 0 | W145: =SUM(Dmr:Zun!W145) -> 0 | Y145: =SUM(Dmr:Zun!Y145) -> 0 | Z145: =SUM(Dmr:Zun!Z145) -> 0 | AA145: =SUM(Dmr:Zun!AA145) -> 0 | AB145: =SUM(Dmr:Zun!AB145) -> 0 | AC145: =SUM(Dmr:Zun!AC145) -> 0 | AD145: TRUE | AE145: TRUE | AF145: 0 | AG145: 0 | AH145: TRUE
A146: 5 | B146: Reimbursement of Fee against 25% admission under Section 12(1)(c) of RTE Act 2009 (Entry Level) subject to upper limit of 20% of AWP&B subject to guidelines issued by MHRD | C146: =SUM(Dmr:Zun!C146) -> 0 | D146: =SUM(Dmr:Zun!D146) -> 0 | E146: =SUM(Dmr:Zun!E146) -> 0 | F146: =SUM(Dmr:Zun!F146) -> 0 | I146: =SUM(Dmr:Zun!I146) -> 0 | J146: =SUM(Dmr:Zun!J146) -> 0 | K146: =SUM(Dmr:Zun!K146) -> 0 | L146: =SUM(Dmr:Zun!L146) -> 0 | M146: =SUM(Dmr:Zun!M146) -> 0 | N146: =SUM(Dmr:Zun!N146) -> 0 | P146: =SUM(Dmr:Zun!P146) -> 0 | Q146: =SUM(Dmr:Zun!Q146) -> 0 | R146: =SUM(Dmr:Zun!R146) -> 0 | S146: =SUM(Dmr:Zun!S146) -> 0 | T146: =SUM(Dmr:Zun!T146) -> 0 | U146: =SUM(Dmr:Zun!U146) -> 0 | V146: =SUM(Dmr:Zun!V146) -> 0 | W146: =SUM(Dmr:Zun!W146) -> 0 | Y146: =SUM(Dmr:Zun!Y146) -> 0 | Z146: =SUM(Dmr:Zun!Z146) -> 0 | AA146: =SUM(Dmr:Zun!AA146) -> 0 | AB146: =SUM(Dmr:Zun!AB146) -> 0 | AC146: =SUM(Dmr:Zun!AC146) -> 0 | AD146: TRUE | AE146: TRUE | AF146: 0 | AG146: 0 | AH146: TRUE
B147: Sub Total | C147: =SUM(Dmr:Zun!C147) -> 0 | D147: =SUM(Dmr:Zun!D147) -> 0 | E147: =SUM(Dmr:Zun!E147) -> 0 | F147: =SUM(Dmr:Zun!F147) -> 0 | I147: =SUM(Dmr:Zun!I147) -> 0 | J147: =SUM(Dmr:Zun!J147) -> 0 | K147: =SUM(Dmr:Zun!K147) -> 0 | L147: =SUM(Dmr:Zun!L147) -> 0 | M147: =SUM(Dmr:Zun!M147) -> 0 | N147: =SUM(Dmr:Zun!N147) -> 0 | P147: =SUM(Dmr:Zun!P147) -> 0 | Q147: =SUM(Dmr:Zun!Q147) -> 0 | R147: =SUM(Dmr:Zun!R147) -> 0 | S147: =SUM(Dmr:Zun!S147) -> 0 | T147: =SUM(Dmr:Zun!T147) -> 0 | U147: =SUM(Dmr:Zun!U147) -> 0 | V147: =SUM(Dmr:Zun!V147) -> 0 | W147: =SUM(Dmr:Zun!W147) -> 0 | Y147: =SUM(Dmr:Zun!Y147) -> 0 | Z147: =SUM(Dmr:Zun!Z147) -> 0 | AA147: =SUM(Dmr:Zun!AA147) -> 0 | AB147: =SUM(Dmr:Zun!AB147) -> 0 | AC147: =SUM(Dmr:Zun!AC147) -> 0 | AD147: TRUE | AE147: TRUE | AF147: 0 | AG147: 0 | AH147: TRUE
A148: =+A146+1 -> 6 | B148: Special Training for mainstreaming of out of school children | J148: =D148-F148 -> 0 | AC148: =SUM(Dmr:Zun!AC148) -> 0 | AD148: TRUE | AE148: TRUE | AF148: 0 | AG148: 0 | AH148: TRUE
A149: 6.01 | B149: Residential (Fresh) | AC149: =SUM(Dmr:Zun!AC149) -> 0 | AD149: TRUE | AE149: TRUE | AF149: 0 | AG149: 0 | AH149: TRUE
B150: (a) 12 months | C150: =SUM(Dmr:Zun!C150) -> 0 | D150: =SUM(Dmr:Zun!D150) -> 0 | E150: =SUM(Dmr:Zun!E150) -> 0 | F150: =SUM(Dmr:Zun!F150) -> 0 | I150: =SUM(Dmr:Zun!I150) -> 0 | J150: =SUM(Dmr:Zun!J150) -> 0 | K150: =SUM(Dmr:Zun!K150) -> 0 | L150: =SUM(Dmr:Zun!L150) -> 0 | M150: =SUM(Dmr:Zun!M150) -> 0 | N150: =SUM(Dmr:Zun!N150) -> 0 | O150: 0.2 | P150: =SUM(Dmr:Zun!P150) -> 0 | Q150: =SUM(Dmr:Zun!Q150) -> 0 | R150: =SUM(Dmr:Zun!R150) -> 0 | S150: =SUM(Dmr:Zun!S150) -> 0 | T150: =SUM(Dmr:Zun!T150) -> 0 | U150: =SUM(Dmr:Zun!U150) -> 0 | V150: =SUM(Dmr:Zun!V150) -> 0 | W150: =SUM(Dmr:Zun!W150) -> 0 | Y150: =SUM(Dmr:Zun!Y150) -> 0 | Z150: =SUM(Dmr:Zun!Z150) -> 0 | AA150: =SUM(Dmr:Zun!AA150) -> 0 | AB150: =SUM(Dmr:Zun!AB150) -> 0 | AC150: =SUM(Dmr:Zun!AC150) -> 0 | AD150: TRUE | AE150: TRUE | AF150: 0 | AG150: 0 | AH150: TRUE
B151: (b) 9 months | C151: =SUM(Dmr:Zun!C151) -> 3938 | D151: =SUM(Dmr:Zun!D151) -> 590.7 | E151: =SUM(Dmr:Zun!E151) -> 0 | F151: =SUM(Dmr:Zun!F151) -> 0 | G151: 0 | H151: 0 | I151: =SUM(Dmr:Zun!I151) -> 3938 | J151: =SUM(Dmr:Zun!J151) -> 590.7 | K151: =SUM(Dmr:Zun!K151) -> 0 | L151: =SUM(Dmr:Zun!L151) -> 0 | M151: =SUM(Dmr:Zun!M151) -> 0 | N151: =SUM(Dmr:Zun!N151) -> 0 | O151: 0.15 | P151: =SUM(Dmr:Zun!P151) -> 2355 | Q151: =SUM(Dmr:Zun!Q151) -> 353.25 | R151: =SUM(Dmr:Zun!R151) -> 2355 | S151: =SUM(Dmr:Zun!S151) -> 353.25 | T151: =SUM(Dmr:Zun!T151) -> 0 | U151: =SUM(Dmr:Zun!U151) -> 0 | V151: =SUM(Dmr:Zun!V151) -> 0 | W151: =SUM(Dmr:Zun!W151) -> 0 | X151: 0.15 | Y151: =SUM(Dmr:Zun!Y151) -> 2355 | Z151: =SUM(Dmr:Zun!Z151) -> 353.25 | AA151: =SUM(Dmr:Zun!AA151) -> 2355 | AB151: =SUM(Dmr:Zun!AB151) -> 353.25 | AC151: Recommended as proposed | AD151: TRUE | AE151: TRUE | AF151: 353.25 | AG151: 353.25 | AH151: TRUE
B152: (c) 6 months | C152: =SUM(Dmr:Zun!C152) -> 0 | D152: =SUM(Dmr:Zun!D152) -> 0 | E152: =SUM(Dmr:Zun!E152) -> 0 | F152: =SUM(Dmr:Zun!F152) -> 0 | I152: =SUM(Dmr:Zun!I152) -> 0 | J152: =SUM(Dmr:Zun!J152) -> 0 | K152: =SUM(Dmr:Zun!K152) -> 0 | L152: =SUM(Dmr:Zun!L152) -> 0 | M152: =SUM(Dmr:Zun!M152) -> 0 | N152: =SUM(Dmr:Zun!N152) -> 0 | O152: 0.1 | P152: =SUM(Dmr:Zun!P152) -> 0 | Q152: =SUM(Dmr:Zun!Q152) -> 0 | R152: =SUM(Dmr:Zun!R152) -> 0 | S152: =SUM(Dmr:Zun!S152) -> 0 | T152: =SUM(Dmr:Zun!T152) -> 0 | U152: =SUM(Dmr:Zun!U152) -> 0 | V152: =SUM(Dmr:Zun!V152) -> 0 | W152: =SUM(Dmr:Zun!W152) -> 0 | Y152: =SUM(Dmr:Zun!Y152) -> 0 | Z152: =SUM(Dmr:Zun!Z152) -> 0 | AA152: =SUM(Dmr:Zun!AA152) -> 0 | AB152: =SUM(Dmr:Zun!AB152) -> 0 | AC152: =SUM(Dmr:Zun!AC152) -> 0 | AD152: TRUE | AE152: TRUE | AF152: 0 | AG152: 0 | AH152: TRUE
B153: (d) 3 months | C153: =SUM(Dmr:Zun!C153) -> 0 | D153: =SUM(Dmr:Zun!D153) -> 0 | E153: =SUM(Dmr:Zun!E153) -> 0 | F153: =SUM(Dmr:Zun!F153) -> 0 | I153: =SUM(Dmr:Zun!I153) -> 0 | J153: =SUM(Dmr:Zun!J153) -> 0 | K153: =SUM(Dmr:Zun!K153) -> 0 | L153: =SUM(Dmr:Zun!L153) -> 0 | M153: =SUM(Dmr:Zun!M153) -> 0 | N153: =SUM(Dmr:Zun!N153) -> 0 | O153: 0.05 | P153: =SUM(Dmr:Zun!P153) -> 0 | Q153: =SUM(Dmr:Zun!Q153) -> 0 | R153: =SUM(Dmr:Zun!R153) -> 0 | S153: =SUM(Dmr:Zun!S153) -> 0 | T153: =SUM(Dmr:Zun!T153) -> 0 | U153: =SUM(Dmr:Zun!U153) -> 0 | V153: =SUM(Dmr:Zun!V153) -> 0 | W153: =SUM(Dmr:Zun!W153) -> 0 | Y153: =SUM(Dmr:Zun!Y153) -> 0 | Z153: =SUM(Dmr:Zun!Z153) -> 0 | AA153: =SUM(Dmr:Zun!AA153) -> 0 | AB153: =SUM(Dmr:Zun!AB153) -> 0 | AC153: =SUM(Dmr:Zun!AC153) -> 0 | AD153: TRUE | AE153: TRUE | AF153: 0 | AG153: 0 | AH153: TRUE
B154: Sub Total | C154: =SUM(Dmr:Zun!C154) -> 3938 | D154: =SUM(Dmr:Zun!D154) -> 590.7 | E154: =SUM(Dmr:Zun!E154) -> 0 | F154: =SUM(Dmr:Zun!F154) -> 0 | I154: =SUM(Dmr:Zun!I154) -> 3938 | J154: =SUM(Dmr:Zun!J154) -> 590.7 | K154: =SUM(Dmr:Zun!K154) -> 0 | L154: =SUM(Dmr:Zun!L154) -> 0 | M154: =SUM(Dmr:Zun!M154) -> 0 | N154: =SUM(Dmr:Zun!N154) -> 0 | P154: =SUM(Dmr:Zun!P154) -> 2355 | Q154: =SUM(Dmr:Zun!Q154) -> 353.25 | R154: =SUM(Dmr:Zun!R154) -> 2355 | S154: =SUM(Dmr:Zun!S154) -> 353.25 | T154: =SUM(Dmr:Zun!T154) -> 0 | U154: =SUM(Dmr:Zun!U154) -> 0 | V154: =SUM(Dmr:Zun!V154) -> 0 | W154: =SUM(Dmr:Zun!W154) -> 0 | Y154: =SUM(Dmr:Zun!Y154) -> 2355 | Z154: =SUM(Dmr:Zun!Z154) -> 353.25 | AA154: =SUM(Dmr:Zun!AA154) -> 2355 | AB154: =SUM(Dmr:Zun!AB154) -> 353.25 | AC154: =SUM(Dmr:Zun!AC154) -> 0 | AE154: TRUE | AF154: 353.25 | AG154: 353.25 | AH154: TRUE
A155: =+A149+0.01 -> 6.02 | B155: Residential (Continuing from previous year) | AC155: =SUM(Dmr:Zun!AC155) -> 0 | AD155: TRUE | AE155: TRUE | AF155: 0 | AG155: 0 | AH155: TRUE
B156: (a) 12 months | C156: =SUM(Dmr:Zun!C156) -> 0 | D156: =SUM(Dmr:Zun!D156) -> 0 | E156: =SUM(Dmr:Zun!E156) -> 0 | F156: =SUM(Dmr:Zun!F156) -> 0 | I156: =SUM(Dmr:Zun!I156) -> 0 | J156: =SUM(Dmr:Zun!J156) -> 0 | K156: =SUM(Dmr:Zun!K156) -> 0 | L156: =SUM(Dmr:Zun!L156) -> 0 | M156: =SUM(Dmr:Zun!M156) -> 0 | N156: =SUM(Dmr:Zun!N156) -> 0 | O156: 0.2 | P156: =SUM(Dmr:Zun!P156) -> 0 | Q156: =SUM(Dmr:Zun!Q156) -> 0 | R156: =SUM(Dmr:Zun!R156) -> 0 | S156: =SUM(Dmr:Zun!S156) -> 0 | T156: =SUM(Dmr:Zun!T156) -> 0 | U156: =SUM(Dmr:Zun!U156) -> 0 | V156: =SUM(Dmr:Zun!V156) -> 0 | W156: =SUM(Dmr:Zun!W156) -> 0 | Y156: =SUM(Dmr:Zun!Y156) -> 0 | Z156: =SUM(Dmr:Zun!Z156) -> 0 | AA156: =SUM(Dmr:Zun!AA156) -> 0 | AB156: =SUM(Dmr:Zun!AB156) -> 0 | AC156: =SUM(Dmr:Zun!AC156) -> 0 | AD156: TRUE | AE156: TRUE | AF156: 0 | AG156: 0 | AH156: TRUE
B157: (b) 9 months | C157: =SUM(Dmr:Zun!C157) -> 0 | D157: =SUM(Dmr:Zun!D157) -> 0 | E157: =SUM(Dmr:Zun!E157) -> 0 | F157: =SUM(Dmr:Zun!F157) -> 0 | I157: =SUM(Dmr:Zun!I157) -> 0 | J157: =SUM(Dmr:Zun!J157) -> 0 | K157: =SUM(Dmr:Zun!K157) -> 0 | L157: =SUM(Dmr:Zun!L157) -> 0 | M157: =SUM(Dmr:Zun!M157) -> 0 | N157: =SUM(Dmr:Zun!N157) -> 0 | O157: 0.15 | P157: =SUM(Dmr:Zun!P157) -> 0 | Q157: =SUM(Dmr:Zun!Q157) -> 0 | R157: =SUM(Dmr:Zun!R157) -> 0 | S157: =SUM(Dmr:Zun!S157) -> 0 | T157: =SUM(Dmr:Zun!T157) -> 0 | U157: =SUM(Dmr:Zun!U157) -> 0 | V157: =SUM(Dmr:Zun!V157) -> 0 | W157: =SUM(Dmr:Zun!W157) -> 0 | Y157: =SUM(Dmr:Zun!Y157) -> 0 | Z157: =SUM(Dmr:Zun!Z157) -> 0 | AA157: =SUM(Dmr:Zun!AA157) -> 0 | AB157: =SUM(Dmr:Zun!AB157) -> 0 | AC157: =SUM(Dmr:Zun!AC157) -> 0 | AD157: TRUE | AE157: TRUE | AF157: 0 | AG157: 0 | AH157: TRUE
B158: (c) 6 months | C158: =SUM(Dmr:Zun!C158) -> 0 | D158: =SUM(Dmr:Zun!D158) -> 0 | E158: =SUM(Dmr:Zun!E158) -> 0 | F158: =SUM(Dmr:Zun!F158) -> 0 | I158: =SUM(Dmr:Zun!I158) -> 0 | J158: =SUM(Dmr:Zun!J158) -> 0 | K158: =SUM(Dmr:Zun!K158) -> 0 | L158: =SUM(Dmr:Zun!L158) -> 0 | M158: =SUM(Dmr:Zun!M158) -> 0 | N158: =SUM(Dmr:Zun!N158) -> 0 | O158: 0.075 | P158: =SUM(Dmr:Zun!P158) -> 0 | Q158: =SUM(Dmr:Zun!Q158) -> 0 | R158: =SUM(Dmr:Zun!R158) -> 0 | S158: =SUM(Dmr:Zun!S158) -> 0 | T158: =SUM(Dmr:Zun!T158) -> 0 | U158: =SUM(Dmr:Zun!U158) -> 0 | V158: =SUM(Dmr:Zun!V158) -> 0 | W158: =SUM(Dmr:Zun!W158) -> 0 | Y158: =SUM(Dmr:Zun!Y158) -> 0 | Z158: =SUM(Dmr:Zun!Z158) -> 0 | AA158: =SUM(Dmr:Zun!AA158) -> 0 | AB158: =SUM(Dmr:Zun!AB158) -> 0 | AC158: =SUM(Dmr:Zun!AC158) -> 0 | AD158: TRUE | AE158: TRUE | AF158: 0 | AG158: 0 | AH158: TRUE
B159: (d) 3 months | C159: =SUM(Dmr:Zun!C159) -> 0 | D159: =SUM(Dmr:Zun!D159) -> 0 | E159: =SUM(Dmr:Zun!E159) -> 0 | F159: =SUM(Dmr:Zun!F159) -> 0 | I159: =SUM(Dmr:Zun!I159) -> 0 | J159: =SUM(Dmr:Zun!J159) -> 0 | K159: =SUM(Dmr:Zun!K159) -> 0 | L159: =SUM(Dmr:Zun!L159) -> 0 | M159: =SUM(Dmr:Zun!M159) -> 0 | N159: =SUM(Dmr:Zun!N159) -> 0 | O159: 0.05 | P159: =SUM(Dmr:Zun!P159) -> 0 | Q159: =SUM(Dmr:Zun!Q159) -> 0 | R159: =SUM(Dmr:Zun!R159) -> 0 | S159: =SUM(Dmr:Zun!S159) -> 0 | T159: =SUM(Dmr:Zun!T159) -> 0 | U159: =SUM(Dmr:Zun!U159) -> 0 | V159: =SUM(Dmr:Zun!V159) -> 0 | W159: =SUM(Dmr:Zun!W159) -> 0 | Y159: =SUM(Dmr:Zun!Y159) -> 0 | Z159: =SUM(Dmr:Zun!Z159) -> 0 | AA159: =SUM(Dmr:Zun!AA159) -> 0 | AB159: =SUM(Dmr:Zun!AB159) -> 0 | AC159: =SUM(Dmr:Zun!AC159) -> 0 | AD159: TRUE | AE159: TRUE | AF159: 0 | AG159: 0 | AH159: TRUE
B160: Sub Total | C160: =SUM(Dmr:Zun!C160) -> 0 | D160: =SUM(Dmr:Zun!D160) -> 0 | E160: =SUM(Dmr:Zun!E160) -> 0 | F160: =SUM(Dmr:Zun!F160) -> 0 | I160: =SUM(Dmr:Zun!I160) -> 0 | J160: =SUM(Dmr:Zun!J160) -> 0 | K160: =SUM(Dmr:Zun!K160) -> 0 | L160: =SUM(Dmr:Zun!L160) -> 0 | M160: =SUM(Dmr:Zun!M160) -> 0 | N160: =SUM(Dmr:Zun!N160) -> 0 | P160: =SUM(Dmr:Zun!P160) -> 0 | Q160: =SUM(Dmr:Zun!Q160) -> 0 | R160: =SUM(Dmr:Zun!R160) -> 0 | S160: =SUM(Dmr:Zun!S160) -> 0 | T160: =SUM(Dmr:Zun!T160) -> 0 | U160: =SUM(Dmr:Zun!U160) -> 0 | V160: =SUM(Dmr:Zun!V160) -> 0 | W160: =SUM(Dmr:Zun!W160) -> 0 | Y160: =SUM(Dmr:Zun!Y160) -> 0 | Z160: =SUM(Dmr:Zun!Z160) -> 0 | AA160: =SUM(Dmr:Zun!AA160) -> 0 | AB160: =SUM(Dmr:Zun!AB160) -> 0 | AC160: =SUM(Dmr:Zun!AC160) -> 0 | AD160: TRUE | AE160: TRUE | AF160: 0 | AG160: 0 | AH160: TRUE
A161: 6.03 | B161: Non-Residential (Fresh) | AC161: =SUM(Dmr:Zun!AC161) -> 0 | AD161: TRUE | AE161: TRUE | AF161: 0 | AG161: 0 | AH161: TRUE
B162: (a) 12 months | C162: =SUM(Dmr:Zun!C162) -> 0 | D162: =SUM(Dmr:Zun!D162) -> 0 | E162: =SUM(Dmr:Zun!E162) -> 0 | F162: =SUM(Dmr:Zun!F162) -> 0 | I162: =SUM(Dmr:Zun!I162) -> 0 | J162: =SUM(Dmr:Zun!J162) -> 0 | K162: =SUM(Dmr:Zun!K162) -> 0 | L162: =SUM(Dmr:Zun!L162) -> 0 | M162: =SUM(Dmr:Zun!M162) -> 0 | N162: =SUM(Dmr:Zun!N162) -> 0 | O162: 0.06 | P162: =SUM(Dmr:Zun!P162) -> 0 | Q162: =SUM(Dmr:Zun!Q162) -> 0 | R162: =SUM(Dmr:Zun!R162) -> 0 | S162: =SUM(Dmr:Zun!S162) -> 0 | T162: =SUM(Dmr:Zun!T162) -> 0 | U162: =SUM(Dmr:Zun!U162) -> 0 | V162: =SUM(Dmr:Zun!V162) -> 0 | W162: =SUM(Dmr:Zun!W162) -> 0 | Y162: =SUM(Dmr:Zun!Y162) -> 0 | Z162: =SUM(Dmr:Zun!Z162) -> 0 | AA162: =SUM(Dmr:Zun!AA162) -> 0 | AB162: =SUM(Dmr:Zun!AB162) -> 0 | AC162: =SUM(Dmr:Zun!AC162) -> 0 | AD162: TRUE | AE162: TRUE | AF162: 0 | AG162: 0 | AH162: TRUE
B163: (b) 9 months | C163: =SUM(Dmr:Zun!C163) -> 0 | D163: =SUM(Dmr:Zun!D163) -> 0 | E163: =SUM(Dmr:Zun!E163) -> 0 | F163: =SUM(Dmr:Zun!F163) -> 0 | I163: =SUM(Dmr:Zun!I163) -> 0 | J163: =SUM(Dmr:Zun!J163) -> 0 | K163: =SUM(Dmr:Zun!K163) -> 0 | L163: =SUM(Dmr:Zun!L163) -> 0 | M163: =SUM(Dmr:Zun!M163) -> 0 | N163: =SUM(Dmr:Zun!N163) -> 0 | O163: 0.045 | P163: =SUM(Dmr:Zun!P163) -> 0 | Q163: =SUM(Dmr:Zun!Q163) -> 0 | R163: =SUM(Dmr:Zun!R163) -> 0 | S163: =SUM(Dmr:Zun!S163) -> 0 | T163: =SUM(Dmr:Zun!T163) -> 0 | U163: =SUM(Dmr:Zun!U163) -> 0 | V163: =SUM(Dmr:Zun!V163) -> 0 | W163: =SUM(Dmr:Zun!W163) -> 0 | Y163: =SUM(Dmr:Zun!Y163) -> 0 | Z163: =SUM(Dmr:Zun!Z163) -> 0 | AA163: =SUM(Dmr:Zun!AA163) -> 0 | AB163: =SUM(Dmr:Zun!AB163) -> 0 | AC163: =SUM(Dmr:Zun!AC163) -> 0 | AD163: TRUE | AE163: TRUE | AF163: 0 | AG163: 0 | AH163: TRUE
B164: (c) 6 months | C164: =SUM(Dmr:Zun!C164) -> 4022 | D164: =SUM(Dmr:Zun!D164) -> 120.66 | E164: =SUM(Dmr:Zun!E164) -> 0 | F164: =SUM(Dmr:Zun!F164) -> 0 | G164: 0 | H164: 0 | I164: =SUM(Dmr:Zun!I164) -> 4022 | J164: =SUM(Dmr:Zun!J164) -> 120.66 | K164: =SUM(Dmr:Zun!K164) -> 0 | L164: =SUM(Dmr:Zun!L164) -> 0 | M164: =SUM(Dmr:Zun!M164) -> 0 | N164: =SUM(Dmr:Zun!N164) -> 0 | O164: 0.03 | P164: =SUM(Dmr:Zun!P164) -> 3219 | Q164: =SUM(Dmr:Zun!Q164) -> 96.57 | R164: =SUM(Dmr:Zun!R164) -> 3219 | S164: =SUM(Dmr:Zun!S164) -> 96.57 | T164: =SUM(Dmr:Zun!T164) -> 0 | U164: =SUM(Dmr:Zun!U164) -> 0 | V164: =SUM(Dmr:Zun!V164) -> 0 | W164: =SUM(Dmr:Zun!W164) -> 0 | X164: 0.03 | Y164: =SUM(Dmr:Zun!Y164) -> 3219 | Z164: =SUM(Dmr:Zun!Z164) -> 96.57 | AA164: =SUM(Dmr:Zun!AA164) -> 3219 | AB164: =SUM(Dmr:Zun!AB164) -> 96.57 | AC164: Recommended as proposed | AD164: TRUE | AE164: TRUE | AF164: 96.57 | AG164: 96.57 | AH164: TRUE
B165: (d) 3 months | C165: =SUM(Dmr:Zun!C165) -> 0 | D165: =SUM(Dmr:Zun!D165) -> 0 | E165: =SUM(Dmr:Zun!E165) -> 0 | F165: =SUM(Dmr:Zun!F165) -> 0 | I165: =SUM(Dmr:Zun!I165) -> 0 | J165: =SUM(Dmr:Zun!J165) -> 0 | K165: =SUM(Dmr:Zun!K165) -> 0 | L165: =SUM(Dmr:Zun!L165) -> 0 | M165: =SUM(Dmr:Zun!M165) -> 0 | N165: =SUM(Dmr:Zun!N165) -> 0 | O165: 0.015 | P165: =SUM(Dmr:Zun!P165) -> 0 | Q165: =SUM(Dmr:Zun!Q165) -> 0 | R165: =SUM(Dmr:Zun!R165) -> 0 | S165: =SUM(Dmr:Zun!S165) -> 0 | T165: =SUM(Dmr:Zun!T165) -> 0 | U165: =SUM(Dmr:Zun!U165) -> 0 | V165: =SUM(Dmr:Zun!V165) -> 0 | W165: =SUM(Dmr:Zun!W165) -> 0 | Y165: =SUM(Dmr:Zun!Y165) -> 0 | Z165: =SUM(Dmr:Zun!Z165) -> 0 | AA165: =SUM(Dmr:Zun!AA165) -> 0 | AB165: =SUM(Dmr:Zun!AB165) -> 0 | AC165: =SUM(Dmr:Zun!AC165) -> 0 | AD165: TRUE | AE165: TRUE | AF165: 0 | AG165: 0 | AH165: TRUE
B166: Sub Total | C166: =SUM(Dmr:Zun!C166) -> 4022 | D166: =SUM(Dmr:Zun!D166) -> 120.66 | E166: =SUM(Dmr:Zun!E166) -> 0 | F166: =SUM(Dmr:Zun!F166) -> 0 | I166: =SUM(Dmr:Zun!I166) -> 4022 | J166: =SUM(Dmr:Zun!J166) -> 120.66 | K166: =SUM(Dmr:Zun!K166) -> 0 | L166: =SUM(Dmr:Zun!L166) -> 0 | M166: =SUM(Dmr:Zun!M166) -> 0 | N166: =SUM(Dmr:Zun!N166) -> 0 | P166: =SUM(Dmr:Zun!P166) -> 3219 | Q166: =SUM(Dmr:Zun!Q166) -> 96.57 | R166: =SUM(Dmr:Zun!R166) -> 3219 | S166: =SUM(Dmr:Zun!S166) -> 96.57 | T166: =SUM(Dmr:Zun!T166) -> 0 | U166: =SUM(Dmr:Zun!U166) -> 0 | V166: =SUM(Dmr:Zun!V166) -> 0 | W166: =SUM(Dmr:Zun!W166) -> 0 | Y166: =SUM(Dmr:Zun!Y166) -> 3219 | Z166: =SUM(Dmr:Zun!Z166) -> 96.57 | AA166: =SUM(Dmr:Zun!AA166) -> 3219 | AB166: =SUM(Dmr:Zun!AB166) -> 96.57 | AC166: =SUM(Dmr:Zun!AC166) -> 0 | AE166: TRUE | AF166: 96.57 | AG166: 96.57 | AH166: TRUE
A167: 6.04 | B167: Non-Residential (Continuing from previous year) | AC167: =SUM(Dmr:Zun!AC167) -> 0 | AD167: TRUE | AE167: TRUE | AF167: 0 | AG167: 0 | AH167: TRUE
B168: (a) 12 months | C168: =SUM(Dmr:Zun!C168) -> 0 | D168: =SUM(Dmr:Zun!D168) -> 0 | E168: =SUM(Dmr:Zun!E168) -> 0 | F168: =SUM(Dmr:Zun!F168) -> 0 | I168: =SUM(Dmr:Zun!I168) -> 0 | J168: =SUM(Dmr:Zun!J168) -> 0 | K168: =SUM(Dmr:Zun!K168) -> 0 | L168: =SUM(Dmr:Zun!L168) -> 0 | M168: =SUM(Dmr:Zun!M168) -> 0 | N168: =SUM(Dmr:Zun!N168) -> 0 | O168: 0.06 | P168: =SUM(Dmr:Zun!P168) -> 0 | Q168: =SUM(Dmr:Zun!Q168) -> 0 | R168: =SUM(Dmr:Zun!R168) -> 0 | S168: =SUM(Dmr:Zun!S168) -> 0 | T168: =SUM(Dmr:Zun!T168) -> 0 | U168: =SUM(Dmr:Zun!U168) -> 0 | V168: =SUM(Dmr:Zun!V168) -> 0 | W168: =SUM(Dmr:Zun!W168) -> 0 | Y168: =SUM(Dmr:Zun!Y168) -> 0 | Z168: =SUM(Dmr:Zun!Z168) -> 0 | AA168: =SUM(Dmr:Zun!AA168) -> 0 | AB168: =SUM(Dmr:Zun!AB168) -> 0 | AC168: =SUM(Dmr:Zun!AC168) -> 0 | AD168: TRUE | AE168: TRUE | AF168: 0 | AG168: 0 | AH168: TRUE
B169: (b) 9 months | C169: =SUM(Dmr:Zun!C169) -> 0 | D169: =SUM(Dmr:Zun!D169) -> 0 | E169: =SUM(Dmr:Zun!E169) -> 0 | F169: =SUM(Dmr:Zun!F169) -> 0 | I169: =SUM(Dmr:Zun!I169) -> 0 | J169: =SUM(Dmr:Zun!J169) -> 0 | K169: =SUM(Dmr:Zun!K169) -> 0 | L169: =SUM(Dmr:Zun!L169) -> 0 | M169: =SUM(Dmr:Zun!M169) -> 0 | N169: =SUM(Dmr:Zun!N169) -> 0 | O169: 0.045 | P169: =SUM(Dmr:Zun!P169) -> 0 | Q169: =SUM(Dmr:Zun!Q169) -> 0 | R169: =SUM(Dmr:Zun!R169) -> 0 | S169: =SUM(Dmr:Zun!S169) -> 0 | T169: =SUM(Dmr:Zun!T169) -> 0 | U169: =SUM(Dmr:Zun!U169) -> 0 | V169: =SUM(Dmr:Zun!V169) -> 0 | W169: =SUM(Dmr:Zun!W169) -> 0 | Y169: =SUM(Dmr:Zun!Y169) -> 0 | Z169: =SUM(Dmr:Zun!Z169) -> 0 | AA169: =SUM(Dmr:Zun!AA169) -> 0 | AB169: =SUM(Dmr:Zun!AB169) -> 0 | AC169: =SUM(Dmr:Zun!AC169) -> 0 | AD169: TRUE | AE169: TRUE | AF169: 0 | AG169: 0 | AH169: TRUE
B170: (c) 6 months | C170: =SUM(Dmr:Zun!C170) -> 0 | D170: =SUM(Dmr:Zun!D170) -> 0 | E170: =SUM(Dmr:Zun!E170) -> 0 | F170: =SUM(Dmr:Zun!F170) -> 0 | I170: =SUM(Dmr:Zun!I170) -> 0 | J170: =SUM(Dmr:Zun!J170) -> 0 | K170: =SUM(Dmr:Zun!K170) -> 0 | L170: =SUM(Dmr:Zun!L170) -> 0 | M170: =SUM(Dmr:Zun!M170) -> 0 | N170: =SUM(Dmr:Zun!N170) -> 0 | O170: 0.03 | P170: =SUM(Dmr:Zun!P170) -> 0 | Q170: =SUM(Dmr:Zun!Q170) -> 0 | R170: =SUM(Dmr:Zun!R170) -> 0 | S170: =SUM(Dmr:Zun!S170) -> 0 | T170: =SUM(Dmr:Zun!T170) -> 0 | U170: =SUM(Dmr:Zun!U170) -> 0 | V170: =SUM(Dmr:Zun!V170) -> 0 | W170: =SUM(Dmr:Zun!W170) -> 0 | Y170: =SUM(Dmr:Zun!Y170) -> 0 | Z170: =SUM(Dmr:Zun!Z170) -> 0 | AA170: =SUM(Dmr:Zun!AA170) -> 0 | AB170: =SUM(Dmr:Zun!AB170) -> 0 | AC170: =SUM(Dmr:Zun!AC170) -> 0 | AD170: TRUE | AE170: TRUE | AF170: 0 | AG170: 0 | AH170: TRUE
B171: (d) 3 months | C171: =SUM(Dmr:Zun!C171) -> 0 | D171: =SUM(Dmr:Zun!D171) -> 0 | E171: =SUM(Dmr:Zun!E171) -> 0 | F171: =SUM(Dmr:Zun!F171) -> 0 | I171: =SUM(Dmr:Zun!I171) -> 0 | J171: =SUM(Dmr:Zun!J171) -> 0 | K171: =SUM(Dmr:Zun!K171) -> 0 | L171: =SUM(Dmr:Zun!L171) -> 0 | M171: =SUM(Dmr:Zun!M171) -> 0 | N171: =SUM(Dmr:Zun!N171) -> 0 | O171: 0.015 | P171: =SUM(Dmr:Zun!P171) -> 0 | Q171: =SUM(Dmr:Zun!Q171) -> 0 | R171: =SUM(Dmr:Zun!R171) -> 0 | S171: =SUM(Dmr:Zun!S171) -> 0 | T171: =SUM(Dmr:Zun!T171) -> 0 | U171: =SUM(Dmr:Zun!U171) -> 0 | V171: =SUM(Dmr:Zun!V171) -> 0 | W171: =SUM(Dmr:Zun!W171) -> 0 | Y171: =SUM(Dmr:Zun!Y171) -> 0 | Z171: =SUM(Dmr:Zun!Z171) -> 0 | AA171: =SUM(Dmr:Zun!AA171) -> 0 | AB171: =SUM(Dmr:Zun!AB171) -> 0 | AC171: =SUM(Dmr:Zun!AC171) -> 0 | AD171: TRUE | AE171: TRUE | AF171: 0 | AG171: 0 | AH171: TRUE
B172: Sub Total | C172: =SUM(Dmr:Zun!C172) -> 0 | D172: =SUM(Dmr:Zun!D172) -> 0 | E172: =SUM(Dmr:Zun!E172) -> 0 | F172: =SUM(Dmr:Zun!F172) -> 0 | I172: =SUM(Dmr:Zun!I172) -> 0 | J172: =SUM(Dmr:Zun!J172) -> 0 | K172: =SUM(Dmr:Zun!K172) -> 0 | L172: =SUM(Dmr:Zun!L172) -> 0 | M172: =SUM(Dmr:Zun!M172) -> 0 | N172: =SUM(Dmr:Zun!N172) -> 0 | P172: =SUM(Dmr:Zun!P172) -> 0 | Q172: =SUM(Dmr:Zun!Q172) -> 0 | R172: =SUM(Dmr:Zun!R172) -> 0 | S172: =SUM(Dmr:Zun!S172) -> 0 | T172: =SUM(Dmr:Zun!T172) -> 0 | U172: =SUM(Dmr:Zun!U172) -> 0 | V172: =SUM(Dmr:Zun!V172) -> 0 | W172: =SUM(Dmr:Zun!W172) -> 0 | Y172: =SUM(Dmr:Zun!Y172) -> 0 | Z172: =SUM(Dmr:Zun!Z172) -> 0 | AA172: =SUM(Dmr:Zun!AA172) -> 0 | AB172: =SUM(Dmr:Zun!AB172) -> 0 | AC172: =SUM(Dmr:Zun!AC172) -> 0 | AD172: TRUE | AE172: TRUE | AF172: 0 | AG172: 0 | AH172: TRUE
A173: 6.05 | B173: Madarasa/Maktab | AC173: =SUM(Dmr:Zun!AC173) -> 0 | AD173: TRUE | AE173: TRUE | AF173: 0 | AG173: 0 | AH173: TRUE
B174: (a) 12 months | C174: =SUM(Dmr:Zun!C174) -> 0 | D174: =SUM(Dmr:Zun!D174) -> 0 | E174: =SUM(Dmr:Zun!E174) -> 0 | F174: =SUM(Dmr:Zun!F174) -> 0 | I174: =SUM(Dmr:Zun!I174) -> 0 | J174: =SUM(Dmr:Zun!J174) -> 0 | K174: =SUM(Dmr:Zun!K174) -> 0 | L174: =SUM(Dmr:Zun!L174) -> 0 | M174: =SUM(Dmr:Zun!M174) -> 0 | N174: =SUM(Dmr:Zun!N174) -> 0 | P174: =SUM(Dmr:Zun!P174) -> 0 | Q174: =SUM(Dmr:Zun!Q174) -> 0 | R174: =SUM(Dmr:Zun!R174) -> 0 | S174: =SUM(Dmr:Zun!S174) -> 0 | T174: =SUM(Dmr:Zun!T174) -> 0 | U174: =SUM(Dmr:Zun!U174) -> 0 | V174: =SUM(Dmr:Zun!V174) -> 0 | W174: =SUM(Dmr:Zun!W174) -> 0 | Y174: =SUM(Dmr:Zun!Y174) -> 0 | Z174: =SUM(Dmr:Zun!Z174) -> 0 | AA174: =SUM(Dmr:Zun!AA174) -> 0 | AB174: =SUM(Dmr:Zun!AB174) -> 0 | AC174: =SUM(Dmr:Zun!AC174) -> 0 | AD174: TRUE | AE174: TRUE | AF174: 0 | AG174: 0 | AH174: TRUE
B175: (b) 9 months | C175: =SUM(Dmr:Zun!C175) -> 0 | D175: =SUM(Dmr:Zun!D175) -> 0 | E175: =SUM(Dmr:Zun!E175) -> 0 | F175: =SUM(Dmr:Zun!F175) -> 0 | I175: =SUM(Dmr:Zun!I175) -> 0 | J175: =SUM(Dmr:Zun!J175) -> 0 | K175: =SUM(Dmr:Zun!K175) -> 0 | L175: =SUM(Dmr:Zun!L175) -> 0 | M175: =SUM(Dmr:Zun!M175) -> 0 | N175: =SUM(Dmr:Zun!N175) -> 0 | P175: =SUM(Dmr:Zun!P175) -> 0 | Q175: =SUM(Dmr:Zun!Q175) -> 0 | R175: =SUM(Dmr:Zun!R175) -> 0 | S175: =SUM(Dmr:Zun!S175) -> 0 | T175: =SUM(Dmr:Zun!T175) -> 0 | U175: =SUM(Dmr:Zun!U175) -> 0 | V175: =SUM(Dmr:Zun!V175) -> 0 | W175: =SUM(Dmr:Zun!W175) -> 0 | Y175: =SUM(Dmr:Zun!Y175) -> 0 | Z175: =SUM(Dmr:Zun!Z175) -> 0 | AA175: =SUM(Dmr:Zun!AA175) -> 0 | AB175: =SUM(Dmr:Zun!AB175) -> 0 | AC175: =SUM(Dmr:Zun!AC175) -> 0 | AD175: TRUE | AE175: TRUE | AF175: 0 | AG175: 0 | AH175: TRUE
B176: (c) 6 months | C176: =SUM(Dmr:Zun!C176) -> 0 | D176: =SUM(Dmr:Zun!D176) -> 0 | E176: =SUM(Dmr:Zun!E176) -> 0 | F176: =SUM(Dmr:Zun!F176) -> 0 | I176: =SUM(Dmr:Zun!I176) -> 0 | J176: =SUM(Dmr:Zun!J176) -> 0 | K176: =SUM(Dmr:Zun!K176) -> 0 | L176: =SUM(Dmr:Zun!L176) -> 0 | M176: =SUM(Dmr:Zun!M176) -> 0 | N176: =SUM(Dmr:Zun!N176) -> 0 | P176: =SUM(Dmr:Zun!P176) -> 0 | Q176: =SUM(Dmr:Zun!Q176) -> 0 | R176: =SUM(Dmr:Zun!R176) -> 0 | S176: =SUM(Dmr:Zun!S176) -> 0 | T176: =SUM(Dmr:Zun!T176) -> 0 | U176: =SUM(Dmr:Zun!U176) -> 0 | V176: =SUM(Dmr:Zun!V176) -> 0 | W176: =SUM(Dmr:Zun!W176) -> 0 | Y176: =SUM(Dmr:Zun!Y176) -> 0 | Z176: =SUM(Dmr:Zun!Z176) -> 0 | AA176: =SUM(Dmr:Zun!AA176) -> 0 | AB176: =SUM(Dmr:Zun!AB176) -> 0 | AC176: =SUM(Dmr:Zun!AC176) -> 0 | AD176: TRUE | AE176: TRUE | AF176: 0 | AG176: 0 | AH176: TRUE
B177: (d) 3 months | C177: =SUM(Dmr:Zun!C177) -> 0 | D177: =SUM(Dmr:Zun!D177) -> 0 | E177: =SUM(Dmr:Zun!E177) -> 0 | F177: =SUM(Dmr:Zun!F177) -> 0 | I177: =SUM(Dmr:Zun!I177) -> 0 | J177: =SUM(Dmr:Zun!J177) -> 0 | K177: =SUM(Dmr:Zun!K177) -> 0 | L177: =SUM(Dmr:Zun!L177) -> 0 | M177: =SUM(Dmr:Zun!M177) -> 0 | N177: =SUM(Dmr:Zun!N177) -> 0 | P177: =SUM(Dmr:Zun!P177) -> 0 | Q177: =SUM(Dmr:Zun!Q177) -> 0 | R177: =SUM(Dmr:Zun!R177) -> 0 | S177: =SUM(Dmr:Zun!S177) -> 0 | T177: =SUM(Dmr:Zun!T177) -> 0 | U177: =SUM(Dmr:Zun!U177) -> 0 | V177: =SUM(Dmr:Zun!V177) -> 0 | W177: =SUM(Dmr:Zun!W177) -> 0 | Y177: =SUM(Dmr:Zun!Y177) -> 0 | Z177: =SUM(Dmr:Zun!Z177) -> 0 | AA177: =SUM(Dmr:Zun!AA177) -> 0 | AB177: =SUM(Dmr:Zun!AB177) -> 0 | AC177: =SUM(Dmr:Zun!AC177) -> 0 | AD177: TRUE | AE177: TRUE | AF177: 0 | AG177: 0 | AH177: TRUE
B178: Sub Total | C178: =SUM(Dmr:Zun!C178) -> 0 | D178: =SUM(Dmr:Zun!D178) -> 0 | E178: =SUM(Dmr:Zun!E178) -> 0 | F178: =SUM(Dmr:Zun!F178) -> 0 | I178: =SUM(Dmr:Zun!I178) -> 0 | J178: =SUM(Dmr:Zun!J178) -> 0 | K178: =SUM(Dmr:Zun!K178) -> 0 | L178: =SUM(Dmr:Zun!L178) -> 0 | M178: =SUM(Dmr:Zun!M178) -> 0 | N178: =SUM(Dmr:Zun!N178) -> 0 | P178: =SUM(Dmr:Zun!P178) -> 0 | Q178: =SUM(Dmr:Zun!Q178) -> 0 | R178: =SUM(Dmr:Zun!R178) -> 0 | S178: =SUM(Dmr:Zun!S178) -> 0 | T178: =SUM(Dmr:Zun!T178) -> 0 | U178: =SUM(Dmr:Zun!U178) -> 0 | V178: =SUM(Dmr:Zun!V178) -> 0 | W178: =SUM(Dmr:Zun!W178) -> 0 | Y178: =SUM(Dmr:Zun!Y178) -> 0 | Z178: =SUM(Dmr:Zun!Z178) -> 0 | AA178: =SUM(Dmr:Zun!AA178) -> 0 | AB178: =SUM(Dmr:Zun!AB178) -> 0 | AC178: =SUM(Dmr:Zun!AC178) -> 0 | AD178: TRUE | AE178: TRUE | AF178: 0 | AG178: 0 | AH178: TRUE
A179: 6.06 | B179: Seasonal Hostel (Residential) | AC179: =SUM(Dmr:Zun!AC179) -> 0 | AD179: TRUE | AE179: TRUE | AF179: 0 | AG179: 0 | AH179: TRUE
B180: (a) 12 months | C180: =SUM(Dmr:Zun!C180) -> 0 | D180: =SUM(Dmr:Zun!D180) -> 0 | E180: =SUM(Dmr:Zun!E180) -> 0 | F180: =SUM(Dmr:Zun!F180) -> 0 | I180: =SUM(Dmr:Zun!I180) -> 0 | J180: =SUM(Dmr:Zun!J180) -> 0 | K180: =SUM(Dmr:Zun!K180) -> 0 | L180: =SUM(Dmr:Zun!L180) -> 0 | M180: =SUM(Dmr:Zun!M180) -> 0 | N180: =SUM(Dmr:Zun!N180) -> 0 | P180: =SUM(Dmr:Zun!P180) -> 0 | Q180: =SUM(Dmr:Zun!Q180) -> 0 | R180: =SUM(Dmr:Zun!R180) -> 0 | S180: =SUM(Dmr:Zun!S180) -> 0 | T180: =SUM(Dmr:Zun!T180) -> 0 | U180: =SUM(Dmr:Zun!U180) -> 0 | V180: =SUM(Dmr:Zun!V180) -> 0 | W180: =SUM(Dmr:Zun!W180) -> 0 | Y180: =SUM(Dmr:Zun!Y180) -> 0 | Z180: =SUM(Dmr:Zun!Z180) -> 0 | AA180: =SUM(Dmr:Zun!AA180) -> 0 | AB180: =SUM(Dmr:Zun!AB180) -> 0 | AC180: =SUM(Dmr:Zun!AC180) -> 0 | AD180: TRUE | AE180: TRUE | AF180: 0 | AG180: 0 | AH180: TRUE
B181: (b) 9 months | C181: =SUM(Dmr:Zun!C181) -> 0 | D181: =SUM(Dmr:Zun!D181) -> 0 | E181: =SUM(Dmr:Zun!E181) -> 0 | F181: =SUM(Dmr:Zun!F181) -> 0 | I181: =SUM(Dmr:Zun!I181) -> 0 | J181: =SUM(Dmr:Zun!J181) -> 0 | K181: =SUM(Dmr:Zun!K181) -> 0 | L181: =SUM(Dmr:Zun!L181) -> 0 | M181: =SUM(Dmr:Zun!M181) -> 0 | N181: =SUM(Dmr:Zun!N181) -> 0 | P181: =SUM(Dmr:Zun!P181) -> 0 | Q181: =SUM(Dmr:Zun!Q181) -> 0 | R181: =SUM(Dmr:Zun!R181) -> 0 | S181: =SUM(Dmr:Zun!S181) -> 0 | T181: =SUM(Dmr:Zun!T181) -> 0 | U181: =SUM(Dmr:Zun!U181) -> 0 | V181: =SUM(Dmr:Zun!V181) -> 0 | W181: =SUM(Dmr:Zun!W181) -> 0 | Y181: =SUM(Dmr:Zun!Y181) -> 0 | Z181: =SUM(Dmr:Zun!Z181) -> 0 | AA181: =SUM(Dmr:Zun!AA181) -> 0 | AB181: =SUM(Dmr:Zun!AB181) -> 0 | AC181: =SUM(Dmr:Zun!AC181) -> 0 | AD181: TRUE | AE181: TRUE | AF181: 0 | AG181: 0 | AH181: TRUE
B182: (c) 6 months | C182: =SUM(Dmr:Zun!C182) -> 0 | D182: =SUM(Dmr:Zun!D182) -> 0 | E182: =SUM(Dmr:Zun!E182) -> 0 | F182: =SUM(Dmr:Zun!F182) -> 0 | I182: =SUM(Dmr:Zun!I182) -> 0 | J182: =SUM(Dmr:Zun!J182) -> 0 | K182: =SUM(Dmr:Zun!K182) -> 0 | L182: =SUM(Dmr:Zun!L182) -> 0 | M182: =SUM(Dmr:Zun!M182) -> 0 | N182: =SUM(Dmr:Zun!N182) -> 0 | P182: =SUM(Dmr:Zun!P182) -> 0 | Q182: =SUM(Dmr:Zun!Q182) -> 0 | R182: =SUM(Dmr:Zun!R182) -> 0 | S182: =SUM(Dmr:Zun!S182) -> 0 | T182: =SUM(Dmr:Zun!T182) -> 0 | U182: =SUM(Dmr:Zun!U182) -> 0 | V182: =SUM(Dmr:Zun!V182) -> 0 | W182: =SUM(Dmr:Zun!W182) -> 0 | Y182: =SUM(Dmr:Zun!Y182) -> 0 | Z182: =SUM(Dmr:Zun!Z182) -> 0 | AA182: =SUM(Dmr:Zun!AA182) -> 0 | AB182: =SUM(Dmr:Zun!AB182) -> 0 | AC182: =SUM(Dmr:Zun!AC182) -> 0 | AD182: TRUE | AE182: TRUE | AF182: 0 | AG182: 0 | AH182: TRUE
B183: (d) 3 months | C183: =SUM(Dmr:Zun!C183) -> 0 | D183: =SUM(Dmr:Zun!D183) -> 0 | E183: =SUM(Dmr:Zun!E183) -> 0 | F183: =SUM(Dmr:Zun!F183) -> 0 | I183: =SUM(Dmr:Zun!I183) -> 0 | J183: =SUM(Dmr:Zun!J183) -> 0 | K183: =SUM(Dmr:Zun!K183) -> 0 | L183: =SUM(Dmr:Zun!L183) -> 0 | M183: =SUM(Dmr:Zun!M183) -> 0 | N183: =SUM(Dmr:Zun!N183) -> 0 | P183: =SUM(Dmr:Zun!P183) -> 0 | Q183: =SUM(Dmr:Zun!Q183) -> 0 | R183: =SUM(Dmr:Zun!R183) -> 0 | S183: =SUM(Dmr:Zun!S183) -> 0 | T183: =SUM(Dmr:Zun!T183) -> 0 | U183: =SUM(Dmr:Zun!U183) -> 0 | V183: =SUM(Dmr:Zun!V183) -> 0 | W183: =SUM(Dmr:Zun!W183) -> 0 | Y183: =SUM(Dmr:Zun!Y183) -> 0 | Z183: =SUM(Dmr:Zun!Z183) -> 0 | AA183: =SUM(Dmr:Zun!AA183) -> 0 | AB183: =SUM(Dmr:Zun!AB183) -> 0 | AC183: =SUM(Dmr:Zun!AC183) -> 0 | AD183: TRUE | AE183: TRUE | AF183: 0 | AG183: 0 | AH183: TRUE
B184: Sub Total | C184: =SUM(Dmr:Zun!C184) -> 0 | D184: =SUM(Dmr:Zun!D184) -> 0 | E184: =SUM(Dmr:Zun!E184) -> 0 | F184: =SUM(Dmr:Zun!F184) -> 0 | I184: =SUM(Dmr:Zun!I184) -> 0 | J184: =SUM(Dmr:Zun!J184) -> 0 | K184: =SUM(Dmr:Zun!K184) -> 0 | L184: =SUM(Dmr:Zun!L184) -> 0 | M184: =SUM(Dmr:Zun!M184) -> 0 | N184: =SUM(Dmr:Zun!N184) -> 0 | P184: =SUM(Dmr:Zun!P184) -> 0 | Q184: =SUM(Dmr:Zun!Q184) -> 0 | R184: =SUM(Dmr:Zun!R184) -> 0 | S184: =SUM(Dmr:Zun!S184) -> 0 | T184: =SUM(Dmr:Zun!T184) -> 0 | U184: =SUM(Dmr:Zun!U184) -> 0 | V184: =SUM(Dmr:Zun!V184) -> 0 | W184: =SUM(Dmr:Zun!W184) -> 0 | Y184: =SUM(Dmr:Zun!Y184) -> 0 | Z184: =SUM(Dmr:Zun!Z184) -> 0 | AA184: =SUM(Dmr:Zun!AA184) -> 0 | AB184: =SUM(Dmr:Zun!AB184) -> 0 | AC184: =SUM(Dmr:Zun!AC184) -> 0 | AD184: TRUE | AE184: TRUE | AF184: 0 | AG184: 0 | AH184: TRUE
A185: 6.07 | B185: Seasonal Hostel (Non Residential) | AC185: =SUM(Dmr:Zun!AC185) -> 0 | AD185: TRUE | AE185: TRUE | AF185: 0 | AG185: 0 | AH185: TRUE
B186: (a) 12 months | C186: =SUM(Dmr:Zun!C186) -> 0 | D186: =SUM(Dmr:Zun!D186) -> 0 | E186: =SUM(Dmr:Zun!E186) -> 0 | F186: =SUM(Dmr:Zun!F186) -> 0 | I186: =SUM(Dmr:Zun!I186) -> 0 | J186: =SUM(Dmr:Zun!J186) -> 0 | K186: =SUM(Dmr:Zun!K186) -> 0 | L186: =SUM(Dmr:Zun!L186) -> 0 | M186: =SUM(Dmr:Zun!M186) -> 0 | N186: =SUM(Dmr:Zun!N186) -> 0 | P186: =SUM(Dmr:Zun!P186) -> 0 | Q186: =SUM(Dmr:Zun!Q186) -> 0 | R186: =SUM(Dmr:Zun!R186) -> 0 | S186: =SUM(Dmr:Zun!S186) -> 0 | T186: =SUM(Dmr:Zun!T186) -> 0 | U186: =SUM(Dmr:Zun!U186) -> 0 | V186: =SUM(Dmr:Zun!V186) -> 0 | W186: =SUM(Dmr:Zun!W186) -> 0 | Y186: =SUM(Dmr:Zun!Y186) -> 0 | Z186: =SUM(Dmr:Zun!Z186) -> 0 | AA186: =SUM(Dmr:Zun!AA186) -> 0 | AB186: =SUM(Dmr:Zun!AB186) -> 0 | AC186: =SUM(Dmr:Zun!AC186) -> 0 | AD186: TRUE | AE186: TRUE | AF186: 0 | AG186: 0 | AH186: TRUE
B187: (b) 9 months | C187: =SUM(Dmr:Zun!C187) -> 0 | D187: =SUM(Dmr:Zun!D187) -> 0 | E187: =SUM(Dmr:Zun!E187) -> 0 | F187: =SUM(Dmr:Zun!F187) -> 0 | I187: =SUM(Dmr:Zun!I187) -> 0 | J187: =SUM(Dmr:Zun!J187) -> 0 | K187: =SUM(Dmr:Zun!K187) -> 0 | L187: =SUM(Dmr:Zun!L187) -> 0 | M187: =SUM(Dmr:Zun!M187) -> 0 | N187: =SUM(Dmr:Zun!N187) -> 0 | P187: =SUM(Dmr:Zun!P187) -> 0 | Q187: =SUM(Dmr:Zun!Q187) -> 0 | R187: =SUM(Dmr:Zun!R187) -> 0 | S187: =SUM(Dmr:Zun!S187) -> 0 | T187: =SUM(Dmr:Zun!T187) -> 0 | U187: =SUM(Dmr:Zun!U187) -> 0 | V187: =SUM(Dmr:Zun!V187) -> 0 | W187: =SUM(Dmr:Zun!W187) -> 0 | Y187: =SUM(Dmr:Zun!Y187) -> 0 | Z187: =SUM(Dmr:Zun!Z187) -> 0 | AA187: =SUM(Dmr:Zun!AA187) -> 0 | AB187: =SUM(Dmr:Zun!AB187) -> 0 | AC187: =SUM(Dmr:Zun!AC187) -> 0 | AD187: TRUE | AE187: TRUE | AF187: 0 | AG187: 0 | AH187: TRUE
B188: (c) 6 months | C188: =SUM(Dmr:Zun!C188) -> 0 | D188: =SUM(Dmr:Zun!D188) -> 0 | E188: =SUM(Dmr:Zun!E188) -> 0 | F188: =SUM(Dmr:Zun!F188) -> 0 | I188: =SUM(Dmr:Zun!I188) -> 0 | J188: =SUM(Dmr:Zun!J188) -> 0 | K188: =SUM(Dmr:Zun!K188) -> 0 | L188: =SUM(Dmr:Zun!L188) -> 0 | M188: =SUM(Dmr:Zun!M188) -> 0 | N188: =SUM(Dmr:Zun!N188) -> 0 | P188: =SUM(Dmr:Zun!P188) -> 0 | Q188: =SUM(Dmr:Zun!Q188) -> 0 | R188: =SUM(Dmr:Zun!R188) -> 0 | S188: =SUM(Dmr:Zun!S188) -> 0 | T188: =SUM(Dmr:Zun!T188) -> 0 | U188: =SUM(Dmr:Zun!U188) -> 0 | V188: =SUM(Dmr:Zun!V188) -> 0 | W188: =SUM(Dmr:Zun!W188) -> 0 | Y188: =SUM(Dmr:Zun!Y188) -> 0 | Z188: =SUM(Dmr:Zun!Z188) -> 0 | AA188: =SUM(Dmr:Zun!AA188) -> 0 | AB188: =SUM(Dmr:Zun!AB188) -> 0 | AC188: =SUM(Dmr:Zun!AC188) -> 0 | AD188: TRUE | AE188: TRUE | AF188: 0 | AG188: 0 | AH188: TRUE
B189: (d) 3 months | C189: =SUM(Dmr:Zun!C189) -> 0 | D189: =SUM(Dmr:Zun!D189) -> 0 | E189: =SUM(Dmr:Zun!E189) -> 0 | F189: =SUM(Dmr:Zun!F189) -> 0 | I189: =SUM(Dmr:Zun!I189) -> 0 | J189: =SUM(Dmr:Zun!J189) -> 0 | K189: =SUM(Dmr:Zun!K189) -> 0 | L189: =SUM(Dmr:Zun!L189) -> 0 | M189: =SUM(Dmr:Zun!M189) -> 0 | N189: =SUM(Dmr:Zun!N189) -> 0 | P189: =SUM(Dmr:Zun!P189) -> 0 | Q189: =SUM(Dmr:Zun!Q189) -> 0 | R189: =SUM(Dmr:Zun!R189) -> 0 | S189: =SUM(Dmr:Zun!S189) -> 0 | T189: =SUM(Dmr:Zun!T189) -> 0 | U189: =SUM(Dmr:Zun!U189) -> 0 | V189: =SUM(Dmr:Zun!V189) -> 0 | W189: =SUM(Dmr:Zun!W189) -> 0 | Y189: =SUM(Dmr:Zun!Y189) -> 0 | Z189: =SUM(Dmr:Zun!Z189) -> 0 | AA189: =SUM(Dmr:Zun!AA189) -> 0 | AB189: =SUM(Dmr:Zun!AB189) -> 0 | AC189: =SUM(Dmr:Zun!AC189) -> 0 | AD189: TRUE | AE189: TRUE | AF189: 0 | AG189: 0 | AH189: TRUE
B190: Sub Total | C190: =SUM(Dmr:Zun!C190) -> 0 | D190: =SUM(Dmr:Zun!D190) -> 0 | E190: =SUM(Dmr:Zun!E190) -> 0 | F190: =SUM(Dmr:Zun!F190) -> 0 | I190: =SUM(Dmr:Zun!I190) -> 0 | J190: =SUM(Dmr:Zun!J190) -> 0 | K190: =SUM(Dmr:Zun!K190) -> 0 | L190: =SUM(Dmr:Zun!L190) -> 0 | M190: =SUM(Dmr:Zun!M190) -> 0 | N190: =SUM(Dmr:Zun!N190) -> 0 | P190: =SUM(Dmr:Zun!P190) -> 0 | Q190: =SUM(Dmr:Zun!Q190) -> 0 | R190: =SUM(Dmr:Zun!R190) -> 0 | S190: =SUM(Dmr:Zun!S190) -> 0 | T190: =SUM(Dmr:Zun!T190) -> 0 | U190: =SUM(Dmr:Zun!U190) -> 0 | V190: =SUM(Dmr:Zun!V190) -> 0 | W190: =SUM(Dmr:Zun!W190) -> 0 | Y190: =SUM(Dmr:Zun!Y190) -> 0 | Z190: =SUM(Dmr:Zun!Z190) -> 0 | AA190: =SUM(Dmr:Zun!AA190) -> 0 | AB190: =SUM(Dmr:Zun!AB190) -> 0 | AC190: =SUM(Dmr:Zun!AC190) -> 0 | AE190: TRUE | AF190: 0 | AG190: 0 | AH190: TRUE
B191: Total | C191: =SUM(Dmr:Zun!C191) -> 7960 | D191: =SUM(Dmr:Zun!D191) -> 711.36 | E191: =SUM(Dmr:Zun!E191) -> 0 | F191: =SUM(Dmr:Zun!F191) -> 0 | I191: =SUM(Dmr:Zun!I191) -> 7960 | J191: =SUM(Dmr:Zun!J191) -> 711.36 | K191: =SUM(Dmr:Zun!K191) -> 0 | L191: =SUM(Dmr:Zun!L191) -> 0 | M191: =SUM(Dmr:Zun!M191) -> 0 | N191: =SUM(Dmr:Zun!N191) -> 0 | P191: =SUM(Dmr:Zun!P191) -> 5574 | Q191: =SUM(Dmr:Zun!Q191) -> 449.82 | R191: =SUM(Dmr:Zun!R191) -> 5574 | S191: =SUM(Dmr:Zun!S191) -> 449.82 | T191: =SUM(Dmr:Zun!T191) -> 0 | U191: =SUM(Dmr:Zun!U191) -> 0 | V191: =SUM(Dmr:Zun!V191) -> 0 | W191: =SUM(Dmr:Zun!W191) -> 0 | Y191: =SUM(Dmr:Zun!Y191) -> 5574 | Z191: =SUM(Dmr:Zun!Z191) -> 449.82 | AA191: =SUM(Dmr:Zun!AA191) -> 5574 | AB191: =SUM(Dmr:Zun!AB191) -> 449.82 | AE191: TRUE | AF191: 449.82 | AG191: 449.82 | AH191: TRUE
A192: II | B192: RETENTION | AC192: =SUM(Dmr:Zun!AC192) -> 0 | AD192: TRUE | AE192: TRUE | AF192: 0 | AG192: 0 | AH192: TRUE
A193: 7 | B193: Free Text Books | AC193: =SUM(Dmr:Zun!AC193) -> 0 | AD193: TRUE | AE193: TRUE | AF193: 0 | AG193: 0 | AH193: TRUE
A194: 7.01 | B194: Free Text Books (P) | C194: =SUM(Dmr:Zun!C194) -> 0 | D194: =SUM(Dmr:Zun!D194) -> 0 | E194: =SUM(Dmr:Zun!E194) -> 0 | F194: =SUM(Dmr:Zun!F194) -> 0 | I194: =SUM(Dmr:Zun!I194) -> 0 | J194: =SUM(Dmr:Zun!J194) -> 0 | K194: =SUM(Dmr:Zun!K194) -> 0 | L194: =SUM(Dmr:Zun!L194) -> 0 | M194: =SUM(Dmr:Zun!M194) -> 0 | N194: =SUM(Dmr:Zun!N194) -> 0 | P194: =SUM(Dmr:Zun!P194) -> 0 | Q194: =SUM(Dmr:Zun!Q194) -> 0 | R194: =SUM(Dmr:Zun!R194) -> 0 | S194: =SUM(Dmr:Zun!S194) -> 0 | T194: =SUM(Dmr:Zun!T194) -> 0 | U194: =SUM(Dmr:Zun!U194) -> 0 | V194: =SUM(Dmr:Zun!V194) -> 0 | W194: =SUM(Dmr:Zun!W194) -> 0 | Y194: =SUM(Dmr:Zun!Y194) -> 0 | Z194: =SUM(Dmr:Zun!Z194) -> 0 | AA194: =SUM(Dmr:Zun!AA194) -> 0 | AB194: =SUM(Dmr:Zun!AB194) -> 0 | AC194: =SUM(Dmr:Zun!AC194) -> 0 | AD194: TRUE | AE194: TRUE | AF194: 0 | AG194: 0 | AH194: TRUE
B195: (a) Class I & II | C195: =SUM(Dmr:Zun!C195) -> 51784 | D195: =SUM(Dmr:Zun!D195) -> 77.676 | E195: =SUM(Dmr:Zun!E195) -> 0 | F195: =SUM(Dmr:Zun!F195) -> 0 | G195: =E195/C195 -> 0 | H195: =F195/D195 -> 0 | I195: =SUM(Dmr:Zun!I195) -> 51784 | J195: =SUM(Dmr:Zun!J195) -> 77.676 | K195: =SUM(Dmr:Zun!K195) -> 0 | L195: =SUM(Dmr:Zun!L195) -> 0 | M195: =SUM(Dmr:Zun!M195) -> 0 | N195: =SUM(Dmr:Zun!N195) -> 0 | O195: 0.0015 | P195: =SUM(Dmr:Zun!P195) -> 38675 | Q195: =SUM(Dmr:Zun!Q195) -> 58.0125 | R195: =SUM(Dmr:Zun!R195) -> 38675 | S195: =SUM(Dmr:Zun!S195) -> 58.0125 | T195: =SUM(Dmr:Zun!T195) -> 0 | U195: =SUM(Dmr:Zun!U195) -> 0 | V195: =SUM(Dmr:Zun!V195) -> 0 | W195: =SUM(Dmr:Zun!W195) -> 0 | X195: 0.0015 | Y195: =SUM(Dmr:Zun!Y195) -> 38675 | Z195: =SUM(Dmr:Zun!Z195) -> 58.0125 | AA195: =SUM(Dmr:Zun!AA195) -> 38675 | AB195: =SUM(Dmr:Zun!AB195) -> 58.0125 | AC195: Recommended as proposed | AD195: TRUE | AE195: TRUE | AF195: 58.0125 | AG195: 58.0125 | AH195: TRUE
B196: (b) Class III to V | C196: =SUM(Dmr:Zun!C196) -> 65050 | D196: =SUM(Dmr:Zun!D196) -> 97.575 | E196: =SUM(Dmr:Zun!E196) -> 0 | F196: =SUM(Dmr:Zun!F196) -> 0 | G196: 0 | H196: 0 | I196: =SUM(Dmr:Zun!I196) -> 65050 | J196: =SUM(Dmr:Zun!J196) -> 97.575 | K196: =SUM(Dmr:Zun!K196) -> 0 | L196: =SUM(Dmr:Zun!L196) -> 0 | M196: =SUM(Dmr:Zun!M196) -> 0 | N196: =SUM(Dmr:Zun!N196) -> 0 | O196: 0.0015 | P196: =SUM(Dmr:Zun!P196) -> 47506 | Q196: =SUM(Dmr:Zun!Q196) -> 71.259 | R196: =SUM(Dmr:Zun!R196) -> 47506 | S196: =SUM(Dmr:Zun!S196) -> 71.259 | T196: =SUM(Dmr:Zun!T196) -> 0 | U196: =SUM(Dmr:Zun!U196) -> 0 | V196: =SUM(Dmr:Zun!V196) -> 0 | W196: =SUM(Dmr:Zun!W196) -> 0 | X196: 0.0015 | Y196: =SUM(Dmr:Zun!Y196) -> 47506 | Z196: =SUM(Dmr:Zun!Z196) -> 71.259 | AA196: =SUM(Dmr:Zun!AA196) -> 47506 | AB196: =SUM(Dmr:Zun!AB196) -> 71.259 | AC196: Recommended as proposed | AD196: TRUE | AE196: TRUE | AF196: 71.259 | AG196: 71.259 | AH196: TRUE
A197: 7.02 | B197: Braille Books (P) Class I & II | C197: =SUM(Dmr:Zun!C197) -> 220 | D197: =SUM(Dmr:Zun!D197) -> 0.33 | F197: =SUM(Dmr:Zun!F197) -> 0 | G197: 0 | H197: 0 | I197: =SUM(Dmr:Zun!I197) -> 220 | J197: =SUM(Dmr:Zun!J197) -> 0.33 | K197: =SUM(Dmr:Zun!K197) -> 0 | L197: =SUM(Dmr:Zun!L197) -> 0 | M197: =SUM(Dmr:Zun!M197) -> 0 | N197: =SUM(Dmr:Zun!N197) -> 0 | O197: 0.0015 | P197: =SUM(Dmr:Zun!P197) -> 440 | Q197: =SUM(Dmr:Zun!Q197) -> 0.66 | R197: =SUM(Dmr:Zun!R197) -> 440 | S197: =SUM(Dmr:Zun!S197) -> 0.66 | T197: =SUM(Dmr:Zun!T197) -> 0 | U197: =SUM(Dmr:Zun!U197) -> 0 | V197: =SUM(Dmr:Zun!V197) -> 0 | W197: =SUM(Dmr:Zun!W197) -> 0 | X197: 0.0015 | Y197: =SUM(Dmr:Zun!Y197) -> 440 | Z197: =SUM(Dmr:Zun!Z197) -> 0.66 | AA197: =SUM(Dmr:Zun!AA197) -> 440 | AB197: =SUM(Dmr:Zun!AB197) -> 0.66 | AC197: Recommended as proposed | AD197: TRUE | AE197: TRUE | AF197: 0.66 | AG197: 0.66 | AH197: TRUE
